Workbook

Sheet ArrearMaster
A1: Design & Prepaired by Pravesh Kumar Sharma, Accountant, please call-9460100093 or write mail to praveshbkn@gmail.com for further query/error/updation/suggestion
A4: Important Hints-How to use this sheet | R4: Home
A5: Type's of calculation may be possible from this sheet (from F. Year 1990 & onwards)
C7: Prepare Salary Arrear Statement in respect of VII Pay Scale (from 01-01-2017 to 30-09-2017)
B10: Input Data Arrear (VII Pay-Z) | I10: Salary Arrear Statement (VII Pay-Z)
A14: Due & Drawn (both data) data related to VII Pay Scale (i.e. statement period belong to on or after 01-01-2016) | I14: Due data related to VII Pay Scale and Drawn data related to VI Pay Scale (i.e. statement period belong to on or after 01-01-2016)
B18: Input Data Arrear (VII Pay-X) | J18: Input Data Arrear (VII Pay-Y)
B20: Salary Arrear Statement (X) | J20: Salary Arrear Statement (Y)
A22: Due & Drawn (both data) data related to VI Pay Scale (i.e. statement period belong to on or after 01-01-2006) | I22: Due data related to VI Pay Scale and Drawn data related to V Pay Scale
B26: Input Data Arrear (VI Pay) | J26: Input Data Arrear (V to VI Pay)
B28: Salary Arrear Statement (A) | J28: Salary Arrear Statement (B)
A30: Due & Drawn (both ) data related to V Pay Scale (i.e. statement period since 1987 to onwards for V Pay Scale or its earlier scale) | I30: Due data related to VI Pay Scale for New Pension Scheme employee (from 01-01-2007 to onwards)
B34: Input Data Arrear (V Pay) | J34: Input Data Arrear for NPS (VI Pay)
B36: Salary Arrear Statement (C ) | J36: Salary Arrear Statement (D)
A38: Due data related to VII Pay Scale for New Pension Scheme employee (from 01-01-2017 to onwards) | I38: Abstract of Statement
I39: (Summary of statement X,Y,A,B and C )
B42: Input Data Arrear for NPS (VII Pay) | J42: Summary Sheet
B44: Salary Arrear Statement (E)
B46: Find out useful information for prepration of Salary Arrear | I46: HRA Rate | L46: Calculation
I48: Non-Accural Period
A49: Due data related to VI Pay Scale and Drawn data related to V Pay Scale | J49: Input Data Arrear (V to VI Pay)
J51: Salary Arrear Statement (B)
A55: Last updated on 20-08-21

Sheet Data (VII PAY-Z)
A1: Base | E1: 1
A3: Home-Arrear Master | G3: Process for Statement (Z) | O3: Clear Input Data | AD3: Home-Arrear Master | BC3: IF(ISERROR(INDEX(D:D,MATCH(A2,C:C,0))),"",INDEX(D:D,MATCH(A2,C:C,0)))
A4: NAME OF EMPLOYEE | F4: PRAVESH KUMAR SHARMA | J4: ARREAR START _END PERIOD | P4: =CONCATENATE("Basic Pay on "," ",TEXT(A11,"mm/yyyy")) -> Basic Pay on 01/2017
A5: DESIGNATION | F5: ACCOUNTANT | J5: Start_Period | M5: 2017-01-01 | P5: Due Pay | R5: Drawn Pay
A6: OFFICE NAME | C6: (Adjusted in GPF) | F6: COMMISSIONER COLONISATION, BIKANER | J6: End_Period | M6: 2017-09-30 | P6: 77500 | R6: 26760
A7: (total effected amt) | C7: ='Statement(Z) '!P244 -> 158645 | J7: Statement type | P7: Salary Arrear | T7: Data Input for Surrender Leave Salary
A8: ='Statement(Z) '!AE234 -> 0 | D8: =P7 -> Salary Arrear | G8: due to (give reason) | J8: Notification No.F15(1)FD(Rules)2017, dated 09-12-2017 | AJ8: ='PraveshArr (VI Pay-A)'!A247 -> Breakup of Surrender Leave Salary --- During the period,between 15/02/2015 to 31/07/2021
A9: Period | B9: Arrear benefit condition | C9: Incr. Condt. | D9: Grade Pay Diff. | E9: Due Basic Pay | H9: Drawn Basic Pay | K9: DA Rate in VII Pay | L9: DA Rate in VI Pay | M9: CCA | O9: HRA DUE | R9: HRA DRAWN | U9: DA Arrear | X9: GPF CONTRIBUTION | AA9: RPMF (diff. if any) | AB9: Oth Ded. (if any) | AC9: Income Tax | AH9: Encash-ment Date
E10: Basic Pay | F10: Edit in Basic Pay | G10: Final Basic Pay | H10: Basic Pay | I10: Edit in Basic Pay | J10: Final Basic Pay | M10: DUE | N10: DRAWN | O10: HRA RATE (%) | P10: HRA EDIT | Q10: FINAL HRA | R10: HRA RATE (%) | S10: HRA EDIT | T10: FINAL HRA | U10: DA Arr. Rate | V10: Arrear Option | W10: D.A. Arrear Amt. | X10: Due GPF amt | Y10: Deducted GPF amt | Z10: GPF (Due diff if any) | AC10: Salary Diff | AD10: 10% of Diff. | AE10: Edit Amt | AF10: Condition | AG10: Final Tax Amt. | AJ10: No. of Days | AK10: Months | AM10: Encash-ment Date | AN10: Leave Type (Surrener leave salary/Leave encashment)
A11: ='PraveshArr (VII PAY-Z) '!Z7 -> 2017-01-01 | B11: Adj. in GPF | C11: NO | E11: =IF(A11="","",'PraveshArr (VII PAY-Z) '!AC7) -> 77500 | G11: ='PraveshArr (VII PAY-Z) '!AE7 -> 77500 | H11: =IF(A11="","",'PraveshArr (VII PAY-Z) '!AG7) -> 26760 | J11: =IF(A11="","",'PraveshArr (VII PAY-Z) '!AI7) -> 26760 | K11: =IF('PraveshArr (VII PAY-Z) '!AQ7>0,'PraveshArr (VII PAY-Z) '!AQ7,0) -> 0.04 | L11: =IF('PraveshArr (VII PAY-Z) '!AN7>0,'PraveshArr (VII PAY-Z) '!AN7,0) -> 1.36 | Q11: =IF(A11="","",IF(P11>0,P11,ROUND(G11*O11,0))) -> 0 | T11: =IF(S11>0,S11,ROUND(J11*R11,0)) -> 0 | U11: =IF(A11="","",'PraveshArr (VII PAY-Z) '!AR7) -> 0 | V11: Deposit | W11: =IF(A11="","",IF(ROUND((G11-J11)*U11,0)>0,ROUND((G11-J11)*U11,0),0)) -> 0 | X11: =IF(A11="","",IF(VLOOKUP(A11,'PraveshArr (VII PAY-Z) '!$Z$7:$BN$387,30)>0,VLOOKUP(A11,'PraveshArr (VII PAY-Z) '!$Z$7:$BN$387,30),0)) -> 4100 | Y11: 0 | Z11: =IF(Y11=0,0,IF(X11>Y11,(X11-Y11),0)) -> 0 | AA11: =IF(A11="","",IF(VLOOKUP(A11,'PraveshArr (VII PAY-Z) '!$C$7:$O$387,13)>0,VLOOKUP(A11,'PraveshArr (VII PAY-Z) '!$C$7:$O$387,13),0)) -> 20 | AC11: =IF(A11="","",VLOOKUP(A11,'Statement(Z) '!$C$7:$U$213,19)) -> 17446 | AD11: =IF(A11="","",IF(AC11<0,0,ROUND(AC11*0.1,0))) -> 1745 | AF11: NO | AG11: =IF(A11="","",IF(AF11="NO",0,IF(AE11>0,AE11,AD11))) -> 0
A12: ='PraveshArr (VII PAY-Z) '!Z8 -> 2017-02-01 | B12: Adj. in GPF | C12: NO | E12: =IF(A12="","",'PraveshArr (VII PAY-Z) '!AC8) -> 77500 | G12: =IF(A12="","",'PraveshArr (VII PAY-Z) '!AE8) -> 77500 | H12: =IF(A12="","",'PraveshArr (VII PAY-Z) '!AG8) -> 26760 | J12: =IF(A12="","",'PraveshArr (VII PAY-Z) '!AI8) -> 26760 | K12: =IF('PraveshArr (VII PAY-Z) '!AQ8>0,'PraveshArr (VII PAY-Z) '!AQ8,0) -> 0.04 | L12: =IF('PraveshArr (VII PAY-Z) '!AN8>0,'PraveshArr (VII PAY-Z) '!AN8,0) -> 1.36 | Q12: =IF(A12="","",IF(P12>0,P12,ROUND(G12*O12,0))) -> 0 | T12: =IF(A12="","",IF(S12>0,S12,ROUND(J12*R12,0))) -> 0 | U12: =IF(A12="","",'PraveshArr (VII PAY-Z) '!AR8) -> 0 | V12: Deposit | W12: 0 | X12: =IF(A12="","",IF(VLOOKUP(A12,'PraveshArr (VII PAY-Z) '!$Z$7:$BN$387,30)>0,VLOOKUP(A12,'PraveshArr (VII PAY-Z) '!$Z$7:$BN$387,30),0)) -> 4100 | Y12: 0 | Z12: =IF(Y12=0,0,IF(X12>Y12,(X12-Y12),0)) -> 0 | AA12: =IF(A12="","",IF(VLOOKUP(A12,'PraveshArr (VII PAY-Z) '!$C$7:$O$387,13)>0,VLOOKUP(A12,'PraveshArr (VII PAY-Z) '!$C$7:$O$387,13),0)) -> 20 | AC12: =IF(A12="","",VLOOKUP(A12,'Statement(Z) '!$C$7:$U$213,19)) -> 17446 | AD12: 1745 | AF12: NO | AG12: =IF(A12="","",IF(AF12="NO",0,IF(AE12>0,AE12,AD12))) -> 0
A13: ='PraveshArr (VII PAY-Z) '!Z9 -> 2017-03-01 | B13: Adj. in GPF | C13: NO | E13: =IF(A13="","",'PraveshArr (VII PAY-Z) '!AC9) -> 77500 | G13: =IF(A13="","",'PraveshArr (VII PAY-Z) '!AE9) -> 77500 | H13: =IF(A13="","",'PraveshArr (VII PAY-Z) '!AG9) -> 26760 | J13: =IF(A13="","",'PraveshArr (VII PAY-Z) '!AI9) -> 26760 | K13: =IF('PraveshArr (VII PAY-Z) '!AQ9>0,'PraveshArr (VII PAY-Z) '!AQ9,0) -> 0.04 | L13: =IF('PraveshArr (VII PAY-Z) '!AN9>0,'PraveshArr (VII PAY-Z) '!AN9,0) -> 1.36 | Q13: 0 | T13: =IF(A13="","",IF(S13>0,S13,ROUND(J13*R13,0))) -> 0 | U13: =IF(A13="","",'PraveshArr (VII PAY-Z) '!AR9) -> 0 | V13: Deposit | W13: 0 | X13: =IF(A13="","",IF(VLOOKUP(A13,'PraveshArr (VII PAY-Z) '!$Z$7:$BN$387,30)>0,VLOOKUP(A13,'PraveshArr (VII PAY-Z) '!$Z$7:$BN$387,30),0)) -> 4100 | Z13: 0 | AA13: =IF(A13="","",IF(VLOOKUP(A13,'PraveshArr (VII PAY-Z) '!$C$7:$O$387,13)>0,VLOOKUP(A13,'PraveshArr (VII PAY-Z) '!$C$7:$O$387,13),0)) -> 0 | AC13: =IF(A13="","",VLOOKUP(A13,'Statement(Z) '!$C$7:$U$213,19)) -> 17446 | AD13: 1745 | AF13: NO | AG13: 0
A14: ='PraveshArr (VII PAY-Z) '!Z10 -> 2017-04-01 | B14: Adj. in GPF | C14: NO | E14: =IF(A14="","",'PraveshArr (VII PAY-Z) '!AC10) -> 77500 | G14: =IF(A14="","",'PraveshArr (VII PAY-Z) '!AE10) -> 77500 | H14: =IF(A14="","",'PraveshArr (VII PAY-Z) '!AG10) -> 26760 | J14: =IF(A14="","",'PraveshArr (VII PAY-Z) '!AI10) -> 26760 | K14: =IF('PraveshArr (VII PAY-Z) '!AQ10>0,'PraveshArr (VII PAY-Z) '!AQ10,0) -> 0.04 | L14: =IF('PraveshArr (VII PAY-Z) '!AN10>0,'PraveshArr (VII PAY-Z) '!AN10,0) -> 1.36 | Q14: 0 | T14: 0 | U14: =IF(A14="","",'PraveshArr (VII PAY-Z) '!AR10) -> 0 | V14: Deposit | W14: 0 | X14: =IF(A14="","",IF(VLOOKUP(A14,'PraveshArr (VII PAY-Z) '!$Z$7:$BN$387,30)>0,VLOOKUP(A14,'PraveshArr (VII PAY-Z) '!$Z$7:$BN$387,30),0)) -> 4100 | Z14: 0 | AA14: =IF(A14="","",IF(VLOOKUP(A14,'PraveshArr (VII PAY-Z) '!$C$7:$O$387,13)>0,VLOOKUP(A14,'PraveshArr (VII PAY-Z) '!$C$7:$O$387,13),0)) -> 0 | AC14: =IF(A14="","",VLOOKUP(A14,'Statement(Z) '!$C$7:$U$213,19)) -> 17446 | AD14: 1745 | AF14: NO | AG14: 0
A15: ='PraveshArr (VII PAY-Z) '!Z11 -> 2017-05-01 | B15: Adj. in GPF | C15: NO | E15: =IF(A15="","",'PraveshArr (VII PAY-Z) '!AC11) -> 77500 | G15: =IF(A15="","",'PraveshArr (VII PAY-Z) '!AE11) -> 77500 | H15: =IF(A15="","",'PraveshArr (VII PAY-Z) '!AG11) -> 26760 | J15: =IF(A15="","",'PraveshArr (VII PAY-Z) '!AI11) -> 26760 | K15: =IF('PraveshArr (VII PAY-Z) '!AQ11>0,'PraveshArr (VII PAY-Z) '!AQ11,0) -> 0.04 | L15: =IF('PraveshArr (VII PAY-Z) '!AN11>0,'PraveshArr (VII PAY-Z) '!AN11,0) -> 1.36 | Q15: 0 | T15: 0 | U15: =IF(A15="","",'PraveshArr (VII PAY-Z) '!AR11) -> 0 | V15: Deposit | W15: 0 | X15: =IF(A15="","",IF(VLOOKUP(A15,'PraveshArr (VII PAY-Z) '!$Z$7:$BN$387,30)>0,VLOOKUP(A15,'PraveshArr (VII PAY-Z) '!$Z$7:$BN$387,30),0)) -> 4100 | Z15: 0 | AA15: =IF(A15="","",IF(VLOOKUP(A15,'PraveshArr (VII PAY-Z) '!$C$7:$O$387,13)>0,VLOOKUP(A15,'PraveshArr (VII PAY-Z) '!$C$7:$O$387,13),0)) -> 0 | AC15: =IF(A15="","",VLOOKUP(A15,'Statement(Z) '!$C$7:$U$213,19)) -> 17446 | AD15: 1745 | AF15: NO | AG15: 0
A16: ='PraveshArr (VII PAY-Z) '!Z12 -> 2017-06-01 | B16: Adj. in GPF | C16: NO | E16: =IF(A16="","",'PraveshArr (VII PAY-Z) '!AC12) -> 77500 | G16: =IF(A16="","",'PraveshArr (VII PAY-Z) '!AE12) -> 77500 | H16: =IF(A16="","",'PraveshArr (VII PAY-Z) '!AG12) -> 26760 | J16: =IF(A16="","",'PraveshArr (VII PAY-Z) '!AI12) -> 26760 | K16: =IF('PraveshArr (VII PAY-Z) '!AQ12>0,'PraveshArr (VII PAY-Z) '!AQ12,0) -> 0.04 | L16: =IF('PraveshArr (VII PAY-Z) '!AN12>0,'PraveshArr (VII PAY-Z) '!AN12,0) -> 1.36 | Q16: 0 | T16: 0 | U16: =IF(A16="","",'PraveshArr (VII PAY-Z) '!AR12) -> 0 | V16: Deposit | W16: 0 | X16: =IF(A16="","",IF(VLOOKUP(A16,'PraveshArr (VII PAY-Z) '!$Z$7:$BN$387,30)>0,VLOOKUP(A16,'PraveshArr (VII PAY-Z) '!$Z$7:$BN$387,30),0)) -> 4100 | Z16: 0 | AA16: =IF(A16="","",IF(VLOOKUP(A16,'PraveshArr (VII PAY-Z) '!$C$7:$O$387,13)>0,VLOOKUP(A16,'PraveshArr (VII PAY-Z) '!$C$7:$O$387,13),0)) -> 0 | AC16: =IF(A16="","",VLOOKUP(A16,'Statement(Z) '!$C$7:$U$213,19)) -> 17446 | AD16: 1745 | AF16: NO | AG16: 0
A17: ='PraveshArr (VII PAY-Z) '!Z13 -> 2017-07-01 | B17: Adj. in GPF | C17: YES | E17: =IF(A17="","",'PraveshArr (VII PAY-Z) '!AC13) -> 79900 | G17: =IF(A17="","",'PraveshArr (VII PAY-Z) '!AE13) -> 79900 | H17: =IF(A17="","",'PraveshArr (VII PAY-Z) '!AG13) -> 27570 | J17: =IF(A17="","",'PraveshArr (VII PAY-Z) '!AI13) -> 27570 | K17: =IF('PraveshArr (VII PAY-Z) '!AQ13>0,'PraveshArr (VII PAY-Z) '!AQ13,0) -> 0.05 | L17: =IF('PraveshArr (VII PAY-Z) '!AN13>0,'PraveshArr (VII PAY-Z) '!AN13,0) -> 1.39 | Q17: 0 | T17: 0 | U17: =IF(A17="","",'PraveshArr (VII PAY-Z) '!AR13) -> 0 | V17: Deposit | W17: 0 | X17: =IF(A17="","",IF(VLOOKUP(A17,'PraveshArr (VII PAY-Z) '!$Z$7:$BN$387,30)>0,VLOOKUP(A17,'PraveshArr (VII PAY-Z) '!$Z$7:$BN$387,30),0)) -> 4100 | Z17: 0 | AA17: =IF(A17="","",IF(VLOOKUP(A17,'PraveshArr (VII PAY-Z) '!$C$7:$O$387,13)>0,VLOOKUP(A17,'PraveshArr (VII PAY-Z) '!$C$7:$O$387,13),0)) -> 0 | AC17: =IF(A17="","",VLOOKUP(A17,'Statement(Z) '!$C$7:$U$213,19)) -> 18003 | AD17: 1800 | AF17: NO | AG17: 0
A18: ='PraveshArr (VII PAY-Z) '!Z14 -> 2017-08-01 | B18: Adj. in GPF | C18: NO | E18: =IF(A18="","",'PraveshArr (VII PAY-Z) '!AC14) -> 79900 | G18: =IF(A18="","",'PraveshArr (VII PAY-Z) '!AE14) -> 79900 | H18: =IF(A18="","",'PraveshArr (VII PAY-Z) '!AG14) -> 27570 | J18: =IF(A18="","",'PraveshArr (VII PAY-Z) '!AI14) -> 27570 | K18: =IF('PraveshArr (VII PAY-Z) '!AQ14>0,'PraveshArr (VII PAY-Z) '!AQ14,0) -> 0.05 | L18: =IF('PraveshArr (VII PAY-Z) '!AN14>0,'PraveshArr (VII PAY-Z) '!AN14,0) -> 1.39 | Q18: 0 | T18: 0 | U18: =IF(A18="","",'PraveshArr (VII PAY-Z) '!AR14) -> 0 | V18: Deposit | W18: 0 | X18: =IF(A18="","",IF(VLOOKUP(A18,'PraveshArr (VII PAY-Z) '!$Z$7:$BN$387,30)>0,VLOOKUP(A18,'PraveshArr (VII PAY-Z) '!$Z$7:$BN$387,30),0)) -> 4100 | Z18: 0 | AA18: =IF(A18="","",IF(VLOOKUP(A18,'PraveshArr (VII PAY-Z) '!$C$7:$O$387,13)>0,VLOOKUP(A18,'PraveshArr (VII PAY-Z) '!$C$7:$O$387,13),0)) -> 0 | AC18: =IF(A18="","",VLOOKUP(A18,'Statement(Z) '!$C$7:$U$213,19)) -> 18003 | AD18: 1800 | AF18: NO | AG18: 0
A19: ='PraveshArr (VII PAY-Z) '!Z15 -> 2017-09-01 | B19: Adj. in GPF | C19: NO | E19: =IF(A19="","",'PraveshArr (VII PAY-Z) '!AC15) -> 79900 | G19: =IF(A19="","",'PraveshArr (VII PAY-Z) '!AE15) -> 79900 | H19: =IF(A19="","",'PraveshArr (VII PAY-Z) '!AG15) -> 27570 | J19: =IF(A19="","",'PraveshArr (VII PAY-Z) '!AI15) -> 27570 | K19: =IF('PraveshArr (VII PAY-Z) '!AQ15>0,'PraveshArr (VII PAY-Z) '!AQ15,0) -> 0.05 | L19: =IF('PraveshArr (VII PAY-Z) '!AN15>0,'PraveshArr (VII PAY-Z) '!AN15,0) -> 1.39 | Q19: 0 | T19: 0 | U19: =IF(A19="","",'PraveshArr (VII PAY-Z) '!AR15) -> 0 | V19: Deposit | W19: 0 | X19: =IF(A19="","",IF(VLOOKUP(A19,'PraveshArr (VII PAY-Z) '!$Z$7:$BN$387,30)>0,VLOOKUP(A19,'PraveshArr (VII PAY-Z) '!$Z$7:$BN$387,30),0)) -> 4100 | Z19: 0 | AA19: =IF(A19="","",IF(VLOOKUP(A19,'PraveshArr (VII PAY-Z) '!$C$7:$O$387,13)>0,VLOOKUP(A19,'PraveshArr (VII PAY-Z) '!$C$7:$O$387,13),0)) -> 0 | AC19: =IF(A19="","",VLOOKUP(A19,'Statement(Z) '!$C$7:$U$213,19)) -> 18003 | AD19: 1800 | AF19: NO | AG19: 0
A20: ='PraveshArr (VII PAY-Z) '!Z16 ->  | E20: =IF(A20="","",'PraveshArr (VII PAY-Z) '!AC16) ->  | G20: =IF(A20="","",'PraveshArr (VII PAY-Z) '!AE16) ->  | H20: =IF(A20="","",'PraveshArr (VII PAY-Z) '!AG16) ->  | J20: =IF(A20="","",'PraveshArr (VII PAY-Z) '!AI16) ->  | K20: =IF('PraveshArr (VII PAY-Z) '!AQ16>0,'PraveshArr (VII PAY-Z) '!AQ16,0) ->  | L20: =IF('PraveshArr (VII PAY-Z) '!AN16>0,'PraveshArr (VII PAY-Z) '!AN16,0) ->  | U20: =IF(A20="","",'PraveshArr (VII PAY-Z) '!AR16) ->  | V20: Deposit | X20: =IF(A20="","",IF(VLOOKUP(A20,'PraveshArr (VII PAY-Z) '!$Z$7:$BN$387,30)>0,VLOOKUP(A20,'PraveshArr (VII PAY-Z) '!$Z$7:$BN$387,30),0)) ->  | Z20: 0 | AA20: =IF(A20="","",IF(VLOOKUP(A20,'PraveshArr (VII PAY-Z) '!$C$7:$O$387,13)>0,VLOOKUP(A20,'PraveshArr (VII PAY-Z) '!$C$7:$O$387,13),0)) ->  | AC20: =IF(A20="","",VLOOKUP(A20,'Statement(Z) '!$C$7:$U$213,19)) ->  | AF20: NO
A21: ='PraveshArr (VII PAY-Z) '!Z17 ->  | E21: =IF(A21="","",'PraveshArr (VII PAY-Z) '!AC17) ->  | G21: =IF(A21="","",'PraveshArr (VII PAY-Z) '!AE17) ->  | H21: =IF(A21="","",'PraveshArr (VII PAY-Z) '!AG17) ->  | J21: =IF(A21="","",'PraveshArr (VII PAY-Z) '!AI17) ->  | K21: =IF('PraveshArr (VII PAY-Z) '!AQ17>0,'PraveshArr (VII PAY-Z) '!AQ17,0) ->  | L21: =IF('PraveshArr (VII PAY-Z) '!AN17>0,'PraveshArr (VII PAY-Z) '!AN17,0) ->  | U21: =IF(A21="","",'PraveshArr (VII PAY-Z) '!AR17) ->  | V21: Deposit | X21: =IF(A21="","",IF(VLOOKUP(A21,'PraveshArr (VII PAY-Z) '!$Z$7:$BN$387,30)>0,VLOOKUP(A21,'PraveshArr (VII PAY-Z) '!$Z$7:$BN$387,30),0)) ->  | Z21: 0 | AA21: =IF(A21="","",IF(VLOOKUP(A21,'PraveshArr (VII PAY-Z) '!$C$7:$O$387,13)>0,VLOOKUP(A21,'PraveshArr (VII PAY-Z) '!$C$7:$O$387,13),0)) ->  | AC21: =IF(A21="","",VLOOKUP(A21,'Statement(Z) '!$C$7:$U$213,19)) ->  | AF21: NO
A22: ='PraveshArr (VII PAY-Z) '!Z18 ->  | E22: =IF(A22="","",'PraveshArr (VII PAY-Z) '!AC18) ->  | G22: =IF(A22="","",'PraveshArr (VII PAY-Z) '!AE18) ->  | H22: =IF(A22="","",'PraveshArr (VII PAY-Z) '!AG18) ->  | J22: =IF(A22="","",'PraveshArr (VII PAY-Z) '!AI18) ->  | K22: =IF('PraveshArr (VII PAY-Z) '!AQ18>0,'PraveshArr (VII PAY-Z) '!AQ18,0) ->  | L22: =IF('PraveshArr (VII PAY-Z) '!AN18>0,'PraveshArr (VII PAY-Z) '!AN18,0) ->  | U22: =IF(A22="","",'PraveshArr (VII PAY-Z) '!AR18) ->  | V22: Deposit | X22: =IF(A22="","",IF(VLOOKUP(A22,'PraveshArr (VII PAY-Z) '!$Z$7:$BN$387,30)>0,VLOOKUP(A22,'PraveshArr (VII PAY-Z) '!$Z$7:$BN$387,30),0)) ->  | Z22: 0 | AA22: =IF(A22="","",IF(VLOOKUP(A22,'PraveshArr (VII PAY-Z) '!$C$7:$O$387,13)>0,VLOOKUP(A22,'PraveshArr (VII PAY-Z) '!$C$7:$O$387,13),0)) ->  | AC22: =IF(A22="","",VLOOKUP(A22,'Statement(Z) '!$C$7:$U$213,19)) ->  | AF22: NO
A23: ='PraveshArr (VII PAY-Z) '!Z19 ->  | E23: =IF(A23="","",'PraveshArr (VII PAY-Z) '!AC19) ->  | G23: =IF(A23="","",'PraveshArr (VII PAY-Z) '!AE19) ->  | H23: =IF(A23="","",'PraveshArr (VII PAY-Z) '!AG19) ->  | J23: =IF(A23="","",'PraveshArr (VII PAY-Z) '!AI19) ->  | K23: =IF('PraveshArr (VII PAY-Z) '!AQ19>0,'PraveshArr (VII PAY-Z) '!AQ19,0) ->  | L23: =IF('PraveshArr (VII PAY-Z) '!AN19>0,'PraveshArr (VII PAY-Z) '!AN19,0) ->  | U23: =IF(A23="","",'PraveshArr (VII PAY-Z) '!AR19) ->  | V23: Deposit | X23: =IF(A23="","",IF(VLOOKUP(A23,'PraveshArr (VII PAY-Z) '!$Z$7:$BN$387,30)>0,VLOOKUP(A23,'PraveshArr (VII PAY-Z) '!$Z$7:$BN$387,30),0)) ->  | Z23: 0 | AA23: =IF(A23="","",IF(VLOOKUP(A23,'PraveshArr (VII PAY-Z) '!$C$7:$O$387,13)>0,VLOOKUP(A23,'PraveshArr (VII PAY-Z) '!$C$7:$O$387,13),0)) ->  | AC23: =IF(A23="","",VLOOKUP(A23,'Statement(Z) '!$C$7:$U$213,19)) ->  | AF23: NO
A24: ='PraveshArr (VII PAY-Z) '!Z20 ->  | E24: =IF(A24="","",'PraveshArr (VII PAY-Z) '!AC20) ->  | G24: =IF(A24="","",'PraveshArr (VII PAY-Z) '!AE20) ->  | H24: =IF(A24="","",'PraveshArr (VII PAY-Z) '!AG20) ->  | J24: =IF(A24="","",'PraveshArr (VII PAY-Z) '!AI20) ->  | K24: =IF('PraveshArr (VII PAY-Z) '!AQ20>0,'PraveshArr (VII PAY-Z) '!AQ20,0) ->  | L24: =IF('PraveshArr (VII PAY-Z) '!AN20>0,'PraveshArr (VII PAY-Z) '!AN20,0) ->  | U24: =IF(A24="","",'PraveshArr (VII PAY-Z) '!AR20) ->  | V24: Deposit | X24: =IF(A24="","",IF(VLOOKUP(A24,'PraveshArr (VII PAY-Z) '!$Z$7:$BN$387,30)>0,VLOOKUP(A24,'PraveshArr (VII PAY-Z) '!$Z$7:$BN$387,30),0)) ->  | Z24: 0 | AA24: =IF(A24="","",IF(VLOOKUP(A24,'PraveshArr (VII PAY-Z) '!$C$7:$O$387,13)>0,VLOOKUP(A24,'PraveshArr (VII PAY-Z) '!$C$7:$O$387,13),0)) ->  | AC24: =IF(A24="","",VLOOKUP(A24,'Statement(Z) '!$C$7:$U$213,19)) ->  | AF24: NO
A25: ='PraveshArr (VII PAY-Z) '!Z21 ->  | E25: =IF(A25="","",'PraveshArr (VII PAY-Z) '!AC21) ->  | G25: =IF(A25="","",'PraveshArr (VII PAY-Z) '!AE21) ->  | H25: =IF(A25="","",'PraveshArr (VII PAY-Z) '!AG21) ->  | J25: =IF(A25="","",'PraveshArr (VII PAY-Z) '!AI21) ->  | K25: =IF('PraveshArr (VII PAY-Z) '!AQ21>0,'PraveshArr (VII PAY-Z) '!AQ21,0) ->  | L25: =IF('PraveshArr (VII PAY-Z) '!AN21>0,'PraveshArr (VII PAY-Z) '!AN21,0) ->  | U25: =IF(A25="","",'PraveshArr (VII PAY-Z) '!AR21) ->  | V25: Deposit | X25: =IF(A25="","",IF(VLOOKUP(A25,'PraveshArr (VII PAY-Z) '!$Z$7:$BN$387,30)>0,VLOOKUP(A25,'PraveshArr (VII PAY-Z) '!$Z$7:$BN$387,30),0)) ->  | Z25: 0 | AA25: =IF(A25="","",IF(VLOOKUP(A25,'PraveshArr (VII PAY-Z) '!$C$7:$O$387,13)>0,VLOOKUP(A25,'PraveshArr (VII PAY-Z) '!$C$7:$O$387,13),0)) ->  | AC25: =IF(A25="","",VLOOKUP(A25,'Statement(Z) '!$C$7:$U$213,19)) ->  | AF25: NO
A26: ='PraveshArr (VII PAY-Z) '!Z22 ->  | E26: =IF(A26="","",'PraveshArr (VII PAY-Z) '!AC22) ->  | G26: =IF(A26="","",'PraveshArr (VII PAY-Z) '!AE22) ->  | H26: =IF(A26="","",'PraveshArr (VII PAY-Z) '!AG22) ->  | J26: =IF(A26="","",'PraveshArr (VII PAY-Z) '!AI22) ->  | K26: =IF('PraveshArr (VII PAY-Z) '!AQ22>0,'PraveshArr (VII PAY-Z) '!AQ22,0) ->  | L26: =IF('PraveshArr (VII PAY-Z) '!AN22>0,'PraveshArr (VII PAY-Z) '!AN22,0) ->  | U26: =IF(A26="","",'PraveshArr (VII PAY-Z) '!AR22) ->  | V26: Deposit | X26: =IF(A26="","",IF(VLOOKUP(A26,'PraveshArr (VII PAY-Z) '!$Z$7:$BN$387,30)>0,VLOOKUP(A26,'PraveshArr (VII PAY-Z) '!$Z$7:$BN$387,30),0)) ->  | Z26: 0 | AA26: =IF(A26="","",IF(VLOOKUP(A26,'PraveshArr (VII PAY-Z) '!$C$7:$O$387,13)>0,VLOOKUP(A26,'PraveshArr (VII PAY-Z) '!$C$7:$O$387,13),0)) ->  | AC26: =IF(A26="","",VLOOKUP(A26,'Statement(Z) '!$C$7:$U$213,19)) ->  | AF26: NO
A27: ='PraveshArr (VII PAY-Z) '!Z23 ->  | E27: =IF(A27="","",'PraveshArr (VII PAY-Z) '!AC23) ->  | G27: =IF(A27="","",'PraveshArr (VII PAY-Z) '!AE23) ->  | H27: =IF(A27="","",'PraveshArr (VII PAY-Z) '!AG23) ->  | J27: =IF(A27="","",'PraveshArr (VII PAY-Z) '!AI23) ->  | K27: =IF('PraveshArr (VII PAY-Z) '!AQ23>0,'PraveshArr (VII PAY-Z) '!AQ23,0) ->  | L27: =IF('PraveshArr (VII PAY-Z) '!AN23>0,'PraveshArr (VII PAY-Z) '!AN23,0) ->  | U27: =IF(A27="","",'PraveshArr (VII PAY-Z) '!AR23) ->  | V27: Deposit | X27: =IF(A27="","",IF(VLOOKUP(A27,'PraveshArr (VII PAY-Z) '!$Z$7:$BN$387,30)>0,VLOOKUP(A27,'PraveshArr (VII PAY-Z) '!$Z$7:$BN$387,30),0)) ->  | Z27: 0 | AA27: =IF(A27="","",IF(VLOOKUP(A27,'PraveshArr (VII PAY-Z) '!$C$7:$O$387,13)>0,VLOOKUP(A27,'PraveshArr (VII PAY-Z) '!$C$7:$O$387,13),0)) ->  | AC27: =IF(A27="","",VLOOKUP(A27,'Statement(Z) '!$C$7:$U$213,19)) ->  | AF27: NO
A28: ='PraveshArr (VII PAY-Z) '!Z24 ->  | E28: =IF(A28="","",'PraveshArr (VII PAY-Z) '!AC24) ->  | G28: =IF(A28="","",'PraveshArr (VII PAY-Z) '!AE24) ->  | H28: =IF(A28="","",'PraveshArr (VII PAY-Z) '!AG24) ->  | J28: =IF(A28="","",'PraveshArr (VII PAY-Z) '!AI24) ->  | K28: =IF('PraveshArr (VII PAY-Z) '!AQ24>0,'PraveshArr (VII PAY-Z) '!AQ24,0) ->  | L28: =IF('PraveshArr (VII PAY-Z) '!AN24>0,'PraveshArr (VII PAY-Z) '!AN24,0) ->  | U28: =IF(A28="","",'PraveshArr (VII PAY-Z) '!AR24) ->  | V28: Deposit | X28: =IF(A28="","",IF(VLOOKUP(A28,'PraveshArr (VII PAY-Z) '!$Z$7:$BN$387,30)>0,VLOOKUP(A28,'PraveshArr (VII PAY-Z) '!$Z$7:$BN$387,30),0)) ->  | Z28: 0 | AA28: =IF(A28="","",IF(VLOOKUP(A28,'PraveshArr (VII PAY-Z) '!$C$7:$O$387,13)>0,VLOOKUP(A28,'PraveshArr (VII PAY-Z) '!$C$7:$O$387,13),0)) ->  | AC28: =IF(A28="","",VLOOKUP(A28,'Statement(Z) '!$C$7:$U$213,19)) ->  | AF28: NO
A29: ='PraveshArr (VII PAY-Z) '!Z25 ->  | E29: =IF(A29="","",'PraveshArr (VII PAY-Z) '!AC25) ->  | G29: =IF(A29="","",'PraveshArr (VII PAY-Z) '!AE25) ->  | H29: =IF(A29="","",'PraveshArr (VII PAY-Z) '!AG25) ->  | J29: =IF(A29="","",'PraveshArr (VII PAY-Z) '!AI25) ->  | K29: =IF('PraveshArr (VII PAY-Z) '!AQ25>0,'PraveshArr (VII PAY-Z) '!AQ25,0) ->  | L29: =IF('PraveshArr (VII PAY-Z) '!AN25>0,'PraveshArr (VII PAY-Z) '!AN25,0) ->  | U29: =IF(A29="","",'PraveshArr (VII PAY-Z) '!AR25) ->  | V29: Deposit | X29: =IF(A29="","",IF(VLOOKUP(A29,'PraveshArr (VII PAY-Z) '!$Z$7:$BN$387,30)>0,VLOOKUP(A29,'PraveshArr (VII PAY-Z) '!$Z$7:$BN$387,30),0)) ->  | Z29: 0 | AA29: =IF(A29="","",IF(VLOOKUP(A29,'PraveshArr (VII PAY-Z) '!$C$7:$O$387,13)>0,VLOOKUP(A29,'PraveshArr (VII PAY-Z) '!$C$7:$O$387,13),0)) ->  | AC29: =IF(A29="","",VLOOKUP(A29,'Statement(Z) '!$C$7:$U$213,19)) ->  | AF29: NO
A30: ='PraveshArr (VII PAY-Z) '!Z26 ->  | E30: =IF(A30="","",'PraveshArr (VII PAY-Z) '!AC26) ->  | G30: =IF(A30="","",'PraveshArr (VII PAY-Z) '!AE26) ->  | H30: =IF(A30="","",'PraveshArr (VII PAY-Z) '!AG26) ->  | J30: =IF(A30="","",'PraveshArr (VII PAY-Z) '!AI26) ->  | K30: =IF('PraveshArr (VII PAY-Z) '!AQ26>0,'PraveshArr (VII PAY-Z) '!AQ26,0) ->  | L30: =IF('PraveshArr (VII PAY-Z) '!AN26>0,'PraveshArr (VII PAY-Z) '!AN26,0) ->  | U30: =IF(A30="","",'PraveshArr (VII PAY-Z) '!AR26) ->  | V30: Deposit | X30: =IF(A30="","",IF(VLOOKUP(A30,'PraveshArr (VII PAY-Z) '!$Z$7:$BN$387,30)>0,VLOOKUP(A30,'PraveshArr (VII PAY-Z) '!$Z$7:$BN$387,30),0)) ->  | Z30: 0 | AA30: =IF(A30="","",IF(VLOOKUP(A30,'PraveshArr (VII PAY-Z) '!$C$7:$O$387,13)>0,VLOOKUP(A30,'PraveshArr (VII PAY-Z) '!$C$7:$O$387,13),0)) ->  | AC30: =IF(A30="","",VLOOKUP(A30,'Statement(Z) '!$C$7:$U$213,19)) ->  | AF30: NO
A31: ='PraveshArr (VII PAY-Z) '!Z27 ->  | E31: =IF(A31="","",'PraveshArr (VII PAY-Z) '!AC27) ->  | G31: =IF(A31="","",'PraveshArr (VII PAY-Z) '!AE27) ->  | H31: =IF(A31="","",'PraveshArr (VII PAY-Z) '!AG27) ->  | J31: =IF(A31="","",'PraveshArr (VII PAY-Z) '!AI27) ->  | K31: =IF('PraveshArr (VII PAY-Z) '!AQ27>0,'PraveshArr (VII PAY-Z) '!AQ27,0) ->  | L31: =IF('PraveshArr (VII PAY-Z) '!AN27>0,'PraveshArr (VII PAY-Z) '!AN27,0) ->  | U31: =IF(A31="","",'PraveshArr (VII PAY-Z) '!AR27) ->  | V31: Deposit | X31: =IF(A31="","",IF(VLOOKUP(A31,'PraveshArr (VII PAY-Z) '!$Z$7:$BN$387,30)>0,VLOOKUP(A31,'PraveshArr (VII PAY-Z) '!$Z$7:$BN$387,30),0)) ->  | Z31: 0 | AA31: =IF(A31="","",IF(VLOOKUP(A31,'PraveshArr (VII PAY-Z) '!$C$7:$O$387,13)>0,VLOOKUP(A31,'PraveshArr (VII PAY-Z) '!$C$7:$O$387,13),0)) ->  | AC31: =IF(A31="","",VLOOKUP(A31,'Statement(Z) '!$C$7:$U$213,19)) ->  | AF31: NO
A32: ='PraveshArr (VII PAY-Z) '!Z28 ->  | E32: =IF(A32="","",'PraveshArr (VII PAY-Z) '!AC28) ->  | G32: =IF(A32="","",'PraveshArr (VII PAY-Z) '!AE28) ->  | H32: =IF(A32="","",'PraveshArr (VII PAY-Z) '!AG28) ->  | J32: =IF(A32="","",'PraveshArr (VII PAY-Z) '!AI28) ->  | K32: =IF('PraveshArr (VII PAY-Z) '!AQ28>0,'PraveshArr (VII PAY-Z) '!AQ28,0) ->  | L32: =IF('PraveshArr (VII PAY-Z) '!AN28>0,'PraveshArr (VII PAY-Z) '!AN28,0) ->  | U32: =IF(A32="","",'PraveshArr (VII PAY-Z) '!AR28) ->  | V32: Deposit | X32: =IF(A32="","",IF(VLOOKUP(A32,'PraveshArr (VII PAY-Z) '!$Z$7:$BN$387,30)>0,VLOOKUP(A32,'PraveshArr (VII PAY-Z) '!$Z$7:$BN$387,30),0)) ->  | Z32: 0 | AA32: =IF(A32="","",IF(VLOOKUP(A32,'PraveshArr (VII PAY-Z) '!$C$7:$O$387,13)>0,VLOOKUP(A32,'PraveshArr (VII PAY-Z) '!$C$7:$O$387,13),0)) ->  | AC32: =IF(A32="","",VLOOKUP(A32,'Statement(Z) '!$C$7:$U$213,19)) ->  | AF32: NO
A33: ='PraveshArr (VII PAY-Z) '!Z29 ->  | E33: =IF(A33="","",'PraveshArr (VII PAY-Z) '!AC29) ->  | G33: =IF(A33="","",'PraveshArr (VII PAY-Z) '!AE29) ->  | H33: =IF(A33="","",'PraveshArr (VII PAY-Z) '!AG29) ->  | J33: =IF(A33="","",'PraveshArr (VII PAY-Z) '!AI29) ->  | K33: =IF('PraveshArr (VII PAY-Z) '!AQ29>0,'PraveshArr (VII PAY-Z) '!AQ29,0) ->  | L33: =IF('PraveshArr (VII PAY-Z) '!AN29>0,'PraveshArr (VII PAY-Z) '!AN29,0) ->  | U33: =IF(A33="","",'PraveshArr (VII PAY-Z) '!AR29) ->  | V33: Deposit | X33: =IF(A33="","",IF(VLOOKUP(A33,'PraveshArr (VII PAY-Z) '!$Z$7:$BN$387,30)>0,VLOOKUP(A33,'PraveshArr (VII PAY-Z) '!$Z$7:$BN$387,30),0)) ->  | Z33: 0 | AA33: =IF(A33="","",IF(VLOOKUP(A33,'PraveshArr (VII PAY-Z) '!$C$7:$O$387,13)>0,VLOOKUP(A33,'PraveshArr (VII PAY-Z) '!$C$7:$O$387,13),0)) ->  | AC33: =IF(A33="","",VLOOKUP(A33,'Statement(Z) '!$C$7:$U$213,19)) ->  | AF33: NO
A34: ='PraveshArr (VII PAY-Z) '!Z30 ->  | E34: =IF(A34="","",'PraveshArr (VII PAY-Z) '!AC30) ->  | G34: =IF(A34="","",'PraveshArr (VII PAY-Z) '!AE30) ->  | H34: =IF(A34="","",'PraveshArr (VII PAY-Z) '!AG30) ->  | J34: =IF(A34="","",'PraveshArr (VII PAY-Z) '!AI30) ->  | K34: =IF('PraveshArr (VII PAY-Z) '!AQ30>0,'PraveshArr (VII PAY-Z) '!AQ30,0) ->  | L34: =IF('PraveshArr (VII PAY-Z) '!AN30>0,'PraveshArr (VII PAY-Z) '!AN30,0) ->  | U34: =IF(A34="","",'PraveshArr (VII PAY-Z) '!AR30) ->  | V34: Deposit | X34: =IF(A34="","",IF(VLOOKUP(A34,'PraveshArr (VII PAY-Z) '!$Z$7:$BN$387,30)>0,VLOOKUP(A34,'PraveshArr (VII PAY-Z) '!$Z$7:$BN$387,30),0)) ->  | Z34: 0 | AA34: =IF(A34="","",IF(VLOOKUP(A34,'PraveshArr (VII PAY-Z) '!$C$7:$O$387,13)>0,VLOOKUP(A34,'PraveshArr (VII PAY-Z) '!$C$7:$O$387,13),0)) ->  | AC34: =IF(A34="","",VLOOKUP(A34,'Statement(Z) '!$C$7:$U$213,19)) ->  | AF34: NO
A35: ='PraveshArr (VII PAY-Z) '!Z31 ->  | E35: =IF(A35="","",'PraveshArr (VII PAY-Z) '!AC31) ->  | G35: =IF(A35="","",'PraveshArr (VII PAY-Z) '!AE31) ->  | H35: =IF(A35="","",'PraveshArr (VII PAY-Z) '!AG31) ->  | J35: =IF(A35="","",'PraveshArr (VII PAY-Z) '!AI31) ->  | K35: =IF('PraveshArr (VII PAY-Z) '!AQ31>0,'PraveshArr (VII PAY-Z) '!AQ31,0) ->  | L35: =IF('PraveshArr (VII PAY-Z) '!AN31>0,'PraveshArr (VII PAY-Z) '!AN31,0) ->  | U35: =IF(A35="","",'PraveshArr (VII PAY-Z) '!AR31) ->  | V35: Deposit | X35: =IF(A35="","",IF(VLOOKUP(A35,'PraveshArr (VII PAY-Z) '!$Z$7:$BN$387,30)>0,VLOOKUP(A35,'PraveshArr (VII PAY-Z) '!$Z$7:$BN$387,30),0)) ->  | Z35: 0 | AA35: =IF(A35="","",IF(VLOOKUP(A35,'PraveshArr (VII PAY-Z) '!$C$7:$O$387,13)>0,VLOOKUP(A35,'PraveshArr (VII PAY-Z) '!$C$7:$O$387,13),0)) ->  | AC35: =IF(A35="","",VLOOKUP(A35,'Statement(Z) '!$C$7:$U$213,19)) ->  | AF35: NO
A36: ='PraveshArr (VII PAY-Z) '!Z32 ->  | E36: =IF(A36="","",'PraveshArr (VII PAY-Z) '!AC32) ->  | G36: =IF(A36="","",'PraveshArr (VII PAY-Z) '!AE32) ->  | H36: =IF(A36="","",'PraveshArr (VII PAY-Z) '!AG32) ->  | J36: =IF(A36="","",'PraveshArr (VII PAY-Z) '!AI32) ->  | K36: =IF('PraveshArr (VII PAY-Z) '!AQ32>0,'PraveshArr (VII PAY-Z) '!AQ32,0) ->  | L36: =IF('PraveshArr (VII PAY-Z) '!AN32>0,'PraveshArr (VII PAY-Z) '!AN32,0) ->  | U36: =IF(A36="","",'PraveshArr (VII PAY-Z) '!AR32) ->  | V36: Deposit | X36: =IF(A36="","",IF(VLOOKUP(A36,'PraveshArr (VII PAY-Z) '!$Z$7:$BN$387,30)>0,VLOOKUP(A36,'PraveshArr (VII PAY-Z) '!$Z$7:$BN$387,30),0)) ->  | Z36: 0 | AA36: =IF(A36="","",IF(VLOOKUP(A36,'PraveshArr (VII PAY-Z) '!$C$7:$O$387,13)>0,VLOOKUP(A36,'PraveshArr (VII PAY-Z) '!$C$7:$O$387,13),0)) ->  | AC36: =IF(A36="","",VLOOKUP(A36,'Statement(Z) '!$C$7:$U$213,19)) ->  | AF36: NO
A37: ='PraveshArr (VII PAY-Z) '!Z33 ->  | E37: =IF(A37="","",'PraveshArr (VII PAY-Z) '!AC33) ->  | G37: =IF(A37="","",'PraveshArr (VII PAY-Z) '!AE33) ->  | H37: =IF(A37="","",'PraveshArr (VII PAY-Z) '!AG33) ->  | J37: =IF(A37="","",'PraveshArr (VII PAY-Z) '!AI33) ->  | K37: =IF('PraveshArr (VII PAY-Z) '!AQ33>0,'PraveshArr (VII PAY-Z) '!AQ33,0) ->  | L37: =IF('PraveshArr (VII PAY-Z) '!AN33>0,'PraveshArr (VII PAY-Z) '!AN33,0) ->  | U37: =IF(A37="","",'PraveshArr (VII PAY-Z) '!AR33) ->  | V37: Deposit | X37: =IF(A37="","",IF(VLOOKUP(A37,'PraveshArr (VII PAY-Z) '!$Z$7:$BN$387,30)>0,VLOOKUP(A37,'PraveshArr (VII PAY-Z) '!$Z$7:$BN$387,30),0)) ->  | Z37: 0 | AA37: =IF(A37="","",IF(VLOOKUP(A37,'PraveshArr (VII PAY-Z) '!$C$7:$O$387,13)>0,VLOOKUP(A37,'PraveshArr (VII PAY-Z) '!$C$7:$O$387,13),0)) ->  | AC37: =IF(A37="","",VLOOKUP(A37,'Statement(Z) '!$C$7:$U$213,19)) ->  | AF37: NO
A38: ='PraveshArr (VII PAY-Z) '!Z34 ->  | E38: =IF(A38="","",'PraveshArr (VII PAY-Z) '!AC34) ->  | G38: =IF(A38="","",'PraveshArr (VII PAY-Z) '!AE34) ->  | H38: =IF(A38="","",'PraveshArr (VII PAY-Z) '!AG34) ->  | J38: =IF(A38="","",'PraveshArr (VII PAY-Z) '!AI34) ->  | K38: =IF('PraveshArr (VII PAY-Z) '!AQ34>0,'PraveshArr (VII PAY-Z) '!AQ34,0) ->  | L38: =IF('PraveshArr (VII PAY-Z) '!AN34>0,'PraveshArr (VII PAY-Z) '!AN34,0) ->  | U38: =IF(A38="","",'PraveshArr (VII PAY-Z) '!AR34) ->  | V38: Deposit | X38: =IF(A38="","",IF(VLOOKUP(A38,'PraveshArr (VII PAY-Z) '!$Z$7:$BN$387,30)>0,VLOOKUP(A38,'PraveshArr (VII PAY-Z) '!$Z$7:$BN$387,30),0)) ->  | Z38: 0 | AA38: =IF(A38="","",IF(VLOOKUP(A38,'PraveshArr (VII PAY-Z) '!$C$7:$O$387,13)>0,VLOOKUP(A38,'PraveshArr (VII PAY-Z) '!$C$7:$O$387,13),0)) ->  | AC38: =IF(A38="","",VLOOKUP(A38,'Statement(Z) '!$C$7:$U$213,19)) ->  | AF38: NO
A39: ='PraveshArr (VII PAY-Z) '!Z35 ->  | E39: =IF(A39="","",'PraveshArr (VII PAY-Z) '!AC35) ->  | G39: =IF(A39="","",'PraveshArr (VII PAY-Z) '!AE35) ->  | H39: =IF(A39="","",'PraveshArr (VII PAY-Z) '!AG35) ->  | J39: =IF(A39="","",'PraveshArr (VII PAY-Z) '!AI35) ->  | K39: =IF('PraveshArr (VII PAY-Z) '!AQ35>0,'PraveshArr (VII PAY-Z) '!AQ35,0) ->  | L39: =IF('PraveshArr (VII PAY-Z) '!AN35>0,'PraveshArr (VII PAY-Z) '!AN35,0) ->  | U39: =IF(A39="","",'PraveshArr (VII PAY-Z) '!AR35) ->  | V39: Deposit | X39: =IF(A39="","",IF(VLOOKUP(A39,'PraveshArr (VII PAY-Z) '!$Z$7:$BN$387,30)>0,VLOOKUP(A39,'PraveshArr (VII PAY-Z) '!$Z$7:$BN$387,30),0)) ->  | Z39: 0 | AA39: =IF(A39="","",IF(VLOOKUP(A39,'PraveshArr (VII PAY-Z) '!$C$7:$O$387,13)>0,VLOOKUP(A39,'PraveshArr (VII PAY-Z) '!$C$7:$O$387,13),0)) ->  | AC39: =IF(A39="","",VLOOKUP(A39,'Statement(Z) '!$C$7:$U$213,19)) ->  | AF39: NO
A40: ='PraveshArr (VII PAY-Z) '!Z36 ->  | E40: =IF(A40="","",'PraveshArr (VII PAY-Z) '!AC36) ->  | G40: =IF(A40="","",'PraveshArr (VII PAY-Z) '!AE36) ->  | H40: =IF(A40="","",'PraveshArr (VII PAY-Z) '!AG36) ->  | J40: =IF(A40="","",'PraveshArr (VII PAY-Z) '!AI36) ->  | K40: =IF('PraveshArr (VII PAY-Z) '!AQ36>0,'PraveshArr (VII PAY-Z) '!AQ36,0) ->  | L40: =IF('PraveshArr (VII PAY-Z) '!AN36>0,'PraveshArr (VII PAY-Z) '!AN36,0) ->  | U40: =IF(A40="","",'PraveshArr (VII PAY-Z) '!AR36) ->  | V40: Deposit | X40: =IF(A40="","",IF(VLOOKUP(A40,'PraveshArr (VII PAY-Z) '!$Z$7:$BN$387,30)>0,VLOOKUP(A40,'PraveshArr (VII PAY-Z) '!$Z$7:$BN$387,30),0)) ->  | Z40: 0 | AA40: =IF(A40="","",IF(VLOOKUP(A40,'PraveshArr (VII PAY-Z) '!$C$7:$O$387,13)>0,VLOOKUP(A40,'PraveshArr (VII PAY-Z) '!$C$7:$O$387,13),0)) ->  | AC40: =IF(A40="","",VLOOKUP(A40,'Statement(Z) '!$C$7:$U$213,19)) ->  | AF40: NO
A41: ='PraveshArr (VII PAY-Z) '!Z37 ->  | E41: =IF(A41="","",'PraveshArr (VII PAY-Z) '!AC37) ->  | G41: =IF(A41="","",'PraveshArr (VII PAY-Z) '!AE37) ->  | H41: =IF(A41="","",'PraveshArr (VII PAY-Z) '!AG37) ->  | J41: =IF(A41="","",'PraveshArr (VII PAY-Z) '!AI37) ->  | K41: =IF('PraveshArr (VII PAY-Z) '!AQ37>0,'PraveshArr (VII PAY-Z) '!AQ37,0) ->  | L41: =IF('PraveshArr (VII PAY-Z) '!AN37>0,'PraveshArr (VII PAY-Z) '!AN37,0) ->  | U41: =IF(A41="","",'PraveshArr (VII PAY-Z) '!AR37) ->  | V41: Deposit | X41: =IF(A41="","",IF(VLOOKUP(A41,'PraveshArr (VII PAY-Z) '!$Z$7:$BN$387,30)>0,VLOOKUP(A41,'PraveshArr (VII PAY-Z) '!$Z$7:$BN$387,30),0)) ->  | Z41: 0 | AA41: =IF(A41="","",IF(VLOOKUP(A41,'PraveshArr (VII PAY-Z) '!$C$7:$O$387,13)>0,VLOOKUP(A41,'PraveshArr (VII PAY-Z) '!$C$7:$O$387,13),0)) ->  | AC41: =IF(A41="","",VLOOKUP(A41,'Statement(Z) '!$C$7:$U$213,19)) ->  | AF41: NO
A42: ='PraveshArr (VII PAY-Z) '!Z38 ->  | E42: =IF(A42="","",'PraveshArr (VII PAY-Z) '!AC38) ->  | G42: =IF(A42="","",'PraveshArr (VII PAY-Z) '!AE38) ->  | H42: =IF(A42="","",'PraveshArr (VII PAY-Z) '!AG38) ->  | J42: =IF(A42="","",'PraveshArr (VII PAY-Z) '!AI38) ->  | K42: =IF('PraveshArr (VII PAY-Z) '!AQ38>0,'PraveshArr (VII PAY-Z) '!AQ38,0) ->  | L42: =IF('PraveshArr (VII PAY-Z) '!AN38>0,'PraveshArr (VII PAY-Z) '!AN38,0) ->  | U42: =IF(A42="","",'PraveshArr (VII PAY-Z) '!AR38) ->  | V42: Deposit | X42: =IF(A42="","",IF(VLOOKUP(A42,'PraveshArr (VII PAY-Z) '!$Z$7:$BN$387,30)>0,VLOOKUP(A42,'PraveshArr (VII PAY-Z) '!$Z$7:$BN$387,30),0)) ->  | Z42: 0 | AA42: =IF(A42="","",IF(VLOOKUP(A42,'PraveshArr (VII PAY-Z) '!$C$7:$O$387,13)>0,VLOOKUP(A42,'PraveshArr (VII PAY-Z) '!$C$7:$O$387,13),0)) ->  | AC42: =IF(A42="","",VLOOKUP(A42,'Statement(Z) '!$C$7:$U$213,19)) ->  | AF42: NO
A43: ='PraveshArr (VII PAY-Z) '!Z39 ->  | E43: =IF(A43="","",'PraveshArr (VII PAY-Z) '!AC39) ->  | G43: =IF(A43="","",'PraveshArr (VII PAY-Z) '!AE39) ->  | H43: =IF(A43="","",'PraveshArr (VII PAY-Z) '!AG39) ->  | J43: =IF(A43="","",'PraveshArr (VII PAY-Z) '!AI39) ->  | K43: =IF('PraveshArr (VII PAY-Z) '!AQ39>0,'PraveshArr (VII PAY-Z) '!AQ39,0) ->  | L43: =IF('PraveshArr (VII PAY-Z) '!AN39>0,'PraveshArr (VII PAY-Z) '!AN39,0) ->  | U43: =IF(A43="","",'PraveshArr (VII PAY-Z) '!AR39) ->  | V43: Deposit | X43: =IF(A43="","",IF(VLOOKUP(A43,'PraveshArr (VII PAY-Z) '!$Z$7:$BN$387,30)>0,VLOOKUP(A43,'PraveshArr (VII PAY-Z) '!$Z$7:$BN$387,30),0)) ->  | Z43: 0 | AA43: =IF(A43="","",IF(VLOOKUP(A43,'PraveshArr (VII PAY-Z) '!$C$7:$O$387,13)>0,VLOOKUP(A43,'PraveshArr (VII PAY-Z) '!$C$7:$O$387,13),0)) ->  | AC43: =IF(A43="","",VLOOKUP(A43,'Statement(Z) '!$C$7:$U$213,19)) ->  | AF43: NO
A44: ='PraveshArr (VII PAY-Z) '!Z40 ->  | E44: =IF(A44="","",'PraveshArr (VII PAY-Z) '!AC40) ->  | G44: =IF(A44="","",'PraveshArr (VII PAY-Z) '!AE40) ->  | H44: =IF(A44="","",'PraveshArr (VII PAY-Z) '!AG40) ->  | J44: =IF(A44="","",'PraveshArr (VII PAY-Z) '!AI40) ->  | K44: =IF('PraveshArr (VII PAY-Z) '!AQ40>0,'PraveshArr (VII PAY-Z) '!AQ40,0) ->  | L44: =IF('PraveshArr (VII PAY-Z) '!AN40>0,'PraveshArr (VII PAY-Z) '!AN40,0) ->  | U44: =IF(A44="","",'PraveshArr (VII PAY-Z) '!AR40) ->  | V44: Deposit | X44: =IF(A44="","",IF(VLOOKUP(A44,'PraveshArr (VII PAY-Z) '!$Z$7:$BN$387,30)>0,VLOOKUP(A44,'PraveshArr (VII PAY-Z) '!$Z$7:$BN$387,30),0)) ->  | Z44: 0 | AA44: =IF(A44="","",IF(VLOOKUP(A44,'PraveshArr (VII PAY-Z) '!$C$7:$O$387,13)>0,VLOOKUP(A44,'PraveshArr (VII PAY-Z) '!$C$7:$O$387,13),0)) ->  | AC44: =IF(A44="","",VLOOKUP(A44,'Statement(Z) '!$C$7:$U$213,19)) ->  | AF44: NO
A45: ='PraveshArr (VII PAY-Z) '!Z41 ->  | E45: =IF(A45="","",'PraveshArr (VII PAY-Z) '!AC41) ->  | G45: =IF(A45="","",'PraveshArr (VII PAY-Z) '!AE41) ->  | H45: =IF(A45="","",'PraveshArr (VII PAY-Z) '!AG41) ->  | J45: =IF(A45="","",'PraveshArr (VII PAY-Z) '!AI41) ->  | K45: =IF('PraveshArr (VII PAY-Z) '!AQ41>0,'PraveshArr (VII PAY-Z) '!AQ41,0) ->  | L45: =IF('PraveshArr (VII PAY-Z) '!AN41>0,'PraveshArr (VII PAY-Z) '!AN41,0) ->  | U45: =IF(A45="","",'PraveshArr (VII PAY-Z) '!AR41) ->  | V45: Cash | X45: =IF(A45="","",IF(VLOOKUP(A45,'PraveshArr (VII PAY-Z) '!$Z$7:$BN$387,30)>0,VLOOKUP(A45,'PraveshArr (VII PAY-Z) '!$Z$7:$BN$387,30),0)) ->  | Z45: 0 | AA45: =IF(A45="","",IF(VLOOKUP(A45,'PraveshArr (VII PAY-Z) '!$C$7:$O$387,13)>0,VLOOKUP(A45,'PraveshArr (VII PAY-Z) '!$C$7:$O$387,13),0)) ->  | AC45: =IF(A45="","",VLOOKUP(A45,'Statement(Z) '!$C$7:$U$213,19)) ->  | AF45: NO
A46: ='PraveshArr (VII PAY-Z) '!Z42 ->  | E46: =IF(A46="","",'PraveshArr (VII PAY-Z) '!AC42) ->  | G46: =IF(A46="","",'PraveshArr (VII PAY-Z) '!AE42) ->  | H46: =IF(A46="","",'PraveshArr (VII PAY-Z) '!AG42) ->  | J46: =IF(A46="","",'PraveshArr (VII PAY-Z) '!AI42) ->  | K46: =IF('PraveshArr (VII PAY-Z) '!AQ42>0,'PraveshArr (VII PAY-Z) '!AQ42,0) ->  | L46: =IF('PraveshArr (VII PAY-Z) '!AN42>0,'PraveshArr (VII PAY-Z) '!AN42,0) ->  | U46: =IF(A46="","",'PraveshArr (VII PAY-Z) '!AR42) ->  | V46: Cash | X46: =IF(A46="","",IF(VLOOKUP(A46,'PraveshArr (VII PAY-Z) '!$Z$7:$BN$387,30)>0,VLOOKUP(A46,'PraveshArr (VII PAY-Z) '!$Z$7:$BN$387,30),0)) ->  | Z46: 0 | AA46: =IF(A46="","",IF(VLOOKUP(A46,'PraveshArr (VII PAY-Z) '!$C$7:$O$387,13)>0,VLOOKUP(A46,'PraveshArr (VII PAY-Z) '!$C$7:$O$387,13),0)) ->  | AC46: =IF(A46="","",VLOOKUP(A46,'Statement(Z) '!$C$7:$U$213,19)) ->  | AF46: NO
A47: ='PraveshArr (VII PAY-Z) '!Z43 ->  | E47: =IF(A47="","",'PraveshArr (VII PAY-Z) '!AC43) ->  | G47: =IF(A47="","",'PraveshArr (VII PAY-Z) '!AE43) ->  | H47: =IF(A47="","",'PraveshArr (VII PAY-Z) '!AG43) ->  | J47: =IF(A47="","",'PraveshArr (VII PAY-Z) '!AI43) ->  | K47: =IF('PraveshArr (VII PAY-Z) '!AQ43>0,'PraveshArr (VII PAY-Z) '!AQ43,0) ->  | L47: =IF('PraveshArr (VII PAY-Z) '!AN43>0,'PraveshArr (VII PAY-Z) '!AN43,0) ->  | U47: =IF(A47="","",'PraveshArr (VII PAY-Z) '!AR43) ->  | V47: Cash | X47: =IF(A47="","",IF(VLOOKUP(A47,'PraveshArr (VII PAY-Z) '!$Z$7:$BN$387,30)>0,VLOOKUP(A47,'PraveshArr (VII PAY-Z) '!$Z$7:$BN$387,30),0)) ->  | Z47: 0 | AA47: =IF(A47="","",IF(VLOOKUP(A47,'PraveshArr (VII PAY-Z) '!$C$7:$O$387,13)>0,VLOOKUP(A47,'PraveshArr (VII PAY-Z) '!$C$7:$O$387,13),0)) ->  | AC47: =IF(A47="","",VLOOKUP(A47,'Statement(Z) '!$C$7:$U$213,19)) ->  | AF47: NO
A48: ='PraveshArr (VII PAY-Z) '!Z44 ->  | E48: =IF(A48="","",'PraveshArr (VII PAY-Z) '!AC44) ->  | G48: =IF(A48="","",'PraveshArr (VII PAY-Z) '!AE44) ->  | H48: =IF(A48="","",'PraveshArr (VII PAY-Z) '!AG44) ->  | J48: =IF(A48="","",'PraveshArr (VII PAY-Z) '!AI44) ->  | K48: =IF('PraveshArr (VII PAY-Z) '!AQ44>0,'PraveshArr (VII PAY-Z) '!AQ44,0) ->  | L48: =IF('PraveshArr (VII PAY-Z) '!AN44>0,'PraveshArr (VII PAY-Z) '!AN44,0) ->  | U48: =IF(A48="","",'PraveshArr (VII PAY-Z) '!AR44) ->  | V48: Cash | X48: =IF(A48="","",IF(VLOOKUP(A48,'PraveshArr (VII PAY-Z) '!$Z$7:$BN$387,30)>0,VLOOKUP(A48,'PraveshArr (VII PAY-Z) '!$Z$7:$BN$387,30),0)) ->  | Z48: 0 | AA48: =IF(A48="","",IF(VLOOKUP(A48,'PraveshArr (VII PAY-Z) '!$C$7:$O$387,13)>0,VLOOKUP(A48,'PraveshArr (VII PAY-Z) '!$C$7:$O$387,13),0)) ->  | AC48: =IF(A48="","",VLOOKUP(A48,'Statement(Z) '!$C$7:$U$213,19)) ->  | AF48: NO
A49: ='PraveshArr (VII PAY-Z) '!Z45 ->  | E49: =IF(A49="","",'PraveshArr (VII PAY-Z) '!AC45) ->  | G49: =IF(A49="","",'PraveshArr (VII PAY-Z) '!AE45) ->  | H49: =IF(A49="","",'PraveshArr (VII PAY-Z) '!AG45) ->  | J49: =IF(A49="","",'PraveshArr (VII PAY-Z) '!AI45) ->  | K49: =IF('PraveshArr (VII PAY-Z) '!AQ45>0,'PraveshArr (VII PAY-Z) '!AQ45,0) ->  | L49: =IF('PraveshArr (VII PAY-Z) '!AN45>0,'PraveshArr (VII PAY-Z) '!AN45,0) ->  | U49: =IF(A49="","",'PraveshArr (VII PAY-Z) '!AR45) ->  | V49: Cash | X49: =IF(A49="","",IF(VLOOKUP(A49,'PraveshArr (VII PAY-Z) '!$Z$7:$BN$387,30)>0,VLOOKUP(A49,'PraveshArr (VII PAY-Z) '!$Z$7:$BN$387,30),0)) ->  | Z49: 0 | AA49: =IF(A49="","",IF(VLOOKUP(A49,'PraveshArr (VII PAY-Z) '!$C$7:$O$387,13)>0,VLOOKUP(A49,'PraveshArr (VII PAY-Z) '!$C$7:$O$387,13),0)) ->  | AC49: =IF(A49="","",VLOOKUP(A49,'Statement(Z) '!$C$7:$U$213,19)) ->  | AF49: NO
A50: ='PraveshArr (VII PAY-Z) '!Z46 ->  | E50: =IF(A50="","",'PraveshArr (VII PAY-Z) '!AC46) ->  | G50: =IF(A50="","",'PraveshArr (VII PAY-Z) '!AE46) ->  | H50: =IF(A50="","",'PraveshArr (VII PAY-Z) '!AG46) ->  | J50: =IF(A50="","",'PraveshArr (VII PAY-Z) '!AI46) ->  | K50: =IF('PraveshArr (VII PAY-Z) '!AQ46>0,'PraveshArr (VII PAY-Z) '!AQ46,0) ->  | L50: =IF('PraveshArr (VII PAY-Z) '!AN46>0,'PraveshArr (VII PAY-Z) '!AN46,0) ->  | U50: =IF(A50="","",'PraveshArr (VII PAY-Z) '!AR46) ->  | V50: Cash | X50: =IF(A50="","",IF(VLOOKUP(A50,'PraveshArr (VII PAY-Z) '!$Z$7:$BN$387,30)>0,VLOOKUP(A50,'PraveshArr (VII PAY-Z) '!$Z$7:$BN$387,30),0)) ->  | Z50: 0 | AA50: =IF(A50="","",IF(VLOOKUP(A50,'PraveshArr (VII PAY-Z) '!$C$7:$O$387,13)>0,VLOOKUP(A50,'PraveshArr (VII PAY-Z) '!$C$7:$O$387,13),0)) ->  | AC50: =IF(A50="","",VLOOKUP(A50,'Statement(Z) '!$C$7:$U$213,19)) ->  | AF50: NO
A51: ='PraveshArr (VII PAY-Z) '!Z47 ->  | E51: =IF(A51="","",'PraveshArr (VII PAY-Z) '!AC47) ->  | G51: =IF(A51="","",'PraveshArr (VII PAY-Z) '!AE47) ->  | H51: =IF(A51="","",'PraveshArr (VII PAY-Z) '!AG47) ->  | J51: =IF(A51="","",'PraveshArr (VII PAY-Z) '!AI47) ->  | K51: =IF('PraveshArr (VII PAY-Z) '!AQ47>0,'PraveshArr (VII PAY-Z) '!AQ47,0) ->  | L51: =IF('PraveshArr (VII PAY-Z) '!AN47>0,'PraveshArr (VII PAY-Z) '!AN47,0) ->  | U51: =IF(A51="","",'PraveshArr (VII PAY-Z) '!AR47) ->  | V51: Cash | X51: =IF(A51="","",IF(VLOOKUP(A51,'PraveshArr (VII PAY-Z) '!$Z$7:$BN$387,30)>0,VLOOKUP(A51,'PraveshArr (VII PAY-Z) '!$Z$7:$BN$387,30),0)) ->  | Z51: 0 | AA51: =IF(A51="","",IF(VLOOKUP(A51,'PraveshArr (VII PAY-Z) '!$C$7:$O$387,13)>0,VLOOKUP(A51,'PraveshArr (VII PAY-Z) '!$C$7:$O$387,13),0)) ->  | AC51: =IF(A51="","",VLOOKUP(A51,'Statement(Z) '!$C$7:$U$213,19)) ->  | AF51: NO
A52: ='PraveshArr (VII PAY-Z) '!Z48 ->  | E52: =IF(A52="","",'PraveshArr (VII PAY-Z) '!AC48) ->  | G52: =IF(A52="","",'PraveshArr (VII PAY-Z) '!AE48) ->  | H52: =IF(A52="","",'PraveshArr (VII PAY-Z) '!AG48) ->  | J52: =IF(A52="","",'PraveshArr (VII PAY-Z) '!AI48) ->  | K52: =IF('PraveshArr (VII PAY-Z) '!AQ48>0,'PraveshArr (VII PAY-Z) '!AQ48,0) ->  | L52: =IF('PraveshArr (VII PAY-Z) '!AN48>0,'PraveshArr (VII PAY-Z) '!AN48,0) ->  | U52: =IF(A52="","",'PraveshArr (VII PAY-Z) '!AR48) ->  | V52: Cash | X52: =IF(A52="","",IF(VLOOKUP(A52,'PraveshArr (VII PAY-Z) '!$Z$7:$BN$387,30)>0,VLOOKUP(A52,'PraveshArr (VII PAY-Z) '!$Z$7:$BN$387,30),0)) ->  | Z52: 0 | AA52: =IF(A52="","",IF(VLOOKUP(A52,'PraveshArr (VII PAY-Z) '!$C$7:$O$387,13)>0,VLOOKUP(A52,'PraveshArr (VII PAY-Z) '!$C$7:$O$387,13),0)) ->  | AC52: =IF(A52="","",VLOOKUP(A52,'Statement(Z) '!$C$7:$U$213,19)) ->  | AF52: NO
A53: ='PraveshArr (VII PAY-Z) '!Z49 ->  | E53: =IF(A53="","",'PraveshArr (VII PAY-Z) '!AC49) ->  | G53: =IF(A53="","",'PraveshArr (VII PAY-Z) '!AE49) ->  | H53: =IF(A53="","",'PraveshArr (VII PAY-Z) '!AG49) ->  | J53: =IF(A53="","",'PraveshArr (VII PAY-Z) '!AI49) ->  | K53: =IF('PraveshArr (VII PAY-Z) '!AQ49>0,'PraveshArr (VII PAY-Z) '!AQ49,0) ->  | L53: =IF('PraveshArr (VII PAY-Z) '!AN49>0,'PraveshArr (VII PAY-Z) '!AN49,0) ->  | U53: =IF(A53="","",'PraveshArr (VII PAY-Z) '!AR49) ->  | V53: Cash | X53: =IF(A53="","",IF(VLOOKUP(A53,'PraveshArr (VII PAY-Z) '!$Z$7:$BN$387,30)>0,VLOOKUP(A53,'PraveshArr (VII PAY-Z) '!$Z$7:$BN$387,30),0)) ->  | Z53: 0 | AA53: =IF(A53="","",IF(VLOOKUP(A53,'PraveshArr (VII PAY-Z) '!$C$7:$O$387,13)>0,VLOOKUP(A53,'PraveshArr (VII PAY-Z) '!$C$7:$O$387,13),0)) ->  | AC53: =IF(A53="","",VLOOKUP(A53,'Statement(Z) '!$C$7:$U$213,19)) ->  | AF53: NO
A54: ='PraveshArr (VII PAY-Z) '!Z50 ->  | E54: =IF(A54="","",'PraveshArr (VII PAY-Z) '!AC50) ->  | G54: =IF(A54="","",'PraveshArr (VII PAY-Z) '!AE50) ->  | H54: =IF(A54="","",'PraveshArr (VII PAY-Z) '!AG50) ->  | J54: =IF(A54="","",'PraveshArr (VII PAY-Z) '!AI50) ->  | K54: =IF('PraveshArr (VII PAY-Z) '!AQ50>0,'PraveshArr (VII PAY-Z) '!AQ50,0) ->  | L54: =IF('PraveshArr (VII PAY-Z) '!AN50>0,'PraveshArr (VII PAY-Z) '!AN50,0) ->  | U54: =IF(A54="","",'PraveshArr (VII PAY-Z) '!AR50) ->  | V54: Cash | X54: =IF(A54="","",IF(VLOOKUP(A54,'PraveshArr (VII PAY-Z) '!$Z$7:$BN$387,30)>0,VLOOKUP(A54,'PraveshArr (VII PAY-Z) '!$Z$7:$BN$387,30),0)) ->  | Z54: 0 | AA54: =IF(A54="","",IF(VLOOKUP(A54,'PraveshArr (VII PAY-Z) '!$C$7:$O$387,13)>0,VLOOKUP(A54,'PraveshArr (VII PAY-Z) '!$C$7:$O$387,13),0)) ->  | AC54: =IF(A54="","",VLOOKUP(A54,'Statement(Z) '!$C$7:$U$213,19)) ->  | AF54: NO
A55: ='PraveshArr (VII PAY-Z) '!Z51 ->  | E55: =IF(A55="","",'PraveshArr (VII PAY-Z) '!AC51) ->  | G55: =IF(A55="","",'PraveshArr (VII PAY-Z) '!AE51) ->  | H55: =IF(A55="","",'PraveshArr (VII PAY-Z) '!AG51) ->  | J55: =IF(A55="","",'PraveshArr (VII PAY-Z) '!AI51) ->  | K55: =IF('PraveshArr (VII PAY-Z) '!AQ51>0,'PraveshArr (VII PAY-Z) '!AQ51,0) ->  | L55: =IF('PraveshArr (VII PAY-Z) '!AN51>0,'PraveshArr (VII PAY-Z) '!AN51,0) ->  | U55: =IF(A55="","",'PraveshArr (VII PAY-Z) '!AR51) ->  | V55: Cash | X55: =IF(A55="","",IF(VLOOKUP(A55,'PraveshArr (VII PAY-Z) '!$Z$7:$BN$387,30)>0,VLOOKUP(A55,'PraveshArr (VII PAY-Z) '!$Z$7:$BN$387,30),0)) ->  | Z55: 0 | AA55: =IF(A55="","",IF(VLOOKUP(A55,'PraveshArr (VII PAY-Z) '!$C$7:$O$387,13)>0,VLOOKUP(A55,'PraveshArr (VII PAY-Z) '!$C$7:$O$387,13),0)) ->  | AC55: =IF(A55="","",VLOOKUP(A55,'Statement(Z) '!$C$7:$U$213,19)) ->  | AF55: NO
A56: ='PraveshArr (VII PAY-Z) '!Z52 ->  | E56: =IF(A56="","",'PraveshArr (VII PAY-Z) '!AC52) ->  | G56: =IF(A56="","",'PraveshArr (VII PAY-Z) '!AE52) ->  | H56: =IF(A56="","",'PraveshArr (VII PAY-Z) '!AG52) ->  | J56: =IF(A56="","",'PraveshArr (VII PAY-Z) '!AI52) ->  | K56: =IF('PraveshArr (VII PAY-Z) '!AQ52>0,'PraveshArr (VII PAY-Z) '!AQ52,0) ->  | L56: =IF('PraveshArr (VII PAY-Z) '!AN52>0,'PraveshArr (VII PAY-Z) '!AN52,0) ->  | U56: =IF(A56="","",'PraveshArr (VII PAY-Z) '!AR52) ->  | V56: Cash | X56: =IF(A56="","",IF(VLOOKUP(A56,'PraveshArr (VII PAY-Z) '!$Z$7:$BN$387,30)>0,VLOOKUP(A56,'PraveshArr (VII PAY-Z) '!$Z$7:$BN$387,30),0)) ->  | Z56: 0 | AA56: =IF(A56="","",IF(VLOOKUP(A56,'PraveshArr (VII PAY-Z) '!$C$7:$O$387,13)>0,VLOOKUP(A56,'PraveshArr (VII PAY-Z) '!$C$7:$O$387,13),0)) ->  | AC56: =IF(A56="","",VLOOKUP(A56,'Statement(Z) '!$C$7:$U$213,19)) ->  | AF56: NO
A57: ='PraveshArr (VII PAY-Z) '!Z53 ->  | E57: =IF(A57="","",'PraveshArr (VII PAY-Z) '!AC53) ->  | G57: =IF(A57="","",'PraveshArr (VII PAY-Z) '!AE53) ->  | H57: =IF(A57="","",'PraveshArr (VII PAY-Z) '!AG53) ->  | J57: =IF(A57="","",'PraveshArr (VII PAY-Z) '!AI53) ->  | K57: =IF('PraveshArr (VII PAY-Z) '!AQ53>0,'PraveshArr (VII PAY-Z) '!AQ53,0) ->  | L57: =IF('PraveshArr (VII PAY-Z) '!AN53>0,'PraveshArr (VII PAY-Z) '!AN53,0) ->  | U57: =IF(A57="","",'PraveshArr (VII PAY-Z) '!AR53) ->  | V57: Cash | X57: =IF(A57="","",IF(VLOOKUP(A57,'PraveshArr (VII PAY-Z) '!$Z$7:$BN$387,30)>0,VLOOKUP(A57,'PraveshArr (VII PAY-Z) '!$Z$7:$BN$387,30),0)) ->  | Z57: 0 | AA57: =IF(A57="","",IF(VLOOKUP(A57,'PraveshArr (VII PAY-Z) '!$C$7:$O$387,13)>0,VLOOKUP(A57,'PraveshArr (VII PAY-Z) '!$C$7:$O$387,13),0)) ->  | AC57: =IF(A57="","",VLOOKUP(A57,'Statement(Z) '!$C$7:$U$213,19)) ->  | AF57: NO
A58: ='PraveshArr (VII PAY-Z) '!Z54 ->  | E58: =IF(A58="","",'PraveshArr (VII PAY-Z) '!AC54) ->  | G58: =IF(A58="","",'PraveshArr (VII PAY-Z) '!AE54) ->  | H58: =IF(A58="","",'PraveshArr (VII PAY-Z) '!AG54) ->  | J58: =IF(A58="","",'PraveshArr (VII PAY-Z) '!AI54) ->  | K58: =IF('PraveshArr (VII PAY-Z) '!AQ54>0,'PraveshArr (VII PAY-Z) '!AQ54,0) ->  | L58: =IF('PraveshArr (VII PAY-Z) '!AN54>0,'PraveshArr (VII PAY-Z) '!AN54,0) ->  | U58: =IF(A58="","",'PraveshArr (VII PAY-Z) '!AR54) ->  | V58: Cash | X58: =IF(A58="","",IF(VLOOKUP(A58,'PraveshArr (VII PAY-Z) '!$Z$7:$BN$387,30)>0,VLOOKUP(A58,'PraveshArr (VII PAY-Z) '!$Z$7:$BN$387,30),0)) ->  | Z58: 0 | AA58: =IF(A58="","",IF(VLOOKUP(A58,'PraveshArr (VII PAY-Z) '!$C$7:$O$387,13)>0,VLOOKUP(A58,'PraveshArr (VII PAY-Z) '!$C$7:$O$387,13),0)) ->  | AC58: =IF(A58="","",VLOOKUP(A58,'Statement(Z) '!$C$7:$U$213,19)) ->  | AF58: NO
A59: ='PraveshArr (VII PAY-Z) '!Z55 ->  | E59: =IF(A59="","",'PraveshArr (VII PAY-Z) '!AC55) ->  | G59: =IF(A59="","",'PraveshArr (VII PAY-Z) '!AE55) ->  | H59: =IF(A59="","",'PraveshArr (VII PAY-Z) '!AG55) ->  | J59: =IF(A59="","",'PraveshArr (VII PAY-Z) '!AI55) ->  | K59: =IF('PraveshArr (VII PAY-Z) '!AQ55>0,'PraveshArr (VII PAY-Z) '!AQ55,0) ->  | L59: =IF('PraveshArr (VII PAY-Z) '!AN55>0,'PraveshArr (VII PAY-Z) '!AN55,0) ->  | U59: =IF(A59="","",'PraveshArr (VII PAY-Z) '!AR55) ->  | V59: Cash | X59: =IF(A59="","",IF(VLOOKUP(A59,'PraveshArr (VII PAY-Z) '!$Z$7:$BN$387,30)>0,VLOOKUP(A59,'PraveshArr (VII PAY-Z) '!$Z$7:$BN$387,30),0)) ->  | Z59: 0 | AA59: =IF(A59="","",IF(VLOOKUP(A59,'PraveshArr (VII PAY-Z) '!$C$7:$O$387,13)>0,VLOOKUP(A59,'PraveshArr (VII PAY-Z) '!$C$7:$O$387,13),0)) ->  | AC59: =IF(A59="","",VLOOKUP(A59,'Statement(Z) '!$C$7:$U$213,19)) ->  | AF59: NO
A60: ='PraveshArr (VII PAY-Z) '!Z56 ->  | E60: =IF(A60="","",'PraveshArr (VII PAY-Z) '!AC56) ->  | G60: =IF(A60="","",'PraveshArr (VII PAY-Z) '!AE56) ->  | H60: =IF(A60="","",'PraveshArr (VII PAY-Z) '!AG56) ->  | J60: =IF(A60="","",'PraveshArr (VII PAY-Z) '!AI56) ->  | K60: =IF('PraveshArr (VII PAY-Z) '!AQ56>0,'PraveshArr (VII PAY-Z) '!AQ56,0) ->  | L60: =IF('PraveshArr (VII PAY-Z) '!AN56>0,'PraveshArr (VII PAY-Z) '!AN56,0) ->  | U60: =IF(A60="","",'PraveshArr (VII PAY-Z) '!AR56) ->  | V60: Cash | X60: =IF(A60="","",IF(VLOOKUP(A60,'PraveshArr (VII PAY-Z) '!$Z$7:$BN$387,30)>0,VLOOKUP(A60,'PraveshArr (VII PAY-Z) '!$Z$7:$BN$387,30),0)) ->  | Z60: 0 | AA60: =IF(A60="","",IF(VLOOKUP(A60,'PraveshArr (VII PAY-Z) '!$C$7:$O$387,13)>0,VLOOKUP(A60,'PraveshArr (VII PAY-Z) '!$C$7:$O$387,13),0)) ->  | AC60: =IF(A60="","",VLOOKUP(A60,'Statement(Z) '!$C$7:$U$213,19)) ->  | AF60: NO
A61: ='PraveshArr (VII PAY-Z) '!Z57 ->  | E61: =IF(A61="","",'PraveshArr (VII PAY-Z) '!AC57) ->  | G61: =IF(A61="","",'PraveshArr (VII PAY-Z) '!AE57) ->  | H61: =IF(A61="","",'PraveshArr (VII PAY-Z) '!AG57) ->  | J61: =IF(A61="","",'PraveshArr (VII PAY-Z) '!AI57) ->  | K61: =IF('PraveshArr (VII PAY-Z) '!AQ57>0,'PraveshArr (VII PAY-Z) '!AQ57,0) ->  | L61: =IF('PraveshArr (VII PAY-Z) '!AN57>0,'PraveshArr (VII PAY-Z) '!AN57,0) ->  | U61: =IF(A61="","",'PraveshArr (VII PAY-Z) '!AR57) ->  | V61: Cash | X61: =IF(A61="","",IF(VLOOKUP(A61,'PraveshArr (VII PAY-Z) '!$Z$7:$BN$387,30)>0,VLOOKUP(A61,'PraveshArr (VII PAY-Z) '!$Z$7:$BN$387,30),0)) ->  | Z61: 0 | AA61: =IF(A61="","",IF(VLOOKUP(A61,'PraveshArr (VII PAY-Z) '!$C$7:$O$387,13)>0,VLOOKUP(A61,'PraveshArr (VII PAY-Z) '!$C$7:$O$387,13),0)) ->  | AC61: =IF(A61="","",VLOOKUP(A61,'Statement(Z) '!$C$7:$U$213,19)) ->  | AF61: NO
A62: ='PraveshArr (VII PAY-Z) '!Z58 ->  | E62: =IF(A62="","",'PraveshArr (VII PAY-Z) '!AC58) ->  | G62: =IF(A62="","",'PraveshArr (VII PAY-Z) '!AE58) ->  | H62: =IF(A62="","",'PraveshArr (VII PAY-Z) '!AG58) ->  | J62: =IF(A62="","",'PraveshArr (VII PAY-Z) '!AI58) ->  | K62: =IF('PraveshArr (VII PAY-Z) '!AQ58>0,'PraveshArr (VII PAY-Z) '!AQ58,0) ->  | L62: =IF('PraveshArr (VII PAY-Z) '!AN58>0,'PraveshArr (VII PAY-Z) '!AN58,0) ->  | U62: =IF(A62="","",'PraveshArr (VII PAY-Z) '!AR58) ->  | V62: Cash | X62: =IF(A62="","",IF(VLOOKUP(A62,'PraveshArr (VII PAY-Z) '!$Z$7:$BN$387,30)>0,VLOOKUP(A62,'PraveshArr (VII PAY-Z) '!$Z$7:$BN$387,30),0)) ->  | Z62: 0 | AA62: =IF(A62="","",IF(VLOOKUP(A62,'PraveshArr (VII PAY-Z) '!$C$7:$O$387,13)>0,VLOOKUP(A62,'PraveshArr (VII PAY-Z) '!$C$7:$O$387,13),0)) ->  | AC62: =IF(A62="","",VLOOKUP(A62,'Statement(Z) '!$C$7:$U$213,19)) ->  | AF62: NO
A63: ='PraveshArr (VII PAY-Z) '!Z59 ->  | E63: =IF(A63="","",'PraveshArr (VII PAY-Z) '!AC59) ->  | G63: =IF(A63="","",'PraveshArr (VII PAY-Z) '!AE59) ->  | H63: =IF(A63="","",'PraveshArr (VII PAY-Z) '!AG59) ->  | J63: =IF(A63="","",'PraveshArr (VII PAY-Z) '!AI59) ->  | K63: =IF('PraveshArr (VII PAY-Z) '!AQ59>0,'PraveshArr (VII PAY-Z) '!AQ59,0) ->  | L63: =IF('PraveshArr (VII PAY-Z) '!AN59>0,'PraveshArr (VII PAY-Z) '!AN59,0) ->  | U63: =IF(A63="","",'PraveshArr (VII PAY-Z) '!AR59) ->  | V63: Cash | X63: =IF(A63="","",IF(VLOOKUP(A63,'PraveshArr (VII PAY-Z) '!$Z$7:$BN$387,30)>0,VLOOKUP(A63,'PraveshArr (VII PAY-Z) '!$Z$7:$BN$387,30),0)) ->  | Z63: 0 | AA63: =IF(A63="","",IF(VLOOKUP(A63,'PraveshArr (VII PAY-Z) '!$C$7:$O$387,13)>0,VLOOKUP(A63,'PraveshArr (VII PAY-Z) '!$C$7:$O$387,13),0)) ->  | AC63: =IF(A63="","",VLOOKUP(A63,'Statement(Z) '!$C$7:$U$213,19)) ->  | AF63: NO
A64: ='PraveshArr (VII PAY-Z) '!Z60 ->  | E64: =IF(A64="","",'PraveshArr (VII PAY-Z) '!AC60) ->  | G64: =IF(A64="","",'PraveshArr (VII PAY-Z) '!AE60) ->  | H64: =IF(A64="","",'PraveshArr (VII PAY-Z) '!AG60) ->  | J64: =IF(A64="","",'PraveshArr (VII PAY-Z) '!AI60) ->  | K64: =IF('PraveshArr (VII PAY-Z) '!AQ60>0,'PraveshArr (VII PAY-Z) '!AQ60,0) ->  | L64: =IF('PraveshArr (VII PAY-Z) '!AN60>0,'PraveshArr (VII PAY-Z) '!AN60,0) ->  | U64: =IF(A64="","",'PraveshArr (VII PAY-Z) '!AR60) ->  | V64: Cash | X64: =IF(A64="","",IF(VLOOKUP(A64,'PraveshArr (VII PAY-Z) '!$Z$7:$BN$387,30)>0,VLOOKUP(A64,'PraveshArr (VII PAY-Z) '!$Z$7:$BN$387,30),0)) ->  | Z64: 0 | AA64: =IF(A64="","",IF(VLOOKUP(A64,'PraveshArr (VII PAY-Z) '!$C$7:$O$387,13)>0,VLOOKUP(A64,'PraveshArr (VII PAY-Z) '!$C$7:$O$387,13),0)) ->  | AC64: =IF(A64="","",VLOOKUP(A64,'Statement(Z) '!$C$7:$U$213,19)) ->  | AF64: NO
A65: ='PraveshArr (VII PAY-Z) '!Z61 ->  | E65: =IF(A65="","",'PraveshArr (VII PAY-Z) '!AC61) ->  | G65: =IF(A65="","",'PraveshArr (VII PAY-Z) '!AE61) ->  | H65: =IF(A65="","",'PraveshArr (VII PAY-Z) '!AG61) ->  | J65: =IF(A65="","",'PraveshArr (VII PAY-Z) '!AI61) ->  | K65: =IF('PraveshArr (VII PAY-Z) '!AQ61>0,'PraveshArr (VII PAY-Z) '!AQ61,0) ->  | L65: =IF('PraveshArr (VII PAY-Z) '!AN61>0,'PraveshArr (VII PAY-Z) '!AN61,0) ->  | U65: =IF(A65="","",'PraveshArr (VII PAY-Z) '!AR61) ->  | V65: Cash | X65: =IF(A65="","",IF(VLOOKUP(A65,'PraveshArr (VII PAY-Z) '!$Z$7:$BN$387,30)>0,VLOOKUP(A65,'PraveshArr (VII PAY-Z) '!$Z$7:$BN$387,30),0)) ->  | Z65: 0 | AA65: =IF(A65="","",IF(VLOOKUP(A65,'PraveshArr (VII PAY-Z) '!$C$7:$O$387,13)>0,VLOOKUP(A65,'PraveshArr (VII PAY-Z) '!$C$7:$O$387,13),0)) ->  | AC65: =IF(A65="","",VLOOKUP(A65,'Statement(Z) '!$C$7:$U$213,19)) ->  | AF65: NO
A66: ='PraveshArr (VII PAY-Z) '!Z62 ->  | E66: =IF(A66="","",'PraveshArr (VII PAY-Z) '!AC62) ->  | G66: =IF(A66="","",'PraveshArr (VII PAY-Z) '!AE62) ->  | H66: =IF(A66="","",'PraveshArr (VII PAY-Z) '!AG62) ->  | J66: =IF(A66="","",'PraveshArr (VII PAY-Z) '!AI62) ->  | K66: =IF('PraveshArr (VII PAY-Z) '!AQ62>0,'PraveshArr (VII PAY-Z) '!AQ62,0) ->  | L66: =IF('PraveshArr (VII PAY-Z) '!AN62>0,'PraveshArr (VII PAY-Z) '!AN62,0) ->  | U66: =IF(A66="","",'PraveshArr (VII PAY-Z) '!AR62) ->  | V66: Cash | X66: =IF(A66="","",IF(VLOOKUP(A66,'PraveshArr (VII PAY-Z) '!$Z$7:$BN$387,30)>0,VLOOKUP(A66,'PraveshArr (VII PAY-Z) '!$Z$7:$BN$387,30),0)) ->  | Z66: 0 | AA66: =IF(A66="","",IF(VLOOKUP(A66,'PraveshArr (VII PAY-Z) '!$C$7:$O$387,13)>0,VLOOKUP(A66,'PraveshArr (VII PAY-Z) '!$C$7:$O$387,13),0)) ->  | AC66: =IF(A66="","",VLOOKUP(A66,'Statement(Z) '!$C$7:$U$213,19)) ->  | AF66: NO
A67: ='PraveshArr (VII PAY-Z) '!Z63 ->  | E67: =IF(A67="","",'PraveshArr (VII PAY-Z) '!AC63) ->  | G67: =IF(A67="","",'PraveshArr (VII PAY-Z) '!AE63) ->  | H67: =IF(A67="","",'PraveshArr (VII PAY-Z) '!AG63) ->  | J67: =IF(A67="","",'PraveshArr (VII PAY-Z) '!AI63) ->  | K67: =IF('PraveshArr (VII PAY-Z) '!AQ63>0,'PraveshArr (VII PAY-Z) '!AQ63,0) ->  | L67: =IF('PraveshArr (VII PAY-Z) '!AN63>0,'PraveshArr (VII PAY-Z) '!AN63,0) ->  | U67: =IF(A67="","",'PraveshArr (VII PAY-Z) '!AR63) ->  | V67: Cash | X67: =IF(A67="","",IF(VLOOKUP(A67,'PraveshArr (VII PAY-Z) '!$Z$7:$BN$387,30)>0,VLOOKUP(A67,'PraveshArr (VII PAY-Z) '!$Z$7:$BN$387,30),0)) ->  | Z67: 0 | AA67: =IF(A67="","",IF(VLOOKUP(A67,'PraveshArr (VII PAY-Z) '!$C$7:$O$387,13)>0,VLOOKUP(A67,'PraveshArr (VII PAY-Z) '!$C$7:$O$387,13),0)) ->  | AC67: =IF(A67="","",VLOOKUP(A67,'Statement(Z) '!$C$7:$U$213,19)) ->  | AF67: NO
A68: ='PraveshArr (VII PAY-Z) '!Z64 ->  | E68: =IF(A68="","",'PraveshArr (VII PAY-Z) '!AC64) ->  | G68: =IF(A68="","",'PraveshArr (VII PAY-Z) '!AE64) ->  | H68: =IF(A68="","",'PraveshArr (VII PAY-Z) '!AG64) ->  | J68: =IF(A68="","",'PraveshArr (VII PAY-Z) '!AI64) ->  | K68: =IF('PraveshArr (VII PAY-Z) '!AQ64>0,'PraveshArr (VII PAY-Z) '!AQ64,0) ->  | L68: =IF('PraveshArr (VII PAY-Z) '!AN64>0,'PraveshArr (VII PAY-Z) '!AN64,0) ->  | U68: =IF(A68="","",'PraveshArr (VII PAY-Z) '!AR64) ->  | V68: Cash | X68: =IF(A68="","",IF(VLOOKUP(A68,'PraveshArr (VII PAY-Z) '!$Z$7:$BN$387,30)>0,VLOOKUP(A68,'PraveshArr (VII PAY-Z) '!$Z$7:$BN$387,30),0)) ->  | Z68: 0 | AA68: =IF(A68="","",IF(VLOOKUP(A68,'PraveshArr (VII PAY-Z) '!$C$7:$O$387,13)>0,VLOOKUP(A68,'PraveshArr (VII PAY-Z) '!$C$7:$O$387,13),0)) ->  | AC68: =IF(A68="","",VLOOKUP(A68,'Statement(Z) '!$C$7:$U$213,19)) ->  | AF68: NO
A69: ='PraveshArr (VII PAY-Z) '!Z65 ->  | E69: =IF(A69="","",'PraveshArr (VII PAY-Z) '!AC65) ->  | G69: =IF(A69="","",'PraveshArr (VII PAY-Z) '!AE65) ->  | H69: =IF(A69="","",'PraveshArr (VII PAY-Z) '!AG65) ->  | J69: =IF(A69="","",'PraveshArr (VII PAY-Z) '!AI65) ->  | K69: =IF('PraveshArr (VII PAY-Z) '!AQ65>0,'PraveshArr (VII PAY-Z) '!AQ65,0) ->  | L69: =IF('PraveshArr (VII PAY-Z) '!AN65>0,'PraveshArr (VII PAY-Z) '!AN65,0) ->  | U69: =IF(A69="","",'PraveshArr (VII PAY-Z) '!AR65) ->  | V69: Cash | X69: =IF(A69="","",IF(VLOOKUP(A69,'PraveshArr (VII PAY-Z) '!$Z$7:$BN$387,30)>0,VLOOKUP(A69,'PraveshArr (VII PAY-Z) '!$Z$7:$BN$387,30),0)) ->  | Z69: 0 | AA69: =IF(A69="","",IF(VLOOKUP(A69,'PraveshArr (VII PAY-Z) '!$C$7:$O$387,13)>0,VLOOKUP(A69,'PraveshArr (VII PAY-Z) '!$C$7:$O$387,13),0)) ->  | AC69: =IF(A69="","",VLOOKUP(A69,'Statement(Z) '!$C$7:$U$213,19)) ->  | AF69: NO
A70: ='PraveshArr (VII PAY-Z) '!Z66 ->  | E70: =IF(A70="","",'PraveshArr (VII PAY-Z) '!AC66) ->  | G70: =IF(A70="","",'PraveshArr (VII PAY-Z) '!AE66) ->  | H70: =IF(A70="","",'PraveshArr (VII PAY-Z) '!AG66) ->  | J70: =IF(A70="","",'PraveshArr (VII PAY-Z) '!AI66) ->  | K70: =IF('PraveshArr (VII PAY-Z) '!AQ66>0,'PraveshArr (VII PAY-Z) '!AQ66,0) ->  | L70: =IF('PraveshArr (VII PAY-Z) '!AN66>0,'PraveshArr (VII PAY-Z) '!AN66,0) ->  | U70: =IF(A70="","",'PraveshArr (VII PAY-Z) '!AR66) ->  | V70: Cash | X70: =IF(A70="","",IF(VLOOKUP(A70,'PraveshArr (VII PAY-Z) '!$Z$7:$BN$387,30)>0,VLOOKUP(A70,'PraveshArr (VII PAY-Z) '!$Z$7:$BN$387,30),0)) ->  | Z70: 0 | AA70: =IF(A70="","",IF(VLOOKUP(A70,'PraveshArr (VII PAY-Z) '!$C$7:$O$387,13)>0,VLOOKUP(A70,'PraveshArr (VII PAY-Z) '!$C$7:$O$387,13),0)) ->  | AC70: =IF(A70="","",VLOOKUP(A70,'Statement(Z) '!$C$7:$U$213,19)) ->  | AF70: NO
A71: ='PraveshArr (VII PAY-Z) '!Z67 ->  | E71: =IF(A71="","",'PraveshArr (VII PAY-Z) '!AC67) ->  | G71: =IF(A71="","",'PraveshArr (VII PAY-Z) '!AE67) ->  | H71: =IF(A71="","",'PraveshArr (VII PAY-Z) '!AG67) ->  | J71: =IF(A71="","",'PraveshArr (VII PAY-Z) '!AI67) ->  | K71: =IF('PraveshArr (VII PAY-Z) '!AQ67>0,'PraveshArr (VII PAY-Z) '!AQ67,0) ->  | L71: =IF('PraveshArr (VII PAY-Z) '!AN67>0,'PraveshArr (VII PAY-Z) '!AN67,0) ->  | U71: =IF(A71="","",'PraveshArr (VII PAY-Z) '!AR67) ->  | V71: Cash | X71: =IF(A71="","",IF(VLOOKUP(A71,'PraveshArr (VII PAY-Z) '!$Z$7:$BN$387,30)>0,VLOOKUP(A71,'PraveshArr (VII PAY-Z) '!$Z$7:$BN$387,30),0)) ->  | Z71: 0 | AA71: =IF(A71="","",IF(VLOOKUP(A71,'PraveshArr (VII PAY-Z) '!$C$7:$O$387,13)>0,VLOOKUP(A71,'PraveshArr (VII PAY-Z) '!$C$7:$O$387,13),0)) ->  | AC71: =IF(A71="","",VLOOKUP(A71,'Statement(Z) '!$C$7:$U$213,19)) ->  | AF71: NO
A72: ='PraveshArr (VII PAY-Z) '!Z68 ->  | E72: =IF(A72="","",'PraveshArr (VII PAY-Z) '!AC68) ->  | G72: =IF(A72="","",'PraveshArr (VII PAY-Z) '!AE68) ->  | H72: =IF(A72="","",'PraveshArr (VII PAY-Z) '!AG68) ->  | J72: =IF(A72="","",'PraveshArr (VII PAY-Z) '!AI68) ->  | K72: =IF('PraveshArr (VII PAY-Z) '!AQ68>0,'PraveshArr (VII PAY-Z) '!AQ68,0) ->  | L72: =IF('PraveshArr (VII PAY-Z) '!AN68>0,'PraveshArr (VII PAY-Z) '!AN68,0) ->  | U72: =IF(A72="","",'PraveshArr (VII PAY-Z) '!AR68) ->  | V72: Cash | X72: =IF(A72="","",IF(VLOOKUP(A72,'PraveshArr (VII PAY-Z) '!$Z$7:$BN$387,30)>0,VLOOKUP(A72,'PraveshArr (VII PAY-Z) '!$Z$7:$BN$387,30),0)) ->  | Z72: 0 | AA72: =IF(A72="","",IF(VLOOKUP(A72,'PraveshArr (VII PAY-Z) '!$C$7:$O$387,13)>0,VLOOKUP(A72,'PraveshArr (VII PAY-Z) '!$C$7:$O$387,13),0)) ->  | AC72: =IF(A72="","",VLOOKUP(A72,'Statement(Z) '!$C$7:$U$213,19)) ->  | AF72: NO
A73: ='PraveshArr (VII PAY-Z) '!Z69 ->  | E73: =IF(A73="","",'PraveshArr (VII PAY-Z) '!AC69) ->  | G73: =IF(A73="","",'PraveshArr (VII PAY-Z) '!AE69) ->  | H73: =IF(A73="","",'PraveshArr (VII PAY-Z) '!AG69) ->  | J73: =IF(A73="","",'PraveshArr (VII PAY-Z) '!AI69) ->  | K73: =IF('PraveshArr (VII PAY-Z) '!AQ69>0,'PraveshArr (VII PAY-Z) '!AQ69,0) ->  | L73: =IF('PraveshArr (VII PAY-Z) '!AN69>0,'PraveshArr (VII PAY-Z) '!AN69,0) ->  | U73: =IF(A73="","",'PraveshArr (VII PAY-Z) '!AR69) ->  | V73: Cash | X73: =IF(A73="","",IF(VLOOKUP(A73,'PraveshArr (VII PAY-Z) '!$Z$7:$BN$387,30)>0,VLOOKUP(A73,'PraveshArr (VII PAY-Z) '!$Z$7:$BN$387,30),0)) ->  | Z73: 0 | AA73: =IF(A73="","",IF(VLOOKUP(A73,'PraveshArr (VII PAY-Z) '!$C$7:$O$387,13)>0,VLOOKUP(A73,'PraveshArr (VII PAY-Z) '!$C$7:$O$387,13),0)) ->  | AC73: =IF(A73="","",VLOOKUP(A73,'Statement(Z) '!$C$7:$U$213,19)) ->  | AF73: NO
A74: ='PraveshArr (VII PAY-Z) '!Z70 ->  | E74: =IF(A74="","",'PraveshArr (VII PAY-Z) '!AC70) ->  | G74: =IF(A74="","",'PraveshArr (VII PAY-Z) '!AE70) ->  | H74: =IF(A74="","",'PraveshArr (VII PAY-Z) '!AG70) ->  | J74: =IF(A74="","",'PraveshArr (VII PAY-Z) '!AI70) ->  | K74: =IF('PraveshArr (VII PAY-Z) '!AQ70>0,'PraveshArr (VII PAY-Z) '!AQ70,0) ->  | L74: =IF('PraveshArr (VII PAY-Z) '!AN70>0,'PraveshArr (VII PAY-Z) '!AN70,0) ->  | U74: =IF(A74="","",'PraveshArr (VII PAY-Z) '!AR70) ->  | V74: Cash | X74: =IF(A74="","",IF(VLOOKUP(A74,'PraveshArr (VII PAY-Z) '!$Z$7:$BN$387,30)>0,VLOOKUP(A74,'PraveshArr (VII PAY-Z) '!$Z$7:$BN$387,30),0)) ->  | Z74: 0 | AA74: =IF(A74="","",IF(VLOOKUP(A74,'PraveshArr (VII PAY-Z) '!$C$7:$O$387,13)>0,VLOOKUP(A74,'PraveshArr (VII PAY-Z) '!$C$7:$O$387,13),0)) ->  | AC74: =IF(A74="","",VLOOKUP(A74,'Statement(Z) '!$C$7:$U$213,19)) ->  | AF74: NO
A75: ='PraveshArr (VII PAY-Z) '!Z71 ->  | C75: NO | E75: =IF(A75="","",'PraveshArr (VII PAY-Z) '!AC71) ->  | G75: =IF(A75="","",'PraveshArr (VII PAY-Z) '!AE71) ->  | H75: =IF(A75="","",'PraveshArr (VII PAY-Z) '!AG71) ->  | J75: =IF(A75="","",'PraveshArr (VII PAY-Z) '!AI71) ->  | K75: =IF('PraveshArr (VII PAY-Z) '!AQ71>0,'PraveshArr (VII PAY-Z) '!AQ71,0) ->  | L75: =IF('PraveshArr (VII PAY-Z) '!AN71>0,'PraveshArr (VII PAY-Z) '!AN71,0) ->  | U75: =IF(A75="","",'PraveshArr (VII PAY-Z) '!AR71) ->  | V75: Cash | W75: =IF(A75="","",IF(ROUND((G75-J75)*U75,0)>0,ROUND((G75-J75)*U75,0),0)) ->  | X75: =IF(A75="","",IF(VLOOKUP(A75,'PraveshArr (VII PAY-Z) '!$Z$7:$BN$387,30)>0,VLOOKUP(A75,'PraveshArr (VII PAY-Z) '!$Z$7:$BN$387,30),0)) ->  | Z75: 0 | AA75: =IF(A75="","",IF(VLOOKUP(A75,'PraveshArr (VII PAY-Z) '!$C$7:$O$387,13)>0,VLOOKUP(A75,'PraveshArr (VII PAY-Z) '!$C$7:$O$387,13),0)) ->  | AC75: =IF(A75="","",VLOOKUP(A75,'Statement(Z) '!$C$7:$U$213,19)) ->  | AD75: =IF(A75="","",IF(AC75<0,0,ROUND(AC75*0.1,0))) ->  | AF75: NO
A76: ='PraveshArr (VII PAY-Z) '!Z72 ->  | C76: YES | E76: =IF(A76="","",'PraveshArr (VII PAY-Z) '!AC72) ->  | G76: =IF(A76="","",'PraveshArr (VII PAY-Z) '!AE72) ->  | H76: =IF(A76="","",'PraveshArr (VII PAY-Z) '!AG72) ->  | J76: =IF(A76="","",'PraveshArr (VII PAY-Z) '!AI72) ->  | K76: =IF('PraveshArr (VII PAY-Z) '!AQ72>0,'PraveshArr (VII PAY-Z) '!AQ72,0) ->  | L76: =IF('PraveshArr (VII PAY-Z) '!AN72>0,'PraveshArr (VII PAY-Z) '!AN72,0) ->  | Q76: =IF(A76="","",IF(P76>0,P76,ROUND(G76*O76,0))) ->  | U76: =IF(A76="","",'PraveshArr (VII PAY-Z) '!AR72) ->  | V76: Cash | X76: =IF(A76="","",IF(VLOOKUP(A76,'PraveshArr (VII PAY-Z) '!$Z$7:$BN$387,30)>0,VLOOKUP(A76,'PraveshArr (VII PAY-Z) '!$Z$7:$BN$387,30),0)) ->  | Z76: =IF(Y76=0,0,IF(X76>Y76,(X76-Y76),0)) -> 0 | AA76: =IF(A76="","",IF(VLOOKUP(A76,'PraveshArr (VII PAY-Z) '!$C$7:$O$387,13)>0,VLOOKUP(A76,'PraveshArr (VII PAY-Z) '!$C$7:$O$387,13),0)) ->  | AC76: =IF(A76="","",VLOOKUP(A76,'Statement(Z) '!$C$7:$U$213,19)) ->  | AD76: =IF(A76="","",IF(AC76<0,0,ROUND(AC76*0.1,0))) ->  | AF76: NO | AG76: =IF(A76="","",IF(AF76="NO",0,IF(AE76>0,AE76,AD76))) -> 
A77: ='PraveshArr (VII PAY-Z) '!Z73 ->  | C77: NO | E77: =IF(A77="","",'PraveshArr (VII PAY-Z) '!AC73) ->  | G77: =IF(A77="","",'PraveshArr (VII PAY-Z) '!AE73) ->  | H77: =IF(A77="","",'PraveshArr (VII PAY-Z) '!AG73) ->  | J77: =IF(A77="","",'PraveshArr (VII PAY-Z) '!AI73) ->  | K77: =IF('PraveshArr (VII PAY-Z) '!AQ73>0,'PraveshArr (VII PAY-Z) '!AQ73,0) ->  | L77: =IF('PraveshArr (VII PAY-Z) '!AN73>0,'PraveshArr (VII PAY-Z) '!AN73,0) ->  | T77: =IF(A77="","",IF(S77>0,S77,ROUND(J77*R77,0))) ->  | U77: =IF(A77="","",'PraveshArr (VII PAY-Z) '!AR73) ->  | V77: Cash | X77: =IF(A77="","",IF(VLOOKUP(A77,'PraveshArr (VII PAY-Z) '!$Z$7:$BN$387,30)>0,VLOOKUP(A77,'PraveshArr (VII PAY-Z) '!$Z$7:$BN$387,30),0)) ->  | Z77: 0 | AA77: =IF(A77="","",IF(VLOOKUP(A77,'PraveshArr (VII PAY-Z) '!$C$7:$O$387,13)>0,VLOOKUP(A77,'PraveshArr (VII PAY-Z) '!$C$7:$O$387,13),0)) ->  | AC77: =IF(A77="","",VLOOKUP(A77,'Statement(Z) '!$C$7:$U$213,19)) ->  | AF77: NO
A78: ='PraveshArr (VII PAY-Z) '!Z74 ->  | C78: NO | E78: =IF(A78="","",'PraveshArr (VII PAY-Z) '!AC74) ->  | G78: =IF(A78="","",'PraveshArr (VII PAY-Z) '!AE74) ->  | H78: =IF(A78="","",'PraveshArr (VII PAY-Z) '!AG74) ->  | J78: =IF(A78="","",'PraveshArr (VII PAY-Z) '!AI74) ->  | K78: =IF('PraveshArr (VII PAY-Z) '!AQ74>0,'PraveshArr (VII PAY-Z) '!AQ74,0) ->  | L78: =IF('PraveshArr (VII PAY-Z) '!AN74>0,'PraveshArr (VII PAY-Z) '!AN74,0) ->  | U78: =IF(A78="","",'PraveshArr (VII PAY-Z) '!AR74) ->  | V78: Cash | X78: =IF(A78="","",IF(VLOOKUP(A78,'PraveshArr (VII PAY-Z) '!$Z$7:$BN$387,30)>0,VLOOKUP(A78,'PraveshArr (VII PAY-Z) '!$Z$7:$BN$387,30),0)) ->  | Z78: 0 | AA78: =IF(A78="","",IF(VLOOKUP(A78,'PraveshArr (VII PAY-Z) '!$C$7:$O$387,13)>0,VLOOKUP(A78,'PraveshArr (VII PAY-Z) '!$C$7:$O$387,13),0)) ->  | AC78: =IF(A78="","",VLOOKUP(A78,'Statement(Z) '!$C$7:$U$213,19)) ->  | AF78: NO
A79: ='PraveshArr (VII PAY-Z) '!Z75 ->  | C79: NO | E79: =IF(A79="","",'PraveshArr (VII PAY-Z) '!AC75) ->  | G79: =IF(A79="","",'PraveshArr (VII PAY-Z) '!AE75) ->  | H79: =IF(A79="","",'PraveshArr (VII PAY-Z) '!AG75) ->  | J79: =IF(A79="","",'PraveshArr (VII PAY-Z) '!AI75) ->  | K79: =IF('PraveshArr (VII PAY-Z) '!AQ75>0,'PraveshArr (VII PAY-Z) '!AQ75,0) ->  | L79: =IF('PraveshArr (VII PAY-Z) '!AN75>0,'PraveshArr (VII PAY-Z) '!AN75,0) ->  | U79: =IF(A79="","",'PraveshArr (VII PAY-Z) '!AR75) ->  | V79: Cash | X79: =IF(A79="","",IF(VLOOKUP(A79,'PraveshArr (VII PAY-Z) '!$Z$7:$BN$387,30)>0,VLOOKUP(A79,'PraveshArr (VII PAY-Z) '!$Z$7:$BN$387,30),0)) ->  | Z79: 0 | AA79: =IF(A79="","",IF(VLOOKUP(A79,'PraveshArr (VII PAY-Z) '!$C$7:$O$387,13)>0,VLOOKUP(A79,'PraveshArr (VII PAY-Z) '!$C$7:$O$387,13),0)) ->  | AC79: =IF(A79="","",VLOOKUP(A79,'Statement(Z) '!$C$7:$U$213,19)) ->  | AF79: NO
A80: ='PraveshArr (VII PAY-Z) '!Z76 ->  | C80: NO | E80: =IF(A80="","",'PraveshArr (VII PAY-Z) '!AC76) ->  | G80: =IF(A80="","",'PraveshArr (VII PAY-Z) '!AE76) ->  | H80: =IF(A80="","",'PraveshArr (VII PAY-Z) '!AG76) ->  | J80: =IF(A80="","",'PraveshArr (VII PAY-Z) '!AI76) ->  | K80: =IF('PraveshArr (VII PAY-Z) '!AQ76>0,'PraveshArr (VII PAY-Z) '!AQ76,0) ->  | L80: =IF('PraveshArr (VII PAY-Z) '!AN76>0,'PraveshArr (VII PAY-Z) '!AN76,0) ->  | U80: =IF(A80="","",'PraveshArr (VII PAY-Z) '!AR76) ->  | V80: Cash | X80: =IF(A80="","",IF(VLOOKUP(A80,'PraveshArr (VII PAY-Z) '!$Z$7:$BN$387,30)>0,VLOOKUP(A80,'PraveshArr (VII PAY-Z) '!$Z$7:$BN$387,30),0)) ->  | Z80: 0 | AA80: =IF(A80="","",IF(VLOOKUP(A80,'PraveshArr (VII PAY-Z) '!$C$7:$O$387,13)>0,VLOOKUP(A80,'PraveshArr (VII PAY-Z) '!$C$7:$O$387,13),0)) ->  | AC80: =IF(A80="","",VLOOKUP(A80,'Statement(Z) '!$C$7:$U$213,19)) ->  | AF80: NO
A81: ='PraveshArr (VII PAY-Z) '!Z77 ->  | C81: NO | E81: =IF(A81="","",'PraveshArr (VII PAY-Z) '!AC77) ->  | G81: =IF(A81="","",'PraveshArr (VII PAY-Z) '!AE77) ->  | H81: =IF(A81="","",'PraveshArr (VII PAY-Z) '!AG77) ->  | J81: =IF(A81="","",'PraveshArr (VII PAY-Z) '!AI77) ->  | K81: =IF('PraveshArr (VII PAY-Z) '!AQ77>0,'PraveshArr (VII PAY-Z) '!AQ77,0) ->  | L81: =IF('PraveshArr (VII PAY-Z) '!AN77>0,'PraveshArr (VII PAY-Z) '!AN77,0) ->  | U81: =IF(A81="","",'PraveshArr (VII PAY-Z) '!AR77) ->  | V81: Cash | X81: =IF(A81="","",IF(VLOOKUP(A81,'PraveshArr (VII PAY-Z) '!$Z$7:$BN$387,30)>0,VLOOKUP(A81,'PraveshArr (VII PAY-Z) '!$Z$7:$BN$387,30),0)) ->  | Z81: 0 | AA81: =IF(A81="","",IF(VLOOKUP(A81,'PraveshArr (VII PAY-Z) '!$C$7:$O$387,13)>0,VLOOKUP(A81,'PraveshArr (VII PAY-Z) '!$C$7:$O$387,13),0)) ->  | AC81: =IF(A81="","",VLOOKUP(A81,'Statement(Z) '!$C$7:$U$213,19)) ->  | AF81: NO
A82: ='PraveshArr (VII PAY-Z) '!Z78 ->  | C82: NO | E82: =IF(A82="","",'PraveshArr (VII PAY-Z) '!AC78) ->  | G82: =IF(A82="","",'PraveshArr (VII PAY-Z) '!AE78) ->  | H82: =IF(A82="","",'PraveshArr (VII PAY-Z) '!AG78) ->  | J82: =IF(A82="","",'PraveshArr (VII PAY-Z) '!AI78) ->  | K82: =IF('PraveshArr (VII PAY-Z) '!AQ78>0,'PraveshArr (VII PAY-Z) '!AQ78,0) ->  | L82: =IF('PraveshArr (VII PAY-Z) '!AN78>0,'PraveshArr (VII PAY-Z) '!AN78,0) ->  | U82: =IF(A82="","",'PraveshArr (VII PAY-Z) '!AR78) ->  | V82: Cash | X82: =IF(A82="","",IF(VLOOKUP(A82,'PraveshArr (VII PAY-Z) '!$Z$7:$BN$387,30)>0,VLOOKUP(A82,'PraveshArr (VII PAY-Z) '!$Z$7:$BN$387,30),0)) ->  | Z82: 0 | AA82: =IF(A82="","",IF(VLOOKUP(A82,'PraveshArr (VII PAY-Z) '!$C$7:$O$387,13)>0,VLOOKUP(A82,'PraveshArr (VII PAY-Z) '!$C$7:$O$387,13),0)) ->  | AC82: =IF(A82="","",VLOOKUP(A82,'Statement(Z) '!$C$7:$U$213,19)) ->  | AF82: NO
A83: ='PraveshArr (VII PAY-Z) '!Z79 ->  | C83: NO | E83: =IF(A83="","",'PraveshArr (VII PAY-Z) '!AC79) ->  | G83: =IF(A83="","",'PraveshArr (VII PAY-Z) '!AE79) ->  | H83: =IF(A83="","",'PraveshArr (VII PAY-Z) '!AG79) ->  | J83: =IF(A83="","",'PraveshArr (VII PAY-Z) '!AI79) ->  | K83: =IF('PraveshArr (VII PAY-Z) '!AQ79>0,'PraveshArr (VII PAY-Z) '!AQ79,0) ->  | L83: =IF('PraveshArr (VII PAY-Z) '!AN79>0,'PraveshArr (VII PAY-Z) '!AN79,0) ->  | U83: =IF(A83="","",'PraveshArr (VII PAY-Z) '!AR79) ->  | V83: Cash | X83: =IF(A83="","",IF(VLOOKUP(A83,'PraveshArr (VII PAY-Z) '!$Z$7:$BN$387,30)>0,VLOOKUP(A83,'PraveshArr (VII PAY-Z) '!$Z$7:$BN$387,30),0)) ->  | Z83: 0 | AA83: =IF(A83="","",IF(VLOOKUP(A83,'PraveshArr (VII PAY-Z) '!$C$7:$O$387,13)>0,VLOOKUP(A83,'PraveshArr (VII PAY-Z) '!$C$7:$O$387,13),0)) ->  | AC83: =IF(A83="","",VLOOKUP(A83,'Statement(Z) '!$C$7:$U$213,19)) ->  | AF83: NO
A84: ='PraveshArr (VII PAY-Z) '!Z80 ->  | C84: NO | E84: =IF(A84="","",'PraveshArr (VII PAY-Z) '!AC80) ->  | G84: =IF(A84="","",'PraveshArr (VII PAY-Z) '!AE80) ->  | H84: =IF(A84="","",'PraveshArr (VII PAY-Z) '!AG80) ->  | J84: =IF(A84="","",'PraveshArr (VII PAY-Z) '!AI80) ->  | K84: =IF('PraveshArr (VII PAY-Z) '!AQ80>0,'PraveshArr (VII PAY-Z) '!AQ80,0) ->  | L84: =IF('PraveshArr (VII PAY-Z) '!AN80>0,'PraveshArr (VII PAY-Z) '!AN80,0) ->  | U84: =IF(A84="","",'PraveshArr (VII PAY-Z) '!AR80) ->  | V84: Cash | X84: =IF(A84="","",IF(VLOOKUP(A84,'PraveshArr (VII PAY-Z) '!$Z$7:$BN$387,30)>0,VLOOKUP(A84,'PraveshArr (VII PAY-Z) '!$Z$7:$BN$387,30),0)) ->  | Z84: 0 | AA84: =IF(A84="","",IF(VLOOKUP(A84,'PraveshArr (VII PAY-Z) '!$C$7:$O$387,13)>0,VLOOKUP(A84,'PraveshArr (VII PAY-Z) '!$C$7:$O$387,13),0)) ->  | AC84: =IF(A84="","",VLOOKUP(A84,'Statement(Z) '!$C$7:$U$213,19)) ->  | AF84: NO
A85: ='PraveshArr (VII PAY-Z) '!Z81 ->  | C85: NO | E85: =IF(A85="","",'PraveshArr (VII PAY-Z) '!AC81) ->  | G85: =IF(A85="","",'PraveshArr (VII PAY-Z) '!AE81) ->  | H85: =IF(A85="","",'PraveshArr (VII PAY-Z) '!AG81) ->  | J85: =IF(A85="","",'PraveshArr (VII PAY-Z) '!AI81) ->  | K85: =IF('PraveshArr (VII PAY-Z) '!AQ81>0,'PraveshArr (VII PAY-Z) '!AQ81,0) ->  | L85: =IF('PraveshArr (VII PAY-Z) '!AN81>0,'PraveshArr (VII PAY-Z) '!AN81,0) ->  | U85: =IF(A85="","",'PraveshArr (VII PAY-Z) '!AR81) ->  | V85: Cash | X85: =IF(A85="","",IF(VLOOKUP(A85,'PraveshArr (VII PAY-Z) '!$Z$7:$BN$387,30)>0,VLOOKUP(A85,'PraveshArr (VII PAY-Z) '!$Z$7:$BN$387,30),0)) ->  | Z85: 0 | AA85: =IF(A85="","",IF(VLOOKUP(A85,'PraveshArr (VII PAY-Z) '!$C$7:$O$387,13)>0,VLOOKUP(A85,'PraveshArr (VII PAY-Z) '!$C$7:$O$387,13),0)) ->  | AC85: =IF(A85="","",VLOOKUP(A85,'Statement(Z) '!$C$7:$U$213,19)) ->  | AF85: NO
A86: ='PraveshArr (VII PAY-Z) '!Z82 ->  | C86: NO | E86: =IF(A86="","",'PraveshArr (VII PAY-Z) '!AC82) ->  | G86: =IF(A86="","",'PraveshArr (VII PAY-Z) '!AE82) ->  | H86: =IF(A86="","",'PraveshArr (VII PAY-Z) '!AG82) ->  | J86: =IF(A86="","",'PraveshArr (VII PAY-Z) '!AI82) ->  | K86: =IF('PraveshArr (VII PAY-Z) '!AQ82>0,'PraveshArr (VII PAY-Z) '!AQ82,0) ->  | L86: =IF('PraveshArr (VII PAY-Z) '!AN82>0,'PraveshArr (VII PAY-Z) '!AN82,0) ->  | U86: =IF(A86="","",'PraveshArr (VII PAY-Z) '!AR82) ->  | V86: Cash | X86: =IF(A86="","",IF(VLOOKUP(A86,'PraveshArr (VII PAY-Z) '!$Z$7:$BN$387,30)>0,VLOOKUP(A86,'PraveshArr (VII PAY-Z) '!$Z$7:$BN$387,30),0)) ->  | Z86: 0 | AA86: =IF(A86="","",IF(VLOOKUP(A86,'PraveshArr (VII PAY-Z) '!$C$7:$O$387,13)>0,VLOOKUP(A86,'PraveshArr (VII PAY-Z) '!$C$7:$O$387,13),0)) ->  | AC86: =IF(A86="","",VLOOKUP(A86,'Statement(Z) '!$C$7:$U$213,19)) ->  | AF86: NO
A87: ='PraveshArr (VII PAY-Z) '!Z83 ->  | C87: NO | E87: =IF(A87="","",'PraveshArr (VII PAY-Z) '!AC83) ->  | G87: =IF(A87="","",'PraveshArr (VII PAY-Z) '!AE83) ->  | H87: =IF(A87="","",'PraveshArr (VII PAY-Z) '!AG83) ->  | J87: =IF(A87="","",'PraveshArr (VII PAY-Z) '!AI83) ->  | K87: =IF('PraveshArr (VII PAY-Z) '!AQ83>0,'PraveshArr (VII PAY-Z) '!AQ83,0) ->  | L87: =IF('PraveshArr (VII PAY-Z) '!AN83>0,'PraveshArr (VII PAY-Z) '!AN83,0) ->  | U87: =IF(A87="","",'PraveshArr (VII PAY-Z) '!AR83) ->  | V87: Cash | X87: =IF(A87="","",IF(VLOOKUP(A87,'PraveshArr (VII PAY-Z) '!$Z$7:$BN$387,30)>0,VLOOKUP(A87,'PraveshArr (VII PAY-Z) '!$Z$7:$BN$387,30),0)) ->  | Z87: 0 | AA87: =IF(A87="","",IF(VLOOKUP(A87,'PraveshArr (VII PAY-Z) '!$C$7:$O$387,13)>0,VLOOKUP(A87,'PraveshArr (VII PAY-Z) '!$C$7:$O$387,13),0)) ->  | AC87: =IF(A87="","",VLOOKUP(A87,'Statement(Z) '!$C$7:$U$213,19)) ->  | AF87: NO
A88: ='PraveshArr (VII PAY-Z) '!Z84 ->  | C88: NO | E88: =IF(A88="","",'PraveshArr (VII PAY-Z) '!AC84) ->  | G88: =IF(A88="","",'PraveshArr (VII PAY-Z) '!AE84) ->  | H88: =IF(A88="","",'PraveshArr (VII PAY-Z) '!AG84) ->  | J88: =IF(A88="","",'PraveshArr (VII PAY-Z) '!AI84) ->  | K88: =IF('PraveshArr (VII PAY-Z) '!AQ84>0,'PraveshArr (VII PAY-Z) '!AQ84,0) ->  | L88: =IF('PraveshArr (VII PAY-Z) '!AN84>0,'PraveshArr (VII PAY-Z) '!AN84,0) ->  | U88: =IF(A88="","",'PraveshArr (VII PAY-Z) '!AR84) ->  | V88: Cash | X88: =IF(A88="","",IF(VLOOKUP(A88,'PraveshArr (VII PAY-Z) '!$Z$7:$BN$387,30)>0,VLOOKUP(A88,'PraveshArr (VII PAY-Z) '!$Z$7:$BN$387,30),0)) ->  | Z88: 0 | AA88: =IF(A88="","",IF(VLOOKUP(A88,'PraveshArr (VII PAY-Z) '!$C$7:$O$387,13)>0,VLOOKUP(A88,'PraveshArr (VII PAY-Z) '!$C$7:$O$387,13),0)) ->  | AC88: =IF(A88="","",VLOOKUP(A88,'Statement(Z) '!$C$7:$U$213,19)) ->  | AF88: NO
A89: ='PraveshArr (VII PAY-Z) '!Z85 ->  | C89: NO | E89: =IF(A89="","",'PraveshArr (VII PAY-Z) '!AC85) ->  | G89: =IF(A89="","",'PraveshArr (VII PAY-Z) '!AE85) ->  | H89: =IF(A89="","",'PraveshArr (VII PAY-Z) '!AG85) ->  | J89: =IF(A89="","",'PraveshArr (VII PAY-Z) '!AI85) ->  | K89: =IF('PraveshArr (VII PAY-Z) '!AQ85>0,'PraveshArr (VII PAY-Z) '!AQ85,0) ->  | L89: =IF('PraveshArr (VII PAY-Z) '!AN85>0,'PraveshArr (VII PAY-Z) '!AN85,0) ->  | U89: =IF(A89="","",'PraveshArr (VII PAY-Z) '!AR85) ->  | V89: Cash | X89: =IF(A89="","",IF(VLOOKUP(A89,'PraveshArr (VII PAY-Z) '!$Z$7:$BN$387,30)>0,VLOOKUP(A89,'PraveshArr (VII PAY-Z) '!$Z$7:$BN$387,30),0)) ->  | Z89: 0 | AA89: =IF(A89="","",IF(VLOOKUP(A89,'PraveshArr (VII PAY-Z) '!$C$7:$O$387,13)>0,VLOOKUP(A89,'PraveshArr (VII PAY-Z) '!$C$7:$O$387,13),0)) ->  | AC89: =IF(A89="","",VLOOKUP(A89,'Statement(Z) '!$C$7:$U$213,19)) ->  | AF89: NO
A90: ='PraveshArr (VII PAY-Z) '!Z86 ->  | C90: NO | E90: =IF(A90="","",'PraveshArr (VII PAY-Z) '!AC86) ->  | G90: =IF(A90="","",'PraveshArr (VII PAY-Z) '!AE86) ->  | H90: =IF(A90="","",'PraveshArr (VII PAY-Z) '!AG86) ->  | J90: =IF(A90="","",'PraveshArr (VII PAY-Z) '!AI86) ->  | K90: =IF('PraveshArr (VII PAY-Z) '!AQ86>0,'PraveshArr (VII PAY-Z) '!AQ86,0) ->  | L90: =IF('PraveshArr (VII PAY-Z) '!AN86>0,'PraveshArr (VII PAY-Z) '!AN86,0) ->  | U90: =IF(A90="","",'PraveshArr (VII PAY-Z) '!AR86) ->  | V90: Cash | X90: =IF(A90="","",IF(VLOOKUP(A90,'PraveshArr (VII PAY-Z) '!$Z$7:$BN$387,30)>0,VLOOKUP(A90,'PraveshArr (VII PAY-Z) '!$Z$7:$BN$387,30),0)) ->  | Z90: 0 | AA90: =IF(A90="","",IF(VLOOKUP(A90,'PraveshArr (VII PAY-Z) '!$C$7:$O$387,13)>0,VLOOKUP(A90,'PraveshArr (VII PAY-Z) '!$C$7:$O$387,13),0)) ->  | AC90: =IF(A90="","",VLOOKUP(A90,'Statement(Z) '!$C$7:$U$213,19)) ->  | AF90: NO
A91: ='PraveshArr (VII PAY-Z) '!Z87 ->  | C91: NO | E91: =IF(A91="","",'PraveshArr (VII PAY-Z) '!AC87) ->  | G91: =IF(A91="","",'PraveshArr (VII PAY-Z) '!AE87) ->  | H91: =IF(A91="","",'PraveshArr (VII PAY-Z) '!AG87) ->  | J91: =IF(A91="","",'PraveshArr (VII PAY-Z) '!AI87) ->  | K91: =IF('PraveshArr (VII PAY-Z) '!AQ87>0,'PraveshArr (VII PAY-Z) '!AQ87,0) ->  | L91: =IF('PraveshArr (VII PAY-Z) '!AN87>0,'PraveshArr (VII PAY-Z) '!AN87,0) ->  | U91: =IF(A91="","",'PraveshArr (VII PAY-Z) '!AR87) ->  | V91: Cash | X91: =IF(A91="","",IF(VLOOKUP(A91,'PraveshArr (VII PAY-Z) '!$Z$7:$BN$387,30)>0,VLOOKUP(A91,'PraveshArr (VII PAY-Z) '!$Z$7:$BN$387,30),0)) ->  | Z91: 0 | AA91: =IF(A91="","",IF(VLOOKUP(A91,'PraveshArr (VII PAY-Z) '!$C$7:$O$387,13)>0,VLOOKUP(A91,'PraveshArr (VII PAY-Z) '!$C$7:$O$387,13),0)) ->  | AC91: =IF(A91="","",VLOOKUP(A91,'Statement(Z) '!$C$7:$U$213,19)) ->  | AF91: NO
A92: ='PraveshArr (VII PAY-Z) '!Z88 ->  | C92: NO | E92: =IF(A92="","",'PraveshArr (VII PAY-Z) '!AC88) ->  | G92: =IF(A92="","",'PraveshArr (VII PAY-Z) '!AE88) ->  | H92: =IF(A92="","",'PraveshArr (VII PAY-Z) '!AG88) ->  | J92: =IF(A92="","",'PraveshArr (VII PAY-Z) '!AI88) ->  | K92: =IF('PraveshArr (VII PAY-Z) '!AQ88>0,'PraveshArr (VII PAY-Z) '!AQ88,0) ->  | L92: =IF('PraveshArr (VII PAY-Z) '!AN88>0,'PraveshArr (VII PAY-Z) '!AN88,0) ->  | U92: =IF(A92="","",'PraveshArr (VII PAY-Z) '!AR88) ->  | V92: Cash | X92: =IF(A92="","",IF(VLOOKUP(A92,'PraveshArr (VII PAY-Z) '!$Z$7:$BN$387,30)>0,VLOOKUP(A92,'PraveshArr (VII PAY-Z) '!$Z$7:$BN$387,30),0)) ->  | Z92: 0 | AA92: =IF(A92="","",IF(VLOOKUP(A92,'PraveshArr (VII PAY-Z) '!$C$7:$O$387,13)>0,VLOOKUP(A92,'PraveshArr (VII PAY-Z) '!$C$7:$O$387,13),0)) ->  | AC92: =IF(A92="","",VLOOKUP(A92,'Statement(Z) '!$C$7:$U$213,19)) ->  | AF92: NO
A93: ='PraveshArr (VII PAY-Z) '!Z89 ->  | C93: NO | E93: =IF(A93="","",'PraveshArr (VII PAY-Z) '!AC89) ->  | G93: =IF(A93="","",'PraveshArr (VII PAY-Z) '!AE89) ->  | H93: =IF(A93="","",'PraveshArr (VII PAY-Z) '!AG89) ->  | J93: =IF(A93="","",'PraveshArr (VII PAY-Z) '!AI89) ->  | K93: =IF('PraveshArr (VII PAY-Z) '!AQ89>0,'PraveshArr (VII PAY-Z) '!AQ89,0) ->  | L93: =IF('PraveshArr (VII PAY-Z) '!AN89>0,'PraveshArr (VII PAY-Z) '!AN89,0) ->  | U93: =IF(A93="","",'PraveshArr (VII PAY-Z) '!AR89) ->  | V93: Cash | X93: =IF(A93="","",IF(VLOOKUP(A93,'PraveshArr (VII PAY-Z) '!$Z$7:$BN$387,30)>0,VLOOKUP(A93,'PraveshArr (VII PAY-Z) '!$Z$7:$BN$387,30),0)) ->  | Z93: 0 | AA93: =IF(A93="","",IF(VLOOKUP(A93,'PraveshArr (VII PAY-Z) '!$C$7:$O$387,13)>0,VLOOKUP(A93,'PraveshArr (VII PAY-Z) '!$C$7:$O$387,13),0)) ->  | AC93: =IF(A93="","",VLOOKUP(A93,'Statement(Z) '!$C$7:$U$213,19)) ->  | AF93: NO
A94: ='PraveshArr (VII PAY-Z) '!Z90 ->  | C94: NO | E94: =IF(A94="","",'PraveshArr (VII PAY-Z) '!AC90) ->  | G94: =IF(A94="","",'PraveshArr (VII PAY-Z) '!AE90) ->  | H94: =IF(A94="","",'PraveshArr (VII PAY-Z) '!AG90) ->  | J94: =IF(A94="","",'PraveshArr (VII PAY-Z) '!AI90) ->  | K94: =IF('PraveshArr (VII PAY-Z) '!AQ90>0,'PraveshArr (VII PAY-Z) '!AQ90,0) ->  | L94: =IF('PraveshArr (VII PAY-Z) '!AN90>0,'PraveshArr (VII PAY-Z) '!AN90,0) ->  | U94: =IF(A94="","",'PraveshArr (VII PAY-Z) '!AR90) ->  | V94: Cash | X94: =IF(A94="","",IF(VLOOKUP(A94,'PraveshArr (VII PAY-Z) '!$Z$7:$BN$387,30)>0,VLOOKUP(A94,'PraveshArr (VII PAY-Z) '!$Z$7:$BN$387,30),0)) ->  | Z94: 0 | AA94: =IF(A94="","",IF(VLOOKUP(A94,'PraveshArr (VII PAY-Z) '!$C$7:$O$387,13)>0,VLOOKUP(A94,'PraveshArr (VII PAY-Z) '!$C$7:$O$387,13),0)) ->  | AC94: =IF(A94="","",VLOOKUP(A94,'Statement(Z) '!$C$7:$U$213,19)) ->  | AF94: NO
A95: ='PraveshArr (VII PAY-Z) '!Z91 ->  | C95: NO | E95: =IF(A95="","",'PraveshArr (VII PAY-Z) '!AC91) ->  | G95: =IF(A95="","",'PraveshArr (VII PAY-Z) '!AE91) ->  | H95: =IF(A95="","",'PraveshArr (VII PAY-Z) '!AG91) ->  | J95: =IF(A95="","",'PraveshArr (VII PAY-Z) '!AI91) ->  | K95: =IF('PraveshArr (VII PAY-Z) '!AQ91>0,'PraveshArr (VII PAY-Z) '!AQ91,0) ->  | L95: =IF('PraveshArr (VII PAY-Z) '!AN91>0,'PraveshArr (VII PAY-Z) '!AN91,0) ->  | U95: =IF(A95="","",'PraveshArr (VII PAY-Z) '!AR91) ->  | V95: Cash | X95: =IF(A95="","",IF(VLOOKUP(A95,'PraveshArr (VII PAY-Z) '!$Z$7:$BN$387,30)>0,VLOOKUP(A95,'PraveshArr (VII PAY-Z) '!$Z$7:$BN$387,30),0)) ->  | Z95: 0 | AA95: =IF(A95="","",IF(VLOOKUP(A95,'PraveshArr (VII PAY-Z) '!$C$7:$O$387,13)>0,VLOOKUP(A95,'PraveshArr (VII PAY-Z) '!$C$7:$O$387,13),0)) ->  | AC95: =IF(A95="","",VLOOKUP(A95,'Statement(Z) '!$C$7:$U$213,19)) ->  | AF95: NO
A96: ='PraveshArr (VII PAY-Z) '!Z92 ->  | C96: NO | E96: =IF(A96="","",'PraveshArr (VII PAY-Z) '!AC92) ->  | G96: =IF(A96="","",'PraveshArr (VII PAY-Z) '!AE92) ->  | H96: =IF(A96="","",'PraveshArr (VII PAY-Z) '!AG92) ->  | J96: =IF(A96="","",'PraveshArr (VII PAY-Z) '!AI92) ->  | K96: =IF('PraveshArr (VII PAY-Z) '!AQ92>0,'PraveshArr (VII PAY-Z) '!AQ92,0) ->  | L96: =IF('PraveshArr (VII PAY-Z) '!AN92>0,'PraveshArr (VII PAY-Z) '!AN92,0) ->  | U96: =IF(A96="","",'PraveshArr (VII PAY-Z) '!AR92) ->  | V96: Cash | X96: =IF(A96="","",IF(VLOOKUP(A96,'PraveshArr (VII PAY-Z) '!$Z$7:$BN$387,30)>0,VLOOKUP(A96,'PraveshArr (VII PAY-Z) '!$Z$7:$BN$387,30),0)) ->  | Z96: 0 | AA96: =IF(A96="","",IF(VLOOKUP(A96,'PraveshArr (VII PAY-Z) '!$C$7:$O$387,13)>0,VLOOKUP(A96,'PraveshArr (VII PAY-Z) '!$C$7:$O$387,13),0)) ->  | AC96: =IF(A96="","",VLOOKUP(A96,'Statement(Z) '!$C$7:$U$213,19)) ->  | AF96: NO
A97: ='PraveshArr (VII PAY-Z) '!Z93 ->  | C97: NO | E97: =IF(A97="","",'PraveshArr (VII PAY-Z) '!AC93) ->  | G97: =IF(A97="","",'PraveshArr (VII PAY-Z) '!AE93) ->  | H97: =IF(A97="","",'PraveshArr (VII PAY-Z) '!AG93) ->  | J97: =IF(A97="","",'PraveshArr (VII PAY-Z) '!AI93) ->  | K97: =IF('PraveshArr (VII PAY-Z) '!AQ93>0,'PraveshArr (VII PAY-Z) '!AQ93,0) ->  | L97: =IF('PraveshArr (VII PAY-Z) '!AN93>0,'PraveshArr (VII PAY-Z) '!AN93,0) ->  | U97: =IF(A97="","",'PraveshArr (VII PAY-Z) '!AR93) ->  | V97: Cash | X97: =IF(A97="","",IF(VLOOKUP(A97,'PraveshArr (VII PAY-Z) '!$Z$7:$BN$387,30)>0,VLOOKUP(A97,'PraveshArr (VII PAY-Z) '!$Z$7:$BN$387,30),0)) ->  | Z97: 0 | AA97: =IF(A97="","",IF(VLOOKUP(A97,'PraveshArr (VII PAY-Z) '!$C$7:$O$387,13)>0,VLOOKUP(A97,'PraveshArr (VII PAY-Z) '!$C$7:$O$387,13),0)) ->  | AC97: =IF(A97="","",VLOOKUP(A97,'Statement(Z) '!$C$7:$U$213,19)) ->  | AF97: NO
A98: ='PraveshArr (VII PAY-Z) '!Z94 ->  | C98: NO | E98: =IF(A98="","",'PraveshArr (VII PAY-Z) '!AC94) ->  | G98: =IF(A98="","",'PraveshArr (VII PAY-Z) '!AE94) ->  | H98: =IF(A98="","",'PraveshArr (VII PAY-Z) '!AG94) ->  | J98: =IF(A98="","",'PraveshArr (VII PAY-Z) '!AI94) ->  | K98: =IF('PraveshArr (VII PAY-Z) '!AQ94>0,'PraveshArr (VII PAY-Z) '!AQ94,0) ->  | L98: =IF('PraveshArr (VII PAY-Z) '!AN94>0,'PraveshArr (VII PAY-Z) '!AN94,0) ->  | U98: =IF(A98="","",'PraveshArr (VII PAY-Z) '!AR94) ->  | V98: Cash | X98: =IF(A98="","",IF(VLOOKUP(A98,'PraveshArr (VII PAY-Z) '!$Z$7:$BN$387,30)>0,VLOOKUP(A98,'PraveshArr (VII PAY-Z) '!$Z$7:$BN$387,30),0)) ->  | Z98: 0 | AA98: =IF(A98="","",IF(VLOOKUP(A98,'PraveshArr (VII PAY-Z) '!$C$7:$O$387,13)>0,VLOOKUP(A98,'PraveshArr (VII PAY-Z) '!$C$7:$O$387,13),0)) ->  | AC98: =IF(A98="","",VLOOKUP(A98,'Statement(Z) '!$C$7:$U$213,19)) ->  | AF98: NO
A99: ='PraveshArr (VII PAY-Z) '!Z95 ->  | C99: NO | E99: =IF(A99="","",'PraveshArr (VII PAY-Z) '!AC95) ->  | G99: =IF(A99="","",'PraveshArr (VII PAY-Z) '!AE95) ->  | H99: =IF(A99="","",'PraveshArr (VII PAY-Z) '!AG95) ->  | J99: =IF(A99="","",'PraveshArr (VII PAY-Z) '!AI95) ->  | K99: =IF('PraveshArr (VII PAY-Z) '!AQ95>0,'PraveshArr (VII PAY-Z) '!AQ95,0) ->  | L99: =IF('PraveshArr (VII PAY-Z) '!AN95>0,'PraveshArr (VII PAY-Z) '!AN95,0) ->  | U99: =IF(A99="","",'PraveshArr (VII PAY-Z) '!AR95) ->  | V99: Cash | X99: =IF(A99="","",IF(VLOOKUP(A99,'PraveshArr (VII PAY-Z) '!$Z$7:$BN$387,30)>0,VLOOKUP(A99,'PraveshArr (VII PAY-Z) '!$Z$7:$BN$387,30),0)) ->  | Z99: 0 | AA99: =IF(A99="","",IF(VLOOKUP(A99,'PraveshArr (VII PAY-Z) '!$C$7:$O$387,13)>0,VLOOKUP(A99,'PraveshArr (VII PAY-Z) '!$C$7:$O$387,13),0)) ->  | AC99: =IF(A99="","",VLOOKUP(A99,'Statement(Z) '!$C$7:$U$213,19)) ->  | AF99: NO
A100: ='PraveshArr (VII PAY-Z) '!Z96 ->  | C100: NO | E100: =IF(A100="","",'PraveshArr (VII PAY-Z) '!AC96) ->  | G100: =IF(A100="","",'PraveshArr (VII PAY-Z) '!AE96) ->  | H100: =IF(A100="","",'PraveshArr (VII PAY-Z) '!AG96) ->  | J100: =IF(A100="","",'PraveshArr (VII PAY-Z) '!AI96) ->  | K100: =IF('PraveshArr (VII PAY-Z) '!AQ96>0,'PraveshArr (VII PAY-Z) '!AQ96,0) ->  | L100: =IF('PraveshArr (VII PAY-Z) '!AN96>0,'PraveshArr (VII PAY-Z) '!AN96,0) ->  | U100: =IF(A100="","",'PraveshArr (VII PAY-Z) '!AR96) ->  | V100: Cash | X100: =IF(A100="","",IF(VLOOKUP(A100,'PraveshArr (VII PAY-Z) '!$Z$7:$BN$387,30)>0,VLOOKUP(A100,'PraveshArr (VII PAY-Z) '!$Z$7:$BN$387,30),0)) ->  | Z100: 0 | AA100: =IF(A100="","",IF(VLOOKUP(A100,'PraveshArr (VII PAY-Z) '!$C$7:$O$387,13)>0,VLOOKUP(A100,'PraveshArr (VII PAY-Z) '!$C$7:$O$387,13),0)) ->  | AC100: =IF(A100="","",VLOOKUP(A100,'Statement(Z) '!$C$7:$U$213,19)) ->  | AF100: NO
A101: ='PraveshArr (VII PAY-Z) '!Z97 ->  | C101: NO | E101: =IF(A101="","",'PraveshArr (VII PAY-Z) '!AC97) ->  | G101: =IF(A101="","",'PraveshArr (VII PAY-Z) '!AE97) ->  | H101: =IF(A101="","",'PraveshArr (VII PAY-Z) '!AG97) ->  | J101: =IF(A101="","",'PraveshArr (VII PAY-Z) '!AI97) ->  | K101: =IF('PraveshArr (VII PAY-Z) '!AQ97>0,'PraveshArr (VII PAY-Z) '!AQ97,0) ->  | L101: =IF('PraveshArr (VII PAY-Z) '!AN97>0,'PraveshArr (VII PAY-Z) '!AN97,0) ->  | U101: =IF(A101="","",'PraveshArr (VII PAY-Z) '!AR97) ->  | V101: Cash | X101: =IF(A101="","",IF(VLOOKUP(A101,'PraveshArr (VII PAY-Z) '!$Z$7:$BN$387,30)>0,VLOOKUP(A101,'PraveshArr (VII PAY-Z) '!$Z$7:$BN$387,30),0)) ->  | Z101: 0 | AA101: =IF(A101="","",IF(VLOOKUP(A101,'PraveshArr (VII PAY-Z) '!$C$7:$O$387,13)>0,VLOOKUP(A101,'PraveshArr (VII PAY-Z) '!$C$7:$O$387,13),0)) ->  | AC101: =IF(A101="","",VLOOKUP(A101,'Statement(Z) '!$C$7:$U$213,19)) ->  | AF101: NO
A102: ='PraveshArr (VII PAY-Z) '!Z98 ->  | C102: NO | E102: =IF(A102="","",'PraveshArr (VII PAY-Z) '!AC98) ->  | G102: =IF(A102="","",'PraveshArr (VII PAY-Z) '!AE98) ->  | H102: =IF(A102="","",'PraveshArr (VII PAY-Z) '!AG98) ->  | J102: =IF(A102="","",'PraveshArr (VII PAY-Z) '!AI98) ->  | K102: =IF('PraveshArr (VII PAY-Z) '!AQ98>0,'PraveshArr (VII PAY-Z) '!AQ98,0) ->  | L102: =IF('PraveshArr (VII PAY-Z) '!AN98>0,'PraveshArr (VII PAY-Z) '!AN98,0) ->  | U102: =IF(A102="","",'PraveshArr (VII PAY-Z) '!AR98) ->  | V102: Cash | X102: =IF(A102="","",IF(VLOOKUP(A102,'PraveshArr (VII PAY-Z) '!$Z$7:$BN$387,30)>0,VLOOKUP(A102,'PraveshArr (VII PAY-Z) '!$Z$7:$BN$387,30),0)) ->  | Z102: 0 | AA102: =IF(A102="","",IF(VLOOKUP(A102,'PraveshArr (VII PAY-Z) '!$C$7:$O$387,13)>0,VLOOKUP(A102,'PraveshArr (VII PAY-Z) '!$C$7:$O$387,13),0)) ->  | AC102: =IF(A102="","",VLOOKUP(A102,'Statement(Z) '!$C$7:$U$213,19)) ->  | AF102: NO
A103: ='PraveshArr (VII PAY-Z) '!Z99 ->  | C103: NO | E103: =IF(A103="","",'PraveshArr (VII PAY-Z) '!AC99) ->  | G103: =IF(A103="","",'PraveshArr (VII PAY-Z) '!AE99) ->  | H103: =IF(A103="","",'PraveshArr (VII PAY-Z) '!AG99) ->  | J103: =IF(A103="","",'PraveshArr (VII PAY-Z) '!AI99) ->  | K103: =IF('PraveshArr (VII PAY-Z) '!AQ99>0,'PraveshArr (VII PAY-Z) '!AQ99,0) ->  | L103: =IF('PraveshArr (VII PAY-Z) '!AN99>0,'PraveshArr (VII PAY-Z) '!AN99,0) ->  | U103: =IF(A103="","",'PraveshArr (VII PAY-Z) '!AR99) ->  | V103: Cash | X103: =IF(A103="","",IF(VLOOKUP(A103,'PraveshArr (VII PAY-Z) '!$Z$7:$BN$387,30)>0,VLOOKUP(A103,'PraveshArr (VII PAY-Z) '!$Z$7:$BN$387,30),0)) ->  | Z103: 0 | AA103: =IF(A103="","",IF(VLOOKUP(A103,'PraveshArr (VII PAY-Z) '!$C$7:$O$387,13)>0,VLOOKUP(A103,'PraveshArr (VII PAY-Z) '!$C$7:$O$387,13),0)) ->  | AC103: =IF(A103="","",VLOOKUP(A103,'Statement(Z) '!$C$7:$U$213,19)) ->  | AF103: NO
A104: ='PraveshArr (VII PAY-Z) '!Z100 ->  | C104: NO | E104: =IF(A104="","",'PraveshArr (VII PAY-Z) '!AC100) ->  | G104: =IF(A104="","",'PraveshArr (VII PAY-Z) '!AE100) ->  | H104: =IF(A104="","",'PraveshArr (VII PAY-Z) '!AG100) ->  | J104: =IF(A104="","",'PraveshArr (VII PAY-Z) '!AI100) ->  | K104: =IF('PraveshArr (VII PAY-Z) '!AQ100>0,'PraveshArr (VII PAY-Z) '!AQ100,0) ->  | L104: =IF('PraveshArr (VII PAY-Z) '!AN100>0,'PraveshArr (VII PAY-Z) '!AN100,0) ->  | U104: =IF(A104="","",'PraveshArr (VII PAY-Z) '!AR100) ->  | V104: Cash | X104: =IF(A104="","",IF(VLOOKUP(A104,'PraveshArr (VII PAY-Z) '!$Z$7:$BN$387,30)>0,VLOOKUP(A104,'PraveshArr (VII PAY-Z) '!$Z$7:$BN$387,30),0)) ->  | Z104: 0 | AA104: =IF(A104="","",IF(VLOOKUP(A104,'PraveshArr (VII PAY-Z) '!$C$7:$O$387,13)>0,VLOOKUP(A104,'PraveshArr (VII PAY-Z) '!$C$7:$O$387,13),0)) ->  | AC104: =IF(A104="","",VLOOKUP(A104,'Statement(Z) '!$C$7:$U$213,19)) ->  | AF104: NO
A105: ='PraveshArr (VII PAY-Z) '!Z101 ->  | C105: NO | E105: =IF(A105="","",'PraveshArr (VII PAY-Z) '!AC101) ->  | G105: =IF(A105="","",'PraveshArr (VII PAY-Z) '!AE101) ->  | H105: =IF(A105="","",'PraveshArr (VII PAY-Z) '!AG101) ->  | J105: =IF(A105="","",'PraveshArr (VII PAY-Z) '!AI101) ->  | K105: =IF('PraveshArr (VII PAY-Z) '!AQ101>0,'PraveshArr (VII PAY-Z) '!AQ101,0) ->  | L105: =IF('PraveshArr (VII PAY-Z) '!AN101>0,'PraveshArr (VII PAY-Z) '!AN101,0) ->  | U105: =IF(A105="","",'PraveshArr (VII PAY-Z) '!AR101) ->  | V105: Cash | X105: =IF(A105="","",IF(VLOOKUP(A105,'PraveshArr (VII PAY-Z) '!$Z$7:$BN$387,30)>0,VLOOKUP(A105,'PraveshArr (VII PAY-Z) '!$Z$7:$BN$387,30),0)) ->  | Z105: 0 | AA105: =IF(A105="","",IF(VLOOKUP(A105,'PraveshArr (VII PAY-Z) '!$C$7:$O$387,13)>0,VLOOKUP(A105,'PraveshArr (VII PAY-Z) '!$C$7:$O$387,13),0)) ->  | AC105: =IF(A105="","",VLOOKUP(A105,'Statement(Z) '!$C$7:$U$213,19)) ->  | AF105: NO
A106: ='PraveshArr (VII PAY-Z) '!Z102 ->  | C106: NO | E106: =IF(A106="","",'PraveshArr (VII PAY-Z) '!AC102) ->  | G106: =IF(A106="","",'PraveshArr (VII PAY-Z) '!AE102) ->  | H106: =IF(A106="","",'PraveshArr (VII PAY-Z) '!AG102) ->  | J106: =IF(A106="","",'PraveshArr (VII PAY-Z) '!AI102) ->  | K106: =IF('PraveshArr (VII PAY-Z) '!AQ102>0,'PraveshArr (VII PAY-Z) '!AQ102,0) ->  | L106: =IF('PraveshArr (VII PAY-Z) '!AN102>0,'PraveshArr (VII PAY-Z) '!AN102,0) ->  | U106: =IF(A106="","",'PraveshArr (VII PAY-Z) '!AR102) ->  | V106: Cash | X106: =IF(A106="","",IF(VLOOKUP(A106,'PraveshArr (VII PAY-Z) '!$Z$7:$BN$387,30)>0,VLOOKUP(A106,'PraveshArr (VII PAY-Z) '!$Z$7:$BN$387,30),0)) ->  | Z106: 0 | AA106: =IF(A106="","",IF(VLOOKUP(A106,'PraveshArr (VII PAY-Z) '!$C$7:$O$387,13)>0,VLOOKUP(A106,'PraveshArr (VII PAY-Z) '!$C$7:$O$387,13),0)) ->  | AC106: =IF(A106="","",VLOOKUP(A106,'Statement(Z) '!$C$7:$U$213,19)) ->  | AF106: NO
A107: ='PraveshArr (VII PAY-Z) '!Z103 ->  | C107: NO | E107: =IF(A107="","",'PraveshArr (VII PAY-Z) '!AC103) ->  | G107: =IF(A107="","",'PraveshArr (VII PAY-Z) '!AE103) ->  | H107: =IF(A107="","",'PraveshArr (VII PAY-Z) '!AG103) ->  | J107: =IF(A107="","",'PraveshArr (VII PAY-Z) '!AI103) ->  | K107: =IF('PraveshArr (VII PAY-Z) '!AQ103>0,'PraveshArr (VII PAY-Z) '!AQ103,0) ->  | L107: =IF('PraveshArr (VII PAY-Z) '!AN103>0,'PraveshArr (VII PAY-Z) '!AN103,0) ->  | U107: =IF(A107="","",'PraveshArr (VII PAY-Z) '!AR103) ->  | V107: Cash | X107: =IF(A107="","",IF(VLOOKUP(A107,'PraveshArr (VII PAY-Z) '!$Z$7:$BN$387,30)>0,VLOOKUP(A107,'PraveshArr (VII PAY-Z) '!$Z$7:$BN$387,30),0)) ->  | Z107: 0 | AA107: =IF(A107="","",IF(VLOOKUP(A107,'PraveshArr (VII PAY-Z) '!$C$7:$O$387,13)>0,VLOOKUP(A107,'PraveshArr (VII PAY-Z) '!$C$7:$O$387,13),0)) ->  | AC107: =IF(A107="","",VLOOKUP(A107,'Statement(Z) '!$C$7:$U$213,19)) -> 
A108: ='PraveshArr (VII PAY-Z) '!Z104 ->  | C108: NO | E108: =IF(A108="","",'PraveshArr (VII PAY-Z) '!AC104) ->  | G108: =IF(A108="","",'PraveshArr (VII PAY-Z) '!AE104) ->  | H108: =IF(A108="","",'PraveshArr (VII PAY-Z) '!AG104) ->  | J108: =IF(A108="","",'PraveshArr (VII PAY-Z) '!AI104) ->  | K108: =IF('PraveshArr (VII PAY-Z) '!AQ104>0,'PraveshArr (VII PAY-Z) '!AQ104,0) ->  | L108: =IF('PraveshArr (VII PAY-Z) '!AN104>0,'PraveshArr (VII PAY-Z) '!AN104,0) ->  | U108: =IF(A108="","",'PraveshArr (VII PAY-Z) '!AR104) ->  | V108: Cash | X108: =IF(A108="","",IF(VLOOKUP(A108,'PraveshArr (VII PAY-Z) '!$Z$7:$BN$387,30)>0,VLOOKUP(A108,'PraveshArr (VII PAY-Z) '!$Z$7:$BN$387,30),0)) ->  | Z108: 0 | AA108: =IF(A108="","",IF(VLOOKUP(A108,'PraveshArr (VII PAY-Z) '!$C$7:$O$387,13)>0,VLOOKUP(A108,'PraveshArr (VII PAY-Z) '!$C$7:$O$387,13),0)) ->  | AC108: =IF(A108="","",VLOOKUP(A108,'Statement(Z) '!$C$7:$U$213,19)) -> 
A109: ='PraveshArr (VII PAY-Z) '!Z105 ->  | C109: NO | E109: =IF(A109="","",'PraveshArr (VII PAY-Z) '!AC105) ->  | G109: =IF(A109="","",'PraveshArr (VII PAY-Z) '!AE105) ->  | H109: =IF(A109="","",'PraveshArr (VII PAY-Z) '!AG105) ->  | J109: =IF(A109="","",'PraveshArr (VII PAY-Z) '!AI105) ->  | K109: =IF('PraveshArr (VII PAY-Z) '!AQ105>0,'PraveshArr (VII PAY-Z) '!AQ105,0) ->  | L109: =IF('PraveshArr (VII PAY-Z) '!AN105>0,'PraveshArr (VII PAY-Z) '!AN105,0) ->  | U109: =IF(A109="","",'PraveshArr (VII PAY-Z) '!AR105) ->  | V109: Cash | X109: =IF(A109="","",IF(VLOOKUP(A109,'PraveshArr (VII PAY-Z) '!$Z$7:$BN$387,30)>0,VLOOKUP(A109,'PraveshArr (VII PAY-Z) '!$Z$7:$BN$387,30),0)) ->  | Z109: 0 | AA109: =IF(A109="","",IF(VLOOKUP(A109,'PraveshArr (VII PAY-Z) '!$C$7:$O$387,13)>0,VLOOKUP(A109,'PraveshArr (VII PAY-Z) '!$C$7:$O$387,13),0)) ->  | AC109: =IF(A109="","",VLOOKUP(A109,'Statement(Z) '!$C$7:$U$213,19)) -> 
A110: ='PraveshArr (VII PAY-Z) '!Z106 ->  | C110: NO | E110: =IF(A110="","",'PraveshArr (VII PAY-Z) '!AC106) ->  | G110: =IF(A110="","",'PraveshArr (VII PAY-Z) '!AE106) ->  | H110: =IF(A110="","",'PraveshArr (VII PAY-Z) '!AG106) ->  | J110: =IF(A110="","",'PraveshArr (VII PAY-Z) '!AI106) ->  | K110: =IF('PraveshArr (VII PAY-Z) '!AQ106>0,'PraveshArr (VII PAY-Z) '!AQ106,0) ->  | L110: =IF('PraveshArr (VII PAY-Z) '!AN106>0,'PraveshArr (VII PAY-Z) '!AN106,0) ->  | U110: =IF(A110="","",'PraveshArr (VII PAY-Z) '!AR106) ->  | V110: Cash | X110: =IF(A110="","",IF(VLOOKUP(A110,'PraveshArr (VII PAY-Z) '!$Z$7:$BN$387,30)>0,VLOOKUP(A110,'PraveshArr (VII PAY-Z) '!$Z$7:$BN$387,30),0)) ->  | Z110: 0 | AA110: =IF(A110="","",IF(VLOOKUP(A110,'PraveshArr (VII PAY-Z) '!$C$7:$O$387,13)>0,VLOOKUP(A110,'PraveshArr (VII PAY-Z) '!$C$7:$O$387,13),0)) ->  | AC110: =IF(A110="","",VLOOKUP(A110,'Statement(Z) '!$C$7:$U$213,19)) -> 
A111: ='PraveshArr (VII PAY-Z) '!Z107 ->  | C111: NO | E111: =IF(A111="","",'PraveshArr (VII PAY-Z) '!AC107) ->  | G111: =IF(A111="","",'PraveshArr (VII PAY-Z) '!AE107) ->  | H111: =IF(A111="","",'PraveshArr (VII PAY-Z) '!AG107) ->  | J111: =IF(A111="","",'PraveshArr (VII PAY-Z) '!AI107) ->  | K111: =IF('PraveshArr (VII PAY-Z) '!AQ107>0,'PraveshArr (VII PAY-Z) '!AQ107,0) ->  | L111: =IF('PraveshArr (VII PAY-Z) '!AN107>0,'PraveshArr (VII PAY-Z) '!AN107,0) ->  | U111: =IF(A111="","",'PraveshArr (VII PAY-Z) '!AR107) ->  | V111: Cash | X111: =IF(A111="","",IF(VLOOKUP(A111,'PraveshArr (VII PAY-Z) '!$Z$7:$BN$387,30)>0,VLOOKUP(A111,'PraveshArr (VII PAY-Z) '!$Z$7:$BN$387,30),0)) ->  | Z111: 0 | AA111: =IF(A111="","",IF(VLOOKUP(A111,'PraveshArr (VII PAY-Z) '!$C$7:$O$387,13)>0,VLOOKUP(A111,'PraveshArr (VII PAY-Z) '!$C$7:$O$387,13),0)) ->  | AC111: =IF(A111="","",VLOOKUP(A111,'Statement(Z) '!$C$7:$U$213,19)) -> 
A112: ='PraveshArr (VII PAY-Z) '!Z108 ->  | C112: NO | E112: =IF(A112="","",'PraveshArr (VII PAY-Z) '!AC108) ->  | G112: =IF(A112="","",'PraveshArr (VII PAY-Z) '!AE108) ->  | H112: =IF(A112="","",'PraveshArr (VII PAY-Z) '!AG108) ->  | J112: =IF(A112="","",'PraveshArr (VII PAY-Z) '!AI108) ->  | K112: =IF('PraveshArr (VII PAY-Z) '!AQ108>0,'PraveshArr (VII PAY-Z) '!AQ108,0) ->  | L112: =IF('PraveshArr (VII PAY-Z) '!AN108>0,'PraveshArr (VII PAY-Z) '!AN108,0) ->  | U112: =IF(A112="","",'PraveshArr (VII PAY-Z) '!AR108) ->  | V112: Cash | X112: =IF(A112="","",IF(VLOOKUP(A112,'PraveshArr (VII PAY-Z) '!$Z$7:$BN$387,30)>0,VLOOKUP(A112,'PraveshArr (VII PAY-Z) '!$Z$7:$BN$387,30),0)) ->  | Z112: 0 | AA112: =IF(A112="","",IF(VLOOKUP(A112,'PraveshArr (VII PAY-Z) '!$C$7:$O$387,13)>0,VLOOKUP(A112,'PraveshArr (VII PAY-Z) '!$C$7:$O$387,13),0)) ->  | AC112: =IF(A112="","",VLOOKUP(A112,'Statement(Z) '!$C$7:$U$213,19)) -> 
A113: ='PraveshArr (VII PAY-Z) '!Z109 ->  | C113: NO | E113: =IF(A113="","",'PraveshArr (VII PAY-Z) '!AC109) ->  | G113: =IF(A113="","",'PraveshArr (VII PAY-Z) '!AE109) ->  | H113: =IF(A113="","",'PraveshArr (VII PAY-Z) '!AG109) ->  | J113: =IF(A113="","",'PraveshArr (VII PAY-Z) '!AI109) ->  | K113: =IF('PraveshArr (VII PAY-Z) '!AQ109>0,'PraveshArr (VII PAY-Z) '!AQ109,0) ->  | L113: =IF('PraveshArr (VII PAY-Z) '!AN109>0,'PraveshArr (VII PAY-Z) '!AN109,0) ->  | U113: =IF(A113="","",'PraveshArr (VII PAY-Z) '!AR109) ->  | V113: Cash | X113: =IF(A113="","",IF(VLOOKUP(A113,'PraveshArr (VII PAY-Z) '!$Z$7:$BN$387,30)>0,VLOOKUP(A113,'PraveshArr (VII PAY-Z) '!$Z$7:$BN$387,30),0)) ->  | Z113: 0 | AA113: =IF(A113="","",IF(VLOOKUP(A113,'PraveshArr (VII PAY-Z) '!$C$7:$O$387,13)>0,VLOOKUP(A113,'PraveshArr (VII PAY-Z) '!$C$7:$O$387,13),0)) ->  | AC113: =IF(A113="","",VLOOKUP(A113,'Statement(Z) '!$C$7:$U$213,19)) -> 
A114: ='PraveshArr (VII PAY-Z) '!Z110 ->  | C114: NO | E114: =IF(A114="","",'PraveshArr (VII PAY-Z) '!AC110) ->  | G114: =IF(A114="","",'PraveshArr (VII PAY-Z) '!AE110) ->  | H114: =IF(A114="","",'PraveshArr (VII PAY-Z) '!AG110) ->  | J114: =IF(A114="","",'PraveshArr (VII PAY-Z) '!AI110) ->  | K114: =IF('PraveshArr (VII PAY-Z) '!AQ110>0,'PraveshArr (VII PAY-Z) '!AQ110,0) ->  | L114: =IF('PraveshArr (VII PAY-Z) '!AN110>0,'PraveshArr (VII PAY-Z) '!AN110,0) ->  | U114: =IF(A114="","",'PraveshArr (VII PAY-Z) '!AR110) ->  | V114: Cash | X114: =IF(A114="","",IF(VLOOKUP(A114,'PraveshArr (VII PAY-Z) '!$Z$7:$BN$387,30)>0,VLOOKUP(A114,'PraveshArr (VII PAY-Z) '!$Z$7:$BN$387,30),0)) ->  | Z114: 0 | AA114: =IF(A114="","",IF(VLOOKUP(A114,'PraveshArr (VII PAY-Z) '!$C$7:$O$387,13)>0,VLOOKUP(A114,'PraveshArr (VII PAY-Z) '!$C$7:$O$387,13),0)) ->  | AC114: =IF(A114="","",VLOOKUP(A114,'Statement(Z) '!$C$7:$U$213,19)) -> 
A115: ='PraveshArr (VII PAY-Z) '!Z111 ->  | C115: NO | E115: =IF(A115="","",'PraveshArr (VII PAY-Z) '!AC111) ->  | G115: =IF(A115="","",'PraveshArr (VII PAY-Z) '!AE111) ->  | H115: =IF(A115="","",'PraveshArr (VII PAY-Z) '!AG111) ->  | J115: =IF(A115="","",'PraveshArr (VII PAY-Z) '!AI111) ->  | K115: =IF('PraveshArr (VII PAY-Z) '!AQ111>0,'PraveshArr (VII PAY-Z) '!AQ111,0) ->  | L115: =IF('PraveshArr (VII PAY-Z) '!AN111>0,'PraveshArr (VII PAY-Z) '!AN111,0) ->  | U115: =IF(A115="","",'PraveshArr (VII PAY-Z) '!AR111) ->  | V115: Cash | X115: =IF(A115="","",IF(VLOOKUP(A115,'PraveshArr (VII PAY-Z) '!$Z$7:$BN$387,30)>0,VLOOKUP(A115,'PraveshArr (VII PAY-Z) '!$Z$7:$BN$387,30),0)) ->  | Z115: 0 | AA115: =IF(A115="","",IF(VLOOKUP(A115,'PraveshArr (VII PAY-Z) '!$C$7:$O$387,13)>0,VLOOKUP(A115,'PraveshArr (VII PAY-Z) '!$C$7:$O$387,13),0)) ->  | AC115: =IF(A115="","",VLOOKUP(A115,'Statement(Z) '!$C$7:$U$213,19)) -> 
A116: ='PraveshArr (VII PAY-Z) '!Z112 ->  | C116: NO | E116: =IF(A116="","",'PraveshArr (VII PAY-Z) '!AC112) ->  | G116: =IF(A116="","",'PraveshArr (VII PAY-Z) '!AE112) ->  | H116: =IF(A116="","",'PraveshArr (VII PAY-Z) '!AG112) ->  | J116: =IF(A116="","",'PraveshArr (VII PAY-Z) '!AI112) ->  | K116: =IF('PraveshArr (VII PAY-Z) '!AQ112>0,'PraveshArr (VII PAY-Z) '!AQ112,0) ->  | L116: =IF('PraveshArr (VII PAY-Z) '!AN112>0,'PraveshArr (VII PAY-Z) '!AN112,0) ->  | U116: =IF(A116="","",'PraveshArr (VII PAY-Z) '!AR112) ->  | V116: Cash | X116: =IF(A116="","",IF(VLOOKUP(A116,'PraveshArr (VII PAY-Z) '!$Z$7:$BN$387,30)>0,VLOOKUP(A116,'PraveshArr (VII PAY-Z) '!$Z$7:$BN$387,30),0)) ->  | Z116: 0 | AA116: =IF(A116="","",IF(VLOOKUP(A116,'PraveshArr (VII PAY-Z) '!$C$7:$O$387,13)>0,VLOOKUP(A116,'PraveshArr (VII PAY-Z) '!$C$7:$O$387,13),0)) ->  | AC116: =IF(A116="","",VLOOKUP(A116,'Statement(Z) '!$C$7:$U$213,19)) -> 
A117: ='PraveshArr (VII PAY-Z) '!Z113 ->  | C117: NO | E117: =IF(A117="","",'PraveshArr (VII PAY-Z) '!AC113) ->  | G117: =IF(A117="","",'PraveshArr (VII PAY-Z) '!AE113) ->  | H117: =IF(A117="","",'PraveshArr (VII PAY-Z) '!AG113) ->  | J117: =IF(A117="","",'PraveshArr (VII PAY-Z) '!AI113) ->  | K117: =IF('PraveshArr (VII PAY-Z) '!AQ113>0,'PraveshArr (VII PAY-Z) '!AQ113,0) ->  | L117: =IF('PraveshArr (VII PAY-Z) '!AN113>0,'PraveshArr (VII PAY-Z) '!AN113,0) ->  | U117: =IF(A117="","",'PraveshArr (VII PAY-Z) '!AR113) ->  | V117: Cash | X117: =IF(A117="","",IF(VLOOKUP(A117,'PraveshArr (VII PAY-Z) '!$Z$7:$BN$387,30)>0,VLOOKUP(A117,'PraveshArr (VII PAY-Z) '!$Z$7:$BN$387,30),0)) ->  | Z117: 0 | AA117: =IF(A117="","",IF(VLOOKUP(A117,'PraveshArr (VII PAY-Z) '!$C$7:$O$387,13)>0,VLOOKUP(A117,'PraveshArr (VII PAY-Z) '!$C$7:$O$387,13),0)) ->  | AC117: =IF(A117="","",VLOOKUP(A117,'Statement(Z) '!$C$7:$U$213,19)) -> 
A118: ='PraveshArr (VII PAY-Z) '!Z114 ->  | C118: NO | E118: =IF(A118="","",'PraveshArr (VII PAY-Z) '!AC114) ->  | G118: =IF(A118="","",'PraveshArr (VII PAY-Z) '!AE114) ->  | H118: =IF(A118="","",'PraveshArr (VII PAY-Z) '!AG114) ->  | J118: =IF(A118="","",'PraveshArr (VII PAY-Z) '!AI114) ->  | K118: =IF('PraveshArr (VII PAY-Z) '!AQ114>0,'PraveshArr (VII PAY-Z) '!AQ114,0) ->  | L118: =IF('PraveshArr (VII PAY-Z) '!AN114>0,'PraveshArr (VII PAY-Z) '!AN114,0) ->  | U118: =IF(A118="","",'PraveshArr (VII PAY-Z) '!AR114) ->  | V118: Cash | X118: =IF(A118="","",IF(VLOOKUP(A118,'PraveshArr (VII PAY-Z) '!$Z$7:$BN$387,30)>0,VLOOKUP(A118,'PraveshArr (VII PAY-Z) '!$Z$7:$BN$387,30),0)) ->  | Z118: 0 | AA118: =IF(A118="","",IF(VLOOKUP(A118,'PraveshArr (VII PAY-Z) '!$C$7:$O$387,13)>0,VLOOKUP(A118,'PraveshArr (VII PAY-Z) '!$C$7:$O$387,13),0)) ->  | AC118: =IF(A118="","",VLOOKUP(A118,'Statement(Z) '!$C$7:$U$213,19)) -> 
A119: ='PraveshArr (VII PAY-Z) '!Z115 ->  | C119: NO | E119: =IF(A119="","",'PraveshArr (VII PAY-Z) '!AC115) ->  | G119: =IF(A119="","",'PraveshArr (VII PAY-Z) '!AE115) ->  | H119: =IF(A119="","",'PraveshArr (VII PAY-Z) '!AG115) ->  | J119: =IF(A119="","",'PraveshArr (VII PAY-Z) '!AI115) ->  | K119: =IF('PraveshArr (VII PAY-Z) '!AQ115>0,'PraveshArr (VII PAY-Z) '!AQ115,0) ->  | L119: =IF('PraveshArr (VII PAY-Z) '!AN115>0,'PraveshArr (VII PAY-Z) '!AN115,0) ->  | U119: =IF(A119="","",'PraveshArr (VII PAY-Z) '!AR115) ->  | V119: Cash | X119: =IF(A119="","",IF(VLOOKUP(A119,'PraveshArr (VII PAY-Z) '!$Z$7:$BN$387,30)>0,VLOOKUP(A119,'PraveshArr (VII PAY-Z) '!$Z$7:$BN$387,30),0)) ->  | Z119: 0 | AA119: =IF(A119="","",IF(VLOOKUP(A119,'PraveshArr (VII PAY-Z) '!$C$7:$O$387,13)>0,VLOOKUP(A119,'PraveshArr (VII PAY-Z) '!$C$7:$O$387,13),0)) ->  | AC119: =IF(A119="","",VLOOKUP(A119,'Statement(Z) '!$C$7:$U$213,19)) -> 
A120: ='PraveshArr (VII PAY-Z) '!Z116 ->  | C120: NO | E120: =IF(A120="","",'PraveshArr (VII PAY-Z) '!AC116) ->  | G120: =IF(A120="","",'PraveshArr (VII PAY-Z) '!AE116) ->  | H120: =IF(A120="","",'PraveshArr (VII PAY-Z) '!AG116) ->  | J120: =IF(A120="","",'PraveshArr (VII PAY-Z) '!AI116) ->  | K120: =IF('PraveshArr (VII PAY-Z) '!AQ116>0,'PraveshArr (VII PAY-Z) '!AQ116,0) ->  | L120: =IF('PraveshArr (VII PAY-Z) '!AN116>0,'PraveshArr (VII PAY-Z) '!AN116,0) ->  | U120: =IF(A120="","",'PraveshArr (VII PAY-Z) '!AR116) ->  | V120: Cash | X120: =IF(A120="","",IF(VLOOKUP(A120,'PraveshArr (VII PAY-Z) '!$Z$7:$BN$387,30)>0,VLOOKUP(A120,'PraveshArr (VII PAY-Z) '!$Z$7:$BN$387,30),0)) ->  | Z120: 0 | AA120: =IF(A120="","",IF(VLOOKUP(A120,'PraveshArr (VII PAY-Z) '!$C$7:$O$387,13)>0,VLOOKUP(A120,'PraveshArr (VII PAY-Z) '!$C$7:$O$387,13),0)) ->  | AC120: =IF(A120="","",VLOOKUP(A120,'Statement(Z) '!$C$7:$U$213,19)) -> 
A121: ='PraveshArr (VII PAY-Z) '!Z117 ->  | C121: NO | E121: =IF(A121="","",'PraveshArr (VII PAY-Z) '!AC117) ->  | G121: =IF(A121="","",'PraveshArr (VII PAY-Z) '!AE117) ->  | H121: =IF(A121="","",'PraveshArr (VII PAY-Z) '!AG117) ->  | J121: =IF(A121="","",'PraveshArr (VII PAY-Z) '!AI117) ->  | K121: =IF('PraveshArr (VII PAY-Z) '!AQ117>0,'PraveshArr (VII PAY-Z) '!AQ117,0) ->  | L121: =IF('PraveshArr (VII PAY-Z) '!AN117>0,'PraveshArr (VII PAY-Z) '!AN117,0) ->  | U121: =IF(A121="","",'PraveshArr (VII PAY-Z) '!AR117) ->  | V121: Cash | X121: =IF(A121="","",IF(VLOOKUP(A121,'PraveshArr (VII PAY-Z) '!$Z$7:$BN$387,30)>0,VLOOKUP(A121,'PraveshArr (VII PAY-Z) '!$Z$7:$BN$387,30),0)) ->  | Z121: 0 | AA121: =IF(A121="","",IF(VLOOKUP(A121,'PraveshArr (VII PAY-Z) '!$C$7:$O$387,13)>0,VLOOKUP(A121,'PraveshArr (VII PAY-Z) '!$C$7:$O$387,13),0)) ->  | AC121: =IF(A121="","",VLOOKUP(A121,'Statement(Z) '!$C$7:$U$213,19)) -> 
A122: ='PraveshArr (VII PAY-Z) '!Z118 ->  | C122: NO | E122: =IF(A122="","",'PraveshArr (VII PAY-Z) '!AC118) ->  | G122: =IF(A122="","",'PraveshArr (VII PAY-Z) '!AE118) ->  | H122: =IF(A122="","",'PraveshArr (VII PAY-Z) '!AG118) ->  | J122: =IF(A122="","",'PraveshArr (VII PAY-Z) '!AI118) ->  | K122: =IF('PraveshArr (VII PAY-Z) '!AQ118>0,'PraveshArr (VII PAY-Z) '!AQ118,0) ->  | L122: =IF('PraveshArr (VII PAY-Z) '!AN118>0,'PraveshArr (VII PAY-Z) '!AN118,0) ->  | U122: =IF(A122="","",'PraveshArr (VII PAY-Z) '!AR118) ->  | V122: Cash | X122: =IF(A122="","",IF(VLOOKUP(A122,'PraveshArr (VII PAY-Z) '!$Z$7:$BN$387,30)>0,VLOOKUP(A122,'PraveshArr (VII PAY-Z) '!$Z$7:$BN$387,30),0)) ->  | Z122: 0 | AA122: =IF(A122="","",IF(VLOOKUP(A122,'PraveshArr (VII PAY-Z) '!$C$7:$O$387,13)>0,VLOOKUP(A122,'PraveshArr (VII PAY-Z) '!$C$7:$O$387,13),0)) ->  | AC122: =IF(A122="","",VLOOKUP(A122,'Statement(Z) '!$C$7:$U$213,19)) -> 
A123: ='PraveshArr (VII PAY-Z) '!Z119 ->  | C123: NO | E123: =IF(A123="","",'PraveshArr (VII PAY-Z) '!AC119) ->  | G123: =IF(A123="","",'PraveshArr (VII PAY-Z) '!AE119) ->  | H123: =IF(A123="","",'PraveshArr (VII PAY-Z) '!AG119) ->  | J123: =IF(A123="","",'PraveshArr (VII PAY-Z) '!AI119) ->  | K123: =IF('PraveshArr (VII PAY-Z) '!AQ119>0,'PraveshArr (VII PAY-Z) '!AQ119,0) ->  | L123: =IF('PraveshArr (VII PAY-Z) '!AN119>0,'PraveshArr (VII PAY-Z) '!AN119,0) ->  | U123: =IF(A123="","",'PraveshArr (VII PAY-Z) '!AR119) ->  | V123: Cash | X123: =IF(A123="","",IF(VLOOKUP(A123,'PraveshArr (VII PAY-Z) '!$Z$7:$BN$387,30)>0,VLOOKUP(A123,'PraveshArr (VII PAY-Z) '!$Z$7:$BN$387,30),0)) ->  | Z123: 0 | AA123: =IF(A123="","",IF(VLOOKUP(A123,'PraveshArr (VII PAY-Z) '!$C$7:$O$387,13)>0,VLOOKUP(A123,'PraveshArr (VII PAY-Z) '!$C$7:$O$387,13),0)) ->  | AC123: =IF(A123="","",VLOOKUP(A123,'Statement(Z) '!$C$7:$U$213,19)) -> 
A124: ='PraveshArr (VII PAY-Z) '!Z120 ->  | C124: NO | E124: =IF(A124="","",'PraveshArr (VII PAY-Z) '!AC120) ->  | G124: =IF(A124="","",'PraveshArr (VII PAY-Z) '!AE120) ->  | H124: =IF(A124="","",'PraveshArr (VII PAY-Z) '!AG120) ->  | J124: =IF(A124="","",'PraveshArr (VII PAY-Z) '!AI120) ->  | K124: =IF('PraveshArr (VII PAY-Z) '!AQ120>0,'PraveshArr (VII PAY-Z) '!AQ120,0) ->  | L124: =IF('PraveshArr (VII PAY-Z) '!AN120>0,'PraveshArr (VII PAY-Z) '!AN120,0) ->  | U124: =IF(A124="","",'PraveshArr (VII PAY-Z) '!AR120) ->  | V124: Cash | X124: =IF(A124="","",IF(VLOOKUP(A124,'PraveshArr (VII PAY-Z) '!$Z$7:$BN$387,30)>0,VLOOKUP(A124,'PraveshArr (VII PAY-Z) '!$Z$7:$BN$387,30),0)) ->  | Z124: 0 | AA124: =IF(A124="","",IF(VLOOKUP(A124,'PraveshArr (VII PAY-Z) '!$C$7:$O$387,13)>0,VLOOKUP(A124,'PraveshArr (VII PAY-Z) '!$C$7:$O$387,13),0)) ->  | AC124: =IF(A124="","",VLOOKUP(A124,'Statement(Z) '!$C$7:$U$213,19)) -> 
A125: ='PraveshArr (VII PAY-Z) '!Z121 ->  | C125: NO | E125: =IF(A125="","",'PraveshArr (VII PAY-Z) '!AC121) ->  | G125: =IF(A125="","",'PraveshArr (VII PAY-Z) '!AE121) ->  | H125: =IF(A125="","",'PraveshArr (VII PAY-Z) '!AG121) ->  | J125: =IF(A125="","",'PraveshArr (VII PAY-Z) '!AI121) ->  | K125: =IF('PraveshArr (VII PAY-Z) '!AQ121>0,'PraveshArr (VII PAY-Z) '!AQ121,0) ->  | L125: =IF('PraveshArr (VII PAY-Z) '!AN121>0,'PraveshArr (VII PAY-Z) '!AN121,0) ->  | U125: =IF(A125="","",'PraveshArr (VII PAY-Z) '!AR121) ->  | V125: Cash | X125: =IF(A125="","",IF(VLOOKUP(A125,'PraveshArr (VII PAY-Z) '!$Z$7:$BN$387,30)>0,VLOOKUP(A125,'PraveshArr (VII PAY-Z) '!$Z$7:$BN$387,30),0)) ->  | Z125: 0 | AA125: =IF(A125="","",IF(VLOOKUP(A125,'PraveshArr (VII PAY-Z) '!$C$7:$O$387,13)>0,VLOOKUP(A125,'PraveshArr (VII PAY-Z) '!$C$7:$O$387,13),0)) ->  | AC125: =IF(A125="","",VLOOKUP(A125,'Statement(Z) '!$C$7:$U$213,19)) -> 
A126: ='PraveshArr (VII PAY-Z) '!Z122 ->  | C126: NO | E126: =IF(A126="","",'PraveshArr (VII PAY-Z) '!AC122) ->  | G126: =IF(A126="","",'PraveshArr (VII PAY-Z) '!AE122) ->  | H126: =IF(A126="","",'PraveshArr (VII PAY-Z) '!AG122) ->  | J126: =IF(A126="","",'PraveshArr (VII PAY-Z) '!AI122) ->  | K126: =IF('PraveshArr (VII PAY-Z) '!AQ122>0,'PraveshArr (VII PAY-Z) '!AQ122,0) ->  | L126: =IF('PraveshArr (VII PAY-Z) '!AN122>0,'PraveshArr (VII PAY-Z) '!AN122,0) ->  | U126: =IF(A126="","",'PraveshArr (VII PAY-Z) '!AR122) ->  | V126: Cash | X126: =IF(A126="","",IF(VLOOKUP(A126,'PraveshArr (VII PAY-Z) '!$Z$7:$BN$387,30)>0,VLOOKUP(A126,'PraveshArr (VII PAY-Z) '!$Z$7:$BN$387,30),0)) ->  | Z126: 0 | AA126: =IF(A126="","",IF(VLOOKUP(A126,'PraveshArr (VII PAY-Z) '!$C$7:$O$387,13)>0,VLOOKUP(A126,'PraveshArr (VII PAY-Z) '!$C$7:$O$387,13),0)) ->  | AC126: =IF(A126="","",VLOOKUP(A126,'Statement(Z) '!$C$7:$U$213,19)) -> 
A127: ='PraveshArr (VII PAY-Z) '!Z123 ->  | C127: NO | E127: =IF(A127="","",'PraveshArr (VII PAY-Z) '!AC123) ->  | G127: =IF(A127="","",'PraveshArr (VII PAY-Z) '!AE123) ->  | H127: =IF(A127="","",'PraveshArr (VII PAY-Z) '!AG123) ->  | J127: =IF(A127="","",'PraveshArr (VII PAY-Z) '!AI123) ->  | K127: =IF('PraveshArr (VII PAY-Z) '!AQ123>0,'PraveshArr (VII PAY-Z) '!AQ123,0) ->  | L127: =IF('PraveshArr (VII PAY-Z) '!AN123>0,'PraveshArr (VII PAY-Z) '!AN123,0) ->  | U127: =IF(A127="","",'PraveshArr (VII PAY-Z) '!AR123) ->  | V127: Cash | X127: =IF(A127="","",IF(VLOOKUP(A127,'PraveshArr (VII PAY-Z) '!$Z$7:$BN$387,30)>0,VLOOKUP(A127,'PraveshArr (VII PAY-Z) '!$Z$7:$BN$387,30),0)) ->  | Z127: 0 | AA127: =IF(A127="","",IF(VLOOKUP(A127,'PraveshArr (VII PAY-Z) '!$C$7:$O$387,13)>0,VLOOKUP(A127,'PraveshArr (VII PAY-Z) '!$C$7:$O$387,13),0)) ->  | AC127: =IF(A127="","",VLOOKUP(A127,'Statement(Z) '!$C$7:$U$213,19)) -> 
A128: ='PraveshArr (VII PAY-Z) '!Z124 ->  | C128: NO | E128: =IF(A128="","",'PraveshArr (VII PAY-Z) '!AC124) ->  | G128: =IF(A128="","",'PraveshArr (VII PAY-Z) '!AE124) ->  | H128: =IF(A128="","",'PraveshArr (VII PAY-Z) '!AG124) ->  | J128: =IF(A128="","",'PraveshArr (VII PAY-Z) '!AI124) ->  | K128: =IF('PraveshArr (VII PAY-Z) '!AQ124>0,'PraveshArr (VII PAY-Z) '!AQ124,0) ->  | L128: =IF('PraveshArr (VII PAY-Z) '!AN124>0,'PraveshArr (VII PAY-Z) '!AN124,0) ->  | U128: =IF(A128="","",'PraveshArr (VII PAY-Z) '!AR124) ->  | V128: Cash | X128: =IF(A128="","",IF(VLOOKUP(A128,'PraveshArr (VII PAY-Z) '!$Z$7:$BN$387,30)>0,VLOOKUP(A128,'PraveshArr (VII PAY-Z) '!$Z$7:$BN$387,30),0)) ->  | Z128: 0 | AA128: =IF(A128="","",IF(VLOOKUP(A128,'PraveshArr (VII PAY-Z) '!$C$7:$O$387,13)>0,VLOOKUP(A128,'PraveshArr (VII PAY-Z) '!$C$7:$O$387,13),0)) ->  | AC128: =IF(A128="","",VLOOKUP(A128,'Statement(Z) '!$C$7:$U$213,19)) -> 
A129: ='PraveshArr (VII PAY-Z) '!Z125 ->  | C129: NO | E129: =IF(A129="","",'PraveshArr (VII PAY-Z) '!AC125) ->  | G129: =IF(A129="","",'PraveshArr (VII PAY-Z) '!AE125) ->  | H129: =IF(A129="","",'PraveshArr (VII PAY-Z) '!AG125) ->  | J129: =IF(A129="","",'PraveshArr (VII PAY-Z) '!AI125) ->  | K129: =IF('PraveshArr (VII PAY-Z) '!AQ125>0,'PraveshArr (VII PAY-Z) '!AQ125,0) ->  | L129: =IF('PraveshArr (VII PAY-Z) '!AN125>0,'PraveshArr (VII PAY-Z) '!AN125,0) ->  | U129: =IF(A129="","",'PraveshArr (VII PAY-Z) '!AR125) ->  | V129: Cash | X129: =IF(A129="","",IF(VLOOKUP(A129,'PraveshArr (VII PAY-Z) '!$Z$7:$BN$387,30)>0,VLOOKUP(A129,'PraveshArr (VII PAY-Z) '!$Z$7:$BN$387,30),0)) ->  | Z129: 0 | AA129: =IF(A129="","",IF(VLOOKUP(A129,'PraveshArr (VII PAY-Z) '!$C$7:$O$387,13)>0,VLOOKUP(A129,'PraveshArr (VII PAY-Z) '!$C$7:$O$387,13),0)) ->  | AC129: =IF(A129="","",VLOOKUP(A129,'Statement(Z) '!$C$7:$U$213,19)) -> 
A130: ='PraveshArr (VII PAY-Z) '!Z126 ->  | C130: NO | E130: =IF(A130="","",'PraveshArr (VII PAY-Z) '!AC126) ->  | G130: =IF(A130="","",'PraveshArr (VII PAY-Z) '!AE126) ->  | H130: =IF(A130="","",'PraveshArr (VII PAY-Z) '!AG126) ->  | J130: =IF(A130="","",'PraveshArr (VII PAY-Z) '!AI126) ->  | K130: =IF('PraveshArr (VII PAY-Z) '!AQ126>0,'PraveshArr (VII PAY-Z) '!AQ126,0) ->  | L130: =IF('PraveshArr (VII PAY-Z) '!AN126>0,'PraveshArr (VII PAY-Z) '!AN126,0) ->  | U130: =IF(A130="","",'PraveshArr (VII PAY-Z) '!AR126) ->  | V130: Cash | X130: =IF(A130="","",IF(VLOOKUP(A130,'PraveshArr (VII PAY-Z) '!$Z$7:$BN$387,30)>0,VLOOKUP(A130,'PraveshArr (VII PAY-Z) '!$Z$7:$BN$387,30),0)) ->  | Z130: 0 | AA130: =IF(A130="","",IF(VLOOKUP(A130,'PraveshArr (VII PAY-Z) '!$C$7:$O$387,13)>0,VLOOKUP(A130,'PraveshArr (VII PAY-Z) '!$C$7:$O$387,13),0)) ->  | AC130: =IF(A130="","",VLOOKUP(A130,'Statement(Z) '!$C$7:$U$213,19)) -> 
A131: ='PraveshArr (VII PAY-Z) '!Z127 ->  | C131: NO | E131: =IF(A131="","",'PraveshArr (VII PAY-Z) '!AC127) ->  | G131: =IF(A131="","",'PraveshArr (VII PAY-Z) '!AE127) ->  | H131: =IF(A131="","",'PraveshArr (VII PAY-Z) '!AG127) ->  | J131: =IF(A131="","",'PraveshArr (VII PAY-Z) '!AI127) ->  | K131: =IF('PraveshArr (VII PAY-Z) '!AQ127>0,'PraveshArr (VII PAY-Z) '!AQ127,0) ->  | L131: =IF('PraveshArr (VII PAY-Z) '!AN127>0,'PraveshArr (VII PAY-Z) '!AN127,0) ->  | U131: =IF(A131="","",'PraveshArr (VII PAY-Z) '!AR127) ->  | V131: Cash | X131: =IF(A131="","",IF(VLOOKUP(A131,'PraveshArr (VII PAY-Z) '!$Z$7:$BN$387,30)>0,VLOOKUP(A131,'PraveshArr (VII PAY-Z) '!$Z$7:$BN$387,30),0)) ->  | Z131: 0 | AA131: =IF(A131="","",IF(VLOOKUP(A131,'PraveshArr (VII PAY-Z) '!$C$7:$O$387,13)>0,VLOOKUP(A131,'PraveshArr (VII PAY-Z) '!$C$7:$O$387,13),0)) ->  | AC131: =IF(A131="","",VLOOKUP(A131,'Statement(Z) '!$C$7:$U$213,19)) -> 
A132: ='PraveshArr (VII PAY-Z) '!Z128 ->  | C132: NO | E132: =IF(A132="","",'PraveshArr (VII PAY-Z) '!AC128) ->  | G132: =IF(A132="","",'PraveshArr (VII PAY-Z) '!AE128) ->  | H132: =IF(A132="","",'PraveshArr (VII PAY-Z) '!AG128) ->  | J132: =IF(A132="","",'PraveshArr (VII PAY-Z) '!AI128) ->  | K132: =IF('PraveshArr (VII PAY-Z) '!AQ128>0,'PraveshArr (VII PAY-Z) '!AQ128,0) ->  | L132: =IF('PraveshArr (VII PAY-Z) '!AN128>0,'PraveshArr (VII PAY-Z) '!AN128,0) ->  | U132: =IF(A132="","",'PraveshArr (VII PAY-Z) '!AR128) ->  | V132: Cash | X132: =IF(A132="","",IF(VLOOKUP(A132,'PraveshArr (VII PAY-Z) '!$Z$7:$BN$387,30)>0,VLOOKUP(A132,'PraveshArr (VII PAY-Z) '!$Z$7:$BN$387,30),0)) ->  | Z132: 0 | AA132: =IF(A132="","",IF(VLOOKUP(A132,'PraveshArr (VII PAY-Z) '!$C$7:$O$387,13)>0,VLOOKUP(A132,'PraveshArr (VII PAY-Z) '!$C$7:$O$387,13),0)) ->  | AC132: =IF(A132="","",VLOOKUP(A132,'Statement(Z) '!$C$7:$U$213,19)) -> 
A133: ='PraveshArr (VII PAY-Z) '!Z129 ->  | C133: NO | E133: =IF(A133="","",'PraveshArr (VII PAY-Z) '!AC129) ->  | G133: =IF(A133="","",'PraveshArr (VII PAY-Z) '!AE129) ->  | H133: =IF(A133="","",'PraveshArr (VII PAY-Z) '!AG129) ->  | J133: =IF(A133="","",'PraveshArr (VII PAY-Z) '!AI129) ->  | K133: =IF('PraveshArr (VII PAY-Z) '!AQ129>0,'PraveshArr (VII PAY-Z) '!AQ129,0) ->  | L133: =IF('PraveshArr (VII PAY-Z) '!AN129>0,'PraveshArr (VII PAY-Z) '!AN129,0) ->  | U133: =IF(A133="","",'PraveshArr (VII PAY-Z) '!AR129) ->  | V133: Cash | X133: =IF(A133="","",IF(VLOOKUP(A133,'PraveshArr (VII PAY-Z) '!$Z$7:$BN$387,30)>0,VLOOKUP(A133,'PraveshArr (VII PAY-Z) '!$Z$7:$BN$387,30),0)) ->  | Z133: 0 | AA133: =IF(A133="","",IF(VLOOKUP(A133,'PraveshArr (VII PAY-Z) '!$C$7:$O$387,13)>0,VLOOKUP(A133,'PraveshArr (VII PAY-Z) '!$C$7:$O$387,13),0)) ->  | AC133: =IF(A133="","",VLOOKUP(A133,'Statement(Z) '!$C$7:$U$213,19)) -> 
A134: ='PraveshArr (VII PAY-Z) '!Z130 ->  | C134: NO | E134: =IF(A134="","",'PraveshArr (VII PAY-Z) '!AC130) ->  | G134: =IF(A134="","",'PraveshArr (VII PAY-Z) '!AE130) ->  | H134: =IF(A134="","",'PraveshArr (VII PAY-Z) '!AG130) ->  | J134: =IF(A134="","",'PraveshArr (VII PAY-Z) '!AI130) ->  | K134: =IF('PraveshArr (VII PAY-Z) '!AQ130>0,'PraveshArr (VII PAY-Z) '!AQ130,0) ->  | L134: =IF('PraveshArr (VII PAY-Z) '!AN130>0,'PraveshArr (VII PAY-Z) '!AN130,0) ->  | U134: =IF(A134="","",'PraveshArr (VII PAY-Z) '!AR130) ->  | V134: Cash | X134: =IF(A134="","",IF(VLOOKUP(A134,'PraveshArr (VII PAY-Z) '!$Z$7:$BN$387,30)>0,VLOOKUP(A134,'PraveshArr (VII PAY-Z) '!$Z$7:$BN$387,30),0)) ->  | Z134: 0 | AA134: =IF(A134="","",IF(VLOOKUP(A134,'PraveshArr (VII PAY-Z) '!$C$7:$O$387,13)>0,VLOOKUP(A134,'PraveshArr (VII PAY-Z) '!$C$7:$O$387,13),0)) ->  | AC134: =IF(A134="","",VLOOKUP(A134,'Statement(Z) '!$C$7:$U$213,19)) -> 
A135: ='PraveshArr (VII PAY-Z) '!Z131 ->  | C135: NO | E135: =IF(A135="","",'PraveshArr (VII PAY-Z) '!AC131) ->  | G135: =IF(A135="","",'PraveshArr (VII PAY-Z) '!AE131) ->  | H135: =IF(A135="","",'PraveshArr (VII PAY-Z) '!AG131) ->  | J135: =IF(A135="","",'PraveshArr (VII PAY-Z) '!AI131) ->  | K135: =IF('PraveshArr (VII PAY-Z) '!AQ131>0,'PraveshArr (VII PAY-Z) '!AQ131,0) ->  | L135: =IF('PraveshArr (VII PAY-Z) '!AN131>0,'PraveshArr (VII PAY-Z) '!AN131,0) ->  | U135: =IF(A135="","",'PraveshArr (VII PAY-Z) '!AR131) ->  | V135: Cash | X135: =IF(A135="","",IF(VLOOKUP(A135,'PraveshArr (VII PAY-Z) '!$Z$7:$BN$387,30)>0,VLOOKUP(A135,'PraveshArr (VII PAY-Z) '!$Z$7:$BN$387,30),0)) ->  | Z135: 0 | AA135: =IF(A135="","",IF(VLOOKUP(A135,'PraveshArr (VII PAY-Z) '!$C$7:$O$387,13)>0,VLOOKUP(A135,'PraveshArr (VII PAY-Z) '!$C$7:$O$387,13),0)) ->  | AC135: =IF(A135="","",VLOOKUP(A135,'Statement(Z) '!$C$7:$U$213,19)) -> 
A136: ='PraveshArr (VII PAY-Z) '!Z132 ->  | C136: NO | E136: =IF(A136="","",'PraveshArr (VII PAY-Z) '!AC132) ->  | G136: =IF(A136="","",'PraveshArr (VII PAY-Z) '!AE132) ->  | H136: =IF(A136="","",'PraveshArr (VII PAY-Z) '!AG132) ->  | J136: =IF(A136="","",'PraveshArr (VII PAY-Z) '!AI132) ->  | K136: =IF('PraveshArr (VII PAY-Z) '!AQ132>0,'PraveshArr (VII PAY-Z) '!AQ132,0) ->  | L136: =IF('PraveshArr (VII PAY-Z) '!AN132>0,'PraveshArr (VII PAY-Z) '!AN132,0) ->  | U136: =IF(A136="","",'PraveshArr (VII PAY-Z) '!AR132) ->  | V136: Cash | X136: =IF(A136="","",IF(VLOOKUP(A136,'PraveshArr (VII PAY-Z) '!$Z$7:$BN$387,30)>0,VLOOKUP(A136,'PraveshArr (VII PAY-Z) '!$Z$7:$BN$387,30),0)) ->  | Z136: 0 | AA136: =IF(A136="","",IF(VLOOKUP(A136,'PraveshArr (VII PAY-Z) '!$C$7:$O$387,13)>0,VLOOKUP(A136,'PraveshArr (VII PAY-Z) '!$C$7:$O$387,13),0)) ->  | AC136: =IF(A136="","",VLOOKUP(A136,'Statement(Z) '!$C$7:$U$213,19)) -> 
A137: ='PraveshArr (VII PAY-Z) '!Z133 ->  | C137: NO | E137: =IF(A137="","",'PraveshArr (VII PAY-Z) '!AC133) ->  | G137: =IF(A137="","",'PraveshArr (VII PAY-Z) '!AE133) ->  | H137: =IF(A137="","",'PraveshArr (VII PAY-Z) '!AG133) ->  | J137: =IF(A137="","",'PraveshArr (VII PAY-Z) '!AI133) ->  | K137: =IF('PraveshArr (VII PAY-Z) '!AQ133>0,'PraveshArr (VII PAY-Z) '!AQ133,0) ->  | L137: =IF('PraveshArr (VII PAY-Z) '!AN133>0,'PraveshArr (VII PAY-Z) '!AN133,0) ->  | U137: =IF(A137="","",'PraveshArr (VII PAY-Z) '!AR133) ->  | V137: Cash | X137: =IF(A137="","",IF(VLOOKUP(A137,'PraveshArr (VII PAY-Z) '!$Z$7:$BN$387,30)>0,VLOOKUP(A137,'PraveshArr (VII PAY-Z) '!$Z$7:$BN$387,30),0)) ->  | Z137: 0 | AA137: =IF(A137="","",IF(VLOOKUP(A137,'PraveshArr (VII PAY-Z) '!$C$7:$O$387,13)>0,VLOOKUP(A137,'PraveshArr (VII PAY-Z) '!$C$7:$O$387,13),0)) ->  | AC137: =IF(A137="","",VLOOKUP(A137,'Statement(Z) '!$C$7:$U$213,19)) -> 
A138: ='PraveshArr (VII PAY-Z) '!Z134 ->  | C138: NO | E138: =IF(A138="","",'PraveshArr (VII PAY-Z) '!AC134) ->  | G138: =IF(A138="","",'PraveshArr (VII PAY-Z) '!AE134) ->  | H138: =IF(A138="","",'PraveshArr (VII PAY-Z) '!AG134) ->  | J138: =IF(A138="","",'PraveshArr (VII PAY-Z) '!AI134) ->  | K138: =IF('PraveshArr (VII PAY-Z) '!AQ134>0,'PraveshArr (VII PAY-Z) '!AQ134,0) ->  | L138: =IF('PraveshArr (VII PAY-Z) '!AN134>0,'PraveshArr (VII PAY-Z) '!AN134,0) ->  | U138: =IF(A138="","",'PraveshArr (VII PAY-Z) '!AR134) ->  | V138: Cash | X138: =IF(A138="","",IF(VLOOKUP(A138,'PraveshArr (VII PAY-Z) '!$Z$7:$BN$387,30)>0,VLOOKUP(A138,'PraveshArr (VII PAY-Z) '!$Z$7:$BN$387,30),0)) ->  | Z138: 0 | AA138: =IF(A138="","",IF(VLOOKUP(A138,'PraveshArr (VII PAY-Z) '!$C$7:$O$387,13)>0,VLOOKUP(A138,'PraveshArr (VII PAY-Z) '!$C$7:$O$387,13),0)) ->  | AC138: =IF(A138="","",VLOOKUP(A138,'Statement(Z) '!$C$7:$U$213,19)) -> 
A139: ='PraveshArr (VII PAY-Z) '!Z135 ->  | C139: NO | E139: =IF(A139="","",'PraveshArr (VII PAY-Z) '!AC135) ->  | G139: =IF(A139="","",'PraveshArr (VII PAY-Z) '!AE135) ->  | H139: =IF(A139="","",'PraveshArr (VII PAY-Z) '!AG135) ->  | J139: =IF(A139="","",'PraveshArr (VII PAY-Z) '!AI135) ->  | K139: =IF('PraveshArr (VII PAY-Z) '!AQ135>0,'PraveshArr (VII PAY-Z) '!AQ135,0) ->  | L139: =IF('PraveshArr (VII PAY-Z) '!AN135>0,'PraveshArr (VII PAY-Z) '!AN135,0) ->  | U139: =IF(A139="","",'PraveshArr (VII PAY-Z) '!AR135) ->  | V139: Cash | W139: =IF(A139="","",IF(ROUND((G139-J139)*U139,0)>0,ROUND((G139-J139)*U139,0),0)) ->  | X139: =IF(A139="","",IF(VLOOKUP(A139,'PraveshArr (VII PAY-Z) '!$Z$7:$BN$387,30)>0,VLOOKUP(A139,'PraveshArr (VII PAY-Z) '!$Z$7:$BN$387,30),0)) ->  | Z139: 0 | AA139: =IF(A139="","",IF(VLOOKUP(A139,'PraveshArr (VII PAY-Z) '!$C$7:$O$387,13)>0,VLOOKUP(A139,'PraveshArr (VII PAY-Z) '!$C$7:$O$387,13),0)) ->  | AC139: =IF(A139="","",VLOOKUP(A139,'Statement(Z) '!$C$7:$U$213,19)) -> 
A140: ='PraveshArr (VII PAY-Z) '!Z136 ->  | C140: NO | E140: =IF(A140="","",'PraveshArr (VII PAY-Z) '!AC136) ->  | G140: =IF(A140="","",'PraveshArr (VII PAY-Z) '!AE136) ->  | H140: =IF(A140="","",'PraveshArr (VII PAY-Z) '!AG136) ->  | J140: =IF(A140="","",'PraveshArr (VII PAY-Z) '!AI136) ->  | K140: =IF('PraveshArr (VII PAY-Z) '!AQ136>0,'PraveshArr (VII PAY-Z) '!AQ136,0) ->  | L140: =IF('PraveshArr (VII PAY-Z) '!AN136>0,'PraveshArr (VII PAY-Z) '!AN136,0) ->  | Q140: =IF(A140="","",IF(P140>0,P140,ROUND(G140*O140,0))) ->  | U140: =IF(A140="","",'PraveshArr (VII PAY-Z) '!AR136) ->  | V140: Cash | X140: =IF(A140="","",IF(VLOOKUP(A140,'PraveshArr (VII PAY-Z) '!$Z$7:$BN$387,30)>0,VLOOKUP(A140,'PraveshArr (VII PAY-Z) '!$Z$7:$BN$387,30),0)) ->  | Z140: =IF(Y140=0,0,IF(X140>Y140,(X140-Y140),0)) -> 0 | AA140: =IF(A140="","",IF(VLOOKUP(A140,'PraveshArr (VII PAY-Z) '!$C$7:$O$387,13)>0,VLOOKUP(A140,'PraveshArr (VII PAY-Z) '!$C$7:$O$387,13),0)) ->  | AC140: =IF(A140="","",VLOOKUP(A140,'Statement(Z) '!$C$7:$U$213,19)) ->  | AD140: =IF(A140="","",IF(AC140<0,0,ROUND(AC140*0.1,0))) ->  | AG140: =IF(A140="","",IF(AF140="NO",0,IF(AE140>0,AE140,AD140))) -> 
A141: ='PraveshArr (VII PAY-Z) '!Z137 ->  | C141: NO | E141: =IF(A141="","",'PraveshArr (VII PAY-Z) '!AC137) ->  | G141: =IF(A141="","",'PraveshArr (VII PAY-Z) '!AE137) ->  | H141: =IF(A141="","",'PraveshArr (VII PAY-Z) '!AG137) ->  | J141: =IF(A141="","",'PraveshArr (VII PAY-Z) '!AI137) ->  | K141: =IF('PraveshArr (VII PAY-Z) '!AQ137>0,'PraveshArr (VII PAY-Z) '!AQ137,0) ->  | L141: =IF('PraveshArr (VII PAY-Z) '!AN137>0,'PraveshArr (VII PAY-Z) '!AN137,0) ->  | T141: =IF(A141="","",IF(S141>0,S141,ROUND(J141*R141,0))) ->  | U141: =IF(A141="","",'PraveshArr (VII PAY-Z) '!AR137) ->  | V141: Cash | X141: =IF(A141="","",IF(VLOOKUP(A141,'PraveshArr (VII PAY-Z) '!$Z$7:$BN$387,30)>0,VLOOKUP(A141,'PraveshArr (VII PAY-Z) '!$Z$7:$BN$387,30),0)) ->  | Z141: 0 | AA141: =IF(A141="","",IF(VLOOKUP(A141,'PraveshArr (VII PAY-Z) '!$C$7:$O$387,13)>0,VLOOKUP(A141,'PraveshArr (VII PAY-Z) '!$C$7:$O$387,13),0)) ->  | AC141: =IF(A141="","",VLOOKUP(A141,'Statement(Z) '!$C$7:$U$213,19)) -> 
A142: ='PraveshArr (VII PAY-Z) '!Z138 ->  | C142: NO | E142: =IF(A142="","",'PraveshArr (VII PAY-Z) '!AC138) ->  | G142: =IF(A142="","",'PraveshArr (VII PAY-Z) '!AE138) ->  | H142: =IF(A142="","",'PraveshArr (VII PAY-Z) '!AG138) ->  | J142: =IF(A142="","",'PraveshArr (VII PAY-Z) '!AI138) ->  | K142: =IF('PraveshArr (VII PAY-Z) '!AQ138>0,'PraveshArr (VII PAY-Z) '!AQ138,0) ->  | L142: =IF('PraveshArr (VII PAY-Z) '!AN138>0,'PraveshArr (VII PAY-Z) '!AN138,0) ->  | U142: =IF(A142="","",'PraveshArr (VII PAY-Z) '!AR138) ->  | V142: Cash | X142: =IF(A142="","",IF(VLOOKUP(A142,'PraveshArr (VII PAY-Z) '!$Z$7:$BN$387,30)>0,VLOOKUP(A142,'PraveshArr (VII PAY-Z) '!$Z$7:$BN$387,30),0)) ->  | Z142: 0 | AA142: =IF(A142="","",IF(VLOOKUP(A142,'PraveshArr (VII PAY-Z) '!$C$7:$O$387,13)>0,VLOOKUP(A142,'PraveshArr (VII PAY-Z) '!$C$7:$O$387,13),0)) ->  | AC142: =IF(A142="","",VLOOKUP(A142,'Statement(Z) '!$C$7:$U$213,19)) -> 
A143: ='PraveshArr (VII PAY-Z) '!Z139 ->  | C143: NO | E143: =IF(A143="","",'PraveshArr (VII PAY-Z) '!AC139) ->  | G143: =IF(A143="","",'PraveshArr (VII PAY-Z) '!AE139) ->  | H143: =IF(A143="","",'PraveshArr (VII PAY-Z) '!AG139) ->  | J143: =IF(A143="","",'PraveshArr (VII PAY-Z) '!AI139) ->  | K143: =IF('PraveshArr (VII PAY-Z) '!AQ139>0,'PraveshArr (VII PAY-Z) '!AQ139,0) ->  | L143: =IF('PraveshArr (VII PAY-Z) '!AN139>0,'PraveshArr (VII PAY-Z) '!AN139,0) ->  | U143: =IF(A143="","",'PraveshArr (VII PAY-Z) '!AR139) ->  | V143: Cash | X143: =IF(A143="","",IF(VLOOKUP(A143,'PraveshArr (VII PAY-Z) '!$Z$7:$BN$387,30)>0,VLOOKUP(A143,'PraveshArr (VII PAY-Z) '!$Z$7:$BN$387,30),0)) ->  | Z143: 0 | AA143: =IF(A143="","",IF(VLOOKUP(A143,'PraveshArr (VII PAY-Z) '!$C$7:$O$387,13)>0,VLOOKUP(A143,'PraveshArr (VII PAY-Z) '!$C$7:$O$387,13),0)) ->  | AC143: =IF(A143="","",VLOOKUP(A143,'Statement(Z) '!$C$7:$U$213,19)) -> 
A144: ='PraveshArr (VII PAY-Z) '!Z140 ->  | C144: NO | E144: =IF(A144="","",'PraveshArr (VII PAY-Z) '!AC140) ->  | G144: =IF(A144="","",'PraveshArr (VII PAY-Z) '!AE140) ->  | H144: =IF(A144="","",'PraveshArr (VII PAY-Z) '!AG140) ->  | J144: =IF(A144="","",'PraveshArr (VII PAY-Z) '!AI140) ->  | K144: =IF('PraveshArr (VII PAY-Z) '!AQ140>0,'PraveshArr (VII PAY-Z) '!AQ140,0) ->  | L144: =IF('PraveshArr (VII PAY-Z) '!AN140>0,'PraveshArr (VII PAY-Z) '!AN140,0) ->  | U144: =IF(A144="","",'PraveshArr (VII PAY-Z) '!AR140) ->  | V144: Cash | X144: =IF(A144="","",IF(VLOOKUP(A144,'PraveshArr (VII PAY-Z) '!$Z$7:$BN$387,30)>0,VLOOKUP(A144,'PraveshArr (VII PAY-Z) '!$Z$7:$BN$387,30),0)) ->  | Z144: 0 | AA144: =IF(A144="","",IF(VLOOKUP(A144,'PraveshArr (VII PAY-Z) '!$C$7:$O$387,13)>0,VLOOKUP(A144,'PraveshArr (VII PAY-Z) '!$C$7:$O$387,13),0)) ->  | AC144: =IF(A144="","",VLOOKUP(A144,'Statement(Z) '!$C$7:$U$213,19)) -> 
A145: ='PraveshArr (VII PAY-Z) '!Z141 ->  | C145: NO | E145: =IF(A145="","",'PraveshArr (VII PAY-Z) '!AC141) ->  | G145: =IF(A145="","",'PraveshArr (VII PAY-Z) '!AE141) ->  | H145: =IF(A145="","",'PraveshArr (VII PAY-Z) '!AG141) ->  | J145: =IF(A145="","",'PraveshArr (VII PAY-Z) '!AI141) ->  | K145: =IF('PraveshArr (VII PAY-Z) '!AQ141>0,'PraveshArr (VII PAY-Z) '!AQ141,0) ->  | L145: =IF('PraveshArr (VII PAY-Z) '!AN141>0,'PraveshArr (VII PAY-Z) '!AN141,0) ->  | U145: =IF(A145="","",'PraveshArr (VII PAY-Z) '!AR141) ->  | V145: Cash | X145: =IF(A145="","",IF(VLOOKUP(A145,'PraveshArr (VII PAY-Z) '!$Z$7:$BN$387,30)>0,VLOOKUP(A145,'PraveshArr (VII PAY-Z) '!$Z$7:$BN$387,30),0)) ->  | Z145: 0 | AA145: =IF(A145="","",IF(VLOOKUP(A145,'PraveshArr (VII PAY-Z) '!$C$7:$O$387,13)>0,VLOOKUP(A145,'PraveshArr (VII PAY-Z) '!$C$7:$O$387,13),0)) ->  | AC145: =IF(A145="","",VLOOKUP(A145,'Statement(Z) '!$C$7:$U$213,19)) -> 
A146: ='PraveshArr (VII PAY-Z) '!Z142 ->  | C146: NO | E146: =IF(A146="","",'PraveshArr (VII PAY-Z) '!AC142) ->  | G146: =IF(A146="","",'PraveshArr (VII PAY-Z) '!AE142) ->  | H146: =IF(A146="","",'PraveshArr (VII PAY-Z) '!AG142) ->  | J146: =IF(A146="","",'PraveshArr (VII PAY-Z) '!AI142) ->  | K146: =IF('PraveshArr (VII PAY-Z) '!AQ142>0,'PraveshArr (VII PAY-Z) '!AQ142,0) ->  | L146: =IF('PraveshArr (VII PAY-Z) '!AN142>0,'PraveshArr (VII PAY-Z) '!AN142,0) ->  | U146: =IF(A146="","",'PraveshArr (VII PAY-Z) '!AR142) ->  | V146: Cash | X146: =IF(A146="","",IF(VLOOKUP(A146,'PraveshArr (VII PAY-Z) '!$Z$7:$BN$387,30)>0,VLOOKUP(A146,'PraveshArr (VII PAY-Z) '!$Z$7:$BN$387,30),0)) ->  | Z146: 0 | AA146: =IF(A146="","",IF(VLOOKUP(A146,'PraveshArr (VII PAY-Z) '!$C$7:$O$387,13)>0,VLOOKUP(A146,'PraveshArr (VII PAY-Z) '!$C$7:$O$387,13),0)) ->  | AC146: =IF(A146="","",VLOOKUP(A146,'Statement(Z) '!$C$7:$U$213,19)) -> 
A147: ='PraveshArr (VII PAY-Z) '!Z143 ->  | C147: NO | E147: =IF(A147="","",'PraveshArr (VII PAY-Z) '!AC143) ->  | G147: =IF(A147="","",'PraveshArr (VII PAY-Z) '!AE143) ->  | H147: =IF(A147="","",'PraveshArr (VII PAY-Z) '!AG143) ->  | J147: =IF(A147="","",'PraveshArr (VII PAY-Z) '!AI143) ->  | K147: =IF('PraveshArr (VII PAY-Z) '!AQ143>0,'PraveshArr (VII PAY-Z) '!AQ143,0) ->  | L147: =IF('PraveshArr (VII PAY-Z) '!AN143>0,'PraveshArr (VII PAY-Z) '!AN143,0) ->  | U147: =IF(A147="","",'PraveshArr (VII PAY-Z) '!AR143) ->  | V147: Cash | X147: =IF(A147="","",IF(VLOOKUP(A147,'PraveshArr (VII PAY-Z) '!$Z$7:$BN$387,30)>0,VLOOKUP(A147,'PraveshArr (VII PAY-Z) '!$Z$7:$BN$387,30),0)) ->  | Z147: 0 | AA147: =IF(A147="","",IF(VLOOKUP(A147,'PraveshArr (VII PAY-Z) '!$C$7:$O$387,13)>0,VLOOKUP(A147,'PraveshArr (VII PAY-Z) '!$C$7:$O$387,13),0)) ->  | AC147: =IF(A147="","",VLOOKUP(A147,'Statement(Z) '!$C$7:$U$213,19)) -> 
A148: ='PraveshArr (VII PAY-Z) '!Z144 ->  | C148: NO | E148: =IF(A148="","",'PraveshArr (VII PAY-Z) '!AC144) ->  | G148: =IF(A148="","",'PraveshArr (VII PAY-Z) '!AE144) ->  | H148: =IF(A148="","",'PraveshArr (VII PAY-Z) '!AG144) ->  | J148: =IF(A148="","",'PraveshArr (VII PAY-Z) '!AI144) ->  | K148: =IF('PraveshArr (VII PAY-Z) '!AQ144>0,'PraveshArr (VII PAY-Z) '!AQ144,0) ->  | L148: =IF('PraveshArr (VII PAY-Z) '!AN144>0,'PraveshArr (VII PAY-Z) '!AN144,0) ->  | U148: =IF(A148="","",'PraveshArr (VII PAY-Z) '!AR144) ->  | V148: Cash | X148: =IF(A148="","",IF(VLOOKUP(A148,'PraveshArr (VII PAY-Z) '!$Z$7:$BN$387,30)>0,VLOOKUP(A148,'PraveshArr (VII PAY-Z) '!$Z$7:$BN$387,30),0)) ->  | Z148: 0 | AA148: =IF(A148="","",IF(VLOOKUP(A148,'PraveshArr (VII PAY-Z) '!$C$7:$O$387,13)>0,VLOOKUP(A148,'PraveshArr (VII PAY-Z) '!$C$7:$O$387,13),0)) ->  | AC148: =IF(A148="","",VLOOKUP(A148,'Statement(Z) '!$C$7:$U$213,19)) -> 
A149: ='PraveshArr (VII PAY-Z) '!Z145 ->  | C149: NO | E149: =IF(A149="","",'PraveshArr (VII PAY-Z) '!AC145) ->  | G149: =IF(A149="","",'PraveshArr (VII PAY-Z) '!AE145) ->  | H149: =IF(A149="","",'PraveshArr (VII PAY-Z) '!AG145) ->  | J149: =IF(A149="","",'PraveshArr (VII PAY-Z) '!AI145) ->  | K149: =IF('PraveshArr (VII PAY-Z) '!AQ145>0,'PraveshArr (VII PAY-Z) '!AQ145,0) ->  | L149: =IF('PraveshArr (VII PAY-Z) '!AN145>0,'PraveshArr (VII PAY-Z) '!AN145,0) ->  | U149: =IF(A149="","",'PraveshArr (VII PAY-Z) '!AR145) ->  | V149: Cash | X149: =IF(A149="","",IF(VLOOKUP(A149,'PraveshArr (VII PAY-Z) '!$Z$7:$BN$387,30)>0,VLOOKUP(A149,'PraveshArr (VII PAY-Z) '!$Z$7:$BN$387,30),0)) ->  | Z149: 0 | AA149: =IF(A149="","",IF(VLOOKUP(A149,'PraveshArr (VII PAY-Z) '!$C$7:$O$387,13)>0,VLOOKUP(A149,'PraveshArr (VII PAY-Z) '!$C$7:$O$387,13),0)) ->  | AC149: =IF(A149="","",VLOOKUP(A149,'Statement(Z) '!$C$7:$U$213,19)) -> 
A150: ='PraveshArr (VII PAY-Z) '!Z146 ->  | C150: NO | E150: =IF(A150="","",'PraveshArr (VII PAY-Z) '!AC146) ->  | G150: =IF(A150="","",'PraveshArr (VII PAY-Z) '!AE146) ->  | H150: =IF(A150="","",'PraveshArr (VII PAY-Z) '!AG146) ->  | J150: =IF(A150="","",'PraveshArr (VII PAY-Z) '!AI146) ->  | K150: =IF('PraveshArr (VII PAY-Z) '!AQ146>0,'PraveshArr (VII PAY-Z) '!AQ146,0) ->  | L150: =IF('PraveshArr (VII PAY-Z) '!AN146>0,'PraveshArr (VII PAY-Z) '!AN146,0) ->  | U150: =IF(A150="","",'PraveshArr (VII PAY-Z) '!AR146) ->  | V150: Cash | X150: =IF(A150="","",IF(VLOOKUP(A150,'PraveshArr (VII PAY-Z) '!$Z$7:$BN$387,30)>0,VLOOKUP(A150,'PraveshArr (VII PAY-Z) '!$Z$7:$BN$387,30),0)) ->  | Z150: 0 | AA150: =IF(A150="","",IF(VLOOKUP(A150,'PraveshArr (VII PAY-Z) '!$C$7:$O$387,13)>0,VLOOKUP(A150,'PraveshArr (VII PAY-Z) '!$C$7:$O$387,13),0)) ->  | AC150: =IF(A150="","",VLOOKUP(A150,'Statement(Z) '!$C$7:$U$213,19)) -> 
A151: ='PraveshArr (VII PAY-Z) '!Z147 ->  | C151: NO | E151: =IF(A151="","",'PraveshArr (VII PAY-Z) '!AC147) ->  | G151: =IF(A151="","",'PraveshArr (VII PAY-Z) '!AE147) ->  | H151: =IF(A151="","",'PraveshArr (VII PAY-Z) '!AG147) ->  | J151: =IF(A151="","",'PraveshArr (VII PAY-Z) '!AI147) ->  | K151: =IF('PraveshArr (VII PAY-Z) '!AQ147>0,'PraveshArr (VII PAY-Z) '!AQ147,0) ->  | L151: =IF('PraveshArr (VII PAY-Z) '!AN147>0,'PraveshArr (VII PAY-Z) '!AN147,0) ->  | U151: =IF(A151="","",'PraveshArr (VII PAY-Z) '!AR147) ->  | V151: Cash | X151: =IF(A151="","",IF(VLOOKUP(A151,'PraveshArr (VII PAY-Z) '!$Z$7:$BN$387,30)>0,VLOOKUP(A151,'PraveshArr (VII PAY-Z) '!$Z$7:$BN$387,30),0)) ->  | Z151: 0 | AA151: =IF(A151="","",IF(VLOOKUP(A151,'PraveshArr (VII PAY-Z) '!$C$7:$O$387,13)>0,VLOOKUP(A151,'PraveshArr (VII PAY-Z) '!$C$7:$O$387,13),0)) ->  | AC151: =IF(A151="","",VLOOKUP(A151,'Statement(Z) '!$C$7:$U$213,19)) -> 
A152: ='PraveshArr (VII PAY-Z) '!Z148 ->  | C152: NO | E152: =IF(A152="","",'PraveshArr (VII PAY-Z) '!AC148) ->  | G152: =IF(A152="","",'PraveshArr (VII PAY-Z) '!AE148) ->  | H152: =IF(A152="","",'PraveshArr (VII PAY-Z) '!AG148) ->  | J152: =IF(A152="","",'PraveshArr (VII PAY-Z) '!AI148) ->  | K152: =IF('PraveshArr (VII PAY-Z) '!AQ148>0,'PraveshArr (VII PAY-Z) '!AQ148,0) ->  | L152: =IF('PraveshArr (VII PAY-Z) '!AN148>0,'PraveshArr (VII PAY-Z) '!AN148,0) ->  | U152: =IF(A152="","",'PraveshArr (VII PAY-Z) '!AR148) ->  | V152: Cash | X152: =IF(A152="","",IF(VLOOKUP(A152,'PraveshArr (VII PAY-Z) '!$Z$7:$BN$387,30)>0,VLOOKUP(A152,'PraveshArr (VII PAY-Z) '!$Z$7:$BN$387,30),0)) ->  | Z152: 0 | AA152: =IF(A152="","",IF(VLOOKUP(A152,'PraveshArr (VII PAY-Z) '!$C$7:$O$387,13)>0,VLOOKUP(A152,'PraveshArr (VII PAY-Z) '!$C$7:$O$387,13),0)) ->  | AC152: =IF(A152="","",VLOOKUP(A152,'Statement(Z) '!$C$7:$U$213,19)) -> 
A153: ='PraveshArr (VII PAY-Z) '!Z149 ->  | C153: NO | E153: =IF(A153="","",'PraveshArr (VII PAY-Z) '!AC149) ->  | G153: =IF(A153="","",'PraveshArr (VII PAY-Z) '!AE149) ->  | H153: =IF(A153="","",'PraveshArr (VII PAY-Z) '!AG149) ->  | J153: =IF(A153="","",'PraveshArr (VII PAY-Z) '!AI149) ->  | K153: =IF('PraveshArr (VII PAY-Z) '!AQ149>0,'PraveshArr (VII PAY-Z) '!AQ149,0) ->  | L153: =IF('PraveshArr (VII PAY-Z) '!AN149>0,'PraveshArr (VII PAY-Z) '!AN149,0) ->  | U153: =IF(A153="","",'PraveshArr (VII PAY-Z) '!AR149) ->  | V153: Cash | X153: =IF(A153="","",IF(VLOOKUP(A153,'PraveshArr (VII PAY-Z) '!$Z$7:$BN$387,30)>0,VLOOKUP(A153,'PraveshArr (VII PAY-Z) '!$Z$7:$BN$387,30),0)) ->  | Z153: 0 | AA153: =IF(A153="","",IF(VLOOKUP(A153,'PraveshArr (VII PAY-Z) '!$C$7:$O$387,13)>0,VLOOKUP(A153,'PraveshArr (VII PAY-Z) '!$C$7:$O$387,13),0)) ->  | AC153: =IF(A153="","",VLOOKUP(A153,'Statement(Z) '!$C$7:$U$213,19)) -> 
A154: ='PraveshArr (VII PAY-Z) '!Z150 ->  | C154: NO | E154: =IF(A154="","",'PraveshArr (VII PAY-Z) '!AC150) ->  | G154: =IF(A154="","",'PraveshArr (VII PAY-Z) '!AE150) ->  | H154: =IF(A154="","",'PraveshArr (VII PAY-Z) '!AG150) ->  | J154: =IF(A154="","",'PraveshArr (VII PAY-Z) '!AI150) ->  | K154: =IF('PraveshArr (VII PAY-Z) '!AQ150>0,'PraveshArr (VII PAY-Z) '!AQ150,0) ->  | L154: =IF('PraveshArr (VII PAY-Z) '!AN150>0,'PraveshArr (VII PAY-Z) '!AN150,0) ->  | U154: =IF(A154="","",'PraveshArr (VII PAY-Z) '!AR150) ->  | V154: Cash | X154: =IF(A154="","",IF(VLOOKUP(A154,'PraveshArr (VII PAY-Z) '!$Z$7:$BN$387,30)>0,VLOOKUP(A154,'PraveshArr (VII PAY-Z) '!$Z$7:$BN$387,30),0)) ->  | Z154: 0 | AA154: =IF(A154="","",IF(VLOOKUP(A154,'PraveshArr (VII PAY-Z) '!$C$7:$O$387,13)>0,VLOOKUP(A154,'PraveshArr (VII PAY-Z) '!$C$7:$O$387,13),0)) ->  | AC154: =IF(A154="","",VLOOKUP(A154,'Statement(Z) '!$C$7:$U$213,19)) -> 
A155: ='PraveshArr (VII PAY-Z) '!Z151 ->  | C155: NO | E155: =IF(A155="","",'PraveshArr (VII PAY-Z) '!AC151) ->  | G155: =IF(A155="","",'PraveshArr (VII PAY-Z) '!AE151) ->  | H155: =IF(A155="","",'PraveshArr (VII PAY-Z) '!AG151) ->  | J155: =IF(A155="","",'PraveshArr (VII PAY-Z) '!AI151) ->  | K155: =IF('PraveshArr (VII PAY-Z) '!AQ151>0,'PraveshArr (VII PAY-Z) '!AQ151,0) ->  | L155: =IF('PraveshArr (VII PAY-Z) '!AN151>0,'PraveshArr (VII PAY-Z) '!AN151,0) ->  | U155: =IF(A155="","",'PraveshArr (VII PAY-Z) '!AR151) ->  | V155: Cash | X155: =IF(A155="","",IF(VLOOKUP(A155,'PraveshArr (VII PAY-Z) '!$Z$7:$BN$387,30)>0,VLOOKUP(A155,'PraveshArr (VII PAY-Z) '!$Z$7:$BN$387,30),0)) ->  | Z155: 0 | AA155: =IF(A155="","",IF(VLOOKUP(A155,'PraveshArr (VII PAY-Z) '!$C$7:$O$387,13)>0,VLOOKUP(A155,'PraveshArr (VII PAY-Z) '!$C$7:$O$387,13),0)) ->  | AC155: =IF(A155="","",VLOOKUP(A155,'Statement(Z) '!$C$7:$U$213,19)) -> 
A156: ='PraveshArr (VII PAY-Z) '!Z152 ->  | C156: NO | E156: =IF(A156="","",'PraveshArr (VII PAY-Z) '!AC152) ->  | G156: =IF(A156="","",'PraveshArr (VII PAY-Z) '!AE152) ->  | H156: =IF(A156="","",'PraveshArr (VII PAY-Z) '!AG152) ->  | J156: =IF(A156="","",'PraveshArr (VII PAY-Z) '!AI152) ->  | K156: =IF('PraveshArr (VII PAY-Z) '!AQ152>0,'PraveshArr (VII PAY-Z) '!AQ152,0) ->  | L156: =IF('PraveshArr (VII PAY-Z) '!AN152>0,'PraveshArr (VII PAY-Z) '!AN152,0) ->  | U156: =IF(A156="","",'PraveshArr (VII PAY-Z) '!AR152) ->  | V156: Cash | X156: =IF(A156="","",IF(VLOOKUP(A156,'PraveshArr (VII PAY-Z) '!$Z$7:$BN$387,30)>0,VLOOKUP(A156,'PraveshArr (VII PAY-Z) '!$Z$7:$BN$387,30),0)) ->  | Z156: 0 | AA156: =IF(A156="","",IF(VLOOKUP(A156,'PraveshArr (VII PAY-Z) '!$C$7:$O$387,13)>0,VLOOKUP(A156,'PraveshArr (VII PAY-Z) '!$C$7:$O$387,13),0)) ->  | AC156: =IF(A156="","",VLOOKUP(A156,'Statement(Z) '!$C$7:$U$213,19)) -> 
A157: ='PraveshArr (VII PAY-Z) '!Z153 ->  | C157: NO | E157: =IF(A157="","",'PraveshArr (VII PAY-Z) '!AC153) ->  | G157: =IF(A157="","",'PraveshArr (VII PAY-Z) '!AE153) ->  | H157: =IF(A157="","",'PraveshArr (VII PAY-Z) '!AG153) ->  | J157: =IF(A157="","",'PraveshArr (VII PAY-Z) '!AI153) ->  | K157: =IF('PraveshArr (VII PAY-Z) '!AQ153>0,'PraveshArr (VII PAY-Z) '!AQ153,0) ->  | L157: =IF('PraveshArr (VII PAY-Z) '!AN153>0,'PraveshArr (VII PAY-Z) '!AN153,0) ->  | U157: =IF(A157="","",'PraveshArr (VII PAY-Z) '!AR153) ->  | V157: Cash | X157: =IF(A157="","",IF(VLOOKUP(A157,'PraveshArr (VII PAY-Z) '!$Z$7:$BN$387,30)>0,VLOOKUP(A157,'PraveshArr (VII PAY-Z) '!$Z$7:$BN$387,30),0)) ->  | Z157: 0 | AA157: =IF(A157="","",IF(VLOOKUP(A157,'PraveshArr (VII PAY-Z) '!$C$7:$O$387,13)>0,VLOOKUP(A157,'PraveshArr (VII PAY-Z) '!$C$7:$O$387,13),0)) ->  | AC157: =IF(A157="","",VLOOKUP(A157,'Statement(Z) '!$C$7:$U$213,19)) -> 
A158: ='PraveshArr (VII PAY-Z) '!Z154 ->  | C158: NO | E158: =IF(A158="","",'PraveshArr (VII PAY-Z) '!AC154) ->  | G158: =IF(A158="","",'PraveshArr (VII PAY-Z) '!AE154) ->  | H158: =IF(A158="","",'PraveshArr (VII PAY-Z) '!AG154) ->  | J158: =IF(A158="","",'PraveshArr (VII PAY-Z) '!AI154) ->  | K158: =IF('PraveshArr (VII PAY-Z) '!AQ154>0,'PraveshArr (VII PAY-Z) '!AQ154,0) ->  | L158: =IF('PraveshArr (VII PAY-Z) '!AN154>0,'PraveshArr (VII PAY-Z) '!AN154,0) ->  | U158: =IF(A158="","",'PraveshArr (VII PAY-Z) '!AR154) ->  | V158: Cash | X158: =IF(A158="","",IF(VLOOKUP(A158,'PraveshArr (VII PAY-Z) '!$Z$7:$BN$387,30)>0,VLOOKUP(A158,'PraveshArr (VII PAY-Z) '!$Z$7:$BN$387,30),0)) ->  | Z158: 0 | AA158: =IF(A158="","",IF(VLOOKUP(A158,'PraveshArr (VII PAY-Z) '!$C$7:$O$387,13)>0,VLOOKUP(A158,'PraveshArr (VII PAY-Z) '!$C$7:$O$387,13),0)) ->  | AC158: =IF(A158="","",VLOOKUP(A158,'Statement(Z) '!$C$7:$U$213,19)) -> 
A159: ='PraveshArr (VII PAY-Z) '!Z155 ->  | C159: NO | E159: =IF(A159="","",'PraveshArr (VII PAY-Z) '!AC155) ->  | G159: =IF(A159="","",'PraveshArr (VII PAY-Z) '!AE155) ->  | H159: =IF(A159="","",'PraveshArr (VII PAY-Z) '!AG155) ->  | J159: =IF(A159="","",'PraveshArr (VII PAY-Z) '!AI155) ->  | K159: =IF('PraveshArr (VII PAY-Z) '!AQ155>0,'PraveshArr (VII PAY-Z) '!AQ155,0) ->  | L159: =IF('PraveshArr (VII PAY-Z) '!AN155>0,'PraveshArr (VII PAY-Z) '!AN155,0) ->  | U159: =IF(A159="","",'PraveshArr (VII PAY-Z) '!AR155) ->  | V159: Cash | X159: =IF(A159="","",IF(VLOOKUP(A159,'PraveshArr (VII PAY-Z) '!$Z$7:$BN$387,30)>0,VLOOKUP(A159,'PraveshArr (VII PAY-Z) '!$Z$7:$BN$387,30),0)) ->  | Z159: 0 | AA159: =IF(A159="","",IF(VLOOKUP(A159,'PraveshArr (VII PAY-Z) '!$C$7:$O$387,13)>0,VLOOKUP(A159,'PraveshArr (VII PAY-Z) '!$C$7:$O$387,13),0)) ->  | AC159: =IF(A159="","",VLOOKUP(A159,'Statement(Z) '!$C$7:$U$213,19)) -> 
A160: ='PraveshArr (VII PAY-Z) '!Z156 ->  | C160: NO | E160: =IF(A160="","",'PraveshArr (VII PAY-Z) '!AC156) ->  | G160: =IF(A160="","",'PraveshArr (VII PAY-Z) '!AE156) ->  | H160: =IF(A160="","",'PraveshArr (VII PAY-Z) '!AG156) ->  | J160: =IF(A160="","",'PraveshArr (VII PAY-Z) '!AI156) ->  | K160: =IF('PraveshArr (VII PAY-Z) '!AQ156>0,'PraveshArr (VII PAY-Z) '!AQ156,0) ->  | L160: =IF('PraveshArr (VII PAY-Z) '!AN156>0,'PraveshArr (VII PAY-Z) '!AN156,0) ->  | U160: =IF(A160="","",'PraveshArr (VII PAY-Z) '!AR156) ->  | V160: Cash | X160: =IF(A160="","",IF(VLOOKUP(A160,'PraveshArr (VII PAY-Z) '!$Z$7:$BN$387,30)>0,VLOOKUP(A160,'PraveshArr (VII PAY-Z) '!$Z$7:$BN$387,30),0)) ->  | Z160: 0 | AA160: =IF(A160="","",IF(VLOOKUP(A160,'PraveshArr (VII PAY-Z) '!$C$7:$O$387,13)>0,VLOOKUP(A160,'PraveshArr (VII PAY-Z) '!$C$7:$O$387,13),0)) ->  | AC160: =IF(A160="","",VLOOKUP(A160,'Statement(Z) '!$C$7:$U$213,19)) -> 
A161: ='PraveshArr (VII PAY-Z) '!Z157 ->  | C161: NO | E161: =IF(A161="","",'PraveshArr (VII PAY-Z) '!AC157) ->  | G161: =IF(A161="","",'PraveshArr (VII PAY-Z) '!AE157) ->  | H161: =IF(A161="","",'PraveshArr (VII PAY-Z) '!AG157) ->  | J161: =IF(A161="","",'PraveshArr (VII PAY-Z) '!AI157) ->  | K161: =IF('PraveshArr (VII PAY-Z) '!AQ157>0,'PraveshArr (VII PAY-Z) '!AQ157,0) ->  | L161: =IF('PraveshArr (VII PAY-Z) '!AN157>0,'PraveshArr (VII PAY-Z) '!AN157,0) ->  | U161: =IF(A161="","",'PraveshArr (VII PAY-Z) '!AR157) ->  | V161: Cash | X161: =IF(A161="","",IF(VLOOKUP(A161,'PraveshArr (VII PAY-Z) '!$Z$7:$BN$387,30)>0,VLOOKUP(A161,'PraveshArr (VII PAY-Z) '!$Z$7:$BN$387,30),0)) ->  | Z161: 0 | AA161: =IF(A161="","",IF(VLOOKUP(A161,'PraveshArr (VII PAY-Z) '!$C$7:$O$387,13)>0,VLOOKUP(A161,'PraveshArr (VII PAY-Z) '!$C$7:$O$387,13),0)) ->  | AC161: =IF(A161="","",VLOOKUP(A161,'Statement(Z) '!$C$7:$U$213,19)) -> 
A162: ='PraveshArr (VII PAY-Z) '!Z158 ->  | C162: NO | E162: =IF(A162="","",'PraveshArr (VII PAY-Z) '!AC158) ->  | G162: =IF(A162="","",'PraveshArr (VII PAY-Z) '!AE158) ->  | H162: =IF(A162="","",'PraveshArr (VII PAY-Z) '!AG158) ->  | J162: =IF(A162="","",'PraveshArr (VII PAY-Z) '!AI158) ->  | K162: =IF('PraveshArr (VII PAY-Z) '!AQ158>0,'PraveshArr (VII PAY-Z) '!AQ158,0) ->  | L162: =IF('PraveshArr (VII PAY-Z) '!AN158>0,'PraveshArr (VII PAY-Z) '!AN158,0) ->  | U162: =IF(A162="","",'PraveshArr (VII PAY-Z) '!AR158) ->  | V162: Cash | X162: =IF(A162="","",IF(VLOOKUP(A162,'PraveshArr (VII PAY-Z) '!$Z$7:$BN$387,30)>0,VLOOKUP(A162,'PraveshArr (VII PAY-Z) '!$Z$7:$BN$387,30),0)) ->  | Z162: 0 | AA162: =IF(A162="","",IF(VLOOKUP(A162,'PraveshArr (VII PAY-Z) '!$C$7:$O$387,13)>0,VLOOKUP(A162,'PraveshArr (VII PAY-Z) '!$C$7:$O$387,13),0)) ->  | AC162: =IF(A162="","",VLOOKUP(A162,'Statement(Z) '!$C$7:$U$213,19)) -> 
A163: ='PraveshArr (VII PAY-Z) '!Z159 ->  | C163: NO | E163: =IF(A163="","",'PraveshArr (VII PAY-Z) '!AC159) ->  | G163: =IF(A163="","",'PraveshArr (VII PAY-Z) '!AE159) ->  | H163: =IF(A163="","",'PraveshArr (VII PAY-Z) '!AG159) ->  | J163: =IF(A163="","",'PraveshArr (VII PAY-Z) '!AI159) ->  | K163: =IF('PraveshArr (VII PAY-Z) '!AQ159>0,'PraveshArr (VII PAY-Z) '!AQ159,0) ->  | L163: =IF('PraveshArr (VII PAY-Z) '!AN159>0,'PraveshArr (VII PAY-Z) '!AN159,0) ->  | U163: =IF(A163="","",'PraveshArr (VII PAY-Z) '!AR159) ->  | V163: Cash | X163: =IF(A163="","",IF(VLOOKUP(A163,'PraveshArr (VII PAY-Z) '!$Z$7:$BN$387,30)>0,VLOOKUP(A163,'PraveshArr (VII PAY-Z) '!$Z$7:$BN$387,30),0)) ->  | Z163: 0 | AA163: =IF(A163="","",IF(VLOOKUP(A163,'PraveshArr (VII PAY-Z) '!$C$7:$O$387,13)>0,VLOOKUP(A163,'PraveshArr (VII PAY-Z) '!$C$7:$O$387,13),0)) ->  | AC163: =IF(A163="","",VLOOKUP(A163,'Statement(Z) '!$C$7:$U$213,19)) -> 
A164: ='PraveshArr (VII PAY-Z) '!Z160 ->  | C164: NO | E164: =IF(A164="","",'PraveshArr (VII PAY-Z) '!AC160) ->  | G164: =IF(A164="","",'PraveshArr (VII PAY-Z) '!AE160) ->  | H164: =IF(A164="","",'PraveshArr (VII PAY-Z) '!AG160) ->  | J164: =IF(A164="","",'PraveshArr (VII PAY-Z) '!AI160) ->  | K164: =IF('PraveshArr (VII PAY-Z) '!AQ160>0,'PraveshArr (VII PAY-Z) '!AQ160,0) ->  | L164: =IF('PraveshArr (VII PAY-Z) '!AN160>0,'PraveshArr (VII PAY-Z) '!AN160,0) ->  | U164: =IF(A164="","",'PraveshArr (VII PAY-Z) '!AR160) ->  | V164: Cash | X164: =IF(A164="","",IF(VLOOKUP(A164,'PraveshArr (VII PAY-Z) '!$Z$7:$BN$387,30)>0,VLOOKUP(A164,'PraveshArr (VII PAY-Z) '!$Z$7:$BN$387,30),0)) ->  | Z164: 0 | AA164: =IF(A164="","",IF(VLOOKUP(A164,'PraveshArr (VII PAY-Z) '!$C$7:$O$387,13)>0,VLOOKUP(A164,'PraveshArr (VII PAY-Z) '!$C$7:$O$387,13),0)) ->  | AC164: =IF(A164="","",VLOOKUP(A164,'Statement(Z) '!$C$7:$U$213,19)) -> 
A165: ='PraveshArr (VII PAY-Z) '!Z161 ->  | C165: NO | E165: =IF(A165="","",'PraveshArr (VII PAY-Z) '!AC161) ->  | G165: =IF(A165="","",'PraveshArr (VII PAY-Z) '!AE161) ->  | H165: =IF(A165="","",'PraveshArr (VII PAY-Z) '!AG161) ->  | J165: =IF(A165="","",'PraveshArr (VII PAY-Z) '!AI161) ->  | K165: =IF('PraveshArr (VII PAY-Z) '!AQ161>0,'PraveshArr (VII PAY-Z) '!AQ161,0) ->  | L165: =IF('PraveshArr (VII PAY-Z) '!AN161>0,'PraveshArr (VII PAY-Z) '!AN161,0) ->  | U165: =IF(A165="","",'PraveshArr (VII PAY-Z) '!AR161) ->  | V165: Cash | X165: =IF(A165="","",IF(VLOOKUP(A165,'PraveshArr (VII PAY-Z) '!$Z$7:$BN$387,30)>0,VLOOKUP(A165,'PraveshArr (VII PAY-Z) '!$Z$7:$BN$387,30),0)) ->  | Z165: 0 | AA165: =IF(A165="","",IF(VLOOKUP(A165,'PraveshArr (VII PAY-Z) '!$C$7:$O$387,13)>0,VLOOKUP(A165,'PraveshArr (VII PAY-Z) '!$C$7:$O$387,13),0)) ->  | AC165: =IF(A165="","",VLOOKUP(A165,'Statement(Z) '!$C$7:$U$213,19)) -> 
A166: ='PraveshArr (VII PAY-Z) '!Z162 ->  | C166: NO | E166: =IF(A166="","",'PraveshArr (VII PAY-Z) '!AC162) ->  | G166: =IF(A166="","",'PraveshArr (VII PAY-Z) '!AE162) ->  | H166: =IF(A166="","",'PraveshArr (VII PAY-Z) '!AG162) ->  | J166: =IF(A166="","",'PraveshArr (VII PAY-Z) '!AI162) ->  | K166: =IF('PraveshArr (VII PAY-Z) '!AQ162>0,'PraveshArr (VII PAY-Z) '!AQ162,0) ->  | L166: =IF('PraveshArr (VII PAY-Z) '!AN162>0,'PraveshArr (VII PAY-Z) '!AN162,0) ->  | U166: =IF(A166="","",'PraveshArr (VII PAY-Z) '!AR162) ->  | V166: Cash | X166: =IF(A166="","",IF(VLOOKUP(A166,'PraveshArr (VII PAY-Z) '!$Z$7:$BN$387,30)>0,VLOOKUP(A166,'PraveshArr (VII PAY-Z) '!$Z$7:$BN$387,30),0)) ->  | Z166: 0 | AA166: =IF(A166="","",IF(VLOOKUP(A166,'PraveshArr (VII PAY-Z) '!$C$7:$O$387,13)>0,VLOOKUP(A166,'PraveshArr (VII PAY-Z) '!$C$7:$O$387,13),0)) ->  | AC166: =IF(A166="","",VLOOKUP(A166,'Statement(Z) '!$C$7:$U$213,19)) -> 
A167: ='PraveshArr (VII PAY-Z) '!Z163 ->  | C167: NO | E167: =IF(A167="","",'PraveshArr (VII PAY-Z) '!AC163) ->  | G167: =IF(A167="","",'PraveshArr (VII PAY-Z) '!AE163) ->  | H167: =IF(A167="","",'PraveshArr (VII PAY-Z) '!AG163) ->  | J167: =IF(A167="","",'PraveshArr (VII PAY-Z) '!AI163) ->  | K167: =IF('PraveshArr (VII PAY-Z) '!AQ163>0,'PraveshArr (VII PAY-Z) '!AQ163,0) ->  | L167: =IF('PraveshArr (VII PAY-Z) '!AN163>0,'PraveshArr (VII PAY-Z) '!AN163,0) ->  | U167: =IF(A167="","",'PraveshArr (VII PAY-Z) '!AR163) ->  | V167: Cash | X167: =IF(A167="","",IF(VLOOKUP(A167,'PraveshArr (VII PAY-Z) '!$Z$7:$BN$387,30)>0,VLOOKUP(A167,'PraveshArr (VII PAY-Z) '!$Z$7:$BN$387,30),0)) ->  | Z167: 0 | AA167: =IF(A167="","",IF(VLOOKUP(A167,'PraveshArr (VII PAY-Z) '!$C$7:$O$387,13)>0,VLOOKUP(A167,'PraveshArr (VII PAY-Z) '!$C$7:$O$387,13),0)) ->  | AC167: =IF(A167="","",VLOOKUP(A167,'Statement(Z) '!$C$7:$U$213,19)) -> 
A168: ='PraveshArr (VII PAY-Z) '!Z164 ->  | C168: NO | E168: =IF(A168="","",'PraveshArr (VII PAY-Z) '!AC164) ->  | G168: =IF(A168="","",'PraveshArr (VII PAY-Z) '!AE164) ->  | H168: =IF(A168="","",'PraveshArr (VII PAY-Z) '!AG164) ->  | J168: =IF(A168="","",'PraveshArr (VII PAY-Z) '!AI164) ->  | K168: =IF('PraveshArr (VII PAY-Z) '!AQ164>0,'PraveshArr (VII PAY-Z) '!AQ164,0) ->  | L168: =IF('PraveshArr (VII PAY-Z) '!AN164>0,'PraveshArr (VII PAY-Z) '!AN164,0) ->  | U168: =IF(A168="","",'PraveshArr (VII PAY-Z) '!AR164) ->  | V168: Cash | X168: =IF(A168="","",IF(VLOOKUP(A168,'PraveshArr (VII PAY-Z) '!$Z$7:$BN$387,30)>0,VLOOKUP(A168,'PraveshArr (VII PAY-Z) '!$Z$7:$BN$387,30),0)) ->  | Z168: 0 | AA168: =IF(A168="","",IF(VLOOKUP(A168,'PraveshArr (VII PAY-Z) '!$C$7:$O$387,13)>0,VLOOKUP(A168,'PraveshArr (VII PAY-Z) '!$C$7:$O$387,13),0)) ->  | AC168: =IF(A168="","",VLOOKUP(A168,'Statement(Z) '!$C$7:$U$213,19)) -> 
A169: ='PraveshArr (VII PAY-Z) '!Z165 ->  | C169: NO | E169: =IF(A169="","",'PraveshArr (VII PAY-Z) '!AC165) ->  | G169: =IF(A169="","",'PraveshArr (VII PAY-Z) '!AE165) ->  | H169: =IF(A169="","",'PraveshArr (VII PAY-Z) '!AG165) ->  | J169: =IF(A169="","",'PraveshArr (VII PAY-Z) '!AI165) ->  | K169: =IF('PraveshArr (VII PAY-Z) '!AQ165>0,'PraveshArr (VII PAY-Z) '!AQ165,0) ->  | L169: =IF('PraveshArr (VII PAY-Z) '!AN165>0,'PraveshArr (VII PAY-Z) '!AN165,0) ->  | U169: =IF(A169="","",'PraveshArr (VII PAY-Z) '!AR165) ->  | V169: Cash | X169: =IF(A169="","",IF(VLOOKUP(A169,'PraveshArr (VII PAY-Z) '!$Z$7:$BN$387,30)>0,VLOOKUP(A169,'PraveshArr (VII PAY-Z) '!$Z$7:$BN$387,30),0)) ->  | Z169: 0 | AA169: =IF(A169="","",IF(VLOOKUP(A169,'PraveshArr (VII PAY-Z) '!$C$7:$O$387,13)>0,VLOOKUP(A169,'PraveshArr (VII PAY-Z) '!$C$7:$O$387,13),0)) ->  | AC169: =IF(A169="","",VLOOKUP(A169,'Statement(Z) '!$C$7:$U$213,19)) -> 
A170: ='PraveshArr (VII PAY-Z) '!Z166 ->  | C170: NO | E170: =IF(A170="","",'PraveshArr (VII PAY-Z) '!AC166) ->  | G170: =IF(A170="","",'PraveshArr (VII PAY-Z) '!AE166) ->  | H170: =IF(A170="","",'PraveshArr (VII PAY-Z) '!AG166) ->  | J170: =IF(A170="","",'PraveshArr (VII PAY-Z) '!AI166) ->  | K170: =IF('PraveshArr (VII PAY-Z) '!AQ166>0,'PraveshArr (VII PAY-Z) '!AQ166,0) ->  | L170: =IF('PraveshArr (VII PAY-Z) '!AN166>0,'PraveshArr (VII PAY-Z) '!AN166,0) ->  | U170: =IF(A170="","",'PraveshArr (VII PAY-Z) '!AR166) ->  | V170: Cash | X170: =IF(A170="","",IF(VLOOKUP(A170,'PraveshArr (VII PAY-Z) '!$Z$7:$BN$387,30)>0,VLOOKUP(A170,'PraveshArr (VII PAY-Z) '!$Z$7:$BN$387,30),0)) ->  | Z170: 0 | AA170: =IF(A170="","",IF(VLOOKUP(A170,'PraveshArr (VII PAY-Z) '!$C$7:$O$387,13)>0,VLOOKUP(A170,'PraveshArr (VII PAY-Z) '!$C$7:$O$387,13),0)) ->  | AC170: =IF(A170="","",VLOOKUP(A170,'Statement(Z) '!$C$7:$U$213,19)) -> 
A171: ='PraveshArr (VII PAY-Z) '!Z167 ->  | C171: NO | E171: =IF(A171="","",'PraveshArr (VII PAY-Z) '!AC167) ->  | G171: =IF(A171="","",'PraveshArr (VII PAY-Z) '!AE167) ->  | H171: =IF(A171="","",'PraveshArr (VII PAY-Z) '!AG167) ->  | J171: =IF(A171="","",'PraveshArr (VII PAY-Z) '!AI167) ->  | K171: =IF('PraveshArr (VII PAY-Z) '!AQ167>0,'PraveshArr (VII PAY-Z) '!AQ167,0) ->  | L171: =IF('PraveshArr (VII PAY-Z) '!AN167>0,'PraveshArr (VII PAY-Z) '!AN167,0) ->  | U171: =IF(A171="","",'PraveshArr (VII PAY-Z) '!AR167) ->  | V171: Cash | X171: =IF(A171="","",IF(VLOOKUP(A171,'PraveshArr (VII PAY-Z) '!$Z$7:$BN$387,30)>0,VLOOKUP(A171,'PraveshArr (VII PAY-Z) '!$Z$7:$BN$387,30),0)) ->  | Z171: 0 | AA171: =IF(A171="","",IF(VLOOKUP(A171,'PraveshArr (VII PAY-Z) '!$C$7:$O$387,13)>0,VLOOKUP(A171,'PraveshArr (VII PAY-Z) '!$C$7:$O$387,13),0)) ->  | AC171: =IF(A171="","",VLOOKUP(A171,'Statement(Z) '!$C$7:$U$213,19)) -> 
A172: ='PraveshArr (VII PAY-Z) '!Z168 ->  | C172: NO | E172: =IF(A172="","",'PraveshArr (VII PAY-Z) '!AC168) ->  | G172: =IF(A172="","",'PraveshArr (VII PAY-Z) '!AE168) ->  | H172: =IF(A172="","",'PraveshArr (VII PAY-Z) '!AG168) ->  | J172: =IF(A172="","",'PraveshArr (VII PAY-Z) '!AI168) ->  | K172: =IF('PraveshArr (VII PAY-Z) '!AQ168>0,'PraveshArr (VII PAY-Z) '!AQ168,0) ->  | L172: =IF('PraveshArr (VII PAY-Z) '!AN168>0,'PraveshArr (VII PAY-Z) '!AN168,0) ->  | U172: =IF(A172="","",'PraveshArr (VII PAY-Z) '!AR168) ->  | V172: Cash | X172: =IF(A172="","",IF(VLOOKUP(A172,'PraveshArr (VII PAY-Z) '!$Z$7:$BN$387,30)>0,VLOOKUP(A172,'PraveshArr (VII PAY-Z) '!$Z$7:$BN$387,30),0)) ->  | Z172: 0 | AA172: =IF(A172="","",IF(VLOOKUP(A172,'PraveshArr (VII PAY-Z) '!$C$7:$O$387,13)>0,VLOOKUP(A172,'PraveshArr (VII PAY-Z) '!$C$7:$O$387,13),0)) ->  | AC172: =IF(A172="","",VLOOKUP(A172,'Statement(Z) '!$C$7:$U$213,19)) -> 
A173: ='PraveshArr (VII PAY-Z) '!Z169 ->  | C173: NO | E173: =IF(A173="","",'PraveshArr (VII PAY-Z) '!AC169) ->  | G173: =IF(A173="","",'PraveshArr (VII PAY-Z) '!AE169) ->  | H173: =IF(A173="","",'PraveshArr (VII PAY-Z) '!AG169) ->  | J173: =IF(A173="","",'PraveshArr (VII PAY-Z) '!AI169) ->  | K173: =IF('PraveshArr (VII PAY-Z) '!AQ169>0,'PraveshArr (VII PAY-Z) '!AQ169,0) ->  | L173: =IF('PraveshArr (VII PAY-Z) '!AN169>0,'PraveshArr (VII PAY-Z) '!AN169,0) ->  | U173: =IF(A173="","",'PraveshArr (VII PAY-Z) '!AR169) ->  | V173: Cash | X173: =IF(A173="","",IF(VLOOKUP(A173,'PraveshArr (VII PAY-Z) '!$Z$7:$BN$387,30)>0,VLOOKUP(A173,'PraveshArr (VII PAY-Z) '!$Z$7:$BN$387,30),0)) ->  | Z173: 0 | AA173: =IF(A173="","",IF(VLOOKUP(A173,'PraveshArr (VII PAY-Z) '!$C$7:$O$387,13)>0,VLOOKUP(A173,'PraveshArr (VII PAY-Z) '!$C$7:$O$387,13),0)) ->  | AC173: =IF(A173="","",VLOOKUP(A173,'Statement(Z) '!$C$7:$U$213,19)) -> 
A174: ='PraveshArr (VII PAY-Z) '!Z170 ->  | C174: NO | E174: =IF(A174="","",'PraveshArr (VII PAY-Z) '!AC170) ->  | G174: =IF(A174="","",'PraveshArr (VII PAY-Z) '!AE170) ->  | H174: =IF(A174="","",'PraveshArr (VII PAY-Z) '!AG170) ->  | J174: =IF(A174="","",'PraveshArr (VII PAY-Z) '!AI170) ->  | K174: =IF('PraveshArr (VII PAY-Z) '!AQ170>0,'PraveshArr (VII PAY-Z) '!AQ170,0) ->  | L174: =IF('PraveshArr (VII PAY-Z) '!AN170>0,'PraveshArr (VII PAY-Z) '!AN170,0) ->  | U174: =IF(A174="","",'PraveshArr (VII PAY-Z) '!AR170) ->  | V174: Cash | X174: =IF(A174="","",IF(VLOOKUP(A174,'PraveshArr (VII PAY-Z) '!$Z$7:$BN$387,30)>0,VLOOKUP(A174,'PraveshArr (VII PAY-Z) '!$Z$7:$BN$387,30),0)) ->  | Z174: 0 | AA174: =IF(A174="","",IF(VLOOKUP(A174,'PraveshArr (VII PAY-Z) '!$C$7:$O$387,13)>0,VLOOKUP(A174,'PraveshArr (VII PAY-Z) '!$C$7:$O$387,13),0)) ->  | AC174: =IF(A174="","",VLOOKUP(A174,'Statement(Z) '!$C$7:$U$213,19)) -> 
A175: ='PraveshArr (VII PAY-Z) '!Z171 ->  | C175: NO | E175: =IF(A175="","",'PraveshArr (VII PAY-Z) '!AC171) ->  | G175: =IF(A175="","",'PraveshArr (VII PAY-Z) '!AE171) ->  | H175: =IF(A175="","",'PraveshArr (VII PAY-Z) '!AG171) ->  | J175: =IF(A175="","",'PraveshArr (VII PAY-Z) '!AI171) ->  | K175: =IF('PraveshArr (VII PAY-Z) '!AQ171>0,'PraveshArr (VII PAY-Z) '!AQ171,0) ->  | L175: =IF('PraveshArr (VII PAY-Z) '!AN171>0,'PraveshArr (VII PAY-Z) '!AN171,0) ->  | U175: =IF(A175="","",'PraveshArr (VII PAY-Z) '!AR171) ->  | V175: Cash | X175: =IF(A175="","",IF(VLOOKUP(A175,'PraveshArr (VII PAY-Z) '!$Z$7:$BN$387,30)>0,VLOOKUP(A175,'PraveshArr (VII PAY-Z) '!$Z$7:$BN$387,30),0)) ->  | Z175: 0 | AA175: =IF(A175="","",IF(VLOOKUP(A175,'PraveshArr (VII PAY-Z) '!$C$7:$O$387,13)>0,VLOOKUP(A175,'PraveshArr (VII PAY-Z) '!$C$7:$O$387,13),0)) ->  | AC175: =IF(A175="","",VLOOKUP(A175,'Statement(Z) '!$C$7:$U$213,19)) -> 
A176: ='PraveshArr (VII PAY-Z) '!Z172 ->  | C176: NO | E176: =IF(A176="","",'PraveshArr (VII PAY-Z) '!AC172) ->  | G176: =IF(A176="","",'PraveshArr (VII PAY-Z) '!AE172) ->  | H176: =IF(A176="","",'PraveshArr (VII PAY-Z) '!AG172) ->  | J176: =IF(A176="","",'PraveshArr (VII PAY-Z) '!AI172) ->  | K176: =IF('PraveshArr (VII PAY-Z) '!AQ172>0,'PraveshArr (VII PAY-Z) '!AQ172,0) ->  | L176: =IF('PraveshArr (VII PAY-Z) '!AN172>0,'PraveshArr (VII PAY-Z) '!AN172,0) ->  | U176: =IF(A176="","",'PraveshArr (VII PAY-Z) '!AR172) ->  | V176: Cash | X176: =IF(A176="","",IF(VLOOKUP(A176,'PraveshArr (VII PAY-Z) '!$Z$7:$BN$387,30)>0,VLOOKUP(A176,'PraveshArr (VII PAY-Z) '!$Z$7:$BN$387,30),0)) ->  | Z176: 0 | AA176: =IF(A176="","",IF(VLOOKUP(A176,'PraveshArr (VII PAY-Z) '!$C$7:$O$387,13)>0,VLOOKUP(A176,'PraveshArr (VII PAY-Z) '!$C$7:$O$387,13),0)) ->  | AC176: =IF(A176="","",VLOOKUP(A176,'Statement(Z) '!$C$7:$U$213,19)) -> 
A177: ='PraveshArr (VII PAY-Z) '!Z173 ->  | C177: NO | E177: =IF(A177="","",'PraveshArr (VII PAY-Z) '!AC173) ->  | G177: =IF(A177="","",'PraveshArr (VII PAY-Z) '!AE173) ->  | H177: =IF(A177="","",'PraveshArr (VII PAY-Z) '!AG173) ->  | J177: =IF(A177="","",'PraveshArr (VII PAY-Z) '!AI173) ->  | K177: =IF('PraveshArr (VII PAY-Z) '!AQ173>0,'PraveshArr (VII PAY-Z) '!AQ173,0) ->  | L177: =IF('PraveshArr (VII PAY-Z) '!AN173>0,'PraveshArr (VII PAY-Z) '!AN173,0) ->  | U177: =IF(A177="","",'PraveshArr (VII PAY-Z) '!AR173) ->  | V177: Cash | X177: =IF(A177="","",IF(VLOOKUP(A177,'PraveshArr (VII PAY-Z) '!$Z$7:$BN$387,30)>0,VLOOKUP(A177,'PraveshArr (VII PAY-Z) '!$Z$7:$BN$387,30),0)) ->  | Z177: 0 | AA177: =IF(A177="","",IF(VLOOKUP(A177,'PraveshArr (VII PAY-Z) '!$C$7:$O$387,13)>0,VLOOKUP(A177,'PraveshArr (VII PAY-Z) '!$C$7:$O$387,13),0)) ->  | AC177: =IF(A177="","",VLOOKUP(A177,'Statement(Z) '!$C$7:$U$213,19)) -> 
A178: ='PraveshArr (VII PAY-Z) '!Z174 ->  | C178: NO | E178: =IF(A178="","",'PraveshArr (VII PAY-Z) '!AC174) ->  | G178: =IF(A178="","",'PraveshArr (VII PAY-Z) '!AE174) ->  | H178: =IF(A178="","",'PraveshArr (VII PAY-Z) '!AG174) ->  | J178: =IF(A178="","",'PraveshArr (VII PAY-Z) '!AI174) ->  | K178: =IF('PraveshArr (VII PAY-Z) '!AQ174>0,'PraveshArr (VII PAY-Z) '!AQ174,0) ->  | L178: =IF('PraveshArr (VII PAY-Z) '!AN174>0,'PraveshArr (VII PAY-Z) '!AN174,0) ->  | U178: =IF(A178="","",'PraveshArr (VII PAY-Z) '!AR174) ->  | V178: Cash | X178: =IF(A178="","",IF(VLOOKUP(A178,'PraveshArr (VII PAY-Z) '!$Z$7:$BN$387,30)>0,VLOOKUP(A178,'PraveshArr (VII PAY-Z) '!$Z$7:$BN$387,30),0)) ->  | Z178: 0 | AA178: =IF(A178="","",IF(VLOOKUP(A178,'PraveshArr (VII PAY-Z) '!$C$7:$O$387,13)>0,VLOOKUP(A178,'PraveshArr (VII PAY-Z) '!$C$7:$O$387,13),0)) ->  | AC178: =IF(A178="","",VLOOKUP(A178,'Statement(Z) '!$C$7:$U$213,19)) -> 
A179: ='PraveshArr (VII PAY-Z) '!Z175 ->  | C179: NO | E179: =IF(A179="","",'PraveshArr (VII PAY-Z) '!AC175) ->  | G179: =IF(A179="","",'PraveshArr (VII PAY-Z) '!AE175) ->  | H179: =IF(A179="","",'PraveshArr (VII PAY-Z) '!AG175) ->  | J179: =IF(A179="","",'PraveshArr (VII PAY-Z) '!AI175) ->  | K179: =IF('PraveshArr (VII PAY-Z) '!AQ175>0,'PraveshArr (VII PAY-Z) '!AQ175,0) ->  | L179: =IF('PraveshArr (VII PAY-Z) '!AN175>0,'PraveshArr (VII PAY-Z) '!AN175,0) ->  | U179: =IF(A179="","",'PraveshArr (VII PAY-Z) '!AR175) ->  | V179: Cash | X179: =IF(A179="","",IF(VLOOKUP(A179,'PraveshArr (VII PAY-Z) '!$Z$7:$BN$387,30)>0,VLOOKUP(A179,'PraveshArr (VII PAY-Z) '!$Z$7:$BN$387,30),0)) ->  | Z179: 0 | AA179: =IF(A179="","",IF(VLOOKUP(A179,'PraveshArr (VII PAY-Z) '!$C$7:$O$387,13)>0,VLOOKUP(A179,'PraveshArr (VII PAY-Z) '!$C$7:$O$387,13),0)) ->  | AC179: =IF(A179="","",VLOOKUP(A179,'Statement(Z) '!$C$7:$U$213,19)) -> 
A180: ='PraveshArr (VII PAY-Z) '!Z176 ->  | C180: NO | E180: =IF(A180="","",'PraveshArr (VII PAY-Z) '!AC176) ->  | G180: =IF(A180="","",'PraveshArr (VII PAY-Z) '!AE176) ->  | H180: =IF(A180="","",'PraveshArr (VII PAY-Z) '!AG176) ->  | J180: =IF(A180="","",'PraveshArr (VII PAY-Z) '!AI176) ->  | K180: =IF('PraveshArr (VII PAY-Z) '!AQ176>0,'PraveshArr (VII PAY-Z) '!AQ176,0) ->  | L180: =IF('PraveshArr (VII PAY-Z) '!AN176>0,'PraveshArr (VII PAY-Z) '!AN176,0) ->  | U180: =IF(A180="","",'PraveshArr (VII PAY-Z) '!AR176) ->  | V180: Cash | X180: =IF(A180="","",IF(VLOOKUP(A180,'PraveshArr (VII PAY-Z) '!$Z$7:$BN$387,30)>0,VLOOKUP(A180,'PraveshArr (VII PAY-Z) '!$Z$7:$BN$387,30),0)) ->  | Z180: 0 | AA180: =IF(A180="","",IF(VLOOKUP(A180,'PraveshArr (VII PAY-Z) '!$C$7:$O$387,13)>0,VLOOKUP(A180,'PraveshArr (VII PAY-Z) '!$C$7:$O$387,13),0)) ->  | AC180: =IF(A180="","",VLOOKUP(A180,'Statement(Z) '!$C$7:$U$213,19)) -> 
A181: ='PraveshArr (VII PAY-Z) '!Z177 ->  | C181: NO | E181: =IF(A181="","",'PraveshArr (VII PAY-Z) '!AC177) ->  | G181: =IF(A181="","",'PraveshArr (VII PAY-Z) '!AE177) ->  | H181: =IF(A181="","",'PraveshArr (VII PAY-Z) '!AG177) ->  | J181: =IF(A181="","",'PraveshArr (VII PAY-Z) '!AI177) ->  | K181: =IF('PraveshArr (VII PAY-Z) '!AQ177>0,'PraveshArr (VII PAY-Z) '!AQ177,0) ->  | L181: =IF('PraveshArr (VII PAY-Z) '!AN177>0,'PraveshArr (VII PAY-Z) '!AN177,0) ->  | U181: =IF(A181="","",'PraveshArr (VII PAY-Z) '!AR177) ->  | V181: Cash | X181: =IF(A181="","",IF(VLOOKUP(A181,'PraveshArr (VII PAY-Z) '!$Z$7:$BN$387,30)>0,VLOOKUP(A181,'PraveshArr (VII PAY-Z) '!$Z$7:$BN$387,30),0)) ->  | Z181: 0 | AA181: =IF(A181="","",IF(VLOOKUP(A181,'PraveshArr (VII PAY-Z) '!$C$7:$O$387,13)>0,VLOOKUP(A181,'PraveshArr (VII PAY-Z) '!$C$7:$O$387,13),0)) ->  | AC181: =IF(A181="","",VLOOKUP(A181,'Statement(Z) '!$C$7:$U$213,19)) -> 
A182: ='PraveshArr (VII PAY-Z) '!Z178 ->  | C182: NO | E182: =IF(A182="","",'PraveshArr (VII PAY-Z) '!AC178) ->  | G182: =IF(A182="","",'PraveshArr (VII PAY-Z) '!AE178) ->  | H182: =IF(A182="","",'PraveshArr (VII PAY-Z) '!AG178) ->  | J182: =IF(A182="","",'PraveshArr (VII PAY-Z) '!AI178) ->  | K182: =IF('PraveshArr (VII PAY-Z) '!AQ178>0,'PraveshArr (VII PAY-Z) '!AQ178,0) ->  | L182: =IF('PraveshArr (VII PAY-Z) '!AN178>0,'PraveshArr (VII PAY-Z) '!AN178,0) ->  | U182: =IF(A182="","",'PraveshArr (VII PAY-Z) '!AR178) ->  | V182: Cash | X182: =IF(A182="","",IF(VLOOKUP(A182,'PraveshArr (VII PAY-Z) '!$Z$7:$BN$387,30)>0,VLOOKUP(A182,'PraveshArr (VII PAY-Z) '!$Z$7:$BN$387,30),0)) ->  | Z182: 0 | AA182: =IF(A182="","",IF(VLOOKUP(A182,'PraveshArr (VII PAY-Z) '!$C$7:$O$387,13)>0,VLOOKUP(A182,'PraveshArr (VII PAY-Z) '!$C$7:$O$387,13),0)) ->  | AC182: =IF(A182="","",VLOOKUP(A182,'Statement(Z) '!$C$7:$U$213,19)) -> 
A183: ='PraveshArr (VII PAY-Z) '!Z179 ->  | C183: NO | E183: =IF(A183="","",'PraveshArr (VII PAY-Z) '!AC179) ->  | G183: =IF(A183="","",'PraveshArr (VII PAY-Z) '!AE179) ->  | H183: =IF(A183="","",'PraveshArr (VII PAY-Z) '!AG179) ->  | J183: =IF(A183="","",'PraveshArr (VII PAY-Z) '!AI179) ->  | K183: =IF('PraveshArr (VII PAY-Z) '!AQ179>0,'PraveshArr (VII PAY-Z) '!AQ179,0) ->  | L183: =IF('PraveshArr (VII PAY-Z) '!AN179>0,'PraveshArr (VII PAY-Z) '!AN179,0) ->  | U183: =IF(A183="","",'PraveshArr (VII PAY-Z) '!AR179) ->  | V183: Cash | X183: =IF(A183="","",IF(VLOOKUP(A183,'PraveshArr (VII PAY-Z) '!$Z$7:$BN$387,30)>0,VLOOKUP(A183,'PraveshArr (VII PAY-Z) '!$Z$7:$BN$387,30),0)) ->  | Z183: 0 | AA183: =IF(A183="","",IF(VLOOKUP(A183,'PraveshArr (VII PAY-Z) '!$C$7:$O$387,13)>0,VLOOKUP(A183,'PraveshArr (VII PAY-Z) '!$C$7:$O$387,13),0)) ->  | AC183: =IF(A183="","",VLOOKUP(A183,'Statement(Z) '!$C$7:$U$213,19)) -> 
A184: ='PraveshArr (VII PAY-Z) '!Z180 ->  | C184: NO | E184: =IF(A184="","",'PraveshArr (VII PAY-Z) '!AC180) ->  | G184: =IF(A184="","",'PraveshArr (VII PAY-Z) '!AE180) ->  | H184: =IF(A184="","",'PraveshArr (VII PAY-Z) '!AG180) ->  | J184: =IF(A184="","",'PraveshArr (VII PAY-Z) '!AI180) ->  | K184: =IF('PraveshArr (VII PAY-Z) '!AQ180>0,'PraveshArr (VII PAY-Z) '!AQ180,0) ->  | L184: =IF('PraveshArr (VII PAY-Z) '!AN180>0,'PraveshArr (VII PAY-Z) '!AN180,0) ->  | U184: =IF(A184="","",'PraveshArr (VII PAY-Z) '!AR180) ->  | V184: Cash | X184: =IF(A184="","",IF(VLOOKUP(A184,'PraveshArr (VII PAY-Z) '!$Z$7:$BN$387,30)>0,VLOOKUP(A184,'PraveshArr (VII PAY-Z) '!$Z$7:$BN$387,30),0)) ->  | Z184: 0 | AA184: =IF(A184="","",IF(VLOOKUP(A184,'PraveshArr (VII PAY-Z) '!$C$7:$O$387,13)>0,VLOOKUP(A184,'PraveshArr (VII PAY-Z) '!$C$7:$O$387,13),0)) ->  | AC184: =IF(A184="","",VLOOKUP(A184,'Statement(Z) '!$C$7:$U$213,19)) -> 
A185: ='PraveshArr (VII PAY-Z) '!Z181 ->  | C185: NO | E185: =IF(A185="","",'PraveshArr (VII PAY-Z) '!AC181) ->  | G185: =IF(A185="","",'PraveshArr (VII PAY-Z) '!AE181) ->  | H185: =IF(A185="","",'PraveshArr (VII PAY-Z) '!AG181) ->  | J185: =IF(A185="","",'PraveshArr (VII PAY-Z) '!AI181) ->  | K185: =IF('PraveshArr (VII PAY-Z) '!AQ181>0,'PraveshArr (VII PAY-Z) '!AQ181,0) ->  | L185: =IF('PraveshArr (VII PAY-Z) '!AN181>0,'PraveshArr (VII PAY-Z) '!AN181,0) ->  | U185: =IF(A185="","",'PraveshArr (VII PAY-Z) '!AR181) ->  | V185: Cash | X185: =IF(A185="","",IF(VLOOKUP(A185,'PraveshArr (VII PAY-Z) '!$Z$7:$BN$387,30)>0,VLOOKUP(A185,'PraveshArr (VII PAY-Z) '!$Z$7:$BN$387,30),0)) ->  | Z185: 0 | AA185: =IF(A185="","",IF(VLOOKUP(A185,'PraveshArr (VII PAY-Z) '!$C$7:$O$387,13)>0,VLOOKUP(A185,'PraveshArr (VII PAY-Z) '!$C$7:$O$387,13),0)) ->  | AC185: =IF(A185="","",VLOOKUP(A185,'Statement(Z) '!$C$7:$U$213,19)) -> 
A186: ='PraveshArr (VII PAY-Z) '!Z182 ->  | C186: NO | E186: =IF(A186="","",'PraveshArr (VII PAY-Z) '!AC182) ->  | G186: =IF(A186="","",'PraveshArr (VII PAY-Z) '!AE182) ->  | H186: =IF(A186="","",'PraveshArr (VII PAY-Z) '!AG182) ->  | J186: =IF(A186="","",'PraveshArr (VII PAY-Z) '!AI182) ->  | K186: =IF('PraveshArr (VII PAY-Z) '!AQ182>0,'PraveshArr (VII PAY-Z) '!AQ182,0) ->  | L186: =IF('PraveshArr (VII PAY-Z) '!AN182>0,'PraveshArr (VII PAY-Z) '!AN182,0) ->  | U186: =IF(A186="","",'PraveshArr (VII PAY-Z) '!AR182) ->  | V186: Cash | X186: =IF(A186="","",IF(VLOOKUP(A186,'PraveshArr (VII PAY-Z) '!$Z$7:$BN$387,30)>0,VLOOKUP(A186,'PraveshArr (VII PAY-Z) '!$Z$7:$BN$387,30),0)) ->  | Z186: 0 | AA186: =IF(A186="","",IF(VLOOKUP(A186,'PraveshArr (VII PAY-Z) '!$C$7:$O$387,13)>0,VLOOKUP(A186,'PraveshArr (VII PAY-Z) '!$C$7:$O$387,13),0)) ->  | AC186: =IF(A186="","",VLOOKUP(A186,'Statement(Z) '!$C$7:$U$213,19)) -> 
A187: ='PraveshArr (VII PAY-Z) '!Z183 ->  | C187: NO | E187: =IF(A187="","",'PraveshArr (VII PAY-Z) '!AC183) ->  | G187: =IF(A187="","",'PraveshArr (VII PAY-Z) '!AE183) ->  | H187: =IF(A187="","",'PraveshArr (VII PAY-Z) '!AG183) ->  | J187: =IF(A187="","",'PraveshArr (VII PAY-Z) '!AI183) ->  | K187: =IF('PraveshArr (VII PAY-Z) '!AQ183>0,'PraveshArr (VII PAY-Z) '!AQ183,0) ->  | L187: =IF('PraveshArr (VII PAY-Z) '!AN183>0,'PraveshArr (VII PAY-Z) '!AN183,0) ->  | U187: =IF(A187="","",'PraveshArr (VII PAY-Z) '!AR183) ->  | V187: Cash | X187: =IF(A187="","",IF(VLOOKUP(A187,'PraveshArr (VII PAY-Z) '!$Z$7:$BN$387,30)>0,VLOOKUP(A187,'PraveshArr (VII PAY-Z) '!$Z$7:$BN$387,30),0)) ->  | Z187: 0 | AA187: =IF(A187="","",IF(VLOOKUP(A187,'PraveshArr (VII PAY-Z) '!$C$7:$O$387,13)>0,VLOOKUP(A187,'PraveshArr (VII PAY-Z) '!$C$7:$O$387,13),0)) ->  | AC187: =IF(A187="","",VLOOKUP(A187,'Statement(Z) '!$C$7:$U$213,19)) -> 
A188: ='PraveshArr (VII PAY-Z) '!Z184 ->  | C188: NO | E188: =IF(A188="","",'PraveshArr (VII PAY-Z) '!AC184) ->  | G188: =IF(A188="","",'PraveshArr (VII PAY-Z) '!AE184) ->  | H188: =IF(A188="","",'PraveshArr (VII PAY-Z) '!AG184) ->  | J188: =IF(A188="","",'PraveshArr (VII PAY-Z) '!AI184) ->  | K188: =IF('PraveshArr (VII PAY-Z) '!AQ184>0,'PraveshArr (VII PAY-Z) '!AQ184,0) ->  | L188: =IF('PraveshArr (VII PAY-Z) '!AN184>0,'PraveshArr (VII PAY-Z) '!AN184,0) ->  | U188: =IF(A188="","",'PraveshArr (VII PAY-Z) '!AR184) ->  | V188: Cash | X188: =IF(A188="","",IF(VLOOKUP(A188,'PraveshArr (VII PAY-Z) '!$Z$7:$BN$387,30)>0,VLOOKUP(A188,'PraveshArr (VII PAY-Z) '!$Z$7:$BN$387,30),0)) ->  | Z188: 0 | AA188: =IF(A188="","",IF(VLOOKUP(A188,'PraveshArr (VII PAY-Z) '!$C$7:$O$387,13)>0,VLOOKUP(A188,'PraveshArr (VII PAY-Z) '!$C$7:$O$387,13),0)) ->  | AC188: =IF(A188="","",VLOOKUP(A188,'Statement(Z) '!$C$7:$U$213,19)) -> 
A189: ='PraveshArr (VII PAY-Z) '!Z185 ->  | C189: NO | E189: =IF(A189="","",'PraveshArr (VII PAY-Z) '!AC185) ->  | G189: =IF(A189="","",'PraveshArr (VII PAY-Z) '!AE185) ->  | H189: =IF(A189="","",'PraveshArr (VII PAY-Z) '!AG185) ->  | J189: =IF(A189="","",'PraveshArr (VII PAY-Z) '!AI185) ->  | K189: =IF('PraveshArr (VII PAY-Z) '!AQ185>0,'PraveshArr (VII PAY-Z) '!AQ185,0) ->  | L189: =IF('PraveshArr (VII PAY-Z) '!AN185>0,'PraveshArr (VII PAY-Z) '!AN185,0) ->  | U189: =IF(A189="","",'PraveshArr (VII PAY-Z) '!AR185) ->  | V189: Cash | X189: =IF(A189="","",IF(VLOOKUP(A189,'PraveshArr (VII PAY-Z) '!$Z$7:$BN$387,30)>0,VLOOKUP(A189,'PraveshArr (VII PAY-Z) '!$Z$7:$BN$387,30),0)) ->  | Z189: 0 | AA189: =IF(A189="","",IF(VLOOKUP(A189,'PraveshArr (VII PAY-Z) '!$C$7:$O$387,13)>0,VLOOKUP(A189,'PraveshArr (VII PAY-Z) '!$C$7:$O$387,13),0)) ->  | AC189: =IF(A189="","",VLOOKUP(A189,'Statement(Z) '!$C$7:$U$213,19)) -> 
A190: ='PraveshArr (VII PAY-Z) '!Z186 ->  | C190: NO | E190: =IF(A190="","",'PraveshArr (VII PAY-Z) '!AC186) ->  | G190: =IF(A190="","",'PraveshArr (VII PAY-Z) '!AE186) ->  | H190: =IF(A190="","",'PraveshArr (VII PAY-Z) '!AG186) ->  | J190: =IF(A190="","",'PraveshArr (VII PAY-Z) '!AI186) ->  | K190: =IF('PraveshArr (VII PAY-Z) '!AQ186>0,'PraveshArr (VII PAY-Z) '!AQ186,0) ->  | L190: =IF('PraveshArr (VII PAY-Z) '!AN186>0,'PraveshArr (VII PAY-Z) '!AN186,0) ->  | U190: =IF(A190="","",'PraveshArr (VII PAY-Z) '!AR186) ->  | V190: Cash | X190: =IF(A190="","",IF(VLOOKUP(A190,'PraveshArr (VII PAY-Z) '!$Z$7:$BN$387,30)>0,VLOOKUP(A190,'PraveshArr (VII PAY-Z) '!$Z$7:$BN$387,30),0)) ->  | Z190: 0 | AA190: =IF(A190="","",IF(VLOOKUP(A190,'PraveshArr (VII PAY-Z) '!$C$7:$O$387,13)>0,VLOOKUP(A190,'PraveshArr (VII PAY-Z) '!$C$7:$O$387,13),0)) ->  | AC190: =IF(A190="","",VLOOKUP(A190,'Statement(Z) '!$C$7:$U$213,19)) -> 
A191: ='PraveshArr (VII PAY-Z) '!Z187 ->  | C191: NO | E191: =IF(A191="","",'PraveshArr (VII PAY-Z) '!AC187) ->  | G191: =IF(A191="","",'PraveshArr (VII PAY-Z) '!AE187) ->  | H191: =IF(A191="","",'PraveshArr (VII PAY-Z) '!AG187) ->  | J191: =IF(A191="","",'PraveshArr (VII PAY-Z) '!AI187) ->  | K191: =IF('PraveshArr (VII PAY-Z) '!AQ187>0,'PraveshArr (VII PAY-Z) '!AQ187,0) ->  | L191: =IF('PraveshArr (VII PAY-Z) '!AN187>0,'PraveshArr (VII PAY-Z) '!AN187,0) ->  | U191: =IF(A191="","",'PraveshArr (VII PAY-Z) '!AR187) ->  | V191: Cash | X191: =IF(A191="","",IF(VLOOKUP(A191,'PraveshArr (VII PAY-Z) '!$Z$7:$BN$387,30)>0,VLOOKUP(A191,'PraveshArr (VII PAY-Z) '!$Z$7:$BN$387,30),0)) ->  | Z191: 0 | AA191: =IF(A191="","",IF(VLOOKUP(A191,'PraveshArr (VII PAY-Z) '!$C$7:$O$387,13)>0,VLOOKUP(A191,'PraveshArr (VII PAY-Z) '!$C$7:$O$387,13),0)) ->  | AC191: =IF(A191="","",VLOOKUP(A191,'Statement(Z) '!$C$7:$U$213,19)) -> 
A192: ='PraveshArr (VII PAY-Z) '!Z188 ->  | C192: NO | E192: =IF(A192="","",'PraveshArr (VII PAY-Z) '!AC188) ->  | G192: =IF(A192="","",'PraveshArr (VII PAY-Z) '!AE188) ->  | H192: =IF(A192="","",'PraveshArr (VII PAY-Z) '!AG188) ->  | J192: =IF(A192="","",'PraveshArr (VII PAY-Z) '!AI188) ->  | K192: =IF('PraveshArr (VII PAY-Z) '!AQ188>0,'PraveshArr (VII PAY-Z) '!AQ188,0) ->  | L192: =IF('PraveshArr (VII PAY-Z) '!AN188>0,'PraveshArr (VII PAY-Z) '!AN188,0) ->  | U192: =IF(A192="","",'PraveshArr (VII PAY-Z) '!AR188) ->  | V192: Cash | X192: =IF(A192="","",IF(VLOOKUP(A192,'PraveshArr (VII PAY-Z) '!$Z$7:$BN$387,30)>0,VLOOKUP(A192,'PraveshArr (VII PAY-Z) '!$Z$7:$BN$387,30),0)) ->  | Z192: 0 | AA192: =IF(A192="","",IF(VLOOKUP(A192,'PraveshArr (VII PAY-Z) '!$C$7:$O$387,13)>0,VLOOKUP(A192,'PraveshArr (VII PAY-Z) '!$C$7:$O$387,13),0)) ->  | AC192: =IF(A192="","",VLOOKUP(A192,'Statement(Z) '!$C$7:$U$213,19)) -> 
A193: ='PraveshArr (VII PAY-Z) '!Z189 ->  | C193: NO | E193: =IF(A193="","",'PraveshArr (VII PAY-Z) '!AC189) ->  | G193: =IF(A193="","",'PraveshArr (VII PAY-Z) '!AE189) ->  | H193: =IF(A193="","",'PraveshArr (VII PAY-Z) '!AG189) ->  | J193: =IF(A193="","",'PraveshArr (VII PAY-Z) '!AI189) ->  | K193: =IF('PraveshArr (VII PAY-Z) '!AQ189>0,'PraveshArr (VII PAY-Z) '!AQ189,0) ->  | L193: =IF('PraveshArr (VII PAY-Z) '!AN189>0,'PraveshArr (VII PAY-Z) '!AN189,0) ->  | U193: =IF(A193="","",'PraveshArr (VII PAY-Z) '!AR189) ->  | V193: Cash | X193: =IF(A193="","",IF(VLOOKUP(A193,'PraveshArr (VII PAY-Z) '!$Z$7:$BN$387,30)>0,VLOOKUP(A193,'PraveshArr (VII PAY-Z) '!$Z$7:$BN$387,30),0)) ->  | Z193: 0 | AA193: =IF(A193="","",IF(VLOOKUP(A193,'PraveshArr (VII PAY-Z) '!$C$7:$O$387,13)>0,VLOOKUP(A193,'PraveshArr (VII PAY-Z) '!$C$7:$O$387,13),0)) ->  | AC193: =IF(A193="","",VLOOKUP(A193,'Statement(Z) '!$C$7:$U$213,19)) -> 
A194: ='PraveshArr (VII PAY-Z) '!Z190 ->  | C194: NO | E194: =IF(A194="","",'PraveshArr (VII PAY-Z) '!AC190) ->  | G194: =IF(A194="","",'PraveshArr (VII PAY-Z) '!AE190) ->  | H194: =IF(A194="","",'PraveshArr (VII PAY-Z) '!AG190) ->  | J194: =IF(A194="","",'PraveshArr (VII PAY-Z) '!AI190) ->  | K194: =IF('PraveshArr (VII PAY-Z) '!AQ190>0,'PraveshArr (VII PAY-Z) '!AQ190,0) ->  | L194: =IF('PraveshArr (VII PAY-Z) '!AN190>0,'PraveshArr (VII PAY-Z) '!AN190,0) ->  | U194: =IF(A194="","",'PraveshArr (VII PAY-Z) '!AR190) ->  | V194: Cash | X194: =IF(A194="","",IF(VLOOKUP(A194,'PraveshArr (VII PAY-Z) '!$Z$7:$BN$387,30)>0,VLOOKUP(A194,'PraveshArr (VII PAY-Z) '!$Z$7:$BN$387,30),0)) ->  | Z194: 0 | AA194: =IF(A194="","",IF(VLOOKUP(A194,'PraveshArr (VII PAY-Z) '!$C$7:$O$387,13)>0,VLOOKUP(A194,'PraveshArr (VII PAY-Z) '!$C$7:$O$387,13),0)) ->  | AC194: =IF(A194="","",VLOOKUP(A194,'Statement(Z) '!$C$7:$U$213,19)) -> 
A195: ='PraveshArr (VII PAY-Z) '!Z191 ->  | C195: NO | E195: =IF(A195="","",'PraveshArr (VII PAY-Z) '!AC191) ->  | G195: =IF(A195="","",'PraveshArr (VII PAY-Z) '!AE191) ->  | H195: =IF(A195="","",'PraveshArr (VII PAY-Z) '!AG191) ->  | J195: =IF(A195="","",'PraveshArr (VII PAY-Z) '!AI191) ->  | K195: =IF('PraveshArr (VII PAY-Z) '!AQ191>0,'PraveshArr (VII PAY-Z) '!AQ191,0) ->  | L195: =IF('PraveshArr (VII PAY-Z) '!AN191>0,'PraveshArr (VII PAY-Z) '!AN191,0) ->  | U195: =IF(A195="","",'PraveshArr (VII PAY-Z) '!AR191) ->  | V195: Cash | X195: =IF(A195="","",IF(VLOOKUP(A195,'PraveshArr (VII PAY-Z) '!$Z$7:$BN$387,30)>0,VLOOKUP(A195,'PraveshArr (VII PAY-Z) '!$Z$7:$BN$387,30),0)) ->  | Z195: 0 | AA195: =IF(A195="","",IF(VLOOKUP(A195,'PraveshArr (VII PAY-Z) '!$C$7:$O$387,13)>0,VLOOKUP(A195,'PraveshArr (VII PAY-Z) '!$C$7:$O$387,13),0)) ->  | AC195: =IF(A195="","",VLOOKUP(A195,'Statement(Z) '!$C$7:$U$213,19)) -> 
A196: ='PraveshArr (VII PAY-Z) '!Z192 ->  | C196: NO | E196: =IF(A196="","",'PraveshArr (VII PAY-Z) '!AC192) ->  | G196: =IF(A196="","",'PraveshArr (VII PAY-Z) '!AE192) ->  | H196: =IF(A196="","",'PraveshArr (VII PAY-Z) '!AG192) ->  | J196: =IF(A196="","",'PraveshArr (VII PAY-Z) '!AI192) ->  | K196: =IF('PraveshArr (VII PAY-Z) '!AQ192>0,'PraveshArr (VII PAY-Z) '!AQ192,0) ->  | L196: =IF('PraveshArr (VII PAY-Z) '!AN192>0,'PraveshArr (VII PAY-Z) '!AN192,0) ->  | U196: =IF(A196="","",'PraveshArr (VII PAY-Z) '!AR192) ->  | V196: Cash | X196: =IF(A196="","",IF(VLOOKUP(A196,'PraveshArr (VII PAY-Z) '!$Z$7:$BN$387,30)>0,VLOOKUP(A196,'PraveshArr (VII PAY-Z) '!$Z$7:$BN$387,30),0)) ->  | Z196: 0 | AA196: =IF(A196="","",IF(VLOOKUP(A196,'PraveshArr (VII PAY-Z) '!$C$7:$O$387,13)>0,VLOOKUP(A196,'PraveshArr (VII PAY-Z) '!$C$7:$O$387,13),0)) ->  | AC196: =IF(A196="","",VLOOKUP(A196,'Statement(Z) '!$C$7:$U$213,19)) -> 
A197: ='PraveshArr (VII PAY-Z) '!Z193 ->  | C197: NO | E197: =IF(A197="","",'PraveshArr (VII PAY-Z) '!AC193) ->  | G197: =IF(A197="","",'PraveshArr (VII PAY-Z) '!AE193) ->  | H197: =IF(A197="","",'PraveshArr (VII PAY-Z) '!AG193) ->  | J197: =IF(A197="","",'PraveshArr (VII PAY-Z) '!AI193) ->  | K197: =IF('PraveshArr (VII PAY-Z) '!AQ193>0,'PraveshArr (VII PAY-Z) '!AQ193,0) ->  | L197: =IF('PraveshArr (VII PAY-Z) '!AN193>0,'PraveshArr (VII PAY-Z) '!AN193,0) ->  | U197: =IF(A197="","",'PraveshArr (VII PAY-Z) '!AR193) ->  | V197: Cash | X197: =IF(A197="","",IF(VLOOKUP(A197,'PraveshArr (VII PAY-Z) '!$Z$7:$BN$387,30)>0,VLOOKUP(A197,'PraveshArr (VII PAY-Z) '!$Z$7:$BN$387,30),0)) ->  | Z197: 0 | AA197: =IF(A197="","",IF(VLOOKUP(A197,'PraveshArr (VII PAY-Z) '!$C$7:$O$387,13)>0,VLOOKUP(A197,'PraveshArr (VII PAY-Z) '!$C$7:$O$387,13),0)) ->  | AC197: =IF(A197="","",VLOOKUP(A197,'Statement(Z) '!$C$7:$U$213,19)) -> 
A198: ='PraveshArr (VII PAY-Z) '!Z194 ->  | C198: NO | E198: =IF(A198="","",'PraveshArr (VII PAY-Z) '!AC194) ->  | G198: =IF(A198="","",'PraveshArr (VII PAY-Z) '!AE194) ->  | H198: =IF(A198="","",'PraveshArr (VII PAY-Z) '!AG194) ->  | J198: =IF(A198="","",'PraveshArr (VII PAY-Z) '!AI194) ->  | K198: =IF('PraveshArr (VII PAY-Z) '!AQ194>0,'PraveshArr (VII PAY-Z) '!AQ194,0) ->  | L198: =IF('PraveshArr (VII PAY-Z) '!AN194>0,'PraveshArr (VII PAY-Z) '!AN194,0) ->  | U198: =IF(A198="","",'PraveshArr (VII PAY-Z) '!AR194) ->  | V198: Cash | X198: =IF(A198="","",IF(VLOOKUP(A198,'PraveshArr (VII PAY-Z) '!$Z$7:$BN$387,30)>0,VLOOKUP(A198,'PraveshArr (VII PAY-Z) '!$Z$7:$BN$387,30),0)) ->  | Z198: 0 | AA198: =IF(A198="","",IF(VLOOKUP(A198,'PraveshArr (VII PAY-Z) '!$C$7:$O$387,13)>0,VLOOKUP(A198,'PraveshArr (VII PAY-Z) '!$C$7:$O$387,13),0)) ->  | AC198: =IF(A198="","",VLOOKUP(A198,'Statement(Z) '!$C$7:$U$213,19)) -> 
A199: ='PraveshArr (VII PAY-Z) '!Z195 ->  | C199: NO | E199: =IF(A199="","",'PraveshArr (VII PAY-Z) '!AC195) ->  | G199: =IF(A199="","",'PraveshArr (VII PAY-Z) '!AE195) ->  | H199: =IF(A199="","",'PraveshArr (VII PAY-Z) '!AG195) ->  | J199: =IF(A199="","",'PraveshArr (VII PAY-Z) '!AI195) ->  | K199: =IF('PraveshArr (VII PAY-Z) '!AQ195>0,'PraveshArr (VII PAY-Z) '!AQ195,0) ->  | L199: =IF('PraveshArr (VII PAY-Z) '!AN195>0,'PraveshArr (VII PAY-Z) '!AN195,0) ->  | U199: =IF(A199="","",'PraveshArr (VII PAY-Z) '!AR195) ->  | V199: Cash | X199: =IF(A199="","",IF(VLOOKUP(A199,'PraveshArr (VII PAY-Z) '!$Z$7:$BN$387,30)>0,VLOOKUP(A199,'PraveshArr (VII PAY-Z) '!$Z$7:$BN$387,30),0)) ->  | Z199: 0 | AA199: =IF(A199="","",IF(VLOOKUP(A199,'PraveshArr (VII PAY-Z) '!$C$7:$O$387,13)>0,VLOOKUP(A199,'PraveshArr (VII PAY-Z) '!$C$7:$O$387,13),0)) ->  | AC199: =IF(A199="","",VLOOKUP(A199,'Statement(Z) '!$C$7:$U$213,19)) -> 
A200: ='PraveshArr (VII PAY-Z) '!Z196 ->  | C200: NO | E200: =IF(A200="","",'PraveshArr (VII PAY-Z) '!AC196) ->  | G200: =IF(A200="","",'PraveshArr (VII PAY-Z) '!AE196) ->  | H200: =IF(A200="","",'PraveshArr (VII PAY-Z) '!AG196) ->  | J200: =IF(A200="","",'PraveshArr (VII PAY-Z) '!AI196) ->  | K200: =IF('PraveshArr (VII PAY-Z) '!AQ196>0,'PraveshArr (VII PAY-Z) '!AQ196,0) ->  | L200: =IF('PraveshArr (VII PAY-Z) '!AN196>0,'PraveshArr (VII PAY-Z) '!AN196,0) ->  | U200: =IF(A200="","",'PraveshArr (VII PAY-Z) '!AR196) ->  | V200: Cash | X200: =IF(A200="","",IF(VLOOKUP(A200,'PraveshArr (VII PAY-Z) '!$Z$7:$BN$387,30)>0,VLOOKUP(A200,'PraveshArr (VII PAY-Z) '!$Z$7:$BN$387,30),0)) ->  | Z200: 0 | AA200: =IF(A200="","",IF(VLOOKUP(A200,'PraveshArr (VII PAY-Z) '!$C$7:$O$387,13)>0,VLOOKUP(A200,'PraveshArr (VII PAY-Z) '!$C$7:$O$387,13),0)) ->  | AC200: =IF(A200="","",VLOOKUP(A200,'Statement(Z) '!$C$7:$U$213,19)) -> 
A201: ='PraveshArr (VII PAY-Z) '!Z197 ->  | C201: NO | E201: =IF(A201="","",'PraveshArr (VII PAY-Z) '!AC197) ->  | G201: =IF(A201="","",'PraveshArr (VII PAY-Z) '!AE197) ->  | H201: =IF(A201="","",'PraveshArr (VII PAY-Z) '!AG197) ->  | J201: =IF(A201="","",'PraveshArr (VII PAY-Z) '!AI197) ->  | K201: =IF('PraveshArr (VII PAY-Z) '!AQ197>0,'PraveshArr (VII PAY-Z) '!AQ197,0) ->  | L201: =IF('PraveshArr (VII PAY-Z) '!AN197>0,'PraveshArr (VII PAY-Z) '!AN197,0) ->  | U201: =IF(A201="","",'PraveshArr (VII PAY-Z) '!AR197) ->  | V201: Cash | X201: =IF(A201="","",IF(VLOOKUP(A201,'PraveshArr (VII PAY-Z) '!$Z$7:$BN$387,30)>0,VLOOKUP(A201,'PraveshArr (VII PAY-Z) '!$Z$7:$BN$387,30),0)) ->  | Z201: 0 | AA201: =IF(A201="","",IF(VLOOKUP(A201,'PraveshArr (VII PAY-Z) '!$C$7:$O$387,13)>0,VLOOKUP(A201,'PraveshArr (VII PAY-Z) '!$C$7:$O$387,13),0)) ->  | AC201: =IF(A201="","",VLOOKUP(A201,'Statement(Z) '!$C$7:$U$213,19)) -> 
... 42 more rows

Sheet Statement(Z)
O1: 1
B2: Home-Arrear Master | G2: Back-Input Data Arrear (VII PAY-Z) | AC2: Home-Arrear Master
B3: ='Data (VII PAY-Z)'!$F$6 -> COMMISSIONER COLONISATION, BIKANER
C4: ='PraveshArr (VII PAY-Z) '!BQ9 -> Salary Arrear due to Notification No.F15(1)FD(Rules)2017, dated 09-12-2017 of PRAVESH KUMAR SHARMA,DESIGNATION-ACCOUNTANT,From 01/01/2017 To 30/09/2017
B5: S.N. | C5: PERIODS | D5: Due Salary | J5: Drawn Salary | P5: Difference of Due and Drawan Salary | V5: Deduction (if any) | AE5: Net Due Amt | AF5: Encash-ment Date
D6: Basic Pay | E6: D.P. | F6: D.A. | G6: HRA | H6: =N6 -> CCA | I6: Total Gross Salary | J6: Basic Pay | K6: D.P. | L6: D.A. | M6: HRA | N6: ='Data (VI PAY-A)'!O9 -> CCA | O6: Total Gross Salary | P6: Basic Pay | Q6: D.P. | R6: D.A. | S6: HRA | T6: =N6 -> CCA | U6: TOTAL | V6: GPF | W6: SI | X6: RPMF | Y6: GPF | Z6: ECPen Fund | AA6: RP-MF | AB6: HFR | AC6: IT | AD6: Total
A7: ='Data (VII PAY-Z)'!B11 -> Adj. in GPF | B7: 1 | C7: ='Data (VII PAY-Z)'!A11 -> 2017-01-01 | D7: =INDEX('Data (VII PAY-Z)'!$G$11:$G$242,MATCH('Statement(Z) '!C7,'Data (VII PAY-Z)'!$A$11:$A$242,0)) -> 77500 | E7: 0 | F7: =IF(C7="","",ROUND(D7*'PraveshArr (VII PAY-Z) '!AQ7,0)) -> 3100 | G7: =INDEX('Data (VII PAY-Z)'!$Q$11:$Q$208,MATCH('Statement(Z) '!C7,'Data (VII PAY-Z)'!$A$11:$A$208,0)) -> 0 | H7: =INDEX('Data (VII PAY-Z)'!$M$11:$M$208,MATCH('Statement(Z) '!C7,'Data (VII PAY-Z)'!$A$11:$A$208,0)) -> 0 | I7: =SUM(D7:H7) -> 80600 | J7: =IF(C7="","",INDEX('Data (VII PAY-Z)'!$J$11:$J$242,MATCH('Statement(Z) '!C7,'Data (VII PAY-Z)'!$A$11:$A$242,0))) -> 26760 | K7: 0 | L7: =IF(C7="","",ROUND(J7*'PraveshArr (VII PAY-Z) '!AN7,0)) -> 36394 | M7: =IF(C7="","",INDEX('Data (VII PAY-Z)'!$T$11:$T$242,MATCH('Statement(Z) '!C7,'Data (VII PAY-Z)'!$A$11:$A$242,0))) -> 0 | N7: =IF(C7="","",INDEX('Data (VII PAY-Z)'!$N$11:$N$242,MATCH('Statement(Z) '!C7,'Data (VII PAY-Z)'!$A$11:$A$242,0))) -> 0 | O7: =SUM(J7:N7) -> 63154 | P7: =D7-J7 -> 50740 | Q7: =E7-K7 -> 0 | R7: =F7-L7 -> -33294 | S7: =G7-M7 -> 0 | T7: =H7-N7 -> 0 | U7: =SUM(P7:T7) -> 17446 | V7: 0 | W7: 0 | X7: 0 | Y7: =IF(C7="","",IF('Data (VII PAY-Z)'!V11="Cash",0,IF('Data (VII PAY-Z)'!B11="Adj. in GPF",(U7-Z7-AA7-AB7-AC7),0))) -> 17426 | Z7: =IF(C7="","",IF(A7="Notional",0,IF(A7="Adj. in GPF",0,IF(A7="Cash",ROUND(U7*10%,0))))) -> 0 | AA7: =IF(C7="","",IF(A7="Cash",0,'Data (VII PAY-Z)'!AA11)) -> 20 | AB7: =IF(C7="","",'Data (VII PAY-Z)'!AB11) -> 0 | AC7: =IF(C7="","",'Data (VII PAY-Z)'!AG11) -> 0 | AD7: =SUM(V7:AC7) -> 17446 | AE7: =IF(C7="","",IF(A7="Adj. in GPF",0,IF(A7="Cash",U7-AD7,"N.B."))) -> 0 | AF7: =IF(C7="","",IF('Data (VII PAY-Z)'!AH11="","",'Data (VII PAY-Z)'!AH11)) -> 
A8: ='Data (VII PAY-Z)'!B12 -> Adj. in GPF | B8: =IF(C8="","",B7+1) -> 2 | C8: ='Data (VII PAY-Z)'!A12 -> 2017-02-01 | D8: =INDEX('Data (VII PAY-Z)'!$G$11:$G$242,MATCH('Statement(Z) '!C8,'Data (VII PAY-Z)'!$A$11:$A$242,0)) -> 77500 | E8: 0 | F8: =IF(C8="","",ROUND(D8*'PraveshArr (VII PAY-Z) '!AQ8,0)) -> 3100 | G8: =INDEX('Data (VII PAY-Z)'!$Q$11:$Q$208,MATCH('Statement(Z) '!C8,'Data (VII PAY-Z)'!$A$11:$A$208,0)) -> 0 | H8: =INDEX('Data (VII PAY-Z)'!$M$11:$M$208,MATCH('Statement(Z) '!C8,'Data (VII PAY-Z)'!$A$11:$A$208,0)) -> 0 | I8: =IF(D8="","",SUM(D8:H8)) -> 80600 | J8: =IF(C8="","",INDEX('Data (VII PAY-Z)'!$J$11:$J$242,MATCH('Statement(Z) '!C8,'Data (VII PAY-Z)'!$A$11:$A$242,0))) -> 26760 | K8: 0 | L8: =IF(C8="","",ROUND(J8*'PraveshArr (VII PAY-Z) '!AN8,0)) -> 36394 | M8: =IF(C8="","",INDEX('Data (VII PAY-Z)'!$T$11:$T$242,MATCH('Statement(Z) '!C8,'Data (VII PAY-Z)'!$A$11:$A$242,0))) -> 0 | N8: =IF(C8="","",INDEX('Data (VII PAY-Z)'!$N$11:$N$242,MATCH('Statement(Z) '!C8,'Data (VII PAY-Z)'!$A$11:$A$242,0))) -> 0 | O8: =IF(C8="","",SUM(J8:N8)) -> 63154 | P8: =IF(C8="","",D8-J8) -> 50740 | Q8: =E8-K8 -> 0 | R8: =IF(C8="","",F8-L8) -> -33294 | S8: =IF(C8="","",G8-M8) -> 0 | T8: =IF(C8="","",H8-N8) -> 0 | U8: =IF(C8="","",SUM(P8:T8)) -> 17446 | V8: 0 | W8: 0 | X8: 0 | Y8: =IF(C8="","",IF('Data (VII PAY-Z)'!V12="Cash",0,IF('Data (VII PAY-Z)'!B12="Adj. in GPF",(U8-Z8-AA8-AB8-AC8),0))) -> 17426 | Z8: =IF(C8="","",IF(A8="Notional",0,IF(A8="Adj. in GPF",0,IF(A8="Cash",ROUND(U8*10%,0))))) -> 0 | AA8: =IF(C8="","",IF(A8="Cash",0,'Data (VII PAY-Z)'!AA12)) -> 20 | AB8: =IF(C8="","",'Data (VII PAY-Z)'!AB12) -> 0 | AC8: =IF(C8="","",'Data (VII PAY-Z)'!AG12) -> 0 | AD8: =IF(C8="","",SUM(V8:AC8)) -> 17446 | AE8: =IF(C8="","",IF(A8="Adj. in GPF",0,IF(A8="Cash",U8-AD8,"N.B."))) -> 0 | AF8: =IF(C8="","",IF('Data (VII PAY-Z)'!AH12="","",'Data (VII PAY-Z)'!AH12)) -> 
A9: ='Data (VII PAY-Z)'!B13 -> Adj. in GPF | B9: =IF(C9="","",B8+1) -> 3 | C9: ='Data (VII PAY-Z)'!A13 -> 2017-03-01 | D9: =INDEX('Data (VII PAY-Z)'!$G$11:$G$242,MATCH('Statement(Z) '!C9,'Data (VII PAY-Z)'!$A$11:$A$242,0)) -> 77500 | E9: 0 | F9: =IF(C9="","",ROUND(D9*'PraveshArr (VII PAY-Z) '!AQ9,0)) -> 3100 | G9: =INDEX('Data (VII PAY-Z)'!$Q$11:$Q$208,MATCH('Statement(Z) '!C9,'Data (VII PAY-Z)'!$A$11:$A$208,0)) -> 0 | H9: =INDEX('Data (VII PAY-Z)'!$M$11:$M$208,MATCH('Statement(Z) '!C9,'Data (VII PAY-Z)'!$A$11:$A$208,0)) -> 0 | I9: =IF(D9="","",SUM(D9:H9)) -> 80600 | J9: =IF(C9="","",INDEX('Data (VII PAY-Z)'!$J$11:$J$242,MATCH('Statement(Z) '!C9,'Data (VII PAY-Z)'!$A$11:$A$242,0))) -> 26760 | K9: 0 | L9: =IF(C9="","",ROUND(J9*'PraveshArr (VII PAY-Z) '!AN9,0)) -> 36394 | M9: =IF(C9="","",INDEX('Data (VII PAY-Z)'!$T$11:$T$242,MATCH('Statement(Z) '!C9,'Data (VII PAY-Z)'!$A$11:$A$242,0))) -> 0 | N9: =IF(C9="","",INDEX('Data (VII PAY-Z)'!$N$11:$N$242,MATCH('Statement(Z) '!C9,'Data (VII PAY-Z)'!$A$11:$A$242,0))) -> 0 | O9: =IF(C9="","",SUM(J9:N9)) -> 63154 | P9: =IF(C9="","",D9-J9) -> 50740 | Q9: =E9-K9 -> 0 | R9: =IF(C9="","",F9-L9) -> -33294 | S9: =IF(C9="","",G9-M9) -> 0 | T9: =IF(C9="","",H9-N9) -> 0 | U9: =IF(C9="","",SUM(P9:T9)) -> 17446 | V9: 0 | W9: 0 | X9: 0 | Y9: =IF(C9="","",IF('Data (VII PAY-Z)'!V13="Cash",0,IF('Data (VII PAY-Z)'!B13="Adj. in GPF",(U9-Z9-AA9-AB9-AC9),0))) -> 17446 | Z9: 0 | AA9: =IF(C9="","",IF(A9="Cash",0,'Data (VII PAY-Z)'!AA13)) -> 0 | AB9: =IF(C9="","",'Data (VII PAY-Z)'!AB13) -> 0 | AC9: =IF(C9="","",'Data (VII PAY-Z)'!AG13) -> 0 | AD9: =IF(C9="","",SUM(V9:AC9)) -> 17446 | AE9: 0 | AF9: =IF(C9="","",IF('Data (VII PAY-Z)'!AH13="","",'Data (VII PAY-Z)'!AH13)) -> 
A10: ='Data (VII PAY-Z)'!B14 -> Adj. in GPF | B10: 4 | C10: ='Data (VII PAY-Z)'!A14 -> 2017-04-01 | D10: =INDEX('Data (VII PAY-Z)'!$G$11:$G$242,MATCH('Statement(Z) '!C10,'Data (VII PAY-Z)'!$A$11:$A$242,0)) -> 77500 | E10: 0 | F10: =IF(C10="","",ROUND(D10*'PraveshArr (VII PAY-Z) '!AQ10,0)) -> 3100 | G10: =INDEX('Data (VII PAY-Z)'!$Q$11:$Q$208,MATCH('Statement(Z) '!C10,'Data (VII PAY-Z)'!$A$11:$A$208,0)) -> 0 | H10: =INDEX('Data (VII PAY-Z)'!$M$11:$M$208,MATCH('Statement(Z) '!C10,'Data (VII PAY-Z)'!$A$11:$A$208,0)) -> 0 | I10: 80600 | J10: =IF(C10="","",INDEX('Data (VII PAY-Z)'!$J$11:$J$242,MATCH('Statement(Z) '!C10,'Data (VII PAY-Z)'!$A$11:$A$242,0))) -> 26760 | K10: 0 | L10: =IF(C10="","",ROUND(J10*'PraveshArr (VII PAY-Z) '!AN10,0)) -> 36394 | M10: =IF(C10="","",INDEX('Data (VII PAY-Z)'!$T$11:$T$242,MATCH('Statement(Z) '!C10,'Data (VII PAY-Z)'!$A$11:$A$242,0))) -> 0 | N10: =IF(C10="","",INDEX('Data (VII PAY-Z)'!$N$11:$N$242,MATCH('Statement(Z) '!C10,'Data (VII PAY-Z)'!$A$11:$A$242,0))) -> 0 | O10: 63154 | P10: 50740 | Q10: 0 | R10: -33294 | S10: 0 | T10: 0 | U10: 17446 | V10: 0 | W10: 0 | X10: 0 | Y10: =IF(C10="","",IF('Data (VII PAY-Z)'!V14="Cash",0,IF('Data (VII PAY-Z)'!B14="Adj. in GPF",(U10-Z10-AA10-AB10-AC10),0))) -> 17446 | Z10: 0 | AA10: =IF(C10="","",IF(A10="Cash",0,'Data (VII PAY-Z)'!AA14)) -> 0 | AB10: =IF(C10="","",'Data (VII PAY-Z)'!AB14) -> 0 | AC10: =IF(C10="","",'Data (VII PAY-Z)'!AG14) -> 0 | AD10: 17446 | AE10: 0 | AF10: =IF(C10="","",IF('Data (VII PAY-Z)'!AH14="","",'Data (VII PAY-Z)'!AH14)) -> 
A11: ='Data (VII PAY-Z)'!B15 -> Adj. in GPF | B11: 5 | C11: ='Data (VII PAY-Z)'!A15 -> 2017-05-01 | D11: =INDEX('Data (VII PAY-Z)'!$G$11:$G$242,MATCH('Statement(Z) '!C11,'Data (VII PAY-Z)'!$A$11:$A$242,0)) -> 77500 | E11: 0 | F11: =IF(C11="","",ROUND(D11*'PraveshArr (VII PAY-Z) '!AQ11,0)) -> 3100 | G11: =INDEX('Data (VII PAY-Z)'!$Q$11:$Q$208,MATCH('Statement(Z) '!C11,'Data (VII PAY-Z)'!$A$11:$A$208,0)) -> 0 | H11: =INDEX('Data (VII PAY-Z)'!$M$11:$M$208,MATCH('Statement(Z) '!C11,'Data (VII PAY-Z)'!$A$11:$A$208,0)) -> 0 | I11: 80600 | J11: =IF(C11="","",INDEX('Data (VII PAY-Z)'!$J$11:$J$242,MATCH('Statement(Z) '!C11,'Data (VII PAY-Z)'!$A$11:$A$242,0))) -> 26760 | K11: 0 | L11: =IF(C11="","",ROUND(J11*'PraveshArr (VII PAY-Z) '!AN11,0)) -> 36394 | M11: =IF(C11="","",INDEX('Data (VII PAY-Z)'!$T$11:$T$242,MATCH('Statement(Z) '!C11,'Data (VII PAY-Z)'!$A$11:$A$242,0))) -> 0 | N11: =IF(C11="","",INDEX('Data (VII PAY-Z)'!$N$11:$N$242,MATCH('Statement(Z) '!C11,'Data (VII PAY-Z)'!$A$11:$A$242,0))) -> 0 | O11: 63154 | P11: 50740 | Q11: 0 | R11: -33294 | S11: 0 | T11: 0 | U11: 17446 | V11: 0 | W11: 0 | X11: 0 | Y11: =IF(C11="","",IF('Data (VII PAY-Z)'!V15="Cash",0,IF('Data (VII PAY-Z)'!B15="Adj. in GPF",(U11-Z11-AA11-AB11-AC11),0))) -> 17446 | Z11: 0 | AA11: =IF(C11="","",IF(A11="Cash",0,'Data (VII PAY-Z)'!AA15)) -> 0 | AB11: =IF(C11="","",'Data (VII PAY-Z)'!AB15) -> 0 | AC11: =IF(C11="","",'Data (VII PAY-Z)'!AG15) -> 0 | AD11: 17446 | AE11: 0 | AF11: =IF(C11="","",IF('Data (VII PAY-Z)'!AH15="","",'Data (VII PAY-Z)'!AH15)) -> 
A12: ='Data (VII PAY-Z)'!B16 -> Adj. in GPF | B12: 6 | C12: ='Data (VII PAY-Z)'!A16 -> 2017-06-01 | D12: =INDEX('Data (VII PAY-Z)'!$G$11:$G$242,MATCH('Statement(Z) '!C12,'Data (VII PAY-Z)'!$A$11:$A$242,0)) -> 77500 | E12: 0 | F12: =IF(C12="","",ROUND(D12*'PraveshArr (VII PAY-Z) '!AQ12,0)) -> 3100 | G12: =INDEX('Data (VII PAY-Z)'!$Q$11:$Q$208,MATCH('Statement(Z) '!C12,'Data (VII PAY-Z)'!$A$11:$A$208,0)) -> 0 | H12: =INDEX('Data (VII PAY-Z)'!$M$11:$M$208,MATCH('Statement(Z) '!C12,'Data (VII PAY-Z)'!$A$11:$A$208,0)) -> 0 | I12: 80600 | J12: =IF(C12="","",INDEX('Data (VII PAY-Z)'!$J$11:$J$242,MATCH('Statement(Z) '!C12,'Data (VII PAY-Z)'!$A$11:$A$242,0))) -> 26760 | K12: 0 | L12: =IF(C12="","",ROUND(J12*'PraveshArr (VII PAY-Z) '!AN12,0)) -> 36394 | M12: =IF(C12="","",INDEX('Data (VII PAY-Z)'!$T$11:$T$242,MATCH('Statement(Z) '!C12,'Data (VII PAY-Z)'!$A$11:$A$242,0))) -> 0 | N12: =IF(C12="","",INDEX('Data (VII PAY-Z)'!$N$11:$N$242,MATCH('Statement(Z) '!C12,'Data (VII PAY-Z)'!$A$11:$A$242,0))) -> 0 | O12: 63154 | P12: 50740 | Q12: 0 | R12: -33294 | S12: 0 | T12: 0 | U12: 17446 | V12: 0 | W12: 0 | X12: 0 | Y12: =IF(C12="","",IF('Data (VII PAY-Z)'!V16="Cash",0,IF('Data (VII PAY-Z)'!B16="Adj. in GPF",(U12-Z12-AA12-AB12-AC12),0))) -> 17446 | Z12: 0 | AA12: =IF(C12="","",IF(A12="Cash",0,'Data (VII PAY-Z)'!AA16)) -> 0 | AB12: =IF(C12="","",'Data (VII PAY-Z)'!AB16) -> 0 | AC12: =IF(C12="","",'Data (VII PAY-Z)'!AG16) -> 0 | AD12: 17446 | AE12: 0 | AF12: =IF(C12="","",IF('Data (VII PAY-Z)'!AH16="","",'Data (VII PAY-Z)'!AH16)) -> 
A13: ='Data (VII PAY-Z)'!B17 -> Adj. in GPF | B13: 7 | C13: ='Data (VII PAY-Z)'!A17 -> 2017-07-01 | D13: =INDEX('Data (VII PAY-Z)'!$G$11:$G$242,MATCH('Statement(Z) '!C13,'Data (VII PAY-Z)'!$A$11:$A$242,0)) -> 79900 | E13: 0 | F13: =IF(C13="","",ROUND(D13*'PraveshArr (VII PAY-Z) '!AQ13,0)) -> 3995 | G13: =INDEX('Data (VII PAY-Z)'!$Q$11:$Q$208,MATCH('Statement(Z) '!C13,'Data (VII PAY-Z)'!$A$11:$A$208,0)) -> 0 | H13: =INDEX('Data (VII PAY-Z)'!$M$11:$M$208,MATCH('Statement(Z) '!C13,'Data (VII PAY-Z)'!$A$11:$A$208,0)) -> 0 | I13: 83895 | J13: =IF(C13="","",INDEX('Data (VII PAY-Z)'!$J$11:$J$242,MATCH('Statement(Z) '!C13,'Data (VII PAY-Z)'!$A$11:$A$242,0))) -> 27570 | K13: 0 | L13: =IF(C13="","",ROUND(J13*'PraveshArr (VII PAY-Z) '!AN13,0)) -> 38322 | M13: =IF(C13="","",INDEX('Data (VII PAY-Z)'!$T$11:$T$242,MATCH('Statement(Z) '!C13,'Data (VII PAY-Z)'!$A$11:$A$242,0))) -> 0 | N13: =IF(C13="","",INDEX('Data (VII PAY-Z)'!$N$11:$N$242,MATCH('Statement(Z) '!C13,'Data (VII PAY-Z)'!$A$11:$A$242,0))) -> 0 | O13: 65892 | P13: 52330 | Q13: 0 | R13: -34327 | S13: 0 | T13: 0 | U13: 18003 | V13: 0 | W13: 0 | X13: 0 | Y13: =IF(C13="","",IF('Data (VII PAY-Z)'!V17="Cash",0,IF('Data (VII PAY-Z)'!B17="Adj. in GPF",(U13-Z13-AA13-AB13-AC13),0))) -> 18003 | Z13: 0 | AA13: =IF(C13="","",IF(A13="Cash",0,'Data (VII PAY-Z)'!AA17)) -> 0 | AB13: =IF(C13="","",'Data (VII PAY-Z)'!AB17) -> 0 | AC13: =IF(C13="","",'Data (VII PAY-Z)'!AG17) -> 0 | AD13: 18003 | AE13: 0 | AF13: =IF(C13="","",IF('Data (VII PAY-Z)'!AH17="","",'Data (VII PAY-Z)'!AH17)) -> 
A14: ='Data (VII PAY-Z)'!B18 -> Adj. in GPF | B14: 8 | C14: ='Data (VII PAY-Z)'!A18 -> 2017-08-01 | D14: =INDEX('Data (VII PAY-Z)'!$G$11:$G$242,MATCH('Statement(Z) '!C14,'Data (VII PAY-Z)'!$A$11:$A$242,0)) -> 79900 | E14: 0 | F14: =IF(C14="","",ROUND(D14*'PraveshArr (VII PAY-Z) '!AQ14,0)) -> 3995 | G14: =INDEX('Data (VII PAY-Z)'!$Q$11:$Q$208,MATCH('Statement(Z) '!C14,'Data (VII PAY-Z)'!$A$11:$A$208,0)) -> 0 | H14: =INDEX('Data (VII PAY-Z)'!$M$11:$M$208,MATCH('Statement(Z) '!C14,'Data (VII PAY-Z)'!$A$11:$A$208,0)) -> 0 | I14: 83895 | J14: =IF(C14="","",INDEX('Data (VII PAY-Z)'!$J$11:$J$242,MATCH('Statement(Z) '!C14,'Data (VII PAY-Z)'!$A$11:$A$242,0))) -> 27570 | K14: 0 | L14: =IF(C14="","",ROUND(J14*'PraveshArr (VII PAY-Z) '!AN14,0)) -> 38322 | M14: =IF(C14="","",INDEX('Data (VII PAY-Z)'!$T$11:$T$242,MATCH('Statement(Z) '!C14,'Data (VII PAY-Z)'!$A$11:$A$242,0))) -> 0 | N14: =IF(C14="","",INDEX('Data (VII PAY-Z)'!$N$11:$N$242,MATCH('Statement(Z) '!C14,'Data (VII PAY-Z)'!$A$11:$A$242,0))) -> 0 | O14: 65892 | P14: 52330 | Q14: 0 | R14: -34327 | S14: 0 | T14: 0 | U14: 18003 | V14: 0 | W14: 0 | X14: 0 | Y14: =IF(C14="","",IF('Data (VII PAY-Z)'!V18="Cash",0,IF('Data (VII PAY-Z)'!B18="Adj. in GPF",(U14-Z14-AA14-AB14-AC14),0))) -> 18003 | Z14: 0 | AA14: =IF(C14="","",IF(A14="Cash",0,'Data (VII PAY-Z)'!AA18)) -> 0 | AB14: =IF(C14="","",'Data (VII PAY-Z)'!AB18) -> 0 | AC14: =IF(C14="","",'Data (VII PAY-Z)'!AG18) -> 0 | AD14: 18003 | AE14: 0 | AF14: =IF(C14="","",IF('Data (VII PAY-Z)'!AH18="","",'Data (VII PAY-Z)'!AH18)) -> 
A15: ='Data (VII PAY-Z)'!B19 -> Adj. in GPF | B15: 9 | C15: ='Data (VII PAY-Z)'!A19 -> 2017-09-01 | D15: =INDEX('Data (VII PAY-Z)'!$G$11:$G$242,MATCH('Statement(Z) '!C15,'Data (VII PAY-Z)'!$A$11:$A$242,0)) -> 79900 | E15: 0 | F15: =IF(C15="","",ROUND(D15*'PraveshArr (VII PAY-Z) '!AQ15,0)) -> 3995 | G15: =INDEX('Data (VII PAY-Z)'!$Q$11:$Q$208,MATCH('Statement(Z) '!C15,'Data (VII PAY-Z)'!$A$11:$A$208,0)) -> 0 | H15: =INDEX('Data (VII PAY-Z)'!$M$11:$M$208,MATCH('Statement(Z) '!C15,'Data (VII PAY-Z)'!$A$11:$A$208,0)) -> 0 | I15: 83895 | J15: =IF(C15="","",INDEX('Data (VII PAY-Z)'!$J$11:$J$242,MATCH('Statement(Z) '!C15,'Data (VII PAY-Z)'!$A$11:$A$242,0))) -> 27570 | K15: 0 | L15: =IF(C15="","",ROUND(J15*'PraveshArr (VII PAY-Z) '!AN15,0)) -> 38322 | M15: =IF(C15="","",INDEX('Data (VII PAY-Z)'!$T$11:$T$242,MATCH('Statement(Z) '!C15,'Data (VII PAY-Z)'!$A$11:$A$242,0))) -> 0 | N15: =IF(C15="","",INDEX('Data (VII PAY-Z)'!$N$11:$N$242,MATCH('Statement(Z) '!C15,'Data (VII PAY-Z)'!$A$11:$A$242,0))) -> 0 | O15: 65892 | P15: 52330 | Q15: 0 | R15: -34327 | S15: 0 | T15: 0 | U15: 18003 | V15: 0 | W15: 0 | X15: 0 | Y15: =IF(C15="","",IF('Data (VII PAY-Z)'!V19="Cash",0,IF('Data (VII PAY-Z)'!B19="Adj. in GPF",(U15-Z15-AA15-AB15-AC15),0))) -> 18003 | Z15: 0 | AA15: =IF(C15="","",IF(A15="Cash",0,'Data (VII PAY-Z)'!AA19)) -> 0 | AB15: =IF(C15="","",'Data (VII PAY-Z)'!AB19) -> 0 | AC15: =IF(C15="","",'Data (VII PAY-Z)'!AG19) -> 0 | AD15: 18003 | AE15: 0 | AF15: =IF(C15="","",IF('Data (VII PAY-Z)'!AH19="","",'Data (VII PAY-Z)'!AH19)) -> 
A16: ='Data (VII PAY-Z)'!B20 -> 00:00:00 | C16: ='Data (VII PAY-Z)'!A20 ->  | D16: =INDEX('Data (VII PAY-Z)'!$G$11:$G$242,MATCH('Statement(Z) '!C16,'Data (VII PAY-Z)'!$A$11:$A$242,0)) ->  | E16: 0 | F16: =IF(C16="","",ROUND(D16*'PraveshArr (VII PAY-Z) '!AQ16,0)) ->  | G16: =INDEX('Data (VII PAY-Z)'!$Q$11:$Q$208,MATCH('Statement(Z) '!C16,'Data (VII PAY-Z)'!$A$11:$A$208,0)) ->  | H16: =INDEX('Data (VII PAY-Z)'!$M$11:$M$208,MATCH('Statement(Z) '!C16,'Data (VII PAY-Z)'!$A$11:$A$208,0)) -> 0 | J16: =IF(C16="","",INDEX('Data (VII PAY-Z)'!$J$11:$J$242,MATCH('Statement(Z) '!C16,'Data (VII PAY-Z)'!$A$11:$A$242,0))) ->  | K16: 0 | L16: =IF(C16="","",ROUND(J16*'PraveshArr (VII PAY-Z) '!AN16,0)) ->  | M16: =IF(C16="","",INDEX('Data (VII PAY-Z)'!$T$11:$T$242,MATCH('Statement(Z) '!C16,'Data (VII PAY-Z)'!$A$11:$A$242,0))) ->  | N16: =IF(C16="","",INDEX('Data (VII PAY-Z)'!$N$11:$N$242,MATCH('Statement(Z) '!C16,'Data (VII PAY-Z)'!$A$11:$A$242,0))) ->  | Q16: 0 | V16: 0 | W16: 0 | X16: 0 | Y16: =IF(C16="","",IF('Data (VII PAY-Z)'!V20="Cash",0,IF('Data (VII PAY-Z)'!B20="Adj. in GPF",(U16-Z16-AA16-AB16-AC16),0))) ->  | AA16: =IF(C16="","",IF(A16="Cash",0,'Data (VII PAY-Z)'!AA20)) ->  | AB16: =IF(C16="","",'Data (VII PAY-Z)'!AB20) ->  | AC16: =IF(C16="","",'Data (VII PAY-Z)'!AG20) ->  | AF16: =IF(C16="","",IF('Data (VII PAY-Z)'!AH20="","",'Data (VII PAY-Z)'!AH20)) -> 
A17: ='Data (VII PAY-Z)'!B21 -> 00:00:00 | C17: ='Data (VII PAY-Z)'!A21 ->  | D17: =INDEX('Data (VII PAY-Z)'!$G$11:$G$242,MATCH('Statement(Z) '!C17,'Data (VII PAY-Z)'!$A$11:$A$242,0)) ->  | E17: 0 | F17: =IF(C17="","",ROUND(D17*'PraveshArr (VII PAY-Z) '!AQ17,0)) ->  | G17: =INDEX('Data (VII PAY-Z)'!$Q$11:$Q$208,MATCH('Statement(Z) '!C17,'Data (VII PAY-Z)'!$A$11:$A$208,0)) ->  | H17: =INDEX('Data (VII PAY-Z)'!$M$11:$M$208,MATCH('Statement(Z) '!C17,'Data (VII PAY-Z)'!$A$11:$A$208,0)) -> 0 | J17: =IF(C17="","",INDEX('Data (VII PAY-Z)'!$J$11:$J$242,MATCH('Statement(Z) '!C17,'Data (VII PAY-Z)'!$A$11:$A$242,0))) ->  | K17: 0 | L17: =IF(C17="","",ROUND(J17*'PraveshArr (VII PAY-Z) '!AN17,0)) ->  | M17: =IF(C17="","",INDEX('Data (VII PAY-Z)'!$T$11:$T$242,MATCH('Statement(Z) '!C17,'Data (VII PAY-Z)'!$A$11:$A$242,0))) ->  | N17: =IF(C17="","",INDEX('Data (VII PAY-Z)'!$N$11:$N$242,MATCH('Statement(Z) '!C17,'Data (VII PAY-Z)'!$A$11:$A$242,0))) ->  | Q17: 0 | V17: 0 | W17: 0 | X17: 0 | Y17: =IF(C17="","",IF('Data (VII PAY-Z)'!V21="Cash",0,IF('Data (VII PAY-Z)'!B21="Adj. in GPF",(U17-Z17-AA17-AB17-AC17),0))) ->  | AA17: =IF(C17="","",IF(A17="Cash",0,'Data (VII PAY-Z)'!AA21)) ->  | AB17: =IF(C17="","",'Data (VII PAY-Z)'!AB21) ->  | AC17: =IF(C17="","",'Data (VII PAY-Z)'!AG21) ->  | AF17: =IF(C17="","",IF('Data (VII PAY-Z)'!AH21="","",'Data (VII PAY-Z)'!AH21)) -> 
A18: ='Data (VII PAY-Z)'!B22 -> 00:00:00 | C18: ='Data (VII PAY-Z)'!A22 ->  | D18: =INDEX('Data (VII PAY-Z)'!$G$11:$G$242,MATCH('Statement(Z) '!C18,'Data (VII PAY-Z)'!$A$11:$A$242,0)) ->  | E18: 0 | F18: =IF(C18="","",ROUND(D18*'PraveshArr (VII PAY-Z) '!AQ18,0)) ->  | G18: =INDEX('Data (VII PAY-Z)'!$Q$11:$Q$208,MATCH('Statement(Z) '!C18,'Data (VII PAY-Z)'!$A$11:$A$208,0)) ->  | H18: =INDEX('Data (VII PAY-Z)'!$M$11:$M$208,MATCH('Statement(Z) '!C18,'Data (VII PAY-Z)'!$A$11:$A$208,0)) -> 0 | J18: =IF(C18="","",INDEX('Data (VII PAY-Z)'!$J$11:$J$242,MATCH('Statement(Z) '!C18,'Data (VII PAY-Z)'!$A$11:$A$242,0))) ->  | K18: 0 | L18: =IF(C18="","",ROUND(J18*'PraveshArr (VII PAY-Z) '!AN18,0)) ->  | M18: =IF(C18="","",INDEX('Data (VII PAY-Z)'!$T$11:$T$242,MATCH('Statement(Z) '!C18,'Data (VII PAY-Z)'!$A$11:$A$242,0))) ->  | N18: =IF(C18="","",INDEX('Data (VII PAY-Z)'!$N$11:$N$242,MATCH('Statement(Z) '!C18,'Data (VII PAY-Z)'!$A$11:$A$242,0))) ->  | Q18: 0 | V18: 0 | W18: 0 | X18: 0 | Y18: =IF(C18="","",IF('Data (VII PAY-Z)'!V22="Cash",0,IF('Data (VII PAY-Z)'!B22="Adj. in GPF",(U18-Z18-AA18-AB18-AC18),0))) ->  | AA18: =IF(C18="","",IF(A18="Cash",0,'Data (VII PAY-Z)'!AA22)) ->  | AB18: =IF(C18="","",'Data (VII PAY-Z)'!AB22) ->  | AC18: =IF(C18="","",'Data (VII PAY-Z)'!AG22) ->  | AF18: =IF(C18="","",IF('Data (VII PAY-Z)'!AH22="","",'Data (VII PAY-Z)'!AH22)) -> 
A19: ='Data (VII PAY-Z)'!B23 -> 00:00:00 | C19: ='Data (VII PAY-Z)'!A23 ->  | D19: =INDEX('Data (VII PAY-Z)'!$G$11:$G$242,MATCH('Statement(Z) '!C19,'Data (VII PAY-Z)'!$A$11:$A$242,0)) ->  | E19: 0 | F19: =IF(C19="","",ROUND(D19*'PraveshArr (VII PAY-Z) '!AQ19,0)) ->  | G19: =INDEX('Data (VII PAY-Z)'!$Q$11:$Q$208,MATCH('Statement(Z) '!C19,'Data (VII PAY-Z)'!$A$11:$A$208,0)) ->  | H19: =INDEX('Data (VII PAY-Z)'!$M$11:$M$208,MATCH('Statement(Z) '!C19,'Data (VII PAY-Z)'!$A$11:$A$208,0)) -> 0 | J19: =IF(C19="","",INDEX('Data (VII PAY-Z)'!$J$11:$J$242,MATCH('Statement(Z) '!C19,'Data (VII PAY-Z)'!$A$11:$A$242,0))) ->  | K19: 0 | L19: =IF(C19="","",ROUND(J19*'PraveshArr (VII PAY-Z) '!AN19,0)) ->  | M19: =IF(C19="","",INDEX('Data (VII PAY-Z)'!$T$11:$T$242,MATCH('Statement(Z) '!C19,'Data (VII PAY-Z)'!$A$11:$A$242,0))) ->  | N19: =IF(C19="","",INDEX('Data (VII PAY-Z)'!$N$11:$N$242,MATCH('Statement(Z) '!C19,'Data (VII PAY-Z)'!$A$11:$A$242,0))) ->  | Q19: 0 | V19: 0 | W19: 0 | X19: 0 | Y19: =IF(C19="","",IF('Data (VII PAY-Z)'!V23="Cash",0,IF('Data (VII PAY-Z)'!B23="Adj. in GPF",(U19-Z19-AA19-AB19-AC19),0))) ->  | AA19: =IF(C19="","",IF(A19="Cash",0,'Data (VII PAY-Z)'!AA23)) ->  | AB19: =IF(C19="","",'Data (VII PAY-Z)'!AB23) ->  | AC19: =IF(C19="","",'Data (VII PAY-Z)'!AG23) ->  | AF19: =IF(C19="","",IF('Data (VII PAY-Z)'!AH23="","",'Data (VII PAY-Z)'!AH23)) -> 
A20: ='Data (VII PAY-Z)'!B24 -> 00:00:00 | C20: ='Data (VII PAY-Z)'!A24 ->  | D20: =INDEX('Data (VII PAY-Z)'!$G$11:$G$242,MATCH('Statement(Z) '!C20,'Data (VII PAY-Z)'!$A$11:$A$242,0)) ->  | E20: 0 | F20: =IF(C20="","",ROUND(D20*'PraveshArr (VII PAY-Z) '!AQ20,0)) ->  | G20: =INDEX('Data (VII PAY-Z)'!$Q$11:$Q$208,MATCH('Statement(Z) '!C20,'Data (VII PAY-Z)'!$A$11:$A$208,0)) ->  | H20: =INDEX('Data (VII PAY-Z)'!$M$11:$M$208,MATCH('Statement(Z) '!C20,'Data (VII PAY-Z)'!$A$11:$A$208,0)) -> 0 | J20: =IF(C20="","",INDEX('Data (VII PAY-Z)'!$J$11:$J$242,MATCH('Statement(Z) '!C20,'Data (VII PAY-Z)'!$A$11:$A$242,0))) ->  | K20: 0 | L20: =IF(C20="","",ROUND(J20*'PraveshArr (VII PAY-Z) '!AN20,0)) ->  | M20: =IF(C20="","",INDEX('Data (VII PAY-Z)'!$T$11:$T$242,MATCH('Statement(Z) '!C20,'Data (VII PAY-Z)'!$A$11:$A$242,0))) ->  | N20: =IF(C20="","",INDEX('Data (VII PAY-Z)'!$N$11:$N$242,MATCH('Statement(Z) '!C20,'Data (VII PAY-Z)'!$A$11:$A$242,0))) ->  | Q20: 0 | V20: 0 | W20: 0 | X20: 0 | Y20: =IF(C20="","",IF('Data (VII PAY-Z)'!V24="Cash",0,IF('Data (VII PAY-Z)'!B24="Adj. in GPF",(U20-Z20-AA20-AB20-AC20),0))) ->  | AA20: =IF(C20="","",IF(A20="Cash",0,'Data (VII PAY-Z)'!AA24)) ->  | AB20: =IF(C20="","",'Data (VII PAY-Z)'!AB24) ->  | AC20: =IF(C20="","",'Data (VII PAY-Z)'!AG24) ->  | AF20: =IF(C20="","",IF('Data (VII PAY-Z)'!AH24="","",'Data (VII PAY-Z)'!AH24)) -> 
A21: ='Data (VII PAY-Z)'!B25 -> 00:00:00 | C21: ='Data (VII PAY-Z)'!A25 ->  | D21: =INDEX('Data (VII PAY-Z)'!$G$11:$G$242,MATCH('Statement(Z) '!C21,'Data (VII PAY-Z)'!$A$11:$A$242,0)) ->  | E21: 0 | F21: =IF(C21="","",ROUND(D21*'PraveshArr (VII PAY-Z) '!AQ21,0)) ->  | G21: =INDEX('Data (VII PAY-Z)'!$Q$11:$Q$208,MATCH('Statement(Z) '!C21,'Data (VII PAY-Z)'!$A$11:$A$208,0)) ->  | H21: =INDEX('Data (VII PAY-Z)'!$M$11:$M$208,MATCH('Statement(Z) '!C21,'Data (VII PAY-Z)'!$A$11:$A$208,0)) -> 0 | J21: =IF(C21="","",INDEX('Data (VII PAY-Z)'!$J$11:$J$242,MATCH('Statement(Z) '!C21,'Data (VII PAY-Z)'!$A$11:$A$242,0))) ->  | K21: 0 | L21: =IF(C21="","",ROUND(J21*'PraveshArr (VII PAY-Z) '!AN21,0)) ->  | M21: =IF(C21="","",INDEX('Data (VII PAY-Z)'!$T$11:$T$242,MATCH('Statement(Z) '!C21,'Data (VII PAY-Z)'!$A$11:$A$242,0))) ->  | N21: =IF(C21="","",INDEX('Data (VII PAY-Z)'!$N$11:$N$242,MATCH('Statement(Z) '!C21,'Data (VII PAY-Z)'!$A$11:$A$242,0))) ->  | Q21: 0 | V21: 0 | W21: 0 | X21: 0 | Y21: =IF(C21="","",IF('Data (VII PAY-Z)'!V25="Cash",0,IF('Data (VII PAY-Z)'!B25="Adj. in GPF",(U21-Z21-AA21-AB21-AC21),0))) ->  | AA21: =IF(C21="","",IF(A21="Cash",0,'Data (VII PAY-Z)'!AA25)) ->  | AB21: =IF(C21="","",'Data (VII PAY-Z)'!AB25) ->  | AC21: =IF(C21="","",'Data (VII PAY-Z)'!AG25) ->  | AF21: =IF(C21="","",IF('Data (VII PAY-Z)'!AH25="","",'Data (VII PAY-Z)'!AH25)) -> 
A22: ='Data (VII PAY-Z)'!B26 -> 00:00:00 | C22: ='Data (VII PAY-Z)'!A26 ->  | D22: =INDEX('Data (VII PAY-Z)'!$G$11:$G$242,MATCH('Statement(Z) '!C22,'Data (VII PAY-Z)'!$A$11:$A$242,0)) ->  | E22: 0 | F22: =IF(C22="","",ROUND(D22*'PraveshArr (VII PAY-Z) '!AQ22,0)) ->  | G22: =INDEX('Data (VII PAY-Z)'!$Q$11:$Q$208,MATCH('Statement(Z) '!C22,'Data (VII PAY-Z)'!$A$11:$A$208,0)) ->  | H22: =INDEX('Data (VII PAY-Z)'!$M$11:$M$208,MATCH('Statement(Z) '!C22,'Data (VII PAY-Z)'!$A$11:$A$208,0)) -> 0 | J22: =IF(C22="","",INDEX('Data (VII PAY-Z)'!$J$11:$J$242,MATCH('Statement(Z) '!C22,'Data (VII PAY-Z)'!$A$11:$A$242,0))) ->  | K22: 0 | L22: =IF(C22="","",ROUND(J22*'PraveshArr (VII PAY-Z) '!AN22,0)) ->  | M22: =IF(C22="","",INDEX('Data (VII PAY-Z)'!$T$11:$T$242,MATCH('Statement(Z) '!C22,'Data (VII PAY-Z)'!$A$11:$A$242,0))) ->  | N22: =IF(C22="","",INDEX('Data (VII PAY-Z)'!$N$11:$N$242,MATCH('Statement(Z) '!C22,'Data (VII PAY-Z)'!$A$11:$A$242,0))) ->  | Q22: 0 | V22: 0 | W22: 0 | X22: 0 | Y22: =IF(C22="","",IF('Data (VII PAY-Z)'!V26="Cash",0,IF('Data (VII PAY-Z)'!B26="Adj. in GPF",(U22-Z22-AA22-AB22-AC22),0))) ->  | AA22: =IF(C22="","",IF(A22="Cash",0,'Data (VII PAY-Z)'!AA26)) ->  | AB22: =IF(C22="","",'Data (VII PAY-Z)'!AB26) ->  | AC22: =IF(C22="","",'Data (VII PAY-Z)'!AG26) ->  | AF22: =IF(C22="","",IF('Data (VII PAY-Z)'!AH26="","",'Data (VII PAY-Z)'!AH26)) -> 
A23: ='Data (VII PAY-Z)'!B27 -> 00:00:00 | C23: ='Data (VII PAY-Z)'!A27 ->  | D23: =INDEX('Data (VII PAY-Z)'!$G$11:$G$242,MATCH('Statement(Z) '!C23,'Data (VII PAY-Z)'!$A$11:$A$242,0)) ->  | E23: 0 | F23: =IF(C23="","",ROUND(D23*'PraveshArr (VII PAY-Z) '!AQ23,0)) ->  | G23: =INDEX('Data (VII PAY-Z)'!$Q$11:$Q$208,MATCH('Statement(Z) '!C23,'Data (VII PAY-Z)'!$A$11:$A$208,0)) ->  | H23: =INDEX('Data (VII PAY-Z)'!$M$11:$M$208,MATCH('Statement(Z) '!C23,'Data (VII PAY-Z)'!$A$11:$A$208,0)) -> 0 | J23: =IF(C23="","",INDEX('Data (VII PAY-Z)'!$J$11:$J$242,MATCH('Statement(Z) '!C23,'Data (VII PAY-Z)'!$A$11:$A$242,0))) ->  | K23: 0 | L23: =IF(C23="","",ROUND(J23*'PraveshArr (VII PAY-Z) '!AN23,0)) ->  | M23: =IF(C23="","",INDEX('Data (VII PAY-Z)'!$T$11:$T$242,MATCH('Statement(Z) '!C23,'Data (VII PAY-Z)'!$A$11:$A$242,0))) ->  | N23: =IF(C23="","",INDEX('Data (VII PAY-Z)'!$N$11:$N$242,MATCH('Statement(Z) '!C23,'Data (VII PAY-Z)'!$A$11:$A$242,0))) ->  | Q23: 0 | V23: 0 | W23: 0 | X23: 0 | Y23: =IF(C23="","",IF('Data (VII PAY-Z)'!V27="Cash",0,IF('Data (VII PAY-Z)'!B27="Adj. in GPF",(U23-Z23-AA23-AB23-AC23),0))) ->  | AA23: =IF(C23="","",IF(A23="Cash",0,'Data (VII PAY-Z)'!AA27)) ->  | AB23: =IF(C23="","",'Data (VII PAY-Z)'!AB27) ->  | AC23: =IF(C23="","",'Data (VII PAY-Z)'!AG27) ->  | AF23: =IF(C23="","",IF('Data (VII PAY-Z)'!AH27="","",'Data (VII PAY-Z)'!AH27)) -> 
A24: ='Data (VII PAY-Z)'!B28 -> 00:00:00 | C24: ='Data (VII PAY-Z)'!A28 ->  | D24: =INDEX('Data (VII PAY-Z)'!$G$11:$G$242,MATCH('Statement(Z) '!C24,'Data (VII PAY-Z)'!$A$11:$A$242,0)) ->  | E24: 0 | F24: =IF(C24="","",ROUND(D24*'PraveshArr (VII PAY-Z) '!AQ24,0)) ->  | G24: =INDEX('Data (VII PAY-Z)'!$Q$11:$Q$208,MATCH('Statement(Z) '!C24,'Data (VII PAY-Z)'!$A$11:$A$208,0)) ->  | H24: =INDEX('Data (VII PAY-Z)'!$M$11:$M$208,MATCH('Statement(Z) '!C24,'Data (VII PAY-Z)'!$A$11:$A$208,0)) -> 0 | J24: =IF(C24="","",INDEX('Data (VII PAY-Z)'!$J$11:$J$242,MATCH('Statement(Z) '!C24,'Data (VII PAY-Z)'!$A$11:$A$242,0))) ->  | K24: 0 | L24: =IF(C24="","",ROUND(J24*'PraveshArr (VII PAY-Z) '!AN24,0)) ->  | M24: =IF(C24="","",INDEX('Data (VII PAY-Z)'!$T$11:$T$242,MATCH('Statement(Z) '!C24,'Data (VII PAY-Z)'!$A$11:$A$242,0))) ->  | N24: =IF(C24="","",INDEX('Data (VII PAY-Z)'!$N$11:$N$242,MATCH('Statement(Z) '!C24,'Data (VII PAY-Z)'!$A$11:$A$242,0))) ->  | Q24: 0 | V24: 0 | W24: 0 | X24: 0 | Y24: =IF(C24="","",IF('Data (VII PAY-Z)'!V28="Cash",0,IF('Data (VII PAY-Z)'!B28="Adj. in GPF",(U24-Z24-AA24-AB24-AC24),0))) ->  | AA24: =IF(C24="","",IF(A24="Cash",0,'Data (VII PAY-Z)'!AA28)) ->  | AB24: =IF(C24="","",'Data (VII PAY-Z)'!AB28) ->  | AC24: =IF(C24="","",'Data (VII PAY-Z)'!AG28) ->  | AF24: =IF(C24="","",IF('Data (VII PAY-Z)'!AH28="","",'Data (VII PAY-Z)'!AH28)) -> 
A25: ='Data (VII PAY-Z)'!B29 -> 00:00:00 | C25: ='Data (VII PAY-Z)'!A29 ->  | D25: =INDEX('Data (VII PAY-Z)'!$G$11:$G$242,MATCH('Statement(Z) '!C25,'Data (VII PAY-Z)'!$A$11:$A$242,0)) ->  | E25: 0 | F25: =IF(C25="","",ROUND(D25*'PraveshArr (VII PAY-Z) '!AQ25,0)) ->  | G25: =INDEX('Data (VII PAY-Z)'!$Q$11:$Q$208,MATCH('Statement(Z) '!C25,'Data (VII PAY-Z)'!$A$11:$A$208,0)) ->  | H25: =INDEX('Data (VII PAY-Z)'!$M$11:$M$208,MATCH('Statement(Z) '!C25,'Data (VII PAY-Z)'!$A$11:$A$208,0)) -> 0 | J25: =IF(C25="","",INDEX('Data (VII PAY-Z)'!$J$11:$J$242,MATCH('Statement(Z) '!C25,'Data (VII PAY-Z)'!$A$11:$A$242,0))) ->  | K25: 0 | L25: =IF(C25="","",ROUND(J25*'PraveshArr (VII PAY-Z) '!AN25,0)) ->  | M25: =IF(C25="","",INDEX('Data (VII PAY-Z)'!$T$11:$T$242,MATCH('Statement(Z) '!C25,'Data (VII PAY-Z)'!$A$11:$A$242,0))) ->  | N25: =IF(C25="","",INDEX('Data (VII PAY-Z)'!$N$11:$N$242,MATCH('Statement(Z) '!C25,'Data (VII PAY-Z)'!$A$11:$A$242,0))) ->  | Q25: 0 | V25: 0 | W25: 0 | X25: 0 | Y25: =IF(C25="","",IF('Data (VII PAY-Z)'!V29="Cash",0,IF('Data (VII PAY-Z)'!B29="Adj. in GPF",(U25-Z25-AA25-AB25-AC25),0))) ->  | AA25: =IF(C25="","",IF(A25="Cash",0,'Data (VII PAY-Z)'!AA29)) ->  | AB25: =IF(C25="","",'Data (VII PAY-Z)'!AB29) ->  | AC25: =IF(C25="","",'Data (VII PAY-Z)'!AG29) ->  | AF25: =IF(C25="","",IF('Data (VII PAY-Z)'!AH29="","",'Data (VII PAY-Z)'!AH29)) -> 
A26: ='Data (VII PAY-Z)'!B30 -> 00:00:00 | C26: ='Data (VII PAY-Z)'!A30 ->  | D26: =INDEX('Data (VII PAY-Z)'!$G$11:$G$242,MATCH('Statement(Z) '!C26,'Data (VII PAY-Z)'!$A$11:$A$242,0)) ->  | E26: 0 | F26: =IF(C26="","",ROUND(D26*'PraveshArr (VII PAY-Z) '!AQ26,0)) ->  | G26: =INDEX('Data (VII PAY-Z)'!$Q$11:$Q$208,MATCH('Statement(Z) '!C26,'Data (VII PAY-Z)'!$A$11:$A$208,0)) ->  | H26: =INDEX('Data (VII PAY-Z)'!$M$11:$M$208,MATCH('Statement(Z) '!C26,'Data (VII PAY-Z)'!$A$11:$A$208,0)) -> 0 | J26: =IF(C26="","",INDEX('Data (VII PAY-Z)'!$J$11:$J$242,MATCH('Statement(Z) '!C26,'Data (VII PAY-Z)'!$A$11:$A$242,0))) ->  | K26: 0 | L26: =IF(C26="","",ROUND(J26*'PraveshArr (VII PAY-Z) '!AN26,0)) ->  | M26: =IF(C26="","",INDEX('Data (VII PAY-Z)'!$T$11:$T$242,MATCH('Statement(Z) '!C26,'Data (VII PAY-Z)'!$A$11:$A$242,0))) ->  | N26: =IF(C26="","",INDEX('Data (VII PAY-Z)'!$N$11:$N$242,MATCH('Statement(Z) '!C26,'Data (VII PAY-Z)'!$A$11:$A$242,0))) ->  | Q26: 0 | V26: 0 | W26: 0 | X26: 0 | Y26: =IF(C26="","",IF('Data (VII PAY-Z)'!V30="Cash",0,IF('Data (VII PAY-Z)'!B30="Adj. in GPF",(U26-Z26-AA26-AB26-AC26),0))) ->  | AA26: =IF(C26="","",IF(A26="Cash",0,'Data (VII PAY-Z)'!AA30)) ->  | AB26: =IF(C26="","",'Data (VII PAY-Z)'!AB30) ->  | AC26: =IF(C26="","",'Data (VII PAY-Z)'!AG30) ->  | AF26: =IF(C26="","",IF('Data (VII PAY-Z)'!AH30="","",'Data (VII PAY-Z)'!AH30)) -> 
A27: ='Data (VII PAY-Z)'!B31 -> 00:00:00 | C27: ='Data (VII PAY-Z)'!A31 ->  | D27: =INDEX('Data (VII PAY-Z)'!$G$11:$G$242,MATCH('Statement(Z) '!C27,'Data (VII PAY-Z)'!$A$11:$A$242,0)) ->  | E27: 0 | F27: =IF(C27="","",ROUND(D27*'PraveshArr (VII PAY-Z) '!AQ27,0)) ->  | G27: =INDEX('Data (VII PAY-Z)'!$Q$11:$Q$208,MATCH('Statement(Z) '!C27,'Data (VII PAY-Z)'!$A$11:$A$208,0)) ->  | H27: =INDEX('Data (VII PAY-Z)'!$M$11:$M$208,MATCH('Statement(Z) '!C27,'Data (VII PAY-Z)'!$A$11:$A$208,0)) -> 0 | J27: =IF(C27="","",INDEX('Data (VII PAY-Z)'!$J$11:$J$242,MATCH('Statement(Z) '!C27,'Data (VII PAY-Z)'!$A$11:$A$242,0))) ->  | K27: 0 | L27: =IF(C27="","",ROUND(J27*'PraveshArr (VII PAY-Z) '!AN27,0)) ->  | M27: =IF(C27="","",INDEX('Data (VII PAY-Z)'!$T$11:$T$242,MATCH('Statement(Z) '!C27,'Data (VII PAY-Z)'!$A$11:$A$242,0))) ->  | N27: =IF(C27="","",INDEX('Data (VII PAY-Z)'!$N$11:$N$242,MATCH('Statement(Z) '!C27,'Data (VII PAY-Z)'!$A$11:$A$242,0))) ->  | Q27: 0 | V27: 0 | W27: 0 | X27: 0 | Y27: =IF(C27="","",IF('Data (VII PAY-Z)'!V31="Cash",0,IF('Data (VII PAY-Z)'!B31="Adj. in GPF",(U27-Z27-AA27-AB27-AC27),0))) ->  | AA27: =IF(C27="","",IF(A27="Cash",0,'Data (VII PAY-Z)'!AA31)) ->  | AB27: =IF(C27="","",'Data (VII PAY-Z)'!AB31) ->  | AC27: =IF(C27="","",'Data (VII PAY-Z)'!AG31) ->  | AF27: =IF(C27="","",IF('Data (VII PAY-Z)'!AH31="","",'Data (VII PAY-Z)'!AH31)) -> 
A28: ='Data (VII PAY-Z)'!B32 -> 00:00:00 | C28: ='Data (VII PAY-Z)'!A32 ->  | D28: =INDEX('Data (VII PAY-Z)'!$G$11:$G$242,MATCH('Statement(Z) '!C28,'Data (VII PAY-Z)'!$A$11:$A$242,0)) ->  | E28: 0 | F28: =IF(C28="","",ROUND(D28*'PraveshArr (VII PAY-Z) '!AQ28,0)) ->  | G28: =INDEX('Data (VII PAY-Z)'!$Q$11:$Q$208,MATCH('Statement(Z) '!C28,'Data (VII PAY-Z)'!$A$11:$A$208,0)) ->  | H28: =INDEX('Data (VII PAY-Z)'!$M$11:$M$208,MATCH('Statement(Z) '!C28,'Data (VII PAY-Z)'!$A$11:$A$208,0)) -> 0 | J28: =IF(C28="","",INDEX('Data (VII PAY-Z)'!$J$11:$J$242,MATCH('Statement(Z) '!C28,'Data (VII PAY-Z)'!$A$11:$A$242,0))) ->  | K28: 0 | L28: =IF(C28="","",ROUND(J28*'PraveshArr (VII PAY-Z) '!AN28,0)) ->  | M28: =IF(C28="","",INDEX('Data (VII PAY-Z)'!$T$11:$T$242,MATCH('Statement(Z) '!C28,'Data (VII PAY-Z)'!$A$11:$A$242,0))) ->  | N28: =IF(C28="","",INDEX('Data (VII PAY-Z)'!$N$11:$N$242,MATCH('Statement(Z) '!C28,'Data (VII PAY-Z)'!$A$11:$A$242,0))) ->  | Q28: 0 | V28: 0 | W28: 0 | X28: 0 | Y28: =IF(C28="","",IF('Data (VII PAY-Z)'!V32="Cash",0,IF('Data (VII PAY-Z)'!B32="Adj. in GPF",(U28-Z28-AA28-AB28-AC28),0))) ->  | AA28: =IF(C28="","",IF(A28="Cash",0,'Data (VII PAY-Z)'!AA32)) ->  | AB28: =IF(C28="","",'Data (VII PAY-Z)'!AB32) ->  | AC28: =IF(C28="","",'Data (VII PAY-Z)'!AG32) ->  | AF28: =IF(C28="","",IF('Data (VII PAY-Z)'!AH32="","",'Data (VII PAY-Z)'!AH32)) -> 
A29: ='Data (VII PAY-Z)'!B33 -> 00:00:00 | C29: ='Data (VII PAY-Z)'!A33 ->  | D29: =INDEX('Data (VII PAY-Z)'!$G$11:$G$242,MATCH('Statement(Z) '!C29,'Data (VII PAY-Z)'!$A$11:$A$242,0)) ->  | E29: 0 | F29: =IF(C29="","",ROUND(D29*'PraveshArr (VII PAY-Z) '!AQ29,0)) ->  | G29: =INDEX('Data (VII PAY-Z)'!$Q$11:$Q$208,MATCH('Statement(Z) '!C29,'Data (VII PAY-Z)'!$A$11:$A$208,0)) ->  | H29: =INDEX('Data (VII PAY-Z)'!$M$11:$M$208,MATCH('Statement(Z) '!C29,'Data (VII PAY-Z)'!$A$11:$A$208,0)) -> 0 | J29: =IF(C29="","",INDEX('Data (VII PAY-Z)'!$J$11:$J$242,MATCH('Statement(Z) '!C29,'Data (VII PAY-Z)'!$A$11:$A$242,0))) ->  | K29: 0 | L29: =IF(C29="","",ROUND(J29*'PraveshArr (VII PAY-Z) '!AN29,0)) ->  | M29: =IF(C29="","",INDEX('Data (VII PAY-Z)'!$T$11:$T$242,MATCH('Statement(Z) '!C29,'Data (VII PAY-Z)'!$A$11:$A$242,0))) ->  | N29: =IF(C29="","",INDEX('Data (VII PAY-Z)'!$N$11:$N$242,MATCH('Statement(Z) '!C29,'Data (VII PAY-Z)'!$A$11:$A$242,0))) ->  | Q29: 0 | V29: 0 | W29: 0 | X29: 0 | Y29: =IF(C29="","",IF('Data (VII PAY-Z)'!V33="Cash",0,IF('Data (VII PAY-Z)'!B33="Adj. in GPF",(U29-Z29-AA29-AB29-AC29),0))) ->  | AA29: =IF(C29="","",IF(A29="Cash",0,'Data (VII PAY-Z)'!AA33)) ->  | AB29: =IF(C29="","",'Data (VII PAY-Z)'!AB33) ->  | AC29: =IF(C29="","",'Data (VII PAY-Z)'!AG33) ->  | AF29: =IF(C29="","",IF('Data (VII PAY-Z)'!AH33="","",'Data (VII PAY-Z)'!AH33)) -> 
A30: ='Data (VII PAY-Z)'!B34 -> 00:00:00 | C30: ='Data (VII PAY-Z)'!A34 ->  | D30: =INDEX('Data (VII PAY-Z)'!$G$11:$G$242,MATCH('Statement(Z) '!C30,'Data (VII PAY-Z)'!$A$11:$A$242,0)) ->  | E30: 0 | F30: =IF(C30="","",ROUND(D30*'PraveshArr (VII PAY-Z) '!AQ30,0)) ->  | G30: =INDEX('Data (VII PAY-Z)'!$Q$11:$Q$208,MATCH('Statement(Z) '!C30,'Data (VII PAY-Z)'!$A$11:$A$208,0)) ->  | H30: =INDEX('Data (VII PAY-Z)'!$M$11:$M$208,MATCH('Statement(Z) '!C30,'Data (VII PAY-Z)'!$A$11:$A$208,0)) -> 0 | J30: =IF(C30="","",INDEX('Data (VII PAY-Z)'!$J$11:$J$242,MATCH('Statement(Z) '!C30,'Data (VII PAY-Z)'!$A$11:$A$242,0))) ->  | K30: 0 | L30: =IF(C30="","",ROUND(J30*'PraveshArr (VII PAY-Z) '!AN30,0)) ->  | M30: =IF(C30="","",INDEX('Data (VII PAY-Z)'!$T$11:$T$242,MATCH('Statement(Z) '!C30,'Data (VII PAY-Z)'!$A$11:$A$242,0))) ->  | N30: =IF(C30="","",INDEX('Data (VII PAY-Z)'!$N$11:$N$242,MATCH('Statement(Z) '!C30,'Data (VII PAY-Z)'!$A$11:$A$242,0))) ->  | Q30: 0 | V30: 0 | W30: 0 | X30: 0 | Y30: =IF(C30="","",IF('Data (VII PAY-Z)'!V34="Cash",0,IF('Data (VII PAY-Z)'!B34="Adj. in GPF",(U30-Z30-AA30-AB30-AC30),0))) ->  | AA30: =IF(C30="","",IF(A30="Cash",0,'Data (VII PAY-Z)'!AA34)) ->  | AB30: =IF(C30="","",'Data (VII PAY-Z)'!AB34) ->  | AC30: =IF(C30="","",'Data (VII PAY-Z)'!AG34) ->  | AF30: =IF(C30="","",IF('Data (VII PAY-Z)'!AH34="","",'Data (VII PAY-Z)'!AH34)) -> 
A31: ='Data (VII PAY-Z)'!B35 -> 00:00:00 | C31: ='Data (VII PAY-Z)'!A35 ->  | D31: =INDEX('Data (VII PAY-Z)'!$G$11:$G$242,MATCH('Statement(Z) '!C31,'Data (VII PAY-Z)'!$A$11:$A$242,0)) ->  | E31: 0 | F31: =IF(C31="","",ROUND(D31*'PraveshArr (VII PAY-Z) '!AQ31,0)) ->  | G31: =INDEX('Data (VII PAY-Z)'!$Q$11:$Q$208,MATCH('Statement(Z) '!C31,'Data (VII PAY-Z)'!$A$11:$A$208,0)) ->  | H31: =INDEX('Data (VII PAY-Z)'!$M$11:$M$208,MATCH('Statement(Z) '!C31,'Data (VII PAY-Z)'!$A$11:$A$208,0)) -> 0 | J31: =IF(C31="","",INDEX('Data (VII PAY-Z)'!$J$11:$J$242,MATCH('Statement(Z) '!C31,'Data (VII PAY-Z)'!$A$11:$A$242,0))) ->  | K31: 0 | L31: =IF(C31="","",ROUND(J31*'PraveshArr (VII PAY-Z) '!AN31,0)) ->  | M31: =IF(C31="","",INDEX('Data (VII PAY-Z)'!$T$11:$T$242,MATCH('Statement(Z) '!C31,'Data (VII PAY-Z)'!$A$11:$A$242,0))) ->  | N31: =IF(C31="","",INDEX('Data (VII PAY-Z)'!$N$11:$N$242,MATCH('Statement(Z) '!C31,'Data (VII PAY-Z)'!$A$11:$A$242,0))) ->  | Q31: 0 | V31: 0 | W31: 0 | X31: 0 | Y31: =IF(C31="","",IF('Data (VII PAY-Z)'!V35="Cash",0,IF('Data (VII PAY-Z)'!B35="Adj. in GPF",(U31-Z31-AA31-AB31-AC31),0))) ->  | AA31: =IF(C31="","",IF(A31="Cash",0,'Data (VII PAY-Z)'!AA35)) ->  | AB31: =IF(C31="","",'Data (VII PAY-Z)'!AB35) ->  | AC31: =IF(C31="","",'Data (VII PAY-Z)'!AG35) ->  | AF31: =IF(C31="","",IF('Data (VII PAY-Z)'!AH35="","",'Data (VII PAY-Z)'!AH35)) -> 
A32: ='Data (VII PAY-Z)'!B36 -> 00:00:00 | C32: ='Data (VII PAY-Z)'!A36 ->  | D32: =INDEX('Data (VII PAY-Z)'!$G$11:$G$242,MATCH('Statement(Z) '!C32,'Data (VII PAY-Z)'!$A$11:$A$242,0)) ->  | E32: 0 | F32: =IF(C32="","",ROUND(D32*'PraveshArr (VII PAY-Z) '!AQ32,0)) ->  | G32: =INDEX('Data (VII PAY-Z)'!$Q$11:$Q$208,MATCH('Statement(Z) '!C32,'Data (VII PAY-Z)'!$A$11:$A$208,0)) ->  | H32: =INDEX('Data (VII PAY-Z)'!$M$11:$M$208,MATCH('Statement(Z) '!C32,'Data (VII PAY-Z)'!$A$11:$A$208,0)) -> 0 | J32: =IF(C32="","",INDEX('Data (VII PAY-Z)'!$J$11:$J$242,MATCH('Statement(Z) '!C32,'Data (VII PAY-Z)'!$A$11:$A$242,0))) ->  | K32: 0 | L32: =IF(C32="","",ROUND(J32*'PraveshArr (VII PAY-Z) '!AN32,0)) ->  | M32: =IF(C32="","",INDEX('Data (VII PAY-Z)'!$T$11:$T$242,MATCH('Statement(Z) '!C32,'Data (VII PAY-Z)'!$A$11:$A$242,0))) ->  | N32: =IF(C32="","",INDEX('Data (VII PAY-Z)'!$N$11:$N$242,MATCH('Statement(Z) '!C32,'Data (VII PAY-Z)'!$A$11:$A$242,0))) ->  | Q32: 0 | V32: 0 | W32: 0 | X32: 0 | Y32: =IF(C32="","",IF('Data (VII PAY-Z)'!V36="Cash",0,IF('Data (VII PAY-Z)'!B36="Adj. in GPF",(U32-Z32-AA32-AB32-AC32),0))) ->  | AA32: =IF(C32="","",IF(A32="Cash",0,'Data (VII PAY-Z)'!AA36)) ->  | AB32: =IF(C32="","",'Data (VII PAY-Z)'!AB36) ->  | AC32: =IF(C32="","",'Data (VII PAY-Z)'!AG36) ->  | AF32: =IF(C32="","",IF('Data (VII PAY-Z)'!AH36="","",'Data (VII PAY-Z)'!AH36)) -> 
A33: ='Data (VII PAY-Z)'!B37 -> 00:00:00 | C33: ='Data (VII PAY-Z)'!A37 ->  | D33: =INDEX('Data (VII PAY-Z)'!$G$11:$G$242,MATCH('Statement(Z) '!C33,'Data (VII PAY-Z)'!$A$11:$A$242,0)) ->  | E33: 0 | F33: =IF(C33="","",ROUND(D33*'PraveshArr (VII PAY-Z) '!AQ33,0)) ->  | G33: =INDEX('Data (VII PAY-Z)'!$Q$11:$Q$208,MATCH('Statement(Z) '!C33,'Data (VII PAY-Z)'!$A$11:$A$208,0)) ->  | H33: =INDEX('Data (VII PAY-Z)'!$M$11:$M$208,MATCH('Statement(Z) '!C33,'Data (VII PAY-Z)'!$A$11:$A$208,0)) -> 0 | J33: =IF(C33="","",INDEX('Data (VII PAY-Z)'!$J$11:$J$242,MATCH('Statement(Z) '!C33,'Data (VII PAY-Z)'!$A$11:$A$242,0))) ->  | K33: 0 | L33: =IF(C33="","",ROUND(J33*'PraveshArr (VII PAY-Z) '!AN33,0)) ->  | M33: =IF(C33="","",INDEX('Data (VII PAY-Z)'!$T$11:$T$242,MATCH('Statement(Z) '!C33,'Data (VII PAY-Z)'!$A$11:$A$242,0))) ->  | N33: =IF(C33="","",INDEX('Data (VII PAY-Z)'!$N$11:$N$242,MATCH('Statement(Z) '!C33,'Data (VII PAY-Z)'!$A$11:$A$242,0))) ->  | Q33: 0 | V33: 0 | W33: 0 | X33: 0 | Y33: =IF(C33="","",IF('Data (VII PAY-Z)'!V37="Cash",0,IF('Data (VII PAY-Z)'!B37="Adj. in GPF",(U33-Z33-AA33-AB33-AC33),0))) ->  | AA33: =IF(C33="","",IF(A33="Cash",0,'Data (VII PAY-Z)'!AA37)) ->  | AB33: =IF(C33="","",'Data (VII PAY-Z)'!AB37) ->  | AC33: =IF(C33="","",'Data (VII PAY-Z)'!AG37) ->  | AF33: =IF(C33="","",IF('Data (VII PAY-Z)'!AH37="","",'Data (VII PAY-Z)'!AH37)) -> 
A34: ='Data (VII PAY-Z)'!B38 -> 00:00:00 | C34: ='Data (VII PAY-Z)'!A38 ->  | D34: =INDEX('Data (VII PAY-Z)'!$G$11:$G$242,MATCH('Statement(Z) '!C34,'Data (VII PAY-Z)'!$A$11:$A$242,0)) ->  | E34: 0 | F34: =IF(C34="","",ROUND(D34*'PraveshArr (VII PAY-Z) '!AQ34,0)) ->  | G34: =INDEX('Data (VII PAY-Z)'!$Q$11:$Q$208,MATCH('Statement(Z) '!C34,'Data (VII PAY-Z)'!$A$11:$A$208,0)) ->  | H34: =INDEX('Data (VII PAY-Z)'!$M$11:$M$208,MATCH('Statement(Z) '!C34,'Data (VII PAY-Z)'!$A$11:$A$208,0)) -> 0 | J34: =IF(C34="","",INDEX('Data (VII PAY-Z)'!$J$11:$J$242,MATCH('Statement(Z) '!C34,'Data (VII PAY-Z)'!$A$11:$A$242,0))) ->  | K34: 0 | L34: =IF(C34="","",ROUND(J34*'PraveshArr (VII PAY-Z) '!AN34,0)) ->  | M34: =IF(C34="","",INDEX('Data (VII PAY-Z)'!$T$11:$T$242,MATCH('Statement(Z) '!C34,'Data (VII PAY-Z)'!$A$11:$A$242,0))) ->  | N34: =IF(C34="","",INDEX('Data (VII PAY-Z)'!$N$11:$N$242,MATCH('Statement(Z) '!C34,'Data (VII PAY-Z)'!$A$11:$A$242,0))) ->  | Q34: 0 | V34: 0 | W34: 0 | X34: 0 | Y34: =IF(C34="","",IF('Data (VII PAY-Z)'!V38="Cash",0,IF('Data (VII PAY-Z)'!B38="Adj. in GPF",(U34-Z34-AA34-AB34-AC34),0))) ->  | AA34: =IF(C34="","",IF(A34="Cash",0,'Data (VII PAY-Z)'!AA38)) ->  | AB34: =IF(C34="","",'Data (VII PAY-Z)'!AB38) ->  | AC34: =IF(C34="","",'Data (VII PAY-Z)'!AG38) ->  | AF34: =IF(C34="","",IF('Data (VII PAY-Z)'!AH38="","",'Data (VII PAY-Z)'!AH38)) -> 
A35: ='Data (VII PAY-Z)'!B39 -> 00:00:00 | C35: ='Data (VII PAY-Z)'!A39 ->  | D35: =INDEX('Data (VII PAY-Z)'!$G$11:$G$242,MATCH('Statement(Z) '!C35,'Data (VII PAY-Z)'!$A$11:$A$242,0)) ->  | E35: 0 | F35: =IF(C35="","",ROUND(D35*'PraveshArr (VII PAY-Z) '!AQ35,0)) ->  | G35: =INDEX('Data (VII PAY-Z)'!$Q$11:$Q$208,MATCH('Statement(Z) '!C35,'Data (VII PAY-Z)'!$A$11:$A$208,0)) ->  | H35: =INDEX('Data (VII PAY-Z)'!$M$11:$M$208,MATCH('Statement(Z) '!C35,'Data (VII PAY-Z)'!$A$11:$A$208,0)) -> 0 | J35: =IF(C35="","",INDEX('Data (VII PAY-Z)'!$J$11:$J$242,MATCH('Statement(Z) '!C35,'Data (VII PAY-Z)'!$A$11:$A$242,0))) ->  | K35: 0 | L35: =IF(C35="","",ROUND(J35*'PraveshArr (VII PAY-Z) '!AN35,0)) ->  | M35: =IF(C35="","",INDEX('Data (VII PAY-Z)'!$T$11:$T$242,MATCH('Statement(Z) '!C35,'Data (VII PAY-Z)'!$A$11:$A$242,0))) ->  | N35: =IF(C35="","",INDEX('Data (VII PAY-Z)'!$N$11:$N$242,MATCH('Statement(Z) '!C35,'Data (VII PAY-Z)'!$A$11:$A$242,0))) ->  | Q35: 0 | V35: 0 | W35: 0 | X35: 0 | Y35: =IF(C35="","",IF('Data (VII PAY-Z)'!V39="Cash",0,IF('Data (VII PAY-Z)'!B39="Adj. in GPF",(U35-Z35-AA35-AB35-AC35),0))) ->  | AA35: =IF(C35="","",IF(A35="Cash",0,'Data (VII PAY-Z)'!AA39)) ->  | AB35: =IF(C35="","",'Data (VII PAY-Z)'!AB39) ->  | AC35: =IF(C35="","",'Data (VII PAY-Z)'!AG39) ->  | AF35: =IF(C35="","",IF('Data (VII PAY-Z)'!AH39="","",'Data (VII PAY-Z)'!AH39)) -> 
A36: ='Data (VII PAY-Z)'!B40 -> 00:00:00 | C36: ='Data (VII PAY-Z)'!A40 ->  | D36: =INDEX('Data (VII PAY-Z)'!$G$11:$G$242,MATCH('Statement(Z) '!C36,'Data (VII PAY-Z)'!$A$11:$A$242,0)) ->  | E36: 0 | F36: =IF(C36="","",ROUND(D36*'PraveshArr (VII PAY-Z) '!AQ36,0)) ->  | G36: =INDEX('Data (VII PAY-Z)'!$Q$11:$Q$208,MATCH('Statement(Z) '!C36,'Data (VII PAY-Z)'!$A$11:$A$208,0)) ->  | H36: =INDEX('Data (VII PAY-Z)'!$M$11:$M$208,MATCH('Statement(Z) '!C36,'Data (VII PAY-Z)'!$A$11:$A$208,0)) -> 0 | J36: =IF(C36="","",INDEX('Data (VII PAY-Z)'!$J$11:$J$242,MATCH('Statement(Z) '!C36,'Data (VII PAY-Z)'!$A$11:$A$242,0))) ->  | K36: 0 | L36: =IF(C36="","",ROUND(J36*'PraveshArr (VII PAY-Z) '!AN36,0)) ->  | M36: =IF(C36="","",INDEX('Data (VII PAY-Z)'!$T$11:$T$242,MATCH('Statement(Z) '!C36,'Data (VII PAY-Z)'!$A$11:$A$242,0))) ->  | N36: =IF(C36="","",INDEX('Data (VII PAY-Z)'!$N$11:$N$242,MATCH('Statement(Z) '!C36,'Data (VII PAY-Z)'!$A$11:$A$242,0))) ->  | Q36: 0 | V36: 0 | W36: 0 | X36: 0 | Y36: =IF(C36="","",IF('Data (VII PAY-Z)'!V40="Cash",0,IF('Data (VII PAY-Z)'!B40="Adj. in GPF",(U36-Z36-AA36-AB36-AC36),0))) ->  | AA36: =IF(C36="","",IF(A36="Cash",0,'Data (VII PAY-Z)'!AA40)) ->  | AB36: =IF(C36="","",'Data (VII PAY-Z)'!AB40) ->  | AC36: =IF(C36="","",'Data (VII PAY-Z)'!AG40) ->  | AF36: =IF(C36="","",IF('Data (VII PAY-Z)'!AH40="","",'Data (VII PAY-Z)'!AH40)) -> 
A37: ='Data (VII PAY-Z)'!B41 -> 00:00:00 | C37: ='Data (VII PAY-Z)'!A41 ->  | D37: =INDEX('Data (VII PAY-Z)'!$G$11:$G$242,MATCH('Statement(Z) '!C37,'Data (VII PAY-Z)'!$A$11:$A$242,0)) ->  | E37: 0 | F37: =IF(C37="","",ROUND(D37*'PraveshArr (VII PAY-Z) '!AQ37,0)) ->  | G37: =INDEX('Data (VII PAY-Z)'!$Q$11:$Q$208,MATCH('Statement(Z) '!C37,'Data (VII PAY-Z)'!$A$11:$A$208,0)) ->  | H37: =INDEX('Data (VII PAY-Z)'!$M$11:$M$208,MATCH('Statement(Z) '!C37,'Data (VII PAY-Z)'!$A$11:$A$208,0)) -> 0 | J37: =IF(C37="","",INDEX('Data (VII PAY-Z)'!$J$11:$J$242,MATCH('Statement(Z) '!C37,'Data (VII PAY-Z)'!$A$11:$A$242,0))) ->  | K37: 0 | L37: =IF(C37="","",ROUND(J37*'PraveshArr (VII PAY-Z) '!AN37,0)) ->  | M37: =IF(C37="","",INDEX('Data (VII PAY-Z)'!$T$11:$T$242,MATCH('Statement(Z) '!C37,'Data (VII PAY-Z)'!$A$11:$A$242,0))) ->  | N37: =IF(C37="","",INDEX('Data (VII PAY-Z)'!$N$11:$N$242,MATCH('Statement(Z) '!C37,'Data (VII PAY-Z)'!$A$11:$A$242,0))) ->  | Q37: 0 | V37: 0 | W37: 0 | X37: 0 | Y37: =IF(C37="","",IF('Data (VII PAY-Z)'!V41="Cash",0,IF('Data (VII PAY-Z)'!B41="Adj. in GPF",(U37-Z37-AA37-AB37-AC37),0))) ->  | AA37: =IF(C37="","",IF(A37="Cash",0,'Data (VII PAY-Z)'!AA41)) ->  | AB37: =IF(C37="","",'Data (VII PAY-Z)'!AB41) ->  | AC37: =IF(C37="","",'Data (VII PAY-Z)'!AG41) ->  | AF37: =IF(C37="","",IF('Data (VII PAY-Z)'!AH41="","",'Data (VII PAY-Z)'!AH41)) -> 
A38: ='Data (VII PAY-Z)'!B42 -> 00:00:00 | C38: ='Data (VII PAY-Z)'!A42 ->  | D38: =INDEX('Data (VII PAY-Z)'!$G$11:$G$242,MATCH('Statement(Z) '!C38,'Data (VII PAY-Z)'!$A$11:$A$242,0)) ->  | E38: 0 | F38: =IF(C38="","",ROUND(D38*'PraveshArr (VII PAY-Z) '!AQ38,0)) ->  | G38: =INDEX('Data (VII PAY-Z)'!$Q$11:$Q$208,MATCH('Statement(Z) '!C38,'Data (VII PAY-Z)'!$A$11:$A$208,0)) ->  | H38: =INDEX('Data (VII PAY-Z)'!$M$11:$M$208,MATCH('Statement(Z) '!C38,'Data (VII PAY-Z)'!$A$11:$A$208,0)) -> 0 | J38: =IF(C38="","",INDEX('Data (VII PAY-Z)'!$J$11:$J$242,MATCH('Statement(Z) '!C38,'Data (VII PAY-Z)'!$A$11:$A$242,0))) ->  | K38: 0 | L38: =IF(C38="","",ROUND(J38*'PraveshArr (VII PAY-Z) '!AN38,0)) ->  | M38: =IF(C38="","",INDEX('Data (VII PAY-Z)'!$T$11:$T$242,MATCH('Statement(Z) '!C38,'Data (VII PAY-Z)'!$A$11:$A$242,0))) ->  | N38: =IF(C38="","",INDEX('Data (VII PAY-Z)'!$N$11:$N$242,MATCH('Statement(Z) '!C38,'Data (VII PAY-Z)'!$A$11:$A$242,0))) ->  | Q38: 0 | V38: 0 | W38: 0 | X38: 0 | Y38: =IF(C38="","",IF('Data (VII PAY-Z)'!V42="Cash",0,IF('Data (VII PAY-Z)'!B42="Adj. in GPF",(U38-Z38-AA38-AB38-AC38),0))) ->  | AA38: =IF(C38="","",IF(A38="Cash",0,'Data (VII PAY-Z)'!AA42)) ->  | AB38: =IF(C38="","",'Data (VII PAY-Z)'!AB42) ->  | AC38: =IF(C38="","",'Data (VII PAY-Z)'!AG42) ->  | AF38: =IF(C38="","",IF('Data (VII PAY-Z)'!AH42="","",'Data (VII PAY-Z)'!AH42)) -> 
A39: ='Data (VII PAY-Z)'!B43 -> 00:00:00 | C39: ='Data (VII PAY-Z)'!A43 ->  | D39: =INDEX('Data (VII PAY-Z)'!$G$11:$G$242,MATCH('Statement(Z) '!C39,'Data (VII PAY-Z)'!$A$11:$A$242,0)) ->  | E39: 0 | F39: =IF(C39="","",ROUND(D39*'PraveshArr (VII PAY-Z) '!AQ39,0)) ->  | G39: =INDEX('Data (VII PAY-Z)'!$Q$11:$Q$208,MATCH('Statement(Z) '!C39,'Data (VII PAY-Z)'!$A$11:$A$208,0)) ->  | H39: =INDEX('Data (VII PAY-Z)'!$M$11:$M$208,MATCH('Statement(Z) '!C39,'Data (VII PAY-Z)'!$A$11:$A$208,0)) -> 0 | J39: =IF(C39="","",INDEX('Data (VII PAY-Z)'!$J$11:$J$242,MATCH('Statement(Z) '!C39,'Data (VII PAY-Z)'!$A$11:$A$242,0))) ->  | K39: 0 | L39: =IF(C39="","",ROUND(J39*'PraveshArr (VII PAY-Z) '!AN39,0)) ->  | M39: =IF(C39="","",INDEX('Data (VII PAY-Z)'!$T$11:$T$242,MATCH('Statement(Z) '!C39,'Data (VII PAY-Z)'!$A$11:$A$242,0))) ->  | N39: =IF(C39="","",INDEX('Data (VII PAY-Z)'!$N$11:$N$242,MATCH('Statement(Z) '!C39,'Data (VII PAY-Z)'!$A$11:$A$242,0))) ->  | Q39: 0 | V39: 0 | W39: 0 | X39: 0 | Y39: =IF(C39="","",IF('Data (VII PAY-Z)'!V43="Cash",0,IF('Data (VII PAY-Z)'!B43="Adj. in GPF",(U39-Z39-AA39-AB39-AC39),0))) ->  | AA39: =IF(C39="","",IF(A39="Cash",0,'Data (VII PAY-Z)'!AA43)) ->  | AB39: =IF(C39="","",'Data (VII PAY-Z)'!AB43) ->  | AC39: =IF(C39="","",'Data (VII PAY-Z)'!AG43) ->  | AF39: =IF(C39="","",IF('Data (VII PAY-Z)'!AH43="","",'Data (VII PAY-Z)'!AH43)) -> 
A40: ='Data (VII PAY-Z)'!B44 -> 00:00:00 | C40: ='Data (VII PAY-Z)'!A44 ->  | D40: =INDEX('Data (VII PAY-Z)'!$G$11:$G$242,MATCH('Statement(Z) '!C40,'Data (VII PAY-Z)'!$A$11:$A$242,0)) ->  | E40: 0 | F40: =IF(C40="","",ROUND(D40*'PraveshArr (VII PAY-Z) '!AQ40,0)) ->  | G40: =INDEX('Data (VII PAY-Z)'!$Q$11:$Q$208,MATCH('Statement(Z) '!C40,'Data (VII PAY-Z)'!$A$11:$A$208,0)) ->  | H40: =INDEX('Data (VII PAY-Z)'!$M$11:$M$208,MATCH('Statement(Z) '!C40,'Data (VII PAY-Z)'!$A$11:$A$208,0)) -> 0 | J40: =IF(C40="","",INDEX('Data (VII PAY-Z)'!$J$11:$J$242,MATCH('Statement(Z) '!C40,'Data (VII PAY-Z)'!$A$11:$A$242,0))) ->  | K40: 0 | L40: =IF(C40="","",ROUND(J40*'PraveshArr (VII PAY-Z) '!AN40,0)) ->  | M40: =IF(C40="","",INDEX('Data (VII PAY-Z)'!$T$11:$T$242,MATCH('Statement(Z) '!C40,'Data (VII PAY-Z)'!$A$11:$A$242,0))) ->  | N40: =IF(C40="","",INDEX('Data (VII PAY-Z)'!$N$11:$N$242,MATCH('Statement(Z) '!C40,'Data (VII PAY-Z)'!$A$11:$A$242,0))) ->  | Q40: 0 | V40: 0 | W40: 0 | X40: 0 | Y40: =IF(C40="","",IF('Data (VII PAY-Z)'!V44="Cash",0,IF('Data (VII PAY-Z)'!B44="Adj. in GPF",(U40-Z40-AA40-AB40-AC40),0))) ->  | AA40: =IF(C40="","",IF(A40="Cash",0,'Data (VII PAY-Z)'!AA44)) ->  | AB40: =IF(C40="","",'Data (VII PAY-Z)'!AB44) ->  | AC40: =IF(C40="","",'Data (VII PAY-Z)'!AG44) ->  | AF40: =IF(C40="","",IF('Data (VII PAY-Z)'!AH44="","",'Data (VII PAY-Z)'!AH44)) -> 
A41: ='Data (VII PAY-Z)'!B45 -> 00:00:00 | C41: ='Data (VII PAY-Z)'!A45 ->  | D41: =INDEX('Data (VII PAY-Z)'!$G$11:$G$242,MATCH('Statement(Z) '!C41,'Data (VII PAY-Z)'!$A$11:$A$242,0)) ->  | E41: 0 | F41: =IF(C41="","",ROUND(D41*'PraveshArr (VII PAY-Z) '!AQ41,0)) ->  | G41: =INDEX('Data (VII PAY-Z)'!$Q$11:$Q$208,MATCH('Statement(Z) '!C41,'Data (VII PAY-Z)'!$A$11:$A$208,0)) ->  | H41: =INDEX('Data (VII PAY-Z)'!$M$11:$M$208,MATCH('Statement(Z) '!C41,'Data (VII PAY-Z)'!$A$11:$A$208,0)) -> 0 | J41: =IF(C41="","",INDEX('Data (VII PAY-Z)'!$J$11:$J$242,MATCH('Statement(Z) '!C41,'Data (VII PAY-Z)'!$A$11:$A$242,0))) ->  | K41: 0 | L41: =IF(C41="","",ROUND(J41*'PraveshArr (VII PAY-Z) '!AN41,0)) ->  | M41: =IF(C41="","",INDEX('Data (VII PAY-Z)'!$T$11:$T$242,MATCH('Statement(Z) '!C41,'Data (VII PAY-Z)'!$A$11:$A$242,0))) ->  | N41: =IF(C41="","",INDEX('Data (VII PAY-Z)'!$N$11:$N$242,MATCH('Statement(Z) '!C41,'Data (VII PAY-Z)'!$A$11:$A$242,0))) ->  | Q41: 0 | V41: 0 | W41: 0 | X41: 0 | Y41: =IF(C41="","",IF('Data (VII PAY-Z)'!V45="Cash",0,IF('Data (VII PAY-Z)'!B45="Adj. in GPF",(U41-Z41-AA41-AB41-AC41),0))) ->  | AA41: =IF(C41="","",IF(A41="Cash",0,'Data (VII PAY-Z)'!AA45)) ->  | AB41: =IF(C41="","",'Data (VII PAY-Z)'!AB45) ->  | AC41: =IF(C41="","",'Data (VII PAY-Z)'!AG45) ->  | AF41: =IF(C41="","",IF('Data (VII PAY-Z)'!AH45="","",'Data (VII PAY-Z)'!AH45)) -> 
A42: ='Data (VII PAY-Z)'!B46 -> 00:00:00 | C42: ='Data (VII PAY-Z)'!A46 ->  | D42: =INDEX('Data (VII PAY-Z)'!$G$11:$G$242,MATCH('Statement(Z) '!C42,'Data (VII PAY-Z)'!$A$11:$A$242,0)) ->  | E42: 0 | F42: =IF(C42="","",ROUND(D42*'PraveshArr (VII PAY-Z) '!AQ42,0)) ->  | G42: =INDEX('Data (VII PAY-Z)'!$Q$11:$Q$208,MATCH('Statement(Z) '!C42,'Data (VII PAY-Z)'!$A$11:$A$208,0)) ->  | H42: =INDEX('Data (VII PAY-Z)'!$M$11:$M$208,MATCH('Statement(Z) '!C42,'Data (VII PAY-Z)'!$A$11:$A$208,0)) -> 0 | J42: =IF(C42="","",INDEX('Data (VII PAY-Z)'!$J$11:$J$242,MATCH('Statement(Z) '!C42,'Data (VII PAY-Z)'!$A$11:$A$242,0))) ->  | K42: 0 | L42: =IF(C42="","",ROUND(J42*'PraveshArr (VII PAY-Z) '!AN42,0)) ->  | M42: =IF(C42="","",INDEX('Data (VII PAY-Z)'!$T$11:$T$242,MATCH('Statement(Z) '!C42,'Data (VII PAY-Z)'!$A$11:$A$242,0))) ->  | N42: =IF(C42="","",INDEX('Data (VII PAY-Z)'!$N$11:$N$242,MATCH('Statement(Z) '!C42,'Data (VII PAY-Z)'!$A$11:$A$242,0))) ->  | Q42: 0 | V42: 0 | W42: 0 | X42: 0 | Y42: =IF(C42="","",IF('Data (VII PAY-Z)'!V46="Cash",0,IF('Data (VII PAY-Z)'!B46="Adj. in GPF",(U42-Z42-AA42-AB42-AC42),0))) ->  | AA42: =IF(C42="","",IF(A42="Cash",0,'Data (VII PAY-Z)'!AA46)) ->  | AB42: =IF(C42="","",'Data (VII PAY-Z)'!AB46) ->  | AC42: =IF(C42="","",'Data (VII PAY-Z)'!AG46) ->  | AF42: =IF(C42="","",IF('Data (VII PAY-Z)'!AH46="","",'Data (VII PAY-Z)'!AH46)) -> 
A43: ='Data (VII PAY-Z)'!B47 -> 00:00:00 | C43: ='Data (VII PAY-Z)'!A47 ->  | D43: =INDEX('Data (VII PAY-Z)'!$G$11:$G$242,MATCH('Statement(Z) '!C43,'Data (VII PAY-Z)'!$A$11:$A$242,0)) ->  | E43: 0 | F43: =IF(C43="","",ROUND(D43*'PraveshArr (VII PAY-Z) '!AQ43,0)) ->  | G43: =INDEX('Data (VII PAY-Z)'!$Q$11:$Q$208,MATCH('Statement(Z) '!C43,'Data (VII PAY-Z)'!$A$11:$A$208,0)) ->  | H43: =INDEX('Data (VII PAY-Z)'!$M$11:$M$208,MATCH('Statement(Z) '!C43,'Data (VII PAY-Z)'!$A$11:$A$208,0)) -> 0 | J43: =IF(C43="","",INDEX('Data (VII PAY-Z)'!$J$11:$J$242,MATCH('Statement(Z) '!C43,'Data (VII PAY-Z)'!$A$11:$A$242,0))) ->  | K43: 0 | L43: =IF(C43="","",ROUND(J43*'PraveshArr (VII PAY-Z) '!AN43,0)) ->  | M43: =IF(C43="","",INDEX('Data (VII PAY-Z)'!$T$11:$T$242,MATCH('Statement(Z) '!C43,'Data (VII PAY-Z)'!$A$11:$A$242,0))) ->  | N43: =IF(C43="","",INDEX('Data (VII PAY-Z)'!$N$11:$N$242,MATCH('Statement(Z) '!C43,'Data (VII PAY-Z)'!$A$11:$A$242,0))) ->  | Q43: 0 | V43: 0 | W43: 0 | X43: 0 | Y43: =IF(C43="","",IF('Data (VII PAY-Z)'!V47="Cash",0,IF('Data (VII PAY-Z)'!B47="Adj. in GPF",(U43-Z43-AA43-AB43-AC43),0))) ->  | AA43: =IF(C43="","",IF(A43="Cash",0,'Data (VII PAY-Z)'!AA47)) ->  | AB43: =IF(C43="","",'Data (VII PAY-Z)'!AB47) ->  | AC43: =IF(C43="","",'Data (VII PAY-Z)'!AG47) ->  | AF43: =IF(C43="","",IF('Data (VII PAY-Z)'!AH47="","",'Data (VII PAY-Z)'!AH47)) -> 
A44: ='Data (VII PAY-Z)'!B48 -> 00:00:00 | C44: ='Data (VII PAY-Z)'!A48 ->  | D44: =INDEX('Data (VII PAY-Z)'!$G$11:$G$242,MATCH('Statement(Z) '!C44,'Data (VII PAY-Z)'!$A$11:$A$242,0)) ->  | E44: 0 | F44: =IF(C44="","",ROUND(D44*'PraveshArr (VII PAY-Z) '!AQ44,0)) ->  | G44: =INDEX('Data (VII PAY-Z)'!$Q$11:$Q$208,MATCH('Statement(Z) '!C44,'Data (VII PAY-Z)'!$A$11:$A$208,0)) ->  | H44: =INDEX('Data (VII PAY-Z)'!$M$11:$M$208,MATCH('Statement(Z) '!C44,'Data (VII PAY-Z)'!$A$11:$A$208,0)) -> 0 | J44: =IF(C44="","",INDEX('Data (VII PAY-Z)'!$J$11:$J$242,MATCH('Statement(Z) '!C44,'Data (VII PAY-Z)'!$A$11:$A$242,0))) ->  | K44: 0 | L44: =IF(C44="","",ROUND(J44*'PraveshArr (VII PAY-Z) '!AN44,0)) ->  | M44: =IF(C44="","",INDEX('Data (VII PAY-Z)'!$T$11:$T$242,MATCH('Statement(Z) '!C44,'Data (VII PAY-Z)'!$A$11:$A$242,0))) ->  | N44: =IF(C44="","",INDEX('Data (VII PAY-Z)'!$N$11:$N$242,MATCH('Statement(Z) '!C44,'Data (VII PAY-Z)'!$A$11:$A$242,0))) ->  | Q44: 0 | V44: 0 | W44: 0 | X44: 0 | Y44: =IF(C44="","",IF('Data (VII PAY-Z)'!V48="Cash",0,IF('Data (VII PAY-Z)'!B48="Adj. in GPF",(U44-Z44-AA44-AB44-AC44),0))) ->  | AA44: =IF(C44="","",IF(A44="Cash",0,'Data (VII PAY-Z)'!AA48)) ->  | AB44: =IF(C44="","",'Data (VII PAY-Z)'!AB48) ->  | AC44: =IF(C44="","",'Data (VII PAY-Z)'!AG48) ->  | AF44: =IF(C44="","",IF('Data (VII PAY-Z)'!AH48="","",'Data (VII PAY-Z)'!AH48)) -> 
A45: ='Data (VII PAY-Z)'!B49 -> 00:00:00 | C45: ='Data (VII PAY-Z)'!A49 ->  | D45: =INDEX('Data (VII PAY-Z)'!$G$11:$G$242,MATCH('Statement(Z) '!C45,'Data (VII PAY-Z)'!$A$11:$A$242,0)) ->  | E45: 0 | F45: =IF(C45="","",ROUND(D45*'PraveshArr (VII PAY-Z) '!AQ45,0)) ->  | G45: =INDEX('Data (VII PAY-Z)'!$Q$11:$Q$208,MATCH('Statement(Z) '!C45,'Data (VII PAY-Z)'!$A$11:$A$208,0)) ->  | H45: =INDEX('Data (VII PAY-Z)'!$M$11:$M$208,MATCH('Statement(Z) '!C45,'Data (VII PAY-Z)'!$A$11:$A$208,0)) -> 0 | J45: =IF(C45="","",INDEX('Data (VII PAY-Z)'!$J$11:$J$242,MATCH('Statement(Z) '!C45,'Data (VII PAY-Z)'!$A$11:$A$242,0))) ->  | K45: 0 | L45: =IF(C45="","",ROUND(J45*'PraveshArr (VII PAY-Z) '!AN45,0)) ->  | M45: =IF(C45="","",INDEX('Data (VII PAY-Z)'!$T$11:$T$242,MATCH('Statement(Z) '!C45,'Data (VII PAY-Z)'!$A$11:$A$242,0))) ->  | N45: =IF(C45="","",INDEX('Data (VII PAY-Z)'!$N$11:$N$242,MATCH('Statement(Z) '!C45,'Data (VII PAY-Z)'!$A$11:$A$242,0))) ->  | Q45: 0 | V45: 0 | W45: 0 | X45: 0 | Y45: =IF(C45="","",IF('Data (VII PAY-Z)'!V49="Cash",0,IF('Data (VII PAY-Z)'!B49="Adj. in GPF",(U45-Z45-AA45-AB45-AC45),0))) ->  | AA45: =IF(C45="","",IF(A45="Cash",0,'Data (VII PAY-Z)'!AA49)) ->  | AB45: =IF(C45="","",'Data (VII PAY-Z)'!AB49) ->  | AC45: =IF(C45="","",'Data (VII PAY-Z)'!AG49) ->  | AF45: =IF(C45="","",IF('Data (VII PAY-Z)'!AH49="","",'Data (VII PAY-Z)'!AH49)) -> 
A46: ='Data (VII PAY-Z)'!B50 -> 00:00:00 | C46: ='Data (VII PAY-Z)'!A50 ->  | D46: =INDEX('Data (VII PAY-Z)'!$G$11:$G$242,MATCH('Statement(Z) '!C46,'Data (VII PAY-Z)'!$A$11:$A$242,0)) ->  | E46: 0 | F46: =IF(C46="","",ROUND(D46*'PraveshArr (VII PAY-Z) '!AQ46,0)) ->  | G46: =INDEX('Data (VII PAY-Z)'!$Q$11:$Q$208,MATCH('Statement(Z) '!C46,'Data (VII PAY-Z)'!$A$11:$A$208,0)) ->  | H46: =INDEX('Data (VII PAY-Z)'!$M$11:$M$208,MATCH('Statement(Z) '!C46,'Data (VII PAY-Z)'!$A$11:$A$208,0)) -> 0 | J46: =IF(C46="","",INDEX('Data (VII PAY-Z)'!$J$11:$J$242,MATCH('Statement(Z) '!C46,'Data (VII PAY-Z)'!$A$11:$A$242,0))) ->  | K46: 0 | L46: =IF(C46="","",ROUND(J46*'PraveshArr (VII PAY-Z) '!AN46,0)) ->  | M46: =IF(C46="","",INDEX('Data (VII PAY-Z)'!$T$11:$T$242,MATCH('Statement(Z) '!C46,'Data (VII PAY-Z)'!$A$11:$A$242,0))) ->  | N46: =IF(C46="","",INDEX('Data (VII PAY-Z)'!$N$11:$N$242,MATCH('Statement(Z) '!C46,'Data (VII PAY-Z)'!$A$11:$A$242,0))) ->  | Q46: 0 | V46: 0 | W46: 0 | X46: 0 | Y46: =IF(C46="","",IF('Data (VII PAY-Z)'!V50="Cash",0,IF('Data (VII PAY-Z)'!B50="Adj. in GPF",(U46-Z46-AA46-AB46-AC46),0))) ->  | AA46: =IF(C46="","",IF(A46="Cash",0,'Data (VII PAY-Z)'!AA50)) ->  | AB46: =IF(C46="","",'Data (VII PAY-Z)'!AB50) ->  | AC46: =IF(C46="","",'Data (VII PAY-Z)'!AG50) ->  | AF46: =IF(C46="","",IF('Data (VII PAY-Z)'!AH50="","",'Data (VII PAY-Z)'!AH50)) -> 
A47: ='Data (VII PAY-Z)'!B51 -> 00:00:00 | C47: ='Data (VII PAY-Z)'!A51 ->  | D47: =INDEX('Data (VII PAY-Z)'!$G$11:$G$242,MATCH('Statement(Z) '!C47,'Data (VII PAY-Z)'!$A$11:$A$242,0)) ->  | E47: 0 | F47: =IF(C47="","",ROUND(D47*'PraveshArr (VII PAY-Z) '!AQ47,0)) ->  | G47: =INDEX('Data (VII PAY-Z)'!$Q$11:$Q$208,MATCH('Statement(Z) '!C47,'Data (VII PAY-Z)'!$A$11:$A$208,0)) ->  | H47: =INDEX('Data (VII PAY-Z)'!$M$11:$M$208,MATCH('Statement(Z) '!C47,'Data (VII PAY-Z)'!$A$11:$A$208,0)) -> 0 | J47: =IF(C47="","",INDEX('Data (VII PAY-Z)'!$J$11:$J$242,MATCH('Statement(Z) '!C47,'Data (VII PAY-Z)'!$A$11:$A$242,0))) ->  | K47: 0 | L47: =IF(C47="","",ROUND(J47*'PraveshArr (VII PAY-Z) '!AN47,0)) ->  | M47: =IF(C47="","",INDEX('Data (VII PAY-Z)'!$T$11:$T$242,MATCH('Statement(Z) '!C47,'Data (VII PAY-Z)'!$A$11:$A$242,0))) ->  | N47: =IF(C47="","",INDEX('Data (VII PAY-Z)'!$N$11:$N$242,MATCH('Statement(Z) '!C47,'Data (VII PAY-Z)'!$A$11:$A$242,0))) ->  | Q47: 0 | V47: 0 | W47: 0 | X47: 0 | Y47: =IF(C47="","",IF('Data (VII PAY-Z)'!V51="Cash",0,IF('Data (VII PAY-Z)'!B51="Adj. in GPF",(U47-Z47-AA47-AB47-AC47),0))) ->  | AA47: =IF(C47="","",IF(A47="Cash",0,'Data (VII PAY-Z)'!AA51)) ->  | AB47: =IF(C47="","",'Data (VII PAY-Z)'!AB51) ->  | AC47: =IF(C47="","",'Data (VII PAY-Z)'!AG51) ->  | AF47: =IF(C47="","",IF('Data (VII PAY-Z)'!AH51="","",'Data (VII PAY-Z)'!AH51)) -> 
A48: ='Data (VII PAY-Z)'!B52 -> 00:00:00 | C48: ='Data (VII PAY-Z)'!A52 ->  | D48: =INDEX('Data (VII PAY-Z)'!$G$11:$G$242,MATCH('Statement(Z) '!C48,'Data (VII PAY-Z)'!$A$11:$A$242,0)) ->  | E48: 0 | F48: =IF(C48="","",ROUND(D48*'PraveshArr (VII PAY-Z) '!AQ48,0)) ->  | G48: =INDEX('Data (VII PAY-Z)'!$Q$11:$Q$208,MATCH('Statement(Z) '!C48,'Data (VII PAY-Z)'!$A$11:$A$208,0)) ->  | H48: =INDEX('Data (VII PAY-Z)'!$M$11:$M$208,MATCH('Statement(Z) '!C48,'Data (VII PAY-Z)'!$A$11:$A$208,0)) -> 0 | J48: =IF(C48="","",INDEX('Data (VII PAY-Z)'!$J$11:$J$242,MATCH('Statement(Z) '!C48,'Data (VII PAY-Z)'!$A$11:$A$242,0))) ->  | K48: 0 | L48: =IF(C48="","",ROUND(J48*'PraveshArr (VII PAY-Z) '!AN48,0)) ->  | M48: =IF(C48="","",INDEX('Data (VII PAY-Z)'!$T$11:$T$242,MATCH('Statement(Z) '!C48,'Data (VII PAY-Z)'!$A$11:$A$242,0))) ->  | N48: =IF(C48="","",INDEX('Data (VII PAY-Z)'!$N$11:$N$242,MATCH('Statement(Z) '!C48,'Data (VII PAY-Z)'!$A$11:$A$242,0))) ->  | Q48: 0 | V48: 0 | W48: 0 | X48: 0 | Y48: =IF(C48="","",IF('Data (VII PAY-Z)'!V52="Cash",0,IF('Data (VII PAY-Z)'!B52="Adj. in GPF",(U48-Z48-AA48-AB48-AC48),0))) ->  | AA48: =IF(C48="","",IF(A48="Cash",0,'Data (VII PAY-Z)'!AA52)) ->  | AB48: =IF(C48="","",'Data (VII PAY-Z)'!AB52) ->  | AC48: =IF(C48="","",'Data (VII PAY-Z)'!AG52) ->  | AF48: =IF(C48="","",IF('Data (VII PAY-Z)'!AH52="","",'Data (VII PAY-Z)'!AH52)) -> 
A49: ='Data (VII PAY-Z)'!B53 -> 00:00:00 | C49: ='Data (VII PAY-Z)'!A53 ->  | D49: =INDEX('Data (VII PAY-Z)'!$G$11:$G$242,MATCH('Statement(Z) '!C49,'Data (VII PAY-Z)'!$A$11:$A$242,0)) ->  | E49: 0 | F49: =IF(C49="","",ROUND(D49*'PraveshArr (VII PAY-Z) '!AQ49,0)) ->  | G49: =INDEX('Data (VII PAY-Z)'!$Q$11:$Q$208,MATCH('Statement(Z) '!C49,'Data (VII PAY-Z)'!$A$11:$A$208,0)) ->  | H49: =INDEX('Data (VII PAY-Z)'!$M$11:$M$208,MATCH('Statement(Z) '!C49,'Data (VII PAY-Z)'!$A$11:$A$208,0)) -> 0 | J49: =IF(C49="","",INDEX('Data (VII PAY-Z)'!$J$11:$J$242,MATCH('Statement(Z) '!C49,'Data (VII PAY-Z)'!$A$11:$A$242,0))) ->  | K49: 0 | L49: =IF(C49="","",ROUND(J49*'PraveshArr (VII PAY-Z) '!AN49,0)) ->  | M49: =IF(C49="","",INDEX('Data (VII PAY-Z)'!$T$11:$T$242,MATCH('Statement(Z) '!C49,'Data (VII PAY-Z)'!$A$11:$A$242,0))) ->  | N49: =IF(C49="","",INDEX('Data (VII PAY-Z)'!$N$11:$N$242,MATCH('Statement(Z) '!C49,'Data (VII PAY-Z)'!$A$11:$A$242,0))) ->  | Q49: 0 | V49: 0 | W49: 0 | X49: 0 | Y49: =IF(C49="","",IF('Data (VII PAY-Z)'!V53="Cash",0,IF('Data (VII PAY-Z)'!B53="Adj. in GPF",(U49-Z49-AA49-AB49-AC49),0))) ->  | AA49: =IF(C49="","",IF(A49="Cash",0,'Data (VII PAY-Z)'!AA53)) ->  | AB49: =IF(C49="","",'Data (VII PAY-Z)'!AB53) ->  | AC49: =IF(C49="","",'Data (VII PAY-Z)'!AG53) ->  | AF49: =IF(C49="","",IF('Data (VII PAY-Z)'!AH53="","",'Data (VII PAY-Z)'!AH53)) -> 
A50: ='Data (VII PAY-Z)'!B54 -> 00:00:00 | C50: ='Data (VII PAY-Z)'!A54 ->  | D50: =INDEX('Data (VII PAY-Z)'!$G$11:$G$242,MATCH('Statement(Z) '!C50,'Data (VII PAY-Z)'!$A$11:$A$242,0)) ->  | E50: 0 | F50: =IF(C50="","",ROUND(D50*'PraveshArr (VII PAY-Z) '!AQ50,0)) ->  | G50: =INDEX('Data (VII PAY-Z)'!$Q$11:$Q$208,MATCH('Statement(Z) '!C50,'Data (VII PAY-Z)'!$A$11:$A$208,0)) ->  | H50: =INDEX('Data (VII PAY-Z)'!$M$11:$M$208,MATCH('Statement(Z) '!C50,'Data (VII PAY-Z)'!$A$11:$A$208,0)) -> 0 | J50: =IF(C50="","",INDEX('Data (VII PAY-Z)'!$J$11:$J$242,MATCH('Statement(Z) '!C50,'Data (VII PAY-Z)'!$A$11:$A$242,0))) ->  | K50: 0 | L50: =IF(C50="","",ROUND(J50*'PraveshArr (VII PAY-Z) '!AN50,0)) ->  | M50: =IF(C50="","",INDEX('Data (VII PAY-Z)'!$T$11:$T$242,MATCH('Statement(Z) '!C50,'Data (VII PAY-Z)'!$A$11:$A$242,0))) ->  | N50: =IF(C50="","",INDEX('Data (VII PAY-Z)'!$N$11:$N$242,MATCH('Statement(Z) '!C50,'Data (VII PAY-Z)'!$A$11:$A$242,0))) ->  | Q50: 0 | V50: 0 | W50: 0 | X50: 0 | Y50: =IF(C50="","",IF('Data (VII PAY-Z)'!V54="Cash",0,IF('Data (VII PAY-Z)'!B54="Adj. in GPF",(U50-Z50-AA50-AB50-AC50),0))) ->  | AA50: =IF(C50="","",IF(A50="Cash",0,'Data (VII PAY-Z)'!AA54)) ->  | AB50: =IF(C50="","",'Data (VII PAY-Z)'!AB54) ->  | AC50: =IF(C50="","",'Data (VII PAY-Z)'!AG54) ->  | AF50: =IF(C50="","",IF('Data (VII PAY-Z)'!AH54="","",'Data (VII PAY-Z)'!AH54)) -> 
A51: ='Data (VII PAY-Z)'!B55 -> 00:00:00 | C51: ='Data (VII PAY-Z)'!A55 ->  | D51: =INDEX('Data (VII PAY-Z)'!$G$11:$G$242,MATCH('Statement(Z) '!C51,'Data (VII PAY-Z)'!$A$11:$A$242,0)) ->  | E51: 0 | F51: =IF(C51="","",ROUND(D51*'PraveshArr (VII PAY-Z) '!AQ51,0)) ->  | G51: =INDEX('Data (VII PAY-Z)'!$Q$11:$Q$208,MATCH('Statement(Z) '!C51,'Data (VII PAY-Z)'!$A$11:$A$208,0)) ->  | H51: =INDEX('Data (VII PAY-Z)'!$M$11:$M$208,MATCH('Statement(Z) '!C51,'Data (VII PAY-Z)'!$A$11:$A$208,0)) -> 0 | J51: =IF(C51="","",INDEX('Data (VII PAY-Z)'!$J$11:$J$242,MATCH('Statement(Z) '!C51,'Data (VII PAY-Z)'!$A$11:$A$242,0))) ->  | K51: 0 | L51: =IF(C51="","",ROUND(J51*'PraveshArr (VII PAY-Z) '!AN51,0)) ->  | M51: =IF(C51="","",INDEX('Data (VII PAY-Z)'!$T$11:$T$242,MATCH('Statement(Z) '!C51,'Data (VII PAY-Z)'!$A$11:$A$242,0))) ->  | N51: =IF(C51="","",INDEX('Data (VII PAY-Z)'!$N$11:$N$242,MATCH('Statement(Z) '!C51,'Data (VII PAY-Z)'!$A$11:$A$242,0))) ->  | Q51: 0 | V51: 0 | W51: 0 | X51: 0 | Y51: =IF(C51="","",IF('Data (VII PAY-Z)'!V55="Cash",0,IF('Data (VII PAY-Z)'!B55="Adj. in GPF",(U51-Z51-AA51-AB51-AC51),0))) ->  | AA51: =IF(C51="","",IF(A51="Cash",0,'Data (VII PAY-Z)'!AA55)) ->  | AB51: =IF(C51="","",'Data (VII PAY-Z)'!AB55) ->  | AC51: =IF(C51="","",'Data (VII PAY-Z)'!AG55) ->  | AF51: =IF(C51="","",IF('Data (VII PAY-Z)'!AH55="","",'Data (VII PAY-Z)'!AH55)) -> 
A52: ='Data (VII PAY-Z)'!B56 -> 00:00:00 | C52: ='Data (VII PAY-Z)'!A56 ->  | D52: =INDEX('Data (VII PAY-Z)'!$G$11:$G$242,MATCH('Statement(Z) '!C52,'Data (VII PAY-Z)'!$A$11:$A$242,0)) ->  | E52: 0 | F52: =IF(C52="","",ROUND(D52*'PraveshArr (VII PAY-Z) '!AQ52,0)) ->  | G52: =INDEX('Data (VII PAY-Z)'!$Q$11:$Q$208,MATCH('Statement(Z) '!C52,'Data (VII PAY-Z)'!$A$11:$A$208,0)) ->  | H52: =INDEX('Data (VII PAY-Z)'!$M$11:$M$208,MATCH('Statement(Z) '!C52,'Data (VII PAY-Z)'!$A$11:$A$208,0)) -> 0 | J52: =IF(C52="","",INDEX('Data (VII PAY-Z)'!$J$11:$J$242,MATCH('Statement(Z) '!C52,'Data (VII PAY-Z)'!$A$11:$A$242,0))) ->  | K52: 0 | L52: =IF(C52="","",ROUND(J52*'PraveshArr (VII PAY-Z) '!AN52,0)) ->  | M52: =IF(C52="","",INDEX('Data (VII PAY-Z)'!$T$11:$T$242,MATCH('Statement(Z) '!C52,'Data (VII PAY-Z)'!$A$11:$A$242,0))) ->  | N52: =IF(C52="","",INDEX('Data (VII PAY-Z)'!$N$11:$N$242,MATCH('Statement(Z) '!C52,'Data (VII PAY-Z)'!$A$11:$A$242,0))) ->  | Q52: 0 | V52: 0 | W52: 0 | X52: 0 | Y52: =IF(C52="","",IF('Data (VII PAY-Z)'!V56="Cash",0,IF('Data (VII PAY-Z)'!B56="Adj. in GPF",(U52-Z52-AA52-AB52-AC52),0))) ->  | AA52: =IF(C52="","",IF(A52="Cash",0,'Data (VII PAY-Z)'!AA56)) ->  | AB52: =IF(C52="","",'Data (VII PAY-Z)'!AB56) ->  | AC52: =IF(C52="","",'Data (VII PAY-Z)'!AG56) ->  | AF52: =IF(C52="","",IF('Data (VII PAY-Z)'!AH56="","",'Data (VII PAY-Z)'!AH56)) -> 
A53: ='Data (VII PAY-Z)'!B57 -> 00:00:00 | C53: ='Data (VII PAY-Z)'!A57 ->  | D53: =INDEX('Data (VII PAY-Z)'!$G$11:$G$242,MATCH('Statement(Z) '!C53,'Data (VII PAY-Z)'!$A$11:$A$242,0)) ->  | E53: 0 | F53: =IF(C53="","",ROUND(D53*'PraveshArr (VII PAY-Z) '!AQ53,0)) ->  | G53: =INDEX('Data (VII PAY-Z)'!$Q$11:$Q$208,MATCH('Statement(Z) '!C53,'Data (VII PAY-Z)'!$A$11:$A$208,0)) ->  | H53: =INDEX('Data (VII PAY-Z)'!$M$11:$M$208,MATCH('Statement(Z) '!C53,'Data (VII PAY-Z)'!$A$11:$A$208,0)) -> 0 | J53: =IF(C53="","",INDEX('Data (VII PAY-Z)'!$J$11:$J$242,MATCH('Statement(Z) '!C53,'Data (VII PAY-Z)'!$A$11:$A$242,0))) ->  | K53: 0 | L53: =IF(C53="","",ROUND(J53*'PraveshArr (VII PAY-Z) '!AN53,0)) ->  | M53: =IF(C53="","",INDEX('Data (VII PAY-Z)'!$T$11:$T$242,MATCH('Statement(Z) '!C53,'Data (VII PAY-Z)'!$A$11:$A$242,0))) ->  | N53: =IF(C53="","",INDEX('Data (VII PAY-Z)'!$N$11:$N$242,MATCH('Statement(Z) '!C53,'Data (VII PAY-Z)'!$A$11:$A$242,0))) ->  | Q53: 0 | V53: 0 | W53: 0 | X53: 0 | Y53: =IF(C53="","",IF('Data (VII PAY-Z)'!V57="Cash",0,IF('Data (VII PAY-Z)'!B57="Adj. in GPF",(U53-Z53-AA53-AB53-AC53),0))) ->  | AA53: =IF(C53="","",IF(A53="Cash",0,'Data (VII PAY-Z)'!AA57)) ->  | AB53: =IF(C53="","",'Data (VII PAY-Z)'!AB57) ->  | AC53: =IF(C53="","",'Data (VII PAY-Z)'!AG57) ->  | AF53: =IF(C53="","",IF('Data (VII PAY-Z)'!AH57="","",'Data (VII PAY-Z)'!AH57)) -> 
A54: ='Data (VII PAY-Z)'!B58 -> 00:00:00 | C54: ='Data (VII PAY-Z)'!A58 ->  | D54: =INDEX('Data (VII PAY-Z)'!$G$11:$G$242,MATCH('Statement(Z) '!C54,'Data (VII PAY-Z)'!$A$11:$A$242,0)) ->  | E54: 0 | F54: =IF(C54="","",ROUND(D54*'PraveshArr (VII PAY-Z) '!AQ54,0)) ->  | G54: =INDEX('Data (VII PAY-Z)'!$Q$11:$Q$208,MATCH('Statement(Z) '!C54,'Data (VII PAY-Z)'!$A$11:$A$208,0)) ->  | H54: =INDEX('Data (VII PAY-Z)'!$M$11:$M$208,MATCH('Statement(Z) '!C54,'Data (VII PAY-Z)'!$A$11:$A$208,0)) -> 0 | J54: =IF(C54="","",INDEX('Data (VII PAY-Z)'!$J$11:$J$242,MATCH('Statement(Z) '!C54,'Data (VII PAY-Z)'!$A$11:$A$242,0))) ->  | K54: 0 | L54: =IF(C54="","",ROUND(J54*'PraveshArr (VII PAY-Z) '!AN54,0)) ->  | M54: =IF(C54="","",INDEX('Data (VII PAY-Z)'!$T$11:$T$242,MATCH('Statement(Z) '!C54,'Data (VII PAY-Z)'!$A$11:$A$242,0))) ->  | N54: =IF(C54="","",INDEX('Data (VII PAY-Z)'!$N$11:$N$242,MATCH('Statement(Z) '!C54,'Data (VII PAY-Z)'!$A$11:$A$242,0))) ->  | Q54: 0 | V54: 0 | W54: 0 | X54: 0 | Y54: =IF(C54="","",IF('Data (VII PAY-Z)'!V58="Cash",0,IF('Data (VII PAY-Z)'!B58="Adj. in GPF",(U54-Z54-AA54-AB54-AC54),0))) ->  | AA54: =IF(C54="","",IF(A54="Cash",0,'Data (VII PAY-Z)'!AA58)) ->  | AB54: =IF(C54="","",'Data (VII PAY-Z)'!AB58) ->  | AC54: =IF(C54="","",'Data (VII PAY-Z)'!AG58) ->  | AF54: =IF(C54="","",IF('Data (VII PAY-Z)'!AH58="","",'Data (VII PAY-Z)'!AH58)) -> 
A55: ='Data (VII PAY-Z)'!B59 -> 00:00:00 | C55: ='Data (VII PAY-Z)'!A59 ->  | D55: =INDEX('Data (VII PAY-Z)'!$G$11:$G$242,MATCH('Statement(Z) '!C55,'Data (VII PAY-Z)'!$A$11:$A$242,0)) ->  | E55: 0 | F55: =IF(C55="","",ROUND(D55*'PraveshArr (VII PAY-Z) '!AQ55,0)) ->  | G55: =INDEX('Data (VII PAY-Z)'!$Q$11:$Q$208,MATCH('Statement(Z) '!C55,'Data (VII PAY-Z)'!$A$11:$A$208,0)) ->  | H55: =INDEX('Data (VII PAY-Z)'!$M$11:$M$208,MATCH('Statement(Z) '!C55,'Data (VII PAY-Z)'!$A$11:$A$208,0)) -> 0 | J55: =IF(C55="","",INDEX('Data (VII PAY-Z)'!$J$11:$J$242,MATCH('Statement(Z) '!C55,'Data (VII PAY-Z)'!$A$11:$A$242,0))) ->  | K55: 0 | L55: =IF(C55="","",ROUND(J55*'PraveshArr (VII PAY-Z) '!AN55,0)) ->  | M55: =IF(C55="","",INDEX('Data (VII PAY-Z)'!$T$11:$T$242,MATCH('Statement(Z) '!C55,'Data (VII PAY-Z)'!$A$11:$A$242,0))) ->  | N55: =IF(C55="","",INDEX('Data (VII PAY-Z)'!$N$11:$N$242,MATCH('Statement(Z) '!C55,'Data (VII PAY-Z)'!$A$11:$A$242,0))) ->  | Q55: 0 | V55: 0 | W55: 0 | X55: 0 | Y55: =IF(C55="","",IF('Data (VII PAY-Z)'!V59="Cash",0,IF('Data (VII PAY-Z)'!B59="Adj. in GPF",(U55-Z55-AA55-AB55-AC55),0))) ->  | AA55: =IF(C55="","",IF(A55="Cash",0,'Data (VII PAY-Z)'!AA59)) ->  | AB55: =IF(C55="","",'Data (VII PAY-Z)'!AB59) ->  | AC55: =IF(C55="","",'Data (VII PAY-Z)'!AG59) ->  | AF55: =IF(C55="","",IF('Data (VII PAY-Z)'!AH59="","",'Data (VII PAY-Z)'!AH59)) -> 
A56: ='Data (VII PAY-Z)'!B60 -> 00:00:00 | C56: ='Data (VII PAY-Z)'!A60 ->  | D56: =INDEX('Data (VII PAY-Z)'!$G$11:$G$242,MATCH('Statement(Z) '!C56,'Data (VII PAY-Z)'!$A$11:$A$242,0)) ->  | E56: 0 | F56: =IF(C56="","",ROUND(D56*'PraveshArr (VII PAY-Z) '!AQ56,0)) ->  | G56: =INDEX('Data (VII PAY-Z)'!$Q$11:$Q$208,MATCH('Statement(Z) '!C56,'Data (VII PAY-Z)'!$A$11:$A$208,0)) ->  | H56: =INDEX('Data (VII PAY-Z)'!$M$11:$M$208,MATCH('Statement(Z) '!C56,'Data (VII PAY-Z)'!$A$11:$A$208,0)) -> 0 | J56: =IF(C56="","",INDEX('Data (VII PAY-Z)'!$J$11:$J$242,MATCH('Statement(Z) '!C56,'Data (VII PAY-Z)'!$A$11:$A$242,0))) ->  | K56: 0 | L56: =IF(C56="","",ROUND(J56*'PraveshArr (VII PAY-Z) '!AN56,0)) ->  | M56: =IF(C56="","",INDEX('Data (VII PAY-Z)'!$T$11:$T$242,MATCH('Statement(Z) '!C56,'Data (VII PAY-Z)'!$A$11:$A$242,0))) ->  | N56: =IF(C56="","",INDEX('Data (VII PAY-Z)'!$N$11:$N$242,MATCH('Statement(Z) '!C56,'Data (VII PAY-Z)'!$A$11:$A$242,0))) ->  | Q56: 0 | V56: 0 | W56: 0 | X56: 0 | Y56: =IF(C56="","",IF('Data (VII PAY-Z)'!V60="Cash",0,IF('Data (VII PAY-Z)'!B60="Adj. in GPF",(U56-Z56-AA56-AB56-AC56),0))) ->  | AA56: =IF(C56="","",IF(A56="Cash",0,'Data (VII PAY-Z)'!AA60)) ->  | AB56: =IF(C56="","",'Data (VII PAY-Z)'!AB60) ->  | AC56: =IF(C56="","",'Data (VII PAY-Z)'!AG60) ->  | AF56: =IF(C56="","",IF('Data (VII PAY-Z)'!AH60="","",'Data (VII PAY-Z)'!AH60)) -> 
A57: ='Data (VII PAY-Z)'!B61 -> 00:00:00 | C57: ='Data (VII PAY-Z)'!A61 ->  | D57: =INDEX('Data (VII PAY-Z)'!$G$11:$G$242,MATCH('Statement(Z) '!C57,'Data (VII PAY-Z)'!$A$11:$A$242,0)) ->  | E57: 0 | F57: =IF(C57="","",ROUND(D57*'PraveshArr (VII PAY-Z) '!AQ57,0)) ->  | G57: =INDEX('Data (VII PAY-Z)'!$Q$11:$Q$208,MATCH('Statement(Z) '!C57,'Data (VII PAY-Z)'!$A$11:$A$208,0)) ->  | H57: =INDEX('Data (VII PAY-Z)'!$M$11:$M$208,MATCH('Statement(Z) '!C57,'Data (VII PAY-Z)'!$A$11:$A$208,0)) -> 0 | J57: =IF(C57="","",INDEX('Data (VII PAY-Z)'!$J$11:$J$242,MATCH('Statement(Z) '!C57,'Data (VII PAY-Z)'!$A$11:$A$242,0))) ->  | K57: 0 | L57: =IF(C57="","",ROUND(J57*'PraveshArr (VII PAY-Z) '!AN57,0)) ->  | M57: =IF(C57="","",INDEX('Data (VII PAY-Z)'!$T$11:$T$242,MATCH('Statement(Z) '!C57,'Data (VII PAY-Z)'!$A$11:$A$242,0))) ->  | N57: =IF(C57="","",INDEX('Data (VII PAY-Z)'!$N$11:$N$242,MATCH('Statement(Z) '!C57,'Data (VII PAY-Z)'!$A$11:$A$242,0))) ->  | Q57: 0 | V57: 0 | W57: 0 | X57: 0 | Y57: =IF(C57="","",IF('Data (VII PAY-Z)'!V61="Cash",0,IF('Data (VII PAY-Z)'!B61="Adj. in GPF",(U57-Z57-AA57-AB57-AC57),0))) ->  | AA57: =IF(C57="","",IF(A57="Cash",0,'Data (VII PAY-Z)'!AA61)) ->  | AB57: =IF(C57="","",'Data (VII PAY-Z)'!AB61) ->  | AC57: =IF(C57="","",'Data (VII PAY-Z)'!AG61) ->  | AF57: =IF(C57="","",IF('Data (VII PAY-Z)'!AH61="","",'Data (VII PAY-Z)'!AH61)) -> 
A58: ='Data (VII PAY-Z)'!B62 -> 00:00:00 | C58: ='Data (VII PAY-Z)'!A62 ->  | D58: =INDEX('Data (VII PAY-Z)'!$G$11:$G$242,MATCH('Statement(Z) '!C58,'Data (VII PAY-Z)'!$A$11:$A$242,0)) ->  | E58: 0 | F58: =IF(C58="","",ROUND(D58*'PraveshArr (VII PAY-Z) '!AQ58,0)) ->  | G58: =INDEX('Data (VII PAY-Z)'!$Q$11:$Q$208,MATCH('Statement(Z) '!C58,'Data (VII PAY-Z)'!$A$11:$A$208,0)) ->  | H58: =INDEX('Data (VII PAY-Z)'!$M$11:$M$208,MATCH('Statement(Z) '!C58,'Data (VII PAY-Z)'!$A$11:$A$208,0)) -> 0 | J58: =IF(C58="","",INDEX('Data (VII PAY-Z)'!$J$11:$J$242,MATCH('Statement(Z) '!C58,'Data (VII PAY-Z)'!$A$11:$A$242,0))) ->  | K58: 0 | L58: =IF(C58="","",ROUND(J58*'PraveshArr (VII PAY-Z) '!AN58,0)) ->  | M58: =IF(C58="","",INDEX('Data (VII PAY-Z)'!$T$11:$T$242,MATCH('Statement(Z) '!C58,'Data (VII PAY-Z)'!$A$11:$A$242,0))) ->  | N58: =IF(C58="","",INDEX('Data (VII PAY-Z)'!$N$11:$N$242,MATCH('Statement(Z) '!C58,'Data (VII PAY-Z)'!$A$11:$A$242,0))) ->  | Q58: 0 | V58: 0 | W58: 0 | X58: 0 | Y58: =IF(C58="","",IF('Data (VII PAY-Z)'!V62="Cash",0,IF('Data (VII PAY-Z)'!B62="Adj. in GPF",(U58-Z58-AA58-AB58-AC58),0))) ->  | AA58: =IF(C58="","",IF(A58="Cash",0,'Data (VII PAY-Z)'!AA62)) ->  | AB58: =IF(C58="","",'Data (VII PAY-Z)'!AB62) ->  | AC58: =IF(C58="","",'Data (VII PAY-Z)'!AG62) ->  | AF58: =IF(C58="","",IF('Data (VII PAY-Z)'!AH62="","",'Data (VII PAY-Z)'!AH62)) -> 
A59: ='Data (VII PAY-Z)'!B63 -> 00:00:00 | C59: ='Data (VII PAY-Z)'!A63 ->  | D59: =INDEX('Data (VII PAY-Z)'!$G$11:$G$242,MATCH('Statement(Z) '!C59,'Data (VII PAY-Z)'!$A$11:$A$242,0)) ->  | E59: 0 | F59: =IF(C59="","",ROUND(D59*'PraveshArr (VII PAY-Z) '!AQ59,0)) ->  | G59: =INDEX('Data (VII PAY-Z)'!$Q$11:$Q$208,MATCH('Statement(Z) '!C59,'Data (VII PAY-Z)'!$A$11:$A$208,0)) ->  | H59: =INDEX('Data (VII PAY-Z)'!$M$11:$M$208,MATCH('Statement(Z) '!C59,'Data (VII PAY-Z)'!$A$11:$A$208,0)) -> 0 | J59: =IF(C59="","",INDEX('Data (VII PAY-Z)'!$J$11:$J$242,MATCH('Statement(Z) '!C59,'Data (VII PAY-Z)'!$A$11:$A$242,0))) ->  | K59: 0 | L59: =IF(C59="","",ROUND(J59*'PraveshArr (VII PAY-Z) '!AN59,0)) ->  | M59: =IF(C59="","",INDEX('Data (VII PAY-Z)'!$T$11:$T$242,MATCH('Statement(Z) '!C59,'Data (VII PAY-Z)'!$A$11:$A$242,0))) ->  | N59: =IF(C59="","",INDEX('Data (VII PAY-Z)'!$N$11:$N$242,MATCH('Statement(Z) '!C59,'Data (VII PAY-Z)'!$A$11:$A$242,0))) ->  | Q59: 0 | V59: 0 | W59: 0 | X59: 0 | Y59: =IF(C59="","",IF('Data (VII PAY-Z)'!V63="Cash",0,IF('Data (VII PAY-Z)'!B63="Adj. in GPF",(U59-Z59-AA59-AB59-AC59),0))) ->  | AA59: =IF(C59="","",IF(A59="Cash",0,'Data (VII PAY-Z)'!AA63)) ->  | AB59: =IF(C59="","",'Data (VII PAY-Z)'!AB63) ->  | AC59: =IF(C59="","",'Data (VII PAY-Z)'!AG63) ->  | AF59: =IF(C59="","",IF('Data (VII PAY-Z)'!AH63="","",'Data (VII PAY-Z)'!AH63)) -> 
A60: ='Data (VII PAY-Z)'!B64 -> 00:00:00 | C60: ='Data (VII PAY-Z)'!A64 ->  | D60: =INDEX('Data (VII PAY-Z)'!$G$11:$G$242,MATCH('Statement(Z) '!C60,'Data (VII PAY-Z)'!$A$11:$A$242,0)) ->  | E60: 0 | F60: =IF(C60="","",ROUND(D60*'PraveshArr (VII PAY-Z) '!AQ60,0)) ->  | G60: =INDEX('Data (VII PAY-Z)'!$Q$11:$Q$208,MATCH('Statement(Z) '!C60,'Data (VII PAY-Z)'!$A$11:$A$208,0)) ->  | H60: =INDEX('Data (VII PAY-Z)'!$M$11:$M$208,MATCH('Statement(Z) '!C60,'Data (VII PAY-Z)'!$A$11:$A$208,0)) -> 0 | J60: =IF(C60="","",INDEX('Data (VII PAY-Z)'!$J$11:$J$242,MATCH('Statement(Z) '!C60,'Data (VII PAY-Z)'!$A$11:$A$242,0))) ->  | K60: 0 | L60: =IF(C60="","",ROUND(J60*'PraveshArr (VII PAY-Z) '!AN60,0)) ->  | M60: =IF(C60="","",INDEX('Data (VII PAY-Z)'!$T$11:$T$242,MATCH('Statement(Z) '!C60,'Data (VII PAY-Z)'!$A$11:$A$242,0))) ->  | N60: =IF(C60="","",INDEX('Data (VII PAY-Z)'!$N$11:$N$242,MATCH('Statement(Z) '!C60,'Data (VII PAY-Z)'!$A$11:$A$242,0))) ->  | Q60: 0 | V60: 0 | W60: 0 | X60: 0 | Y60: =IF(C60="","",IF('Data (VII PAY-Z)'!V64="Cash",0,IF('Data (VII PAY-Z)'!B64="Adj. in GPF",(U60-Z60-AA60-AB60-AC60),0))) ->  | AA60: =IF(C60="","",IF(A60="Cash",0,'Data (VII PAY-Z)'!AA64)) ->  | AB60: =IF(C60="","",'Data (VII PAY-Z)'!AB64) ->  | AC60: =IF(C60="","",'Data (VII PAY-Z)'!AG64) ->  | AF60: =IF(C60="","",IF('Data (VII PAY-Z)'!AH64="","",'Data (VII PAY-Z)'!AH64)) -> 
A61: ='Data (VII PAY-Z)'!B65 -> 00:00:00 | C61: ='Data (VII PAY-Z)'!A65 ->  | D61: =INDEX('Data (VII PAY-Z)'!$G$11:$G$242,MATCH('Statement(Z) '!C61,'Data (VII PAY-Z)'!$A$11:$A$242,0)) ->  | E61: 0 | F61: =IF(C61="","",ROUND(D61*'PraveshArr (VII PAY-Z) '!AQ61,0)) ->  | G61: =INDEX('Data (VII PAY-Z)'!$Q$11:$Q$208,MATCH('Statement(Z) '!C61,'Data (VII PAY-Z)'!$A$11:$A$208,0)) ->  | H61: =INDEX('Data (VII PAY-Z)'!$M$11:$M$208,MATCH('Statement(Z) '!C61,'Data (VII PAY-Z)'!$A$11:$A$208,0)) -> 0 | J61: =IF(C61="","",INDEX('Data (VII PAY-Z)'!$J$11:$J$242,MATCH('Statement(Z) '!C61,'Data (VII PAY-Z)'!$A$11:$A$242,0))) ->  | K61: 0 | L61: =IF(C61="","",ROUND(J61*'PraveshArr (VII PAY-Z) '!AN61,0)) ->  | M61: =IF(C61="","",INDEX('Data (VII PAY-Z)'!$T$11:$T$242,MATCH('Statement(Z) '!C61,'Data (VII PAY-Z)'!$A$11:$A$242,0))) ->  | N61: =IF(C61="","",INDEX('Data (VII PAY-Z)'!$N$11:$N$242,MATCH('Statement(Z) '!C61,'Data (VII PAY-Z)'!$A$11:$A$242,0))) ->  | Q61: 0 | V61: 0 | W61: 0 | X61: 0 | Y61: =IF(C61="","",IF('Data (VII PAY-Z)'!V65="Cash",0,IF('Data (VII PAY-Z)'!B65="Adj. in GPF",(U61-Z61-AA61-AB61-AC61),0))) ->  | AA61: =IF(C61="","",IF(A61="Cash",0,'Data (VII PAY-Z)'!AA65)) ->  | AB61: =IF(C61="","",'Data (VII PAY-Z)'!AB65) ->  | AC61: =IF(C61="","",'Data (VII PAY-Z)'!AG65) ->  | AF61: =IF(C61="","",IF('Data (VII PAY-Z)'!AH65="","",'Data (VII PAY-Z)'!AH65)) -> 
A62: ='Data (VII PAY-Z)'!B66 -> 00:00:00 | C62: ='Data (VII PAY-Z)'!A66 ->  | D62: =INDEX('Data (VII PAY-Z)'!$G$11:$G$242,MATCH('Statement(Z) '!C62,'Data (VII PAY-Z)'!$A$11:$A$242,0)) ->  | E62: 0 | F62: =IF(C62="","",ROUND(D62*'PraveshArr (VII PAY-Z) '!AQ62,0)) ->  | G62: =INDEX('Data (VII PAY-Z)'!$Q$11:$Q$208,MATCH('Statement(Z) '!C62,'Data (VII PAY-Z)'!$A$11:$A$208,0)) ->  | H62: =INDEX('Data (VII PAY-Z)'!$M$11:$M$208,MATCH('Statement(Z) '!C62,'Data (VII PAY-Z)'!$A$11:$A$208,0)) -> 0 | J62: =IF(C62="","",INDEX('Data (VII PAY-Z)'!$J$11:$J$242,MATCH('Statement(Z) '!C62,'Data (VII PAY-Z)'!$A$11:$A$242,0))) ->  | K62: 0 | L62: =IF(C62="","",ROUND(J62*'PraveshArr (VII PAY-Z) '!AN62,0)) ->  | M62: =IF(C62="","",INDEX('Data (VII PAY-Z)'!$T$11:$T$242,MATCH('Statement(Z) '!C62,'Data (VII PAY-Z)'!$A$11:$A$242,0))) ->  | N62: =IF(C62="","",INDEX('Data (VII PAY-Z)'!$N$11:$N$242,MATCH('Statement(Z) '!C62,'Data (VII PAY-Z)'!$A$11:$A$242,0))) ->  | Q62: 0 | V62: 0 | W62: 0 | X62: 0 | Y62: =IF(C62="","",IF('Data (VII PAY-Z)'!V66="Cash",0,IF('Data (VII PAY-Z)'!B66="Adj. in GPF",(U62-Z62-AA62-AB62-AC62),0))) ->  | AA62: =IF(C62="","",IF(A62="Cash",0,'Data (VII PAY-Z)'!AA66)) ->  | AB62: =IF(C62="","",'Data (VII PAY-Z)'!AB66) ->  | AC62: =IF(C62="","",'Data (VII PAY-Z)'!AG66) ->  | AF62: =IF(C62="","",IF('Data (VII PAY-Z)'!AH66="","",'Data (VII PAY-Z)'!AH66)) -> 
A63: ='Data (VII PAY-Z)'!B67 -> 00:00:00 | C63: ='Data (VII PAY-Z)'!A67 ->  | D63: =INDEX('Data (VII PAY-Z)'!$G$11:$G$242,MATCH('Statement(Z) '!C63,'Data (VII PAY-Z)'!$A$11:$A$242,0)) ->  | E63: 0 | F63: =IF(C63="","",ROUND(D63*'PraveshArr (VII PAY-Z) '!AQ63,0)) ->  | G63: =INDEX('Data (VII PAY-Z)'!$Q$11:$Q$208,MATCH('Statement(Z) '!C63,'Data (VII PAY-Z)'!$A$11:$A$208,0)) ->  | H63: =INDEX('Data (VII PAY-Z)'!$M$11:$M$208,MATCH('Statement(Z) '!C63,'Data (VII PAY-Z)'!$A$11:$A$208,0)) -> 0 | J63: =IF(C63="","",INDEX('Data (VII PAY-Z)'!$J$11:$J$242,MATCH('Statement(Z) '!C63,'Data (VII PAY-Z)'!$A$11:$A$242,0))) ->  | K63: 0 | L63: =IF(C63="","",ROUND(J63*'PraveshArr (VII PAY-Z) '!AN63,0)) ->  | M63: =IF(C63="","",INDEX('Data (VII PAY-Z)'!$T$11:$T$242,MATCH('Statement(Z) '!C63,'Data (VII PAY-Z)'!$A$11:$A$242,0))) ->  | N63: =IF(C63="","",INDEX('Data (VII PAY-Z)'!$N$11:$N$242,MATCH('Statement(Z) '!C63,'Data (VII PAY-Z)'!$A$11:$A$242,0))) ->  | Q63: 0 | V63: 0 | W63: 0 | X63: 0 | Y63: =IF(C63="","",IF('Data (VII PAY-Z)'!V67="Cash",0,IF('Data (VII PAY-Z)'!B67="Adj. in GPF",(U63-Z63-AA63-AB63-AC63),0))) ->  | AA63: =IF(C63="","",IF(A63="Cash",0,'Data (VII PAY-Z)'!AA67)) ->  | AB63: =IF(C63="","",'Data (VII PAY-Z)'!AB67) ->  | AC63: =IF(C63="","",'Data (VII PAY-Z)'!AG67) ->  | AF63: =IF(C63="","",IF('Data (VII PAY-Z)'!AH67="","",'Data (VII PAY-Z)'!AH67)) -> 
A64: ='Data (VII PAY-Z)'!B68 -> 00:00:00 | C64: ='Data (VII PAY-Z)'!A68 ->  | D64: =INDEX('Data (VII PAY-Z)'!$G$11:$G$242,MATCH('Statement(Z) '!C64,'Data (VII PAY-Z)'!$A$11:$A$242,0)) ->  | E64: 0 | F64: =IF(C64="","",ROUND(D64*'PraveshArr (VII PAY-Z) '!AQ64,0)) ->  | G64: =INDEX('Data (VII PAY-Z)'!$Q$11:$Q$208,MATCH('Statement(Z) '!C64,'Data (VII PAY-Z)'!$A$11:$A$208,0)) ->  | H64: =INDEX('Data (VII PAY-Z)'!$M$11:$M$208,MATCH('Statement(Z) '!C64,'Data (VII PAY-Z)'!$A$11:$A$208,0)) -> 0 | J64: =IF(C64="","",INDEX('Data (VII PAY-Z)'!$J$11:$J$242,MATCH('Statement(Z) '!C64,'Data (VII PAY-Z)'!$A$11:$A$242,0))) ->  | K64: 0 | L64: =IF(C64="","",ROUND(J64*'PraveshArr (VII PAY-Z) '!AN64,0)) ->  | M64: =IF(C64="","",INDEX('Data (VII PAY-Z)'!$T$11:$T$242,MATCH('Statement(Z) '!C64,'Data (VII PAY-Z)'!$A$11:$A$242,0))) ->  | N64: =IF(C64="","",INDEX('Data (VII PAY-Z)'!$N$11:$N$242,MATCH('Statement(Z) '!C64,'Data (VII PAY-Z)'!$A$11:$A$242,0))) ->  | Q64: 0 | V64: 0 | W64: 0 | X64: 0 | Y64: =IF(C64="","",IF('Data (VII PAY-Z)'!V68="Cash",0,IF('Data (VII PAY-Z)'!B68="Adj. in GPF",(U64-Z64-AA64-AB64-AC64),0))) ->  | AA64: =IF(C64="","",IF(A64="Cash",0,'Data (VII PAY-Z)'!AA68)) ->  | AB64: =IF(C64="","",'Data (VII PAY-Z)'!AB68) ->  | AC64: =IF(C64="","",'Data (VII PAY-Z)'!AG68) ->  | AF64: =IF(C64="","",IF('Data (VII PAY-Z)'!AH68="","",'Data (VII PAY-Z)'!AH68)) -> 
A65: ='Data (VII PAY-Z)'!B69 -> 00:00:00 | C65: ='Data (VII PAY-Z)'!A69 ->  | D65: =INDEX('Data (VII PAY-Z)'!$G$11:$G$242,MATCH('Statement(Z) '!C65,'Data (VII PAY-Z)'!$A$11:$A$242,0)) ->  | E65: 0 | F65: =IF(C65="","",ROUND(D65*'PraveshArr (VII PAY-Z) '!AQ65,0)) ->  | G65: =INDEX('Data (VII PAY-Z)'!$Q$11:$Q$208,MATCH('Statement(Z) '!C65,'Data (VII PAY-Z)'!$A$11:$A$208,0)) ->  | H65: =INDEX('Data (VII PAY-Z)'!$M$11:$M$208,MATCH('Statement(Z) '!C65,'Data (VII PAY-Z)'!$A$11:$A$208,0)) -> 0 | J65: =IF(C65="","",INDEX('Data (VII PAY-Z)'!$J$11:$J$242,MATCH('Statement(Z) '!C65,'Data (VII PAY-Z)'!$A$11:$A$242,0))) ->  | K65: 0 | L65: =IF(C65="","",ROUND(J65*'PraveshArr (VII PAY-Z) '!AN65,0)) ->  | M65: =IF(C65="","",INDEX('Data (VII PAY-Z)'!$T$11:$T$242,MATCH('Statement(Z) '!C65,'Data (VII PAY-Z)'!$A$11:$A$242,0))) ->  | N65: =IF(C65="","",INDEX('Data (VII PAY-Z)'!$N$11:$N$242,MATCH('Statement(Z) '!C65,'Data (VII PAY-Z)'!$A$11:$A$242,0))) ->  | Q65: 0 | V65: 0 | W65: 0 | X65: 0 | Y65: =IF(C65="","",IF('Data (VII PAY-Z)'!V69="Cash",0,IF('Data (VII PAY-Z)'!B69="Adj. in GPF",(U65-Z65-AA65-AB65-AC65),0))) ->  | AA65: =IF(C65="","",IF(A65="Cash",0,'Data (VII PAY-Z)'!AA69)) ->  | AB65: =IF(C65="","",'Data (VII PAY-Z)'!AB69) ->  | AC65: =IF(C65="","",'Data (VII PAY-Z)'!AG69) ->  | AF65: =IF(C65="","",IF('Data (VII PAY-Z)'!AH69="","",'Data (VII PAY-Z)'!AH69)) -> 
A66: ='Data (VII PAY-Z)'!B70 -> 00:00:00 | C66: ='Data (VII PAY-Z)'!A70 ->  | D66: =INDEX('Data (VII PAY-Z)'!$G$11:$G$242,MATCH('Statement(Z) '!C66,'Data (VII PAY-Z)'!$A$11:$A$242,0)) ->  | E66: 0 | F66: =IF(C66="","",ROUND(D66*'PraveshArr (VII PAY-Z) '!AQ66,0)) ->  | G66: =INDEX('Data (VII PAY-Z)'!$Q$11:$Q$208,MATCH('Statement(Z) '!C66,'Data (VII PAY-Z)'!$A$11:$A$208,0)) ->  | H66: =INDEX('Data (VII PAY-Z)'!$M$11:$M$208,MATCH('Statement(Z) '!C66,'Data (VII PAY-Z)'!$A$11:$A$208,0)) -> 0 | J66: =IF(C66="","",INDEX('Data (VII PAY-Z)'!$J$11:$J$242,MATCH('Statement(Z) '!C66,'Data (VII PAY-Z)'!$A$11:$A$242,0))) ->  | K66: 0 | L66: =IF(C66="","",ROUND(J66*'PraveshArr (VII PAY-Z) '!AN66,0)) ->  | M66: =IF(C66="","",INDEX('Data (VII PAY-Z)'!$T$11:$T$242,MATCH('Statement(Z) '!C66,'Data (VII PAY-Z)'!$A$11:$A$242,0))) ->  | N66: =IF(C66="","",INDEX('Data (VII PAY-Z)'!$N$11:$N$242,MATCH('Statement(Z) '!C66,'Data (VII PAY-Z)'!$A$11:$A$242,0))) ->  | Q66: 0 | V66: 0 | W66: 0 | X66: 0 | Y66: =IF(C66="","",IF('Data (VII PAY-Z)'!V70="Cash",0,IF('Data (VII PAY-Z)'!B70="Adj. in GPF",(U66-Z66-AA66-AB66-AC66),0))) ->  | AA66: =IF(C66="","",IF(A66="Cash",0,'Data (VII PAY-Z)'!AA70)) ->  | AB66: =IF(C66="","",'Data (VII PAY-Z)'!AB70) ->  | AC66: =IF(C66="","",'Data (VII PAY-Z)'!AG70) ->  | AF66: =IF(C66="","",IF('Data (VII PAY-Z)'!AH70="","",'Data (VII PAY-Z)'!AH70)) -> 
A67: ='Data (VII PAY-Z)'!B71 -> 00:00:00 | C67: ='Data (VII PAY-Z)'!A71 ->  | D67: =INDEX('Data (VII PAY-Z)'!$G$11:$G$242,MATCH('Statement(Z) '!C67,'Data (VII PAY-Z)'!$A$11:$A$242,0)) ->  | E67: 0 | F67: =IF(C67="","",ROUND(D67*'PraveshArr (VII PAY-Z) '!AQ67,0)) ->  | G67: =INDEX('Data (VII PAY-Z)'!$Q$11:$Q$208,MATCH('Statement(Z) '!C67,'Data (VII PAY-Z)'!$A$11:$A$208,0)) ->  | H67: =INDEX('Data (VII PAY-Z)'!$M$11:$M$208,MATCH('Statement(Z) '!C67,'Data (VII PAY-Z)'!$A$11:$A$208,0)) -> 0 | J67: =IF(C67="","",INDEX('Data (VII PAY-Z)'!$J$11:$J$242,MATCH('Statement(Z) '!C67,'Data (VII PAY-Z)'!$A$11:$A$242,0))) ->  | K67: 0 | L67: =IF(C67="","",ROUND(J67*'PraveshArr (VII PAY-Z) '!AN67,0)) ->  | M67: =IF(C67="","",INDEX('Data (VII PAY-Z)'!$T$11:$T$242,MATCH('Statement(Z) '!C67,'Data (VII PAY-Z)'!$A$11:$A$242,0))) ->  | N67: =IF(C67="","",INDEX('Data (VII PAY-Z)'!$N$11:$N$242,MATCH('Statement(Z) '!C67,'Data (VII PAY-Z)'!$A$11:$A$242,0))) ->  | Q67: 0 | V67: 0 | W67: 0 | X67: 0 | Y67: =IF(C67="","",IF('Data (VII PAY-Z)'!V71="Cash",0,IF('Data (VII PAY-Z)'!B71="Adj. in GPF",(U67-Z67-AA67-AB67-AC67),0))) ->  | AA67: =IF(C67="","",IF(A67="Cash",0,'Data (VII PAY-Z)'!AA71)) ->  | AB67: =IF(C67="","",'Data (VII PAY-Z)'!AB71) ->  | AC67: =IF(C67="","",'Data (VII PAY-Z)'!AG71) ->  | AF67: =IF(C67="","",IF('Data (VII PAY-Z)'!AH71="","",'Data (VII PAY-Z)'!AH71)) -> 
A68: ='Data (VII PAY-Z)'!B72 -> 00:00:00 | C68: ='Data (VII PAY-Z)'!A72 ->  | D68: =INDEX('Data (VII PAY-Z)'!$G$11:$G$242,MATCH('Statement(Z) '!C68,'Data (VII PAY-Z)'!$A$11:$A$242,0)) ->  | E68: 0 | F68: =IF(C68="","",ROUND(D68*'PraveshArr (VII PAY-Z) '!AQ68,0)) ->  | G68: =INDEX('Data (VII PAY-Z)'!$Q$11:$Q$208,MATCH('Statement(Z) '!C68,'Data (VII PAY-Z)'!$A$11:$A$208,0)) ->  | H68: =INDEX('Data (VII PAY-Z)'!$M$11:$M$208,MATCH('Statement(Z) '!C68,'Data (VII PAY-Z)'!$A$11:$A$208,0)) -> 0 | J68: =IF(C68="","",INDEX('Data (VII PAY-Z)'!$J$11:$J$242,MATCH('Statement(Z) '!C68,'Data (VII PAY-Z)'!$A$11:$A$242,0))) ->  | K68: 0 | L68: =IF(C68="","",ROUND(J68*'PraveshArr (VII PAY-Z) '!AN68,0)) ->  | M68: =IF(C68="","",INDEX('Data (VII PAY-Z)'!$T$11:$T$242,MATCH('Statement(Z) '!C68,'Data (VII PAY-Z)'!$A$11:$A$242,0))) ->  | N68: =IF(C68="","",INDEX('Data (VII PAY-Z)'!$N$11:$N$242,MATCH('Statement(Z) '!C68,'Data (VII PAY-Z)'!$A$11:$A$242,0))) ->  | Q68: 0 | V68: 0 | W68: 0 | X68: 0 | Y68: =IF(C68="","",IF('Data (VII PAY-Z)'!V72="Cash",0,IF('Data (VII PAY-Z)'!B72="Adj. in GPF",(U68-Z68-AA68-AB68-AC68),0))) ->  | AA68: =IF(C68="","",IF(A68="Cash",0,'Data (VII PAY-Z)'!AA72)) ->  | AB68: =IF(C68="","",'Data (VII PAY-Z)'!AB72) ->  | AC68: =IF(C68="","",'Data (VII PAY-Z)'!AG72) ->  | AF68: =IF(C68="","",IF('Data (VII PAY-Z)'!AH72="","",'Data (VII PAY-Z)'!AH72)) -> 
A69: ='Data (VII PAY-Z)'!B73 -> 00:00:00 | C69: ='Data (VII PAY-Z)'!A73 ->  | D69: =INDEX('Data (VII PAY-Z)'!$G$11:$G$242,MATCH('Statement(Z) '!C69,'Data (VII PAY-Z)'!$A$11:$A$242,0)) ->  | E69: 0 | F69: =IF(C69="","",ROUND(D69*'PraveshArr (VII PAY-Z) '!AQ69,0)) ->  | G69: =INDEX('Data (VII PAY-Z)'!$Q$11:$Q$208,MATCH('Statement(Z) '!C69,'Data (VII PAY-Z)'!$A$11:$A$208,0)) ->  | H69: =INDEX('Data (VII PAY-Z)'!$M$11:$M$208,MATCH('Statement(Z) '!C69,'Data (VII PAY-Z)'!$A$11:$A$208,0)) -> 0 | J69: =IF(C69="","",INDEX('Data (VII PAY-Z)'!$J$11:$J$242,MATCH('Statement(Z) '!C69,'Data (VII PAY-Z)'!$A$11:$A$242,0))) ->  | K69: 0 | L69: =IF(C69="","",ROUND(J69*'PraveshArr (VII PAY-Z) '!AN69,0)) ->  | M69: =IF(C69="","",INDEX('Data (VII PAY-Z)'!$T$11:$T$242,MATCH('Statement(Z) '!C69,'Data (VII PAY-Z)'!$A$11:$A$242,0))) ->  | N69: =IF(C69="","",INDEX('Data (VII PAY-Z)'!$N$11:$N$242,MATCH('Statement(Z) '!C69,'Data (VII PAY-Z)'!$A$11:$A$242,0))) ->  | Q69: 0 | V69: 0 | W69: 0 | X69: 0 | Y69: =IF(C69="","",IF('Data (VII PAY-Z)'!V73="Cash",0,IF('Data (VII PAY-Z)'!B73="Adj. in GPF",(U69-Z69-AA69-AB69-AC69),0))) ->  | AA69: =IF(C69="","",IF(A69="Cash",0,'Data (VII PAY-Z)'!AA73)) ->  | AB69: =IF(C69="","",'Data (VII PAY-Z)'!AB73) ->  | AC69: =IF(C69="","",'Data (VII PAY-Z)'!AG73) ->  | AF69: =IF(C69="","",IF('Data (VII PAY-Z)'!AH73="","",'Data (VII PAY-Z)'!AH73)) -> 
A70: ='Data (VII PAY-Z)'!B74 -> 00:00:00 | C70: ='Data (VII PAY-Z)'!A74 ->  | D70: =INDEX('Data (VII PAY-Z)'!$G$11:$G$242,MATCH('Statement(Z) '!C70,'Data (VII PAY-Z)'!$A$11:$A$242,0)) ->  | E70: 0 | F70: =IF(C70="","",ROUND(D70*'PraveshArr (VII PAY-Z) '!AQ70,0)) ->  | G70: =INDEX('Data (VII PAY-Z)'!$Q$11:$Q$208,MATCH('Statement(Z) '!C70,'Data (VII PAY-Z)'!$A$11:$A$208,0)) ->  | H70: =INDEX('Data (VII PAY-Z)'!$M$11:$M$208,MATCH('Statement(Z) '!C70,'Data (VII PAY-Z)'!$A$11:$A$208,0)) -> 0 | J70: =IF(C70="","",INDEX('Data (VII PAY-Z)'!$J$11:$J$242,MATCH('Statement(Z) '!C70,'Data (VII PAY-Z)'!$A$11:$A$242,0))) ->  | K70: 0 | L70: =IF(C70="","",ROUND(J70*'PraveshArr (VII PAY-Z) '!AN70,0)) ->  | M70: =IF(C70="","",INDEX('Data (VII PAY-Z)'!$T$11:$T$242,MATCH('Statement(Z) '!C70,'Data (VII PAY-Z)'!$A$11:$A$242,0))) ->  | N70: =IF(C70="","",INDEX('Data (VII PAY-Z)'!$N$11:$N$242,MATCH('Statement(Z) '!C70,'Data (VII PAY-Z)'!$A$11:$A$242,0))) ->  | Q70: 0 | V70: 0 | W70: 0 | X70: 0 | Y70: =IF(C70="","",IF('Data (VII PAY-Z)'!V74="Cash",0,IF('Data (VII PAY-Z)'!B74="Adj. in GPF",(U70-Z70-AA70-AB70-AC70),0))) ->  | AA70: =IF(C70="","",IF(A70="Cash",0,'Data (VII PAY-Z)'!AA74)) ->  | AB70: =IF(C70="","",'Data (VII PAY-Z)'!AB74) ->  | AC70: =IF(C70="","",'Data (VII PAY-Z)'!AG74) ->  | AF70: =IF(C70="","",IF('Data (VII PAY-Z)'!AH74="","",'Data (VII PAY-Z)'!AH74)) -> 
A71: ='Data (VII PAY-Z)'!B75 -> 00:00:00 | C71: ='Data (VII PAY-Z)'!A75 ->  | D71: =INDEX('Data (VII PAY-Z)'!$G$11:$G$242,MATCH('Statement(Z) '!C71,'Data (VII PAY-Z)'!$A$11:$A$242,0)) ->  | E71: 0 | F71: =IF(C71="","",ROUND(D71*'PraveshArr (VII PAY-Z) '!AQ71,0)) ->  | G71: =INDEX('Data (VII PAY-Z)'!$Q$11:$Q$208,MATCH('Statement(Z) '!C71,'Data (VII PAY-Z)'!$A$11:$A$208,0)) ->  | H71: =INDEX('Data (VII PAY-Z)'!$M$11:$M$208,MATCH('Statement(Z) '!C71,'Data (VII PAY-Z)'!$A$11:$A$208,0)) -> 0 | J71: =IF(C71="","",INDEX('Data (VII PAY-Z)'!$J$11:$J$242,MATCH('Statement(Z) '!C71,'Data (VII PAY-Z)'!$A$11:$A$242,0))) ->  | K71: 0 | L71: =IF(C71="","",ROUND(J71*'PraveshArr (VII PAY-Z) '!AN71,0)) ->  | M71: =IF(C71="","",INDEX('Data (VII PAY-Z)'!$T$11:$T$242,MATCH('Statement(Z) '!C71,'Data (VII PAY-Z)'!$A$11:$A$242,0))) ->  | N71: =IF(C71="","",INDEX('Data (VII PAY-Z)'!$N$11:$N$242,MATCH('Statement(Z) '!C71,'Data (VII PAY-Z)'!$A$11:$A$242,0))) ->  | Q71: 0 | V71: 0 | W71: 0 | X71: 0 | Y71: =IF(C71="","",IF('Data (VII PAY-Z)'!V75="Cash",0,IF('Data (VII PAY-Z)'!B75="Adj. in GPF",(U71-Z71-AA71-AB71-AC71),0))) ->  | AA71: =IF(C71="","",IF(A71="Cash",0,'Data (VII PAY-Z)'!AA75)) ->  | AB71: =IF(C71="","",'Data (VII PAY-Z)'!AB75) ->  | AC71: =IF(C71="","",'Data (VII PAY-Z)'!AG75) ->  | AF71: =IF(C71="","",IF('Data (VII PAY-Z)'!AH75="","",'Data (VII PAY-Z)'!AH75)) -> 
A72: ='Data (VII PAY-Z)'!B76 -> 00:00:00 | C72: ='Data (VII PAY-Z)'!A76 ->  | D72: =INDEX('Data (VII PAY-Z)'!$G$11:$G$242,MATCH('Statement(Z) '!C72,'Data (VII PAY-Z)'!$A$11:$A$242,0)) ->  | E72: 0 | F72: =IF(C72="","",ROUND(D72*'PraveshArr (VII PAY-Z) '!AQ72,0)) ->  | G72: =INDEX('Data (VII PAY-Z)'!$Q$11:$Q$208,MATCH('Statement(Z) '!C72,'Data (VII PAY-Z)'!$A$11:$A$208,0)) ->  | H72: =INDEX('Data (VII PAY-Z)'!$M$11:$M$208,MATCH('Statement(Z) '!C72,'Data (VII PAY-Z)'!$A$11:$A$208,0)) -> 0 | J72: =IF(C72="","",INDEX('Data (VII PAY-Z)'!$J$11:$J$242,MATCH('Statement(Z) '!C72,'Data (VII PAY-Z)'!$A$11:$A$242,0))) ->  | K72: 0 | L72: =IF(C72="","",ROUND(J72*'PraveshArr (VII PAY-Z) '!AN72,0)) ->  | M72: =IF(C72="","",INDEX('Data (VII PAY-Z)'!$T$11:$T$242,MATCH('Statement(Z) '!C72,'Data (VII PAY-Z)'!$A$11:$A$242,0))) ->  | N72: =IF(C72="","",INDEX('Data (VII PAY-Z)'!$N$11:$N$242,MATCH('Statement(Z) '!C72,'Data (VII PAY-Z)'!$A$11:$A$242,0))) ->  | Q72: 0 | V72: 0 | W72: 0 | X72: 0 | Y72: =IF(C72="","",IF('Data (VII PAY-Z)'!V76="Cash",0,IF('Data (VII PAY-Z)'!B76="Adj. in GPF",(U72-Z72-AA72-AB72-AC72),0))) ->  | Z72: =IF(C72="","",IF(A72="Notional",0,IF(A72="Adj. in GPF",0,IF(A72="Cash",ROUND(U72*10%,0))))) ->  | AA72: =IF(C72="","",IF(A72="Cash",0,'Data (VII PAY-Z)'!AA76)) ->  | AB72: =IF(C72="","",'Data (VII PAY-Z)'!AB76) ->  | AC72: =IF(C72="","",'Data (VII PAY-Z)'!AG76) ->  | AE72: =IF(C72="","",IF(A72="Adj. in GPF",0,IF(A72="Cash",U72-AD72,"N.B."))) ->  | AF72: =IF(C72="","",IF('Data (VII PAY-Z)'!AH76="","",'Data (VII PAY-Z)'!AH76)) -> 
A73: ='Data (VII PAY-Z)'!B77 -> 00:00:00 | B73: =IF(C73="","",B72+1) ->  | C73: ='Data (VII PAY-Z)'!A77 ->  | D73: =INDEX('Data (VII PAY-Z)'!$G$11:$G$242,MATCH('Statement(Z) '!C73,'Data (VII PAY-Z)'!$A$11:$A$242,0)) ->  | E73: 0 | F73: =IF(C73="","",ROUND(D73*'PraveshArr (VII PAY-Z) '!AQ73,0)) ->  | G73: =INDEX('Data (VII PAY-Z)'!$Q$11:$Q$208,MATCH('Statement(Z) '!C73,'Data (VII PAY-Z)'!$A$11:$A$208,0)) ->  | H73: =INDEX('Data (VII PAY-Z)'!$M$11:$M$208,MATCH('Statement(Z) '!C73,'Data (VII PAY-Z)'!$A$11:$A$208,0)) -> 0 | I73: =IF(D73="","",SUM(D73:H73)) ->  | J73: =IF(C73="","",INDEX('Data (VII PAY-Z)'!$J$11:$J$242,MATCH('Statement(Z) '!C73,'Data (VII PAY-Z)'!$A$11:$A$242,0))) ->  | K73: 0 | L73: =IF(C73="","",ROUND(J73*'PraveshArr (VII PAY-Z) '!AN73,0)) ->  | M73: =IF(C73="","",INDEX('Data (VII PAY-Z)'!$T$11:$T$242,MATCH('Statement(Z) '!C73,'Data (VII PAY-Z)'!$A$11:$A$242,0))) ->  | N73: =IF(C73="","",INDEX('Data (VII PAY-Z)'!$N$11:$N$242,MATCH('Statement(Z) '!C73,'Data (VII PAY-Z)'!$A$11:$A$242,0))) ->  | O73: =IF(C73="","",SUM(J73:N73)) ->  | P73: =IF(C73="","",D73-J73) ->  | Q73: =E73-K73 -> 0 | R73: =IF(C73="","",F73-L73) ->  | S73: =IF(C73="","",G73-M73) ->  | T73: =IF(C73="","",H73-N73) ->  | U73: =IF(C73="","",SUM(P73:T73)) ->  | V73: 0 | W73: 0 | X73: 0 | Y73: =IF(C73="","",IF('Data (VII PAY-Z)'!V77="Cash",0,IF('Data (VII PAY-Z)'!B77="Adj. in GPF",(U73-Z73-AA73-AB73-AC73),0))) ->  | AA73: =IF(C73="","",IF(A73="Cash",0,'Data (VII PAY-Z)'!AA77)) ->  | AB73: =IF(C73="","",'Data (VII PAY-Z)'!AB77) ->  | AC73: =IF(C73="","",'Data (VII PAY-Z)'!AG77) ->  | AD73: =IF(C73="","",SUM(V73:AC73)) ->  | AF73: =IF(C73="","",IF('Data (VII PAY-Z)'!AH77="","",'Data (VII PAY-Z)'!AH77)) -> 
A74: ='Data (VII PAY-Z)'!B78 -> 00:00:00 | C74: ='Data (VII PAY-Z)'!A78 ->  | D74: =INDEX('Data (VII PAY-Z)'!$G$11:$G$242,MATCH('Statement(Z) '!C74,'Data (VII PAY-Z)'!$A$11:$A$242,0)) ->  | E74: 0 | F74: =IF(C74="","",ROUND(D74*'PraveshArr (VII PAY-Z) '!AQ74,0)) ->  | G74: =INDEX('Data (VII PAY-Z)'!$Q$11:$Q$208,MATCH('Statement(Z) '!C74,'Data (VII PAY-Z)'!$A$11:$A$208,0)) ->  | H74: =INDEX('Data (VII PAY-Z)'!$M$11:$M$208,MATCH('Statement(Z) '!C74,'Data (VII PAY-Z)'!$A$11:$A$208,0)) -> 0 | J74: =IF(C74="","",INDEX('Data (VII PAY-Z)'!$J$11:$J$242,MATCH('Statement(Z) '!C74,'Data (VII PAY-Z)'!$A$11:$A$242,0))) ->  | K74: 0 | L74: =IF(C74="","",ROUND(J74*'PraveshArr (VII PAY-Z) '!AN74,0)) ->  | M74: =IF(C74="","",INDEX('Data (VII PAY-Z)'!$T$11:$T$242,MATCH('Statement(Z) '!C74,'Data (VII PAY-Z)'!$A$11:$A$242,0))) ->  | N74: =IF(C74="","",INDEX('Data (VII PAY-Z)'!$N$11:$N$242,MATCH('Statement(Z) '!C74,'Data (VII PAY-Z)'!$A$11:$A$242,0))) ->  | Q74: 0 | V74: 0 | W74: 0 | X74: 0 | Y74: =IF(C74="","",IF('Data (VII PAY-Z)'!V78="Cash",0,IF('Data (VII PAY-Z)'!B78="Adj. in GPF",(U74-Z74-AA74-AB74-AC74),0))) ->  | AA74: =IF(C74="","",IF(A74="Cash",0,'Data (VII PAY-Z)'!AA78)) ->  | AB74: =IF(C74="","",'Data (VII PAY-Z)'!AB78) ->  | AC74: =IF(C74="","",'Data (VII PAY-Z)'!AG78) ->  | AF74: =IF(C74="","",IF('Data (VII PAY-Z)'!AH78="","",'Data (VII PAY-Z)'!AH78)) ->  | AI74: 16.18.1.22.5.19.8√97263.0458756048
A75: ='Data (VII PAY-Z)'!B79 -> 00:00:00 | C75: ='Data (VII PAY-Z)'!A79 ->  | D75: =INDEX('Data (VII PAY-Z)'!$G$11:$G$242,MATCH('Statement(Z) '!C75,'Data (VII PAY-Z)'!$A$11:$A$242,0)) ->  | E75: 0 | F75: =IF(C75="","",ROUND(D75*'PraveshArr (VII PAY-Z) '!AQ75,0)) ->  | G75: =INDEX('Data (VII PAY-Z)'!$Q$11:$Q$208,MATCH('Statement(Z) '!C75,'Data (VII PAY-Z)'!$A$11:$A$208,0)) ->  | H75: =INDEX('Data (VII PAY-Z)'!$M$11:$M$208,MATCH('Statement(Z) '!C75,'Data (VII PAY-Z)'!$A$11:$A$208,0)) -> 0 | J75: =IF(C75="","",INDEX('Data (VII PAY-Z)'!$J$11:$J$242,MATCH('Statement(Z) '!C75,'Data (VII PAY-Z)'!$A$11:$A$242,0))) ->  | K75: 0 | L75: =IF(C75="","",ROUND(J75*'PraveshArr (VII PAY-Z) '!AN75,0)) ->  | M75: =IF(C75="","",INDEX('Data (VII PAY-Z)'!$T$11:$T$242,MATCH('Statement(Z) '!C75,'Data (VII PAY-Z)'!$A$11:$A$242,0))) ->  | N75: =IF(C75="","",INDEX('Data (VII PAY-Z)'!$N$11:$N$242,MATCH('Statement(Z) '!C75,'Data (VII PAY-Z)'!$A$11:$A$242,0))) ->  | Q75: 0 | V75: 0 | W75: 0 | X75: 0 | Y75: =IF(C75="","",IF('Data (VII PAY-Z)'!V79="Cash",0,IF('Data (VII PAY-Z)'!B79="Adj. in GPF",(U75-Z75-AA75-AB75-AC75),0))) ->  | AA75: =IF(C75="","",IF(A75="Cash",0,'Data (VII PAY-Z)'!AA79)) ->  | AB75: =IF(C75="","",'Data (VII PAY-Z)'!AB79) ->  | AC75: =IF(C75="","",'Data (VII PAY-Z)'!AG79) ->  | AF75: =IF(C75="","",IF('Data (VII PAY-Z)'!AH79="","",'Data (VII PAY-Z)'!AH79)) -> 
A76: ='Data (VII PAY-Z)'!B80 -> 00:00:00 | C76: ='Data (VII PAY-Z)'!A80 ->  | D76: =INDEX('Data (VII PAY-Z)'!$G$11:$G$242,MATCH('Statement(Z) '!C76,'Data (VII PAY-Z)'!$A$11:$A$242,0)) ->  | E76: 0 | F76: =IF(C76="","",ROUND(D76*'PraveshArr (VII PAY-Z) '!AQ76,0)) ->  | G76: =INDEX('Data (VII PAY-Z)'!$Q$11:$Q$208,MATCH('Statement(Z) '!C76,'Data (VII PAY-Z)'!$A$11:$A$208,0)) ->  | H76: =INDEX('Data (VII PAY-Z)'!$M$11:$M$208,MATCH('Statement(Z) '!C76,'Data (VII PAY-Z)'!$A$11:$A$208,0)) -> 0 | J76: =IF(C76="","",INDEX('Data (VII PAY-Z)'!$J$11:$J$242,MATCH('Statement(Z) '!C76,'Data (VII PAY-Z)'!$A$11:$A$242,0))) ->  | K76: 0 | L76: =IF(C76="","",ROUND(J76*'PraveshArr (VII PAY-Z) '!AN76,0)) ->  | M76: =IF(C76="","",INDEX('Data (VII PAY-Z)'!$T$11:$T$242,MATCH('Statement(Z) '!C76,'Data (VII PAY-Z)'!$A$11:$A$242,0))) ->  | N76: =IF(C76="","",INDEX('Data (VII PAY-Z)'!$N$11:$N$242,MATCH('Statement(Z) '!C76,'Data (VII PAY-Z)'!$A$11:$A$242,0))) ->  | Q76: 0 | V76: 0 | W76: 0 | X76: 0 | Y76: =IF(C76="","",IF('Data (VII PAY-Z)'!V80="Cash",0,IF('Data (VII PAY-Z)'!B80="Adj. in GPF",(U76-Z76-AA76-AB76-AC76),0))) ->  | AA76: =IF(C76="","",IF(A76="Cash",0,'Data (VII PAY-Z)'!AA80)) ->  | AB76: =IF(C76="","",'Data (VII PAY-Z)'!AB80) ->  | AC76: =IF(C76="","",'Data (VII PAY-Z)'!AG80) ->  | AF76: =IF(C76="","",IF('Data (VII PAY-Z)'!AH80="","",'Data (VII PAY-Z)'!AH80)) -> 
A77: ='Data (VII PAY-Z)'!B81 -> 00:00:00 | C77: ='Data (VII PAY-Z)'!A81 ->  | D77: =INDEX('Data (VII PAY-Z)'!$G$11:$G$242,MATCH('Statement(Z) '!C77,'Data (VII PAY-Z)'!$A$11:$A$242,0)) ->  | E77: 0 | F77: =IF(C77="","",ROUND(D77*'PraveshArr (VII PAY-Z) '!AQ77,0)) ->  | G77: =INDEX('Data (VII PAY-Z)'!$Q$11:$Q$208,MATCH('Statement(Z) '!C77,'Data (VII PAY-Z)'!$A$11:$A$208,0)) ->  | H77: =INDEX('Data (VII PAY-Z)'!$M$11:$M$208,MATCH('Statement(Z) '!C77,'Data (VII PAY-Z)'!$A$11:$A$208,0)) -> 0 | J77: =IF(C77="","",INDEX('Data (VII PAY-Z)'!$J$11:$J$242,MATCH('Statement(Z) '!C77,'Data (VII PAY-Z)'!$A$11:$A$242,0))) ->  | K77: 0 | L77: =IF(C77="","",ROUND(J77*'PraveshArr (VII PAY-Z) '!AN77,0)) ->  | M77: =IF(C77="","",INDEX('Data (VII PAY-Z)'!$T$11:$T$242,MATCH('Statement(Z) '!C77,'Data (VII PAY-Z)'!$A$11:$A$242,0))) ->  | N77: =IF(C77="","",INDEX('Data (VII PAY-Z)'!$N$11:$N$242,MATCH('Statement(Z) '!C77,'Data (VII PAY-Z)'!$A$11:$A$242,0))) ->  | Q77: 0 | V77: 0 | W77: 0 | X77: 0 | Y77: =IF(C77="","",IF('Data (VII PAY-Z)'!V81="Cash",0,IF('Data (VII PAY-Z)'!B81="Adj. in GPF",(U77-Z77-AA77-AB77-AC77),0))) ->  | AA77: =IF(C77="","",IF(A77="Cash",0,'Data (VII PAY-Z)'!AA81)) ->  | AB77: =IF(C77="","",'Data (VII PAY-Z)'!AB81) ->  | AC77: =IF(C77="","",'Data (VII PAY-Z)'!AG81) ->  | AF77: =IF(C77="","",IF('Data (VII PAY-Z)'!AH81="","",'Data (VII PAY-Z)'!AH81)) -> 
A78: ='Data (VII PAY-Z)'!B82 -> 00:00:00 | C78: ='Data (VII PAY-Z)'!A82 ->  | D78: =INDEX('Data (VII PAY-Z)'!$G$11:$G$242,MATCH('Statement(Z) '!C78,'Data (VII PAY-Z)'!$A$11:$A$242,0)) ->  | E78: 0 | F78: =IF(C78="","",ROUND(D78*'PraveshArr (VII PAY-Z) '!AQ78,0)) ->  | G78: =INDEX('Data (VII PAY-Z)'!$Q$11:$Q$208,MATCH('Statement(Z) '!C78,'Data (VII PAY-Z)'!$A$11:$A$208,0)) ->  | H78: =INDEX('Data (VII PAY-Z)'!$M$11:$M$208,MATCH('Statement(Z) '!C78,'Data (VII PAY-Z)'!$A$11:$A$208,0)) -> 0 | J78: =IF(C78="","",INDEX('Data (VII PAY-Z)'!$J$11:$J$242,MATCH('Statement(Z) '!C78,'Data (VII PAY-Z)'!$A$11:$A$242,0))) ->  | K78: 0 | L78: =IF(C78="","",ROUND(J78*'PraveshArr (VII PAY-Z) '!AN78,0)) ->  | M78: =IF(C78="","",INDEX('Data (VII PAY-Z)'!$T$11:$T$242,MATCH('Statement(Z) '!C78,'Data (VII PAY-Z)'!$A$11:$A$242,0))) ->  | N78: =IF(C78="","",INDEX('Data (VII PAY-Z)'!$N$11:$N$242,MATCH('Statement(Z) '!C78,'Data (VII PAY-Z)'!$A$11:$A$242,0))) ->  | Q78: 0 | V78: 0 | W78: 0 | X78: 0 | Y78: =IF(C78="","",IF('Data (VII PAY-Z)'!V82="Cash",0,IF('Data (VII PAY-Z)'!B82="Adj. in GPF",(U78-Z78-AA78-AB78-AC78),0))) ->  | AA78: =IF(C78="","",IF(A78="Cash",0,'Data (VII PAY-Z)'!AA82)) ->  | AB78: =IF(C78="","",'Data (VII PAY-Z)'!AB82) ->  | AC78: =IF(C78="","",'Data (VII PAY-Z)'!AG82) ->  | AF78: =IF(C78="","",IF('Data (VII PAY-Z)'!AH82="","",'Data (VII PAY-Z)'!AH82)) -> 
A79: ='Data (VII PAY-Z)'!B83 -> 00:00:00 | C79: ='Data (VII PAY-Z)'!A83 ->  | D79: =INDEX('Data (VII PAY-Z)'!$G$11:$G$242,MATCH('Statement(Z) '!C79,'Data (VII PAY-Z)'!$A$11:$A$242,0)) ->  | E79: 0 | F79: =IF(C79="","",ROUND(D79*'PraveshArr (VII PAY-Z) '!AQ79,0)) ->  | G79: =INDEX('Data (VII PAY-Z)'!$Q$11:$Q$208,MATCH('Statement(Z) '!C79,'Data (VII PAY-Z)'!$A$11:$A$208,0)) ->  | H79: =INDEX('Data (VII PAY-Z)'!$M$11:$M$208,MATCH('Statement(Z) '!C79,'Data (VII PAY-Z)'!$A$11:$A$208,0)) -> 0 | J79: =IF(C79="","",INDEX('Data (VII PAY-Z)'!$J$11:$J$242,MATCH('Statement(Z) '!C79,'Data (VII PAY-Z)'!$A$11:$A$242,0))) ->  | K79: 0 | L79: =IF(C79="","",ROUND(J79*'PraveshArr (VII PAY-Z) '!AN79,0)) ->  | M79: =IF(C79="","",INDEX('Data (VII PAY-Z)'!$T$11:$T$242,MATCH('Statement(Z) '!C79,'Data (VII PAY-Z)'!$A$11:$A$242,0))) ->  | N79: =IF(C79="","",INDEX('Data (VII PAY-Z)'!$N$11:$N$242,MATCH('Statement(Z) '!C79,'Data (VII PAY-Z)'!$A$11:$A$242,0))) ->  | Q79: 0 | V79: 0 | W79: 0 | X79: 0 | Y79: =IF(C79="","",IF('Data (VII PAY-Z)'!V83="Cash",0,IF('Data (VII PAY-Z)'!B83="Adj. in GPF",(U79-Z79-AA79-AB79-AC79),0))) ->  | AA79: =IF(C79="","",IF(A79="Cash",0,'Data (VII PAY-Z)'!AA83)) ->  | AB79: =IF(C79="","",'Data (VII PAY-Z)'!AB83) ->  | AC79: =IF(C79="","",'Data (VII PAY-Z)'!AG83) ->  | AF79: =IF(C79="","",IF('Data (VII PAY-Z)'!AH83="","",'Data (VII PAY-Z)'!AH83)) -> 
A80: ='Data (VII PAY-Z)'!B84 -> 00:00:00 | C80: ='Data (VII PAY-Z)'!A84 ->  | D80: =INDEX('Data (VII PAY-Z)'!$G$11:$G$242,MATCH('Statement(Z) '!C80,'Data (VII PAY-Z)'!$A$11:$A$242,0)) ->  | E80: 0 | F80: =IF(C80="","",ROUND(D80*'PraveshArr (VII PAY-Z) '!AQ80,0)) ->  | G80: =INDEX('Data (VII PAY-Z)'!$Q$11:$Q$208,MATCH('Statement(Z) '!C80,'Data (VII PAY-Z)'!$A$11:$A$208,0)) ->  | H80: =INDEX('Data (VII PAY-Z)'!$M$11:$M$208,MATCH('Statement(Z) '!C80,'Data (VII PAY-Z)'!$A$11:$A$208,0)) -> 0 | J80: =IF(C80="","",INDEX('Data (VII PAY-Z)'!$J$11:$J$242,MATCH('Statement(Z) '!C80,'Data (VII PAY-Z)'!$A$11:$A$242,0))) ->  | K80: 0 | L80: =IF(C80="","",ROUND(J80*'PraveshArr (VII PAY-Z) '!AN80,0)) ->  | M80: =IF(C80="","",INDEX('Data (VII PAY-Z)'!$T$11:$T$242,MATCH('Statement(Z) '!C80,'Data (VII PAY-Z)'!$A$11:$A$242,0))) ->  | N80: =IF(C80="","",INDEX('Data (VII PAY-Z)'!$N$11:$N$242,MATCH('Statement(Z) '!C80,'Data (VII PAY-Z)'!$A$11:$A$242,0))) ->  | Q80: 0 | V80: 0 | W80: 0 | X80: 0 | Y80: =IF(C80="","",IF('Data (VII PAY-Z)'!V84="Cash",0,IF('Data (VII PAY-Z)'!B84="Adj. in GPF",(U80-Z80-AA80-AB80-AC80),0))) ->  | AA80: =IF(C80="","",IF(A80="Cash",0,'Data (VII PAY-Z)'!AA84)) ->  | AB80: =IF(C80="","",'Data (VII PAY-Z)'!AB84) ->  | AC80: =IF(C80="","",'Data (VII PAY-Z)'!AG84) ->  | AF80: =IF(C80="","",IF('Data (VII PAY-Z)'!AH84="","",'Data (VII PAY-Z)'!AH84)) -> 
A81: ='Data (VII PAY-Z)'!B85 -> 00:00:00 | C81: ='Data (VII PAY-Z)'!A85 ->  | D81: =INDEX('Data (VII PAY-Z)'!$G$11:$G$242,MATCH('Statement(Z) '!C81,'Data (VII PAY-Z)'!$A$11:$A$242,0)) ->  | E81: 0 | F81: =IF(C81="","",ROUND(D81*'PraveshArr (VII PAY-Z) '!AQ81,0)) ->  | G81: =INDEX('Data (VII PAY-Z)'!$Q$11:$Q$208,MATCH('Statement(Z) '!C81,'Data (VII PAY-Z)'!$A$11:$A$208,0)) ->  | H81: =INDEX('Data (VII PAY-Z)'!$M$11:$M$208,MATCH('Statement(Z) '!C81,'Data (VII PAY-Z)'!$A$11:$A$208,0)) -> 0 | J81: =IF(C81="","",INDEX('Data (VII PAY-Z)'!$J$11:$J$242,MATCH('Statement(Z) '!C81,'Data (VII PAY-Z)'!$A$11:$A$242,0))) ->  | K81: 0 | L81: =IF(C81="","",ROUND(J81*'PraveshArr (VII PAY-Z) '!AN81,0)) ->  | M81: =IF(C81="","",INDEX('Data (VII PAY-Z)'!$T$11:$T$242,MATCH('Statement(Z) '!C81,'Data (VII PAY-Z)'!$A$11:$A$242,0))) ->  | N81: =IF(C81="","",INDEX('Data (VII PAY-Z)'!$N$11:$N$242,MATCH('Statement(Z) '!C81,'Data (VII PAY-Z)'!$A$11:$A$242,0))) ->  | Q81: 0 | V81: 0 | W81: 0 | X81: 0 | Y81: =IF(C81="","",IF('Data (VII PAY-Z)'!V85="Cash",0,IF('Data (VII PAY-Z)'!B85="Adj. in GPF",(U81-Z81-AA81-AB81-AC81),0))) ->  | AA81: =IF(C81="","",IF(A81="Cash",0,'Data (VII PAY-Z)'!AA85)) ->  | AB81: =IF(C81="","",'Data (VII PAY-Z)'!AB85) ->  | AC81: =IF(C81="","",'Data (VII PAY-Z)'!AG85) ->  | AF81: =IF(C81="","",IF('Data (VII PAY-Z)'!AH85="","",'Data (VII PAY-Z)'!AH85)) -> 
A82: ='Data (VII PAY-Z)'!B86 -> 00:00:00 | C82: ='Data (VII PAY-Z)'!A86 ->  | D82: =INDEX('Data (VII PAY-Z)'!$G$11:$G$242,MATCH('Statement(Z) '!C82,'Data (VII PAY-Z)'!$A$11:$A$242,0)) ->  | E82: 0 | F82: =IF(C82="","",ROUND(D82*'PraveshArr (VII PAY-Z) '!AQ82,0)) ->  | G82: =INDEX('Data (VII PAY-Z)'!$Q$11:$Q$208,MATCH('Statement(Z) '!C82,'Data (VII PAY-Z)'!$A$11:$A$208,0)) ->  | H82: =INDEX('Data (VII PAY-Z)'!$M$11:$M$208,MATCH('Statement(Z) '!C82,'Data (VII PAY-Z)'!$A$11:$A$208,0)) -> 0 | J82: =IF(C82="","",INDEX('Data (VII PAY-Z)'!$J$11:$J$242,MATCH('Statement(Z) '!C82,'Data (VII PAY-Z)'!$A$11:$A$242,0))) ->  | K82: 0 | L82: =IF(C82="","",ROUND(J82*'PraveshArr (VII PAY-Z) '!AN82,0)) ->  | M82: =IF(C82="","",INDEX('Data (VII PAY-Z)'!$T$11:$T$242,MATCH('Statement(Z) '!C82,'Data (VII PAY-Z)'!$A$11:$A$242,0))) ->  | N82: =IF(C82="","",INDEX('Data (VII PAY-Z)'!$N$11:$N$242,MATCH('Statement(Z) '!C82,'Data (VII PAY-Z)'!$A$11:$A$242,0))) ->  | Q82: 0 | V82: 0 | W82: 0 | X82: 0 | Y82: =IF(C82="","",IF('Data (VII PAY-Z)'!V86="Cash",0,IF('Data (VII PAY-Z)'!B86="Adj. in GPF",(U82-Z82-AA82-AB82-AC82),0))) ->  | AA82: =IF(C82="","",IF(A82="Cash",0,'Data (VII PAY-Z)'!AA86)) ->  | AB82: =IF(C82="","",'Data (VII PAY-Z)'!AB86) ->  | AC82: =IF(C82="","",'Data (VII PAY-Z)'!AG86) ->  | AF82: =IF(C82="","",IF('Data (VII PAY-Z)'!AH86="","",'Data (VII PAY-Z)'!AH86)) -> 
A83: ='Data (VII PAY-Z)'!B87 -> 00:00:00 | C83: ='Data (VII PAY-Z)'!A87 ->  | D83: =INDEX('Data (VII PAY-Z)'!$G$11:$G$242,MATCH('Statement(Z) '!C83,'Data (VII PAY-Z)'!$A$11:$A$242,0)) ->  | E83: 0 | F83: =IF(C83="","",ROUND(D83*'PraveshArr (VII PAY-Z) '!AQ83,0)) ->  | G83: =INDEX('Data (VII PAY-Z)'!$Q$11:$Q$208,MATCH('Statement(Z) '!C83,'Data (VII PAY-Z)'!$A$11:$A$208,0)) ->  | H83: =INDEX('Data (VII PAY-Z)'!$M$11:$M$208,MATCH('Statement(Z) '!C83,'Data (VII PAY-Z)'!$A$11:$A$208,0)) -> 0 | J83: =IF(C83="","",INDEX('Data (VII PAY-Z)'!$J$11:$J$242,MATCH('Statement(Z) '!C83,'Data (VII PAY-Z)'!$A$11:$A$242,0))) ->  | K83: 0 | L83: =IF(C83="","",ROUND(J83*'PraveshArr (VII PAY-Z) '!AN83,0)) ->  | M83: =IF(C83="","",INDEX('Data (VII PAY-Z)'!$T$11:$T$242,MATCH('Statement(Z) '!C83,'Data (VII PAY-Z)'!$A$11:$A$242,0))) ->  | N83: =IF(C83="","",INDEX('Data (VII PAY-Z)'!$N$11:$N$242,MATCH('Statement(Z) '!C83,'Data (VII PAY-Z)'!$A$11:$A$242,0))) ->  | Q83: 0 | V83: 0 | W83: 0 | X83: 0 | Y83: =IF(C83="","",IF('Data (VII PAY-Z)'!V87="Cash",0,IF('Data (VII PAY-Z)'!B87="Adj. in GPF",(U83-Z83-AA83-AB83-AC83),0))) ->  | AA83: =IF(C83="","",IF(A83="Cash",0,'Data (VII PAY-Z)'!AA87)) ->  | AB83: =IF(C83="","",'Data (VII PAY-Z)'!AB87) ->  | AC83: =IF(C83="","",'Data (VII PAY-Z)'!AG87) ->  | AF83: =IF(C83="","",IF('Data (VII PAY-Z)'!AH87="","",'Data (VII PAY-Z)'!AH87)) -> 
A84: ='Data (VII PAY-Z)'!B88 -> 00:00:00 | C84: ='Data (VII PAY-Z)'!A88 ->  | D84: =INDEX('Data (VII PAY-Z)'!$G$11:$G$242,MATCH('Statement(Z) '!C84,'Data (VII PAY-Z)'!$A$11:$A$242,0)) ->  | E84: 0 | F84: =IF(C84="","",ROUND(D84*'PraveshArr (VII PAY-Z) '!AQ84,0)) ->  | G84: =INDEX('Data (VII PAY-Z)'!$Q$11:$Q$208,MATCH('Statement(Z) '!C84,'Data (VII PAY-Z)'!$A$11:$A$208,0)) ->  | H84: =INDEX('Data (VII PAY-Z)'!$M$11:$M$208,MATCH('Statement(Z) '!C84,'Data (VII PAY-Z)'!$A$11:$A$208,0)) -> 0 | J84: =IF(C84="","",INDEX('Data (VII PAY-Z)'!$J$11:$J$242,MATCH('Statement(Z) '!C84,'Data (VII PAY-Z)'!$A$11:$A$242,0))) ->  | K84: 0 | L84: =IF(C84="","",ROUND(J84*'PraveshArr (VII PAY-Z) '!AN84,0)) ->  | M84: =IF(C84="","",INDEX('Data (VII PAY-Z)'!$T$11:$T$242,MATCH('Statement(Z) '!C84,'Data (VII PAY-Z)'!$A$11:$A$242,0))) ->  | N84: =IF(C84="","",INDEX('Data (VII PAY-Z)'!$N$11:$N$242,MATCH('Statement(Z) '!C84,'Data (VII PAY-Z)'!$A$11:$A$242,0))) ->  | Q84: 0 | V84: 0 | W84: 0 | X84: 0 | Y84: =IF(C84="","",IF('Data (VII PAY-Z)'!V88="Cash",0,IF('Data (VII PAY-Z)'!B88="Adj. in GPF",(U84-Z84-AA84-AB84-AC84),0))) ->  | AA84: =IF(C84="","",IF(A84="Cash",0,'Data (VII PAY-Z)'!AA88)) ->  | AB84: =IF(C84="","",'Data (VII PAY-Z)'!AB88) ->  | AC84: =IF(C84="","",'Data (VII PAY-Z)'!AG88) ->  | AF84: =IF(C84="","",IF('Data (VII PAY-Z)'!AH88="","",'Data (VII PAY-Z)'!AH88)) -> 
A85: ='Data (VII PAY-Z)'!B89 -> 00:00:00 | C85: ='Data (VII PAY-Z)'!A89 ->  | D85: =INDEX('Data (VII PAY-Z)'!$G$11:$G$242,MATCH('Statement(Z) '!C85,'Data (VII PAY-Z)'!$A$11:$A$242,0)) ->  | E85: 0 | F85: =IF(C85="","",ROUND(D85*'PraveshArr (VII PAY-Z) '!AQ85,0)) ->  | G85: =INDEX('Data (VII PAY-Z)'!$Q$11:$Q$208,MATCH('Statement(Z) '!C85,'Data (VII PAY-Z)'!$A$11:$A$208,0)) ->  | H85: =INDEX('Data (VII PAY-Z)'!$M$11:$M$208,MATCH('Statement(Z) '!C85,'Data (VII PAY-Z)'!$A$11:$A$208,0)) -> 0 | J85: =IF(C85="","",INDEX('Data (VII PAY-Z)'!$J$11:$J$242,MATCH('Statement(Z) '!C85,'Data (VII PAY-Z)'!$A$11:$A$242,0))) ->  | K85: 0 | L85: =IF(C85="","",ROUND(J85*'PraveshArr (VII PAY-Z) '!AN85,0)) ->  | M85: =IF(C85="","",INDEX('Data (VII PAY-Z)'!$T$11:$T$242,MATCH('Statement(Z) '!C85,'Data (VII PAY-Z)'!$A$11:$A$242,0))) ->  | N85: =IF(C85="","",INDEX('Data (VII PAY-Z)'!$N$11:$N$242,MATCH('Statement(Z) '!C85,'Data (VII PAY-Z)'!$A$11:$A$242,0))) ->  | Q85: 0 | V85: 0 | W85: 0 | X85: 0 | Y85: =IF(C85="","",IF('Data (VII PAY-Z)'!V89="Cash",0,IF('Data (VII PAY-Z)'!B89="Adj. in GPF",(U85-Z85-AA85-AB85-AC85),0))) ->  | AA85: =IF(C85="","",IF(A85="Cash",0,'Data (VII PAY-Z)'!AA89)) ->  | AB85: =IF(C85="","",'Data (VII PAY-Z)'!AB89) ->  | AC85: =IF(C85="","",'Data (VII PAY-Z)'!AG89) ->  | AF85: =IF(C85="","",IF('Data (VII PAY-Z)'!AH89="","",'Data (VII PAY-Z)'!AH89)) -> 
A86: ='Data (VII PAY-Z)'!B90 -> 00:00:00 | C86: ='Data (VII PAY-Z)'!A90 ->  | D86: =INDEX('Data (VII PAY-Z)'!$G$11:$G$242,MATCH('Statement(Z) '!C86,'Data (VII PAY-Z)'!$A$11:$A$242,0)) ->  | E86: 0 | F86: =IF(C86="","",ROUND(D86*'PraveshArr (VII PAY-Z) '!AQ86,0)) ->  | G86: =INDEX('Data (VII PAY-Z)'!$Q$11:$Q$208,MATCH('Statement(Z) '!C86,'Data (VII PAY-Z)'!$A$11:$A$208,0)) ->  | H86: =INDEX('Data (VII PAY-Z)'!$M$11:$M$208,MATCH('Statement(Z) '!C86,'Data (VII PAY-Z)'!$A$11:$A$208,0)) -> 0 | J86: =IF(C86="","",INDEX('Data (VII PAY-Z)'!$J$11:$J$242,MATCH('Statement(Z) '!C86,'Data (VII PAY-Z)'!$A$11:$A$242,0))) ->  | K86: 0 | L86: =IF(C86="","",ROUND(J86*'PraveshArr (VII PAY-Z) '!AN86,0)) ->  | M86: =IF(C86="","",INDEX('Data (VII PAY-Z)'!$T$11:$T$242,MATCH('Statement(Z) '!C86,'Data (VII PAY-Z)'!$A$11:$A$242,0))) ->  | N86: =IF(C86="","",INDEX('Data (VII PAY-Z)'!$N$11:$N$242,MATCH('Statement(Z) '!C86,'Data (VII PAY-Z)'!$A$11:$A$242,0))) ->  | Q86: 0 | V86: 0 | W86: 0 | X86: 0 | Y86: =IF(C86="","",IF('Data (VII PAY-Z)'!V90="Cash",0,IF('Data (VII PAY-Z)'!B90="Adj. in GPF",(U86-Z86-AA86-AB86-AC86),0))) ->  | AA86: =IF(C86="","",IF(A86="Cash",0,'Data (VII PAY-Z)'!AA90)) ->  | AB86: =IF(C86="","",'Data (VII PAY-Z)'!AB90) ->  | AC86: =IF(C86="","",'Data (VII PAY-Z)'!AG90) ->  | AF86: =IF(C86="","",IF('Data (VII PAY-Z)'!AH90="","",'Data (VII PAY-Z)'!AH90)) -> 
A87: ='Data (VII PAY-Z)'!B91 -> 00:00:00 | C87: ='Data (VII PAY-Z)'!A91 ->  | D87: =INDEX('Data (VII PAY-Z)'!$G$11:$G$242,MATCH('Statement(Z) '!C87,'Data (VII PAY-Z)'!$A$11:$A$242,0)) ->  | E87: 0 | F87: =IF(C87="","",ROUND(D87*'PraveshArr (VII PAY-Z) '!AQ87,0)) ->  | G87: =INDEX('Data (VII PAY-Z)'!$Q$11:$Q$208,MATCH('Statement(Z) '!C87,'Data (VII PAY-Z)'!$A$11:$A$208,0)) ->  | H87: =INDEX('Data (VII PAY-Z)'!$M$11:$M$208,MATCH('Statement(Z) '!C87,'Data (VII PAY-Z)'!$A$11:$A$208,0)) -> 0 | J87: =IF(C87="","",INDEX('Data (VII PAY-Z)'!$J$11:$J$242,MATCH('Statement(Z) '!C87,'Data (VII PAY-Z)'!$A$11:$A$242,0))) ->  | K87: 0 | L87: =IF(C87="","",ROUND(J87*'PraveshArr (VII PAY-Z) '!AN87,0)) ->  | M87: =IF(C87="","",INDEX('Data (VII PAY-Z)'!$T$11:$T$242,MATCH('Statement(Z) '!C87,'Data (VII PAY-Z)'!$A$11:$A$242,0))) ->  | N87: =IF(C87="","",INDEX('Data (VII PAY-Z)'!$N$11:$N$242,MATCH('Statement(Z) '!C87,'Data (VII PAY-Z)'!$A$11:$A$242,0))) ->  | Q87: 0 | V87: 0 | W87: 0 | X87: 0 | Y87: =IF(C87="","",IF('Data (VII PAY-Z)'!V91="Cash",0,IF('Data (VII PAY-Z)'!B91="Adj. in GPF",(U87-Z87-AA87-AB87-AC87),0))) ->  | AA87: =IF(C87="","",IF(A87="Cash",0,'Data (VII PAY-Z)'!AA91)) ->  | AB87: =IF(C87="","",'Data (VII PAY-Z)'!AB91) ->  | AC87: =IF(C87="","",'Data (VII PAY-Z)'!AG91) ->  | AF87: =IF(C87="","",IF('Data (VII PAY-Z)'!AH91="","",'Data (VII PAY-Z)'!AH91)) -> 
A88: ='Data (VII PAY-Z)'!B92 -> 00:00:00 | C88: ='Data (VII PAY-Z)'!A92 ->  | D88: =INDEX('Data (VII PAY-Z)'!$G$11:$G$242,MATCH('Statement(Z) '!C88,'Data (VII PAY-Z)'!$A$11:$A$242,0)) ->  | E88: 0 | F88: =IF(C88="","",ROUND(D88*'PraveshArr (VII PAY-Z) '!AQ88,0)) ->  | G88: =INDEX('Data (VII PAY-Z)'!$Q$11:$Q$208,MATCH('Statement(Z) '!C88,'Data (VII PAY-Z)'!$A$11:$A$208,0)) ->  | H88: =INDEX('Data (VII PAY-Z)'!$M$11:$M$208,MATCH('Statement(Z) '!C88,'Data (VII PAY-Z)'!$A$11:$A$208,0)) -> 0 | J88: =IF(C88="","",INDEX('Data (VII PAY-Z)'!$J$11:$J$242,MATCH('Statement(Z) '!C88,'Data (VII PAY-Z)'!$A$11:$A$242,0))) ->  | K88: 0 | L88: =IF(C88="","",ROUND(J88*'PraveshArr (VII PAY-Z) '!AN88,0)) ->  | M88: =IF(C88="","",INDEX('Data (VII PAY-Z)'!$T$11:$T$242,MATCH('Statement(Z) '!C88,'Data (VII PAY-Z)'!$A$11:$A$242,0))) ->  | N88: =IF(C88="","",INDEX('Data (VII PAY-Z)'!$N$11:$N$242,MATCH('Statement(Z) '!C88,'Data (VII PAY-Z)'!$A$11:$A$242,0))) ->  | Q88: 0 | V88: 0 | W88: 0 | X88: 0 | Y88: =IF(C88="","",IF('Data (VII PAY-Z)'!V92="Cash",0,IF('Data (VII PAY-Z)'!B92="Adj. in GPF",(U88-Z88-AA88-AB88-AC88),0))) ->  | AA88: =IF(C88="","",IF(A88="Cash",0,'Data (VII PAY-Z)'!AA92)) ->  | AB88: =IF(C88="","",'Data (VII PAY-Z)'!AB92) ->  | AC88: =IF(C88="","",'Data (VII PAY-Z)'!AG92) ->  | AF88: =IF(C88="","",IF('Data (VII PAY-Z)'!AH92="","",'Data (VII PAY-Z)'!AH92)) -> 
A89: ='Data (VII PAY-Z)'!B93 -> 00:00:00 | C89: ='Data (VII PAY-Z)'!A93 ->  | D89: =INDEX('Data (VII PAY-Z)'!$G$11:$G$242,MATCH('Statement(Z) '!C89,'Data (VII PAY-Z)'!$A$11:$A$242,0)) ->  | E89: 0 | F89: =IF(C89="","",ROUND(D89*'PraveshArr (VII PAY-Z) '!AQ89,0)) ->  | G89: =INDEX('Data (VII PAY-Z)'!$Q$11:$Q$208,MATCH('Statement(Z) '!C89,'Data (VII PAY-Z)'!$A$11:$A$208,0)) ->  | H89: =INDEX('Data (VII PAY-Z)'!$M$11:$M$208,MATCH('Statement(Z) '!C89,'Data (VII PAY-Z)'!$A$11:$A$208,0)) -> 0 | J89: =IF(C89="","",INDEX('Data (VII PAY-Z)'!$J$11:$J$242,MATCH('Statement(Z) '!C89,'Data (VII PAY-Z)'!$A$11:$A$242,0))) ->  | K89: 0 | L89: =IF(C89="","",ROUND(J89*'PraveshArr (VII PAY-Z) '!AN89,0)) ->  | M89: =IF(C89="","",INDEX('Data (VII PAY-Z)'!$T$11:$T$242,MATCH('Statement(Z) '!C89,'Data (VII PAY-Z)'!$A$11:$A$242,0))) ->  | N89: =IF(C89="","",INDEX('Data (VII PAY-Z)'!$N$11:$N$242,MATCH('Statement(Z) '!C89,'Data (VII PAY-Z)'!$A$11:$A$242,0))) ->  | Q89: 0 | V89: 0 | W89: 0 | X89: 0 | Y89: =IF(C89="","",IF('Data (VII PAY-Z)'!V93="Cash",0,IF('Data (VII PAY-Z)'!B93="Adj. in GPF",(U89-Z89-AA89-AB89-AC89),0))) ->  | AA89: =IF(C89="","",IF(A89="Cash",0,'Data (VII PAY-Z)'!AA93)) ->  | AB89: =IF(C89="","",'Data (VII PAY-Z)'!AB93) ->  | AC89: =IF(C89="","",'Data (VII PAY-Z)'!AG93) ->  | AF89: =IF(C89="","",IF('Data (VII PAY-Z)'!AH93="","",'Data (VII PAY-Z)'!AH93)) -> 
A90: ='Data (VII PAY-Z)'!B94 -> 00:00:00 | C90: ='Data (VII PAY-Z)'!A94 ->  | D90: =INDEX('Data (VII PAY-Z)'!$G$11:$G$242,MATCH('Statement(Z) '!C90,'Data (VII PAY-Z)'!$A$11:$A$242,0)) ->  | E90: 0 | F90: =IF(C90="","",ROUND(D90*'PraveshArr (VII PAY-Z) '!AQ90,0)) ->  | G90: =INDEX('Data (VII PAY-Z)'!$Q$11:$Q$208,MATCH('Statement(Z) '!C90,'Data (VII PAY-Z)'!$A$11:$A$208,0)) ->  | H90: =INDEX('Data (VII PAY-Z)'!$M$11:$M$208,MATCH('Statement(Z) '!C90,'Data (VII PAY-Z)'!$A$11:$A$208,0)) -> 0 | J90: =IF(C90="","",INDEX('Data (VII PAY-Z)'!$J$11:$J$242,MATCH('Statement(Z) '!C90,'Data (VII PAY-Z)'!$A$11:$A$242,0))) ->  | K90: 0 | L90: =IF(C90="","",ROUND(J90*'PraveshArr (VII PAY-Z) '!AN90,0)) ->  | M90: =IF(C90="","",INDEX('Data (VII PAY-Z)'!$T$11:$T$242,MATCH('Statement(Z) '!C90,'Data (VII PAY-Z)'!$A$11:$A$242,0))) ->  | N90: =IF(C90="","",INDEX('Data (VII PAY-Z)'!$N$11:$N$242,MATCH('Statement(Z) '!C90,'Data (VII PAY-Z)'!$A$11:$A$242,0))) ->  | Q90: 0 | V90: 0 | W90: 0 | X90: 0 | Y90: =IF(C90="","",IF('Data (VII PAY-Z)'!V94="Cash",0,IF('Data (VII PAY-Z)'!B94="Adj. in GPF",(U90-Z90-AA90-AB90-AC90),0))) ->  | AA90: =IF(C90="","",IF(A90="Cash",0,'Data (VII PAY-Z)'!AA94)) ->  | AB90: =IF(C90="","",'Data (VII PAY-Z)'!AB94) ->  | AC90: =IF(C90="","",'Data (VII PAY-Z)'!AG94) ->  | AF90: =IF(C90="","",IF('Data (VII PAY-Z)'!AH94="","",'Data (VII PAY-Z)'!AH94)) -> 
A91: ='Data (VII PAY-Z)'!B95 -> 00:00:00 | C91: ='Data (VII PAY-Z)'!A95 ->  | D91: =INDEX('Data (VII PAY-Z)'!$G$11:$G$242,MATCH('Statement(Z) '!C91,'Data (VII PAY-Z)'!$A$11:$A$242,0)) ->  | E91: 0 | F91: =IF(C91="","",ROUND(D91*'PraveshArr (VII PAY-Z) '!AQ91,0)) ->  | G91: =INDEX('Data (VII PAY-Z)'!$Q$11:$Q$208,MATCH('Statement(Z) '!C91,'Data (VII PAY-Z)'!$A$11:$A$208,0)) ->  | H91: =INDEX('Data (VII PAY-Z)'!$M$11:$M$208,MATCH('Statement(Z) '!C91,'Data (VII PAY-Z)'!$A$11:$A$208,0)) -> 0 | J91: =IF(C91="","",INDEX('Data (VII PAY-Z)'!$J$11:$J$242,MATCH('Statement(Z) '!C91,'Data (VII PAY-Z)'!$A$11:$A$242,0))) ->  | K91: 0 | L91: =IF(C91="","",ROUND(J91*'PraveshArr (VII PAY-Z) '!AN91,0)) ->  | M91: =IF(C91="","",INDEX('Data (VII PAY-Z)'!$T$11:$T$242,MATCH('Statement(Z) '!C91,'Data (VII PAY-Z)'!$A$11:$A$242,0))) ->  | N91: =IF(C91="","",INDEX('Data (VII PAY-Z)'!$N$11:$N$242,MATCH('Statement(Z) '!C91,'Data (VII PAY-Z)'!$A$11:$A$242,0))) ->  | Q91: 0 | V91: 0 | W91: 0 | X91: 0 | Y91: =IF(C91="","",IF('Data (VII PAY-Z)'!V95="Cash",0,IF('Data (VII PAY-Z)'!B95="Adj. in GPF",(U91-Z91-AA91-AB91-AC91),0))) ->  | AA91: =IF(C91="","",IF(A91="Cash",0,'Data (VII PAY-Z)'!AA95)) ->  | AB91: =IF(C91="","",'Data (VII PAY-Z)'!AB95) ->  | AC91: =IF(C91="","",'Data (VII PAY-Z)'!AG95) ->  | AF91: =IF(C91="","",IF('Data (VII PAY-Z)'!AH95="","",'Data (VII PAY-Z)'!AH95)) -> 
